Workbook

Sheet 低高度
A1: 地球周回軌道
L2: マクロで計算 ➡ | N2: exe("運動シミュレーション","MotionSimulation",E8:E53,G8:DB8)
G3: マクロは標準モジュール-Module6 の中。入力データを一つ更新するたびにエクセル標準機能として実行されてしまうので、マクロ実行関数 exe(･･) の等号記号＝は削除している。入力データ変更完了後に実行させるには =exe(･･) と先頭に＝を付加する。
A4: (1) 地球モデル | H4: 外力 | K4: 局地座標系の運動 | AC4: 物体座標系の回転運動 | AR4: 慣性座標系で解く | BJ4: 局地座標系で解く | CB4: 極座標系で解く | DD4: 局地座標系で解く－慣性座標系で解く | DM4: 極座標系で解く－慣性座標系で解く | DW4: 局地座標系原点
A5: μ=3.986005×1014 | B5: 地球重力定数 [m3/s2] | G5: 時間 | H5: 物体に作用する外力 | K5: 原点加速度 d'' | N5: 原点速度 d' | Q5: 原点位置 d | T5: 方向余弦行列 DIL | AC5: 角加速度 ω'B | AF5: 角速度 ωB | AI5: 方向余弦行列 DIB | AR5: 慣性系加速度 R'' | AU5: 慣性系速度 R' | AX5: 慣性系位置 R | BA5: 局地系位置 rL | BD5: 極座標系位置 rQ | BG5: 高度 | BH5: 緯度 | BI5: 経度 | BJ5: 局地系加速度 rL'' | BM5: 局地系速度 rL' | BP5: 局地系位置 rL | BS5: 慣性系位置 R | BV5: 極座標系位置 rQ | BY5: 高度 | BZ5: 緯度 | CA5: 経度 | CB5: 方向余弦行列 DIQ | CK5: 極座標系加速度 rQ'' | CN5: 極座標系速度 rQ' | CQ5: 極座標系位置 rQ | CT5: 慣性系位置 R | CW5: 局地系位置 rL | CZ5: 高度 | DA5: 緯度 | DB5: 経度 | DD5: 慣性系位置誤差 ΔR | DG5: 局地系位置誤差 ΔrL | DJ5: 極座標系位置誤差 ΔrQ | DM5: 慣性系位置誤差 ΔR | DP5: 局地系位置誤差 ΔrL | DS5: 極座標系位置誤差 ΔrQ | DW5: 緯度 | DX5: 経度 | DY5: 自転角
A6: Re=6371×103 | B6: 地球平均半径 [m] | G6: t | H6: FBx | I6: FBy | J6: FBz | K6: d''x | L6: d''y | M6: d''z | N6: d'x | O6: d'y | P6: d'z | Q6: dx | R6: dy | S6: dz | T6: ix | U6: iy | V6: iz | W6: jx | X6: jy | Y6: jz | Z6: kx | AA6: ky | AB6: kz | AC6: ω'R | AD6: ω'P | AE6: ω'Y | AF6: ωR | AG6: ωP | AH6: ωY | AI6: xBx | AJ6: xBy | AK6: xBz | AL6: yBx | AM6: yBy | AN6: yBz | AO6: zBx | AP6: zBy | AQ6: zBz | AR6: R''x | AS6: R''y | AT6: R''z | AU6: R'x | AV6: R'y | AW6: R'z | AX6: Rx | AY6: Ry | AZ6: Rz | BA6: ri | BB6: rj | BC6: rk | BD6: rQ | BE6: θ | BF6: φ | BG6: hL | BH6: φL | BI6: λL | BJ6: r''i | BK6: r''j | BL6: r''k | BM6: r'i | BN6: r'j | BO6: r'k | BP6: ri | BQ6: rj | BR6: rk | BS6: Rx | BT6: Ry | BU6: Rz | BV6: rQ | BW6: θ | BX6: φ | BY6: hL | BZ6: φL | CA6: λL | CB6: erx | CC6: ery | CD6: erz | CE6: eθx | CF6: eθy | CG6: eθz | CH6: eφx | CI6: eφy | CJ6: eφz | CK6: rQ'' | CL6: θ'' | CM6: φ'' | CN6: rQ' | CO6: θ' | CP6: φ' | CQ6: rQ | CR6: θ | CS6: φ | CT6: Rx | CU6: Ry | CV6: Rz | CW6: ri | CX6: rj | CY6: rk | CZ6: hL | DA6: φL | DB6: λL | DD6: Rx | DE6: Ry | DF6: Rz | DG6: rx | DH6: ry | DI6: rz | DJ6: rQ | DK6: θ | DL6: φ | DM6: Rx | DN6: Ry | DO6: Rz | DP6: rx | DQ6: ry | DR6: rz | DS6: rQ | DT6: θ | DU6: φ | DW6: φc | DX6: λc | DY6: ωet
A7: ωe=4.178×10-3 | B7: 地球自転角速度 [deg/s] | C7: 入力データ | G7: [s] | H7: [N] | I7: [N] | J7: [N] | K7: [m/s^2] | L7: [m/s^2] | M7: [m/s^2] | N7: [m/s] | O7: [m/s] | P7: [m/s] | Q7: [m] | R7: [m] | S7: [m] | T7: [ND] | U7: [ND] | V7: [ND] | W7: [ND] | X7: [ND] | Y7: [ND] | Z7: [ND] | AA7: [ND] | AB7: [ND] | AC7: [deg/s^2] | AD7: [deg/s^2] | AE7: [deg/s^2] | AF7: [deg/s] | AG7: [deg/s] | AH7: [deg/s] | AI7: [ND] | AJ7: [ND] | AK7: [ND] | AL7: [ND] | AM7: [ND] | AN7: [ND] | AO7: [ND] | AP7: [ND] | AQ7: [ND] | AR7: [m/s^2] | AS7: [m/s^2] | AT7: [m/s^2] | AU7: [m/s] | AV7: [m/s] | AW7: [m/s] | AX7: [m] | AY7: [m] | AZ7: [m] | BA7: [m] | BB7: [m] | BC7: [m] | BD7: [m] | BE7: [deg] | BF7: [deg] | BG7: [m] | BH7: [deg] | BI7: [deg] | BJ7: [m/s^2] | BK7: [m/s^2] | BL7: [m/s^2] | BM7: [m/s] | BN7: [m/s] | BO7: [m/s] | BP7: [m] | BQ7: [m] | BR7: [m] | BS7: [m] | BT7: [m] | BU7: [m] | BV7: [m] | BW7: [deg] | BX7: [deg] | BY7: [m] | BZ7: [deg] | CA7: [deg] | CB7: [ND] | CC7: [ND] | CD7: [ND] | CE7: [ND] | CF7: [ND] | CG7: [ND] | CH7: [ND] | CI7: [ND] | CJ7: [ND] | CK7: [m/s^2] | CL7: [deg/s^2] | CM7: [deg/s^2] | CN7: [m/s] | CO7: [deg/s] | CP7: [deg/s] | CQ7: [m] | CR7: [deg] | CS7: [deg] | CT7: [m] | CU7: [m] | CV7: [m] | CW7: [m] | CX7: [m] | CY7: [m] | CZ7: [m] | DA7: [deg] | DB7: [deg] | DD7: [m] | DE7: [m] | DF7: [m] | DG7: [m] | DH7: [m] | DI7: [m] | DJ7: [m] | DK7: [deg] | DL7: [deg] | DM7: [m] | DN7: [m] | DO7: [m] | DP7: [m] | DQ7: [m] | DR7: [m] | DS7: [m] | DT7: [deg] | DU7: [deg] | DW7: [deg] | DX7: [deg] | DY7: [deg]
C8: 積分時間間隔 | D8: Δt | E8: 1 | F8: [s] | G8: 0 | H8: 502399.0705 | I8: -502413.2127 | J8: -497504.1634 | K8: 0.01962297083 | L8: -0.01962297083 | M8: 0 | N8: -269.0984828 | O8: -269.0984828 | P8: 0 | Q8: -3690266.58 | R8: 3690266.58 | S8: 3654260.638 | T8: -0.5792279653 | U8: 0.5792279653 | V8: 0.5735764364 | W8: -0.7071067812 | X8: -0.7071067812 | Y8: 0 | Z8: 0.4055797877 | AA8: -0.4055797877 | AB8: 0.8191520443 | AC8: 0 | AD8: 0 | AE8: 0 | AF8: 0 | AG8: 0 | AH8: 0.06474820144 | AI8: -0.7071067812 | AJ8: -0.7071067812 | AK8: 0 | AL8: -0.4055797877 | AM8: 0.4055797877 | AN8: -0.8191520443 | AO8: 0.5792279653 | AP8: -0.5792279653 | AQ8: -0.5735764364 | AR8: 5.023990705 | AS8: -5.024132127 | AT8: -4.975041634 | AU8: -5422.141119 | AV8: -5422.141119 | AW8: 0 | AX8: -3926591.59 | AY8: 3926591.59 | AZ8: 3888279.824 | BA8: 408000 | BB8: 7.150069337e-08 | BC8: 2.22830181e-08 | BD8: 6779009 | BE8: 55 | BF8: 135 | BG8: 408000 | BH8: 35 | BI8: 135 | BJ8: -7.781827602 | BK8: 9.999999991e-05 | BL8: -0.6245100568 | BM8: -4.39512918e-14 | BN8: 7263.131511 | BO8: -8.392045958e-14 | BP8: 408000 | BQ8: 2.624744866e-11 | BR8: -3.841620355e-10 | BS8: -3926591.59 | BT8: 3926591.59 | BU8: 3888279.824 | BV8: 6779009 | BW8: 55 | BX8: 135 | BY8: 408000 | BZ8: 35 | CA8: 135 | CB8: -0.5792279653 | CC8: 0.5792279653 | CD8: 0.5735764364 | CE8: -0.4055797877 | CF8: 0.4055797877 | CG8: -0.8191520443 | CH8: -0.7071067812 | CI8: -0.7071067812 | CJ8: 0 | CK8: -1.652063902e-13 | CL8: 5.133205158e-05 | CM8: 1.031791396e-09 | CN8: -7.527312107e-14 | CO8: 5.742725714e-19 | CP8: 0.07911844023 | CQ8: 6779009 | CR8: 55 | CS8: 135 | CT8: -3926591.59 | CU8: 3926591.59 | CV8: 3888279.824 | CW8: 408000 | CX8: 4.861533398e-11 | CY8: 5.897172173e-08 | CZ8: 408000 | DA8: 35 | DB8: 135 | DD8: =BS8-AX8 -> 4.144385457e-08 | DE8: =BT8-AY8 -> 5.960464478e-08 | DF8: -1.862645149e-08 | DG8: =(BP8-BA8)*1000 -> -4.074536264e-07 | DH8: =(BQ8-BB8)*1000 -> -7.147444592e-05 | DI8: -2.266718013e-05 | DJ8: =BV8-BD8 -> 0 | DK8: =IF(BW8-BE8<-180,BW8-BE8+360,IF(BW8-BE8>180,BW8-BE8-360,BW8-BE8)) -> 1.98951966e-13 | DL8: =IF(BX8-BF8<-180,BX8-BF8+360,IF(BX8-BF8>180,BX8-BF8-360,BX8-BF8)) -> -7.105427358e-13 | DM8: =CT8-AX8 -> 6.565824151e-08 | DN8: 3.539025784e-08 | DO8: 2.980232239e-08 | DP8: 0 | DQ8: -7.145207803e-08 | DR8: 3.668870363e-08 | DS8: =(CQ8-BD8)*1000 -> 0 | DT8: =IF(CR8-BE8<-180,CR8-BE8+360,IF(CR8-BE8>180,CR8-BE8-360,CR8-BE8)) -> 2.131628207e-14 | DU8: =IF(CS8-BF8<-180,CS8-BF8+360,IF(CS8-BF8>180,CS8-BF8-360,CS8-BF8)) -> 0 | DW8: =IF(SQRT(Q8^2+R8^2)=0,0,DEGREES(ATAN2(SQRT(Q8^2+R8^2),S8))) -> 35 | DX8: =IF(Q8=0,0,IF(DEGREES(IF(ATAN2(Q8,R8)<0,ATAN2(Q8,R8)+2*PI(),ATAN2(Q8,R8)))-$E$13*G8<0,DEGREES(IF(ATAN2(Q8,R8)<0,ATAN2(Q8,R8)+2*PI(),ATAN2(Q8,R8)))-$E$13*G8+360,DEGREES(IF(ATAN2(Q8,R8)<0,ATAN2(Q8,R8)+2*PI(),ATAN2(Q8,R8)))-$E$13*G8)) -> 135 | DY8: =$E$13*G8 -> 0
A9: (2) 局地座標系の運動 | C9: 終了時間（軌道周期） | D9: TL=2π√(R^3/μ) | E9: =ROUNDUP((2*PI()*SQRT(E34^3/E11)/E10),0)*E10 -> 5560 | F9: [s] | G9: 20 | H9: 516144.4635 | I9: -488410.5164 | J9: -497377.0428 | K9: 0.01965156854 | L9: -0.01959433138 | M9: 0 | N9: -268.7057374 | O9: -269.4906559 | P9: 0 | Q9: -3695644.623 | R9: 3684880.688 | S9: 3654260.638 | T9: -0.5800721084 | U9: 0.5783825902 | V9: 0.5735764364 | W9: -0.7060747688 | X9: -0.7081372896 | Y9: 0 | Z9: 0.406170863 | AA9: -0.4049878497 | AB9: 0.8191520443 | AC9: 0 | AD9: 0 | AE9: 0 | AF9: 0 | AG9: 0 | AH9: 0.06474820144 | AI9: -0.7160920706 | AJ9: -0.697760301 | AK9: -0.0185123951 | AL9: -0.3894959699 | AM9: 0.4214564349 | AN9: -0.8189428325 | AO9: 0.5792279653 | AP9: -0.5792279653 | AQ9: -0.5735764364 | AR9: 5.161444635 | AS9: -4.884105164 | AT9: -4.973770428 | AU9: -5320.282421 | AV9: -5521.227718 | AW9: -99.492364 | AX9: -4034020.407 | AY9: 3817153.234 | AZ9: 3887284.858 | BA9: 406443.694 | BB9: 145251.481 | BC9: -124.8920579 | BD9: 6779009 | BE9: 55.01026533 | BF9: 136.5822367 | BG9: 408000.0005 | BH9: 34.98973467 | BI9: 136.4986752 | BJ9: -7.780041344 | BK9: -0.1674291077 | BL9: -0.6242089526 | BM9: -155.6246423 | BN9: 7261.458155 | BO9: -12.4882021 | BP9: 406443.694 | BQ9: 145251.481 | BR9: -124.8920579 | BS9: -4034020.407 | BT9: 3817153.234 | BU9: 3887284.858 | BV9: 6779009 | BW9: 55.01026533 | BX9: 136.5822367 | BY9: 408000.0005 | BZ9: 34.98973467 | CA9: 136.4986752 | CB9: -0.5950752399 | CC9: 0.5630842552 | CD9: 0.5734296647 | CE9: -0.4165172999 | CF9: 0.394125512 | CG9: -0.8192547953 | CH9: -0.6873127365 | CI9: -0.7263616195 | CJ9: 0 | CK9: 6.784770743e-06 | CL9: 5.129966864e-05 | CM9: -1.982619646e-06 | CN9: 6.785827382e-05 | CO9: 0.001026425303 | CP9: 0.079098616 | CQ9: 6779009 | CR9: 55.01026533 | CS9: 136.5822367 | CT9: -4034020.407 | CU9: 3817153.234 | CV9: 3887284.858 | CW9: 406443.694 | CX9: 145251.481 | CY9: -124.8920578 | CZ9: 408000.0005 | DA9: 34.98973467 | DB9: 136.4986752 | DD9: =BS9-AX9 -> 4.0512532e-08 | DE9: 6.23986125e-08 | DF9: -1.955777407e-08 | DG9: =(BP9-BA9)*1000 -> 1.396983862e-06 | DH9: -7.287599146e-05 | DI9: -2.50442298e-05 | DJ9: 0 | DK9: =IF(BW9-BE9<-180,BW9-BE9+360,IF(BW9-BE9>180,BW9-BE9-360,BW9-BE9)) -> 1.918465387e-13 | DL9: -7.389644452e-13 | DM9: 7.729977369e-08 | DN9: 4.982575774e-08 | DO9: 3.259629011e-08 | DP9: 2.619344741e-09 | DQ9: -8.987262845e-08 | DR9: 3.791940628e-08 | DS9: =(CQ9-BD9)*1000 -> 9.313225746e-07 | DT9: =IF(CR9-BE9<-180,CR9-BE9+360,IF(CR9-BE9>180,CR9-BE9-360,CR9-BE9)) -> -7.105427358e-15 | DU9: -1.421085472e-13 | DW9: 35 | DX9: =IF(Q9=0,0,IF(DEGREES(IF(ATAN2(Q9,R9)<0,ATAN2(Q9,R9)+2*PI(),ATAN2(Q9,R9)))-$E$13*G9<0,DEGREES(IF(ATAN2(Q9,R9)<0,ATAN2(Q9,R9)+2*PI(),ATAN2(Q9,R9)))-$E$13*G9+360,DEGREES(IF(ATAN2(Q9,R9)<0,ATAN2(Q9,R9)+2*PI(),ATAN2(Q9,R9)))-$E$13*G9)) -> 135 | DY9: 0.08356148264
A10: DIL=(i, j, k)=[λ+ωet]3･[-φc]2 | B10: 局地座標系方向余弦行列 | C10: 出力間隔 | D10: Δtp | E10: =IF(2*PI()*SQRT(E34^3/E11)/480<5,5,IF(2*PI()*SQRT(E34^3/E11)/480<10,10,IF(2*PI()*SQRT(E34^3/E11)/480<20,20,IF(2*PI()*SQRT(E34^3/E11)/480<50,50,IF(2*PI()*SQRT(E34^3/E11)/480<100,100,IF(2*PI()*SQRT(E34^3/E11)/480<200,200,IF(2*PI()*SQRT(E34^3/E11)/480<500,500,IF(2*PI()*SQRT(E34^3/E11)/480<1000,1000,IF(2*PI()*SQRT(E34^3/E11)/480<2000,2000,IF(2*PI()*SQRT(E34^3/E11)/480<5000,5000,10000)))))))))) -> 20 | F10: [s] | G10: 40 | H10: 529625.7086 | I10: -474157.8587 | J10: -496995.3755 | K10: 0.01968012446 | L10: -0.01956565025 | M10: 0 | N10: -268.3124204 | O10: -269.8822558 | P10: 0 | Q10: -3701014.806 | R10: 3679486.958 | S10: 3654260.638 | T10: -0.5809150177 | U10: 0.5775359849 | V10: 0.5735764364 | W10: -0.7050412545 | X10: -0.7091662918 | Y10: 0 | Z10: 0.4067610744 | AA10: -0.4043950502 | AB10: 0.8191520443 | AC10: 0 | AD10: 0 | AE10: 0 | AF10: 0 | AG10: 0 | AH10: 0.06474820144 | AI10: -0.7247115796 | AJ10: -0.6880574042 | AK10: -0.03701533406 | AL10: -0.3732131973 | AM10: 0.4371178018 | AN10: -0.818315304 | AO10: 0.5792279653 | AP10: -0.5792279653 | AQ10: -0.5735764364 | AR10: 5.296257086 | AS10: -4.741578587 | AT10: -4.969953755 | AU10: -5215.700943 | AV10: -5617.488661 | AW10: -198.9338471 | AX10: -4139384.735 | AY10: 3705761.319 | AZ10: 3884300.469 | BA10: 401775.4906 | BB10: 290435.993 | BC10: -499.4474624 | BD10: 6779009.004 | BE10: 55.04104838 | BF10: 138.1636807 | BG10: 408000.0036 | BH10: 34.95895162 | BI10: 137.9965577 | BJ10: -7.774684099 | BK10: -0.3348804623 | BL10: -0.6233008378 | BM10: -311.1778468 | BN10: 7256.434865 | BO10: -24.96431127 | BP10: 401775.4906 | BQ10: 290435.993 | BR10: -499.4474624 | BS10: -4139384.735 | BT10: 3705761.319 | BU10: 3884300.469 | BV10: 6779009.004 | BW10: 55.04104838 | BX10: 138.1636807 | BY10: 408000.0036 | BZ10: 34.95895162 | CA10: 137.9965577 | CB10: -0.6106179727 | CC10: 0.5466523672 | CD10: 0.5729894247 | CE10: -0.4269076848 | CF10: 0.3821867468 | CG10: -0.819562761 | CH10: -0.6670048876 | CI10: -0.7450533404 | CJ10: 0 | CK10: 1.355682455e-05 | CL10: 5.120257889e-05 | CM10: -3.956265949e-06 | CN10: 0.0002713059798 | CO10: 0.002051555288 | CP10: 0.07903920217 | CQ10: 6779009.004 | CR10: 55.04104838 | CS10: 138.1636807 | CT10: -4139384.735 | CU10: 3705761.319 | CV10: 3884300.469 | CW10: 401775.4906 | CX10: 290435.993 | CY10: -499.4474623 | CZ10: 408000.0036 | DA10: 34.95895162 | DB10: 137.9965577 | DD10: 3.911554813e-08 | DE10: 6.146728992e-08 | DF10: -1.862645149e-08 | DG10: 2.153683454e-06 | DH10: -7.101334631e-05 | DI10: -2.445585778e-05 | DJ10: 0 | DK10: 1.847411113e-13 | DL10: -7.389644452e-13 | DM10: 9.126961231e-08 | DN10: 6.658956409e-08 | DO10: 3.352761269e-08 | DP10: 4.656612873e-09 | DQ10: -1.11584086e-07 | DR10: 3.766069767e-08 | DS10: 0 | DT10: -2.131628207e-14 | DU10: -3.694822226e-13 | DW10: 35 | DX10: 135 | DY10: 0.1671229653
A11: ⎾cosφccos(λ+ωet)⏋ | C11: 地球重力定数 | D11: μ | E11: 398600500000000 | F11: [m2/s2] | G11: 60 | H11: 542835.9059 | I11: -459662.5335 | J11: -496359.356 | K11: 0.01970863851 | L11: -0.01953692751 | M11: 0 | N11: -267.9185327 | O11: -270.2732817 | P11: 0 | Q11: -3706377.116 | R11: 3674085.401 | S11: 3654260.638 | T11: -0.5817566913 | U11: 0.5766881512 | V11: 0.5735764364 | W11: -0.7040062406 | X11: -0.7101937856 | Y11: 0 | Z11: 0.4073504207 | AA11: -0.4038013907 | AB11: 0.8191520443 | AC11: 0 | AD11: 0 | AE11: 0 | AF11: 0 | AG11: 0 | AH11: 0.06474820144 | AI11: -0.7329609052 | AJ11: -0.6780030471 | AK11: -0.05549936555 | AL11: -0.356739787 | AM11: 0.4525558886 | AN11: -0.8172697793 | AO11: 0.5792279653 | AP11: -0.5792279653 | AQ11: -0.5735764364 | AR11: 5.428359059 | AS11: -4.596625335 | AT11: -4.96359356 | AU11: -5108.450208 | AV11: -5710.874683 | AW11: -298.2735571 | AX11: -4242630.65 | AY11: 3592472.854 | AZ11: 3879328.183 | BA11: 393997.5324 | BB11: 435486.5579 | BC11: -1123.30299 | BD11: 6779009.012 | BE11: 55.09231031 | BF11: 139.7435428 | BG11: 408000.0122 | BH11: 34.90768969 | BI11: 139.4928583 | BJ11: -7.765758314 | BK11: -0.502176235 | BL11: -0.6217863759 | BM11: -466.5882156 | BN11: 7248.063974 | BO11: -37.4161932 | BP11: 393997.5324 | BQ11: 435486.5579 | BR11: -1123.30299 | BS11: -4242630.65 | BT11: 3592472.854 | BU11: 3879328.183 | BV11: 6779009.012 | BW11: 55.09231031 | BX11: 139.7435428 | BY11: 408000.0122 | BZ11: 34.90768969 | CA11: 139.4928583 | CB11: -0.6258482091 | CC11: 0.5299407108 | CD11: 0.5722559412 | CE11: -0.4367226422 | CF11: 0.3697975069 | CG11: -0.8200750806 | CH11: -0.6462099914 | CI11: -0.7631596471 | CJ11: 0 | CK11: 2.03034678e-05 | CL11: 5.104131322e-05 | CM11: -5.910006782e-06 | CN11: 0.000609961778 | CO11: 0.003074100543 | CP11: 0.07894049812 | CQ11: 6779009.012 | CR11: 55.09231031 | CS11: 139.7435428 | CT11: -4242630.65 | CU11: 3592472.854 | CV11: 3879328.183 | CW11: 393997.5324 | CX11: 435486.5579 | CY11: -1123.30299 | CZ11: 408000.0122 | DA11: 34.90768969 | DB11: 139.4928583 | DD11: 3.725290298e-08 | DE11: 6.286427379e-08 | DF11: -1.722946763e-08 | DG11: 4.307366908e-06 | DH11: -7.107155398e-05 | DI11: -2.422120815e-05 | DJ11: 0 | DK11: 1.705302566e-13 | DL11: -7.389644452e-13 | DM11: 1.024454832e-07 | DN11: 7.869675756e-08 | DO11: 3.771856427e-08 | DP11: 7.392372936e-09 | DQ11: -1.279986463e-07 | DR11: 4.085063665e-08 | DS11: -9.313225746e-07 | DT11: -7.105427358e-14 | DU11: -5.400124792e-13 | DW11: 35 | DX11: 135 | DY11: 0.2506844479
A12: i＝ │cosφcsin(λ+ωet)│ | B12: 局地座標系鉛直方向ベクトル | C12: 地球平均半径 | D12: Re | E12: 6371009 | F12: [m] | G12: 80 | H12: 555768.294 | I12: -444931.9586 | J12: -495469.3093 | K12: 0.01973711065 | L12: -0.01950816321 | M12: 0 | N12: -267.5240751 | O12: -270.6637326 | P12: 0 | Q12: -3711731.543 | R12: 3668676.03 | S12: 3654260.638 | T12: -0.5825971276 | U12: 0.5758390909 | V12: 0.5735764364 | W12: -0.7029697293 | X12: -0.7112197689 | Y12: 0 | Z12: 0.4079389005 | AA12: -0.4032068722 | AB12: 0.8191520443 | AC12: 0 | AD12: 0 | AE12: 0 | AF12: 0 | AG12: 0 | AH12: 0.06474820144 | AI12: -0.7408358337 | AJ12: -0.6676023654 | AK12: -0.07395504792 | AL12: -0.3400841537 | AM12: 0.4677628094 | AN12: -0.8158067924 | AO12: 0.5792279653 | AP12: -0.5792279653 | AQ12: -0.5735764364 | AR12: 5.55768294 | AS12: -4.449319586 | AT12: -4.954693093 | AU12: -4998.585102 | AV12: -5801.337991 | AW12: -397.460654 | AX12: -4343705.314 | AY12: 3477345.817 | AZ12: 3872370.544 | BA12: 383113.3898 | BB12: 580336.2602 | BC12: -1995.852892 | BD12: 6779009.029 | BE12: 55.16398666 | BF12: 141.3210419 | BG12: 408000.0289 | BH12: 34.83601334 | BI12: 140.986796 | BJ12: -7.753268071 | BK12: -0.6692386694 | BL12: -0.6196666739 | BM12: -621.784416 | BN12: 7236.349371 | BO12: -49.83173127 | BP12: 383113.3898 | BQ12: 580336.2602 | BR12: -1995.852892 | BS12: -4343705.314 | BT12: 3477345.817 | BU12: 3872370.544 | BV12: 6779009.029 | BW12: 55.16398666 | BX12: 141.3210419 | BY12: 408000.0289 | BZ12: 34.83601334 | CA12: 140.986796 | CB12: -0.6407581543 | CC12: 0.5129578383 | CD12: 0.5712295894 | CE12: -0.4459360773 | CF12: 0.3569933596 | CG12: -0.8207903241 | CH12: -0.6249560006 | CI12: -0.7806599755 | CJ12: 0 | CK12: 2.701205772e-05 | CL12: 5.08167489e-05 | CM12: -7.834166687e-06 | CN12: 0.001083190924 | CO12: 0.004092785752 | CP12: 0.07880299918 | CQ12: 6779009.029 | CR12: 55.16398666 | CS12: 141.3210419 | CT12: -4343705.314 | CU12: 3477345.817 | CV12: 3872370.544 | CW12: 383113.3898 | CX12: 580336.2602 | CY12: -1995.852892 | CZ12: 408000.0289 | DA12: 34.83601334 | DB12: 140.986796 | DD12: 3.539025784e-08 | DE12: 6.426125765e-08 | DF12: -1.676380634e-08 | DG12: 6.577465683e-06 | DH12: -7.078051567e-05 | DI12: -2.504816621e-05 | DJ12: 0 | DK12: 1.776356839e-13 | DL12: -7.389644452e-13 | DM12: 1.136213541e-07 | DN12: 8.707866073e-08 | DO12: 3.67872417e-08 | DP12: 5.064066499e-09 | DQ12: -1.41793862e-07 | DR12: 4.137427823e-08 | DS12: -6.519258022e-06 | DT12: -8.526512829e-14 | DU12: -6.536993169e-13 | DW12: 35 | DX12: 135 | DY12: 0.3342459306
A13: ⎿ sinφc ⏌ | C13: 地球自転角速度 | D13: ωe | E13: 0.004178074132 | F13: [deg/s] | G13: 100 | H13: 568416.2536 | I13: -429973.6726 | J13: -494325.69 | K13: 0.0197655408 | L13: -0.01947935742 | M13: 0 | N13: -267.1290485 | O13: -271.0536079 | P13: 0 | Q13: -3717078.076 | R13: 3663258.856 | S13: 3654260.638 | T13: -0.5834363247 | U13: 0.5749888057 | V13: 0.5735764364 | W13: -0.7019317228 | X13: -0.7122442394 | Y13: 0 | Z13: 0.4085265126 | AA13: -0.4026114961 | AB13: 0.8191520443 | AC13: 0 | AD13: 0 | AE13: 0 | AF13: 0 | AG13: 0 | AH13: 0.06474820144 | AI13: -0.7483323427 | AJ13: -0.6568606719 | AK13: -0.09237295398 | AL13: -0.3232548052 | AM13: 0.4827307965 | AN13: -0.8139270907 | AO13: 0.5792279653 | AP13: -0.5792279653 | AQ13: -0.5735764364 | AR13: 5.684162536 | AS13: -4.299736726 | AT13: -4.9432569 | AU13: -4886.161852 | AV13: -5888.832285 | AW13: -496.4443757 | AX13: -4442556.999 | AY13: 3360439.128 | AZ13: 3863431.113 | BA13: 369128.0585 | BB13: 724918.2773 | BC13: -3116.24934 | BD13: 6779009.056 | BE13: 55.25598764 | BF13: 142.8954087 | BG13: 408000.0564 | BH13: 34.74401236 | BI13: 142.4776012 | BJ13: -7.737219085 | BK13: -0.8359901172 | BL13: -0.6169432817 | BM13: -776.6952131 | BN13: 7221.296501 | BO13: -62.19883545 | BP13: 369128.0585 | BQ13: 724918.2773 | BR13: -3116.24934 | BS13: -4442556.999 | BT13: 3360439.128 | BU13: 3863431.113 | BV13: 6779009.056 | BW13: 55.25598764 | BX13: 142.8954087 | BY13: 408000.0564 | BZ13: 34.74401236 | CA13: 142.4776012 | CB13: -0.6553401776 | CC13: 0.4957124412 | CD13: 0.5699108941 | CE13: -0.4545242205 | CF13: 0.3438112276 | CG13: -0.8217065004 | CH13: -0.6032718994 | CI13: -0.7975355888 | CJ13: 0 | CK13: 3.367002766e-05 | CL13: 5.053009791e-05 | CM13: -9.719401571e-06 | CN13: 0.001690106537 | CO13: 0.005106356516 | CP13: 0.07862739104 | CQ13: 6779009.056 | CR13: 55.25598764 | CS13: 142.8954087 | CT13: -4442556.999 | CU13: 3360439.128 | CV13: 3863431.113 | CW13: 369128.0585 | CX13: 724918.2773 | CY13: -3116.24934 | CZ13: 408000.0564 | DA13: 34.74401236 | DB13: 142.4776012 | DD13: 3.725290298e-08 | DE13: 6.565824151e-08 | DF13: -1.583248377e-08 | DG13: 7.450580597e-06 | DH13: -7.264316082e-05 | DI13: -2.4376277e-05 | DJ13: 0 | DK13: 1.634248292e-13 | DL13: -7.958078641e-13 | DM13: 1.201406121e-07 | DN13: 9.266659617e-08 | DO13: 3.864988685e-08 | DP13: 5.355104804e-09 | DQ13: -1.502921805e-07 | DR13: 4.343200999e-08 | DS13: -1.024454832e-05 | DT13: -1.350031198e-13 | DU13: -7.389644452e-13 | DW13: 35 | DX13: 135 | DY13: 0.4178074132
A14: ⎾-sin(λ+ωet)⏋ | C14: 緯度 | D14: φc | E14: 35 | F14: [deg] | G14: 120 | H14: 580773.311 | I14: -414795.3305 | J14: -492929.083 | K14: 0.01979392891 | L14: -0.01945051019 | M14: 0 | N14: -266.7334538 | O14: -271.4429067 | P14: 0 | Q14: -3722416.702 | R14: 3657833.89 | S14: 3654260.638 | T14: -0.5842742808 | U14: 0.5741372975 | V14: 0.5735764364 | W14: -0.7008922233 | X14: -0.7132671949 | Y14: 0 | Z14: 0.4091132558 | AA14: -0.4020152637 | AB14: 0.8191520443 | AC14: 0 | AD14: 0 | AE14: 0 | AF14: 0 | AG14: 0 | AH14: 0.06474820144 | AI14: -0.7554466028 | AJ14: -0.6457834533 | AK14: -0.1107436759 | AL14: -0.3062603378 | AM14: 0.4974522043 | AN14: -0.8116316344 | AO14: 0.5792279653 | AP14: -0.5792279653 | AQ14: -0.5735764364 | AR14: 5.80773311 | AS14: -4.147953305 | AT14: -4.92929083 | AU14: -4771.237994 | AV14: -5973.312789 | AW14: -595.1740639 | AX14: -4539135.117 | AY14: 3241812.618 | AZ14: 3852514.463 | BA14: 352047.958 | BB14: 869165.9114 | BC14: -4483.403043 | BD14: 6779009.097 | BE14: 55.36819864 | BF14: 144.4658892 | BG14: 408000.0974 | BH14: 34.63180136 | BI14: 143.9645204 | BJ14: -7.717618705 | BK14: -1.002353075 | BL14: -0.613618191 | BM14: -931.249503 | BN14: 7202.912357 | BO14: -74.50545112 | BP14: 352047.958 | BQ14: 869165.9114 | BR14: -4483.403044 | BS14: -4539135.117 | BT14: 3241812.618 | BU14: 3852514.463 | BV14: 6779009.097 | BW14: 55.36819864 | BX14: 144.4658892 | BY14: 408000.0974 | BZ14: 34.63180136 | CA14: 143.9645204 | CB14: -0.6695868159 | CC14: 0.4782133453 | CD14: 0.5683005299 | CE14: -0.4624657265 | CF14: 0.3302891826 | CG14: -0.8228210666 | CH14: -0.5811875323 | CI14: -0.8137696555 | CJ14: 0 | CK14: 4.026491201e-05 | CL14: 5.018289098e-05 | CM14: -1.155679824e-05 | CN14: 0.002429571373 | CO14: 0.006113585895 | CP14: 0.07841454215 | CQ14: 6779009.097 | CR14: 55.36819864 | CS14: 144.4658892 | CT14: -4539135.117 | CU14: 3241812.618 | CV14: 3852514.463 | CW14: 352047.958 | CX14: 869165.9114 | CY14: -4483.403043 | CZ14: 408000.0974 | DA14: 34.63180136 | DB14: 143.9645204 | DD14: 3.445893526e-08 | DE14: 6.658956409e-08 | DF14: -1.722946763e-08 | DG14: 8.032657206e-06 | DH14: -7.194466889e-05 | DI14: -2.670822141e-05 | DJ14: 0 | DK14: 1.776356839e-13 | DL14: -7.673861546e-13 | DM14: 1.322478056e-07 | DN14: 1.098960638e-07 | DO14: 4.190951586e-08 | DP14: 9.837094694e-09 | DQ14: -1.711305231e-07 | DR14: 4.425510269e-08 | DS14: -1.11758709e-05 | DT14: -1.705302566e-13 | DU14: -9.094947018e-13 | DW14: 35 | DX14: 135 | DY14: 0.5013688959
A15: j＝ │ cos(λ+ωet)│ | B15: 局地座標系水平東方向ベクトル | C15: 経度 | D15: λ | E15: 135 | F15: [deg] | G15: 140 | H15: 592833.1412 | I15: -399404.7002 | J15: -491280.2022 | K15: 0.01982227492 | L15: -0.0194216216 | M15: 0 | N15: -266.3372917 | O15: -271.831628 | P15: 0 | Q15: -3727747.41 | R15: 3652401.144 | S15: 3654260.638 | T15: -0.5851109942 | U15: 0.5732845682 | V15: 0.5735764364 | W15: -0.699851233 | X15: -0.7142886333 | Y15: 0 | Z15: 0.4096991288 | AA15: -0.4014181762 | AB15: 0.8191520443 | AC15: 0 | AD15: 0 | AE15: 0 | AF15: 0 | AG15: 0 | AH15: 0.06474820144 | AI15: -0.7621749801 | AJ15: -0.634376368 | AK15: -0.1290578298 | AL15: -0.2891094323 | AM15: 0.5119195131 | AN15: -0.8089215959 | AO15: 0.5792279653 | AP15: -0.5792279653 | AQ15: -0.5735764364 | AR15: 5.928331412 | AS15: -3.994047002 | AT15: -4.912802022 | AU15: -4653.872343 | AV15: -6054.736265 | AW15: -693.5991903 | AX15: -4633390.24 | AY15: 3121526.997 | AZ15: 3839626.18 | BA15: 331880.9281 | BB15: 1013012.62 | BC15: -6095.984047 | BD15: 6779009.154 | BE15: 55.50048083 | BF15: 146.031749 | BG15: 408000.1545 | BH15: 34.49951917 | BI15: 145.4468186 | BJ15: -7.694475908 | BK15: -1.168250222 | BL15: -0.6096938342 | BM15: -1085.376345 | BN15: 7181.205483 | BO15: -86.73956789 | BP15: 331880.9281 | BQ15: 1013012.62 | BR15: -6095.984047 | BS15: -4633390.24 | BT15: 3121526.997 | BU15: 3839626.18 | BV15: 6779009.154 | BW15: 55.50048083 | BX15: 146.031749 | BY15: 408000.1545 | BZ15: 34.49951917 | CA15: 145.4468186 | CB15: -0.6834907779 | CC15: 0.4604695061 | CD15: 0.5663993207 | CE15: -0.4697417517 | CF15: 0.316466234 | CG15: -0.8241309419 | CH15: -0.5587334278 | CI15: -0.8293473077 | CJ15: 0 | CK15: 4.678437123e-05 | CL15: 4.977695777e-05 | CM15: -1.333796503e-05 | CN15: 0.003300200093 | CO15: 0.007113280586 | CP15: 0.07816549412 | CQ15: 6779009.154 | CR15: 55.50048083 | CS15: 146.031749 | CT15: -4633390.24 | CU15: 3121526.997 | CV15: 3839626.18 | CW15: 331880.9281 | CX15: 1013012.62 | CY15: -6095.984047 | CZ15: 408000.1545 | DA15: 34.49951917 | DB15: 145.4468186 | DD15: 3.352761269e-08 | DE15: 6.845220923e-08 | DF15: -1.583248377e-08 | DG15: 1.100124791e-05 | DH15: -7.217749953e-05 | DI15: -2.667457011e-05 | DJ15: 0 | DK15: 1.563194019e-13 | DL15: -7.673861546e-13 | DM15: 1.452863216e-07 | DN15: 1.252628863e-07 | DO15: 4.610046744e-08 | DP15: 1.327134669e-08 | DQ15: -1.911539584e-07 | DR15: 4.700450518e-08 | DS15: -1.583248377e-05 | DT15: -2.344791028e-13 | DU15: -1.108446668e-12 | DW15: 35 | DX15: 135 | DY15: 0.5849303785
A16: ⎿ 0 ⏌ | D16: ⎾ωR'⏋ | E16: 0 | F16: [deg/s2] | G16: 160 | H16: 604589.5714 | I16: -383809.6582 | J16: -489379.8909 | K16: 0.01985057877 | L16: -0.01939269169 | M16: 0 | N16: -265.940563 | O16: -272.2197712 | P16: 0 | Q16: -3733070.189 | R16: 3646960.629 | S16: 3654260.638 | T16: -0.585946463 | U16: 0.5724306195 | V16: 0.5735764364 | W16: -0.6988087541 | X16: -0.7153085524 | Y16: 0 | Z16: 0.4102841304 | AA16: -0.4008202349 | AB16: 0.8191520443 | AC16: 0 | AD16: 0 | AE16: 0 | AF16: 0 | AG16: 0 | AH16: 0.06474820144 | AI16: -0.7685140378 | AJ16: -0.6226452426 | AK16: -0.1473060608 | AL16: -0.2718108495 | AM16: 0.526125333 | AN16: -0.8057983595 | AO16: 0.5792279653 | AP16: -0.5792279653 | AQ16: -0.5735764364 | AR16: 6.045895714 | AS16: -3.838096582 | AT16: -4.893798909 | AU16: -4534.124965 | AV16: -6133.061041 | AW16: -791.6693825 | AX16: -4725274.132 | AY16: 2999643.826 | AZ16: 3824772.861 | BA16: 308636.2255 | BB16: 1156392.046 | BC16: -7952.422704 | BD16: 6779009.23 | BE16: 55.65267193 | BF16: 147.5922757 | BG16: 408000.2303 | BH16: 34.34732807 | BI16: 146.9237838 | BJ16: -7.667801295 | BK16: -1.333604454 | BL16: -0.6051730828 | BM16: -1239.004994 | BN16: 7156.185967 | BO16: -98.88922843 | BP16: 308636.2255 | BQ16: 1156392.046 | BR16: -7952.422704 | BS16: -4725274.132 | BT16: 2999643.826 | BU16: 3824772.861 | BV16: 6779009.23 | BW16: 55.65267193 | BX16: 147.5922757 | BY16: 408000.2303 | BZ16: 34.34732807 | CA16: 146.9237838 | CB16: -0.6970449473 | CC16: 0.4424900046 | CD16: 0.5642082392 | CE16: -0.4763360108 | CF16: 0.3023821125 | CG16: -0.8256325229 | CH16: -0.5359406181 | CI16: -0.8442556804 | CJ16: 0 | CK16: 5.321621646e-05 | CL16: 4.931440352e-05 | CM16: -1.505511185e-05 | CN16: 0.004300362035 | CO16: 0.008104286677 | CP16: 0.0778814505 | CQ16: 6779009.23 | CR16: 55.65267193 | CS16: 147.5922757 | CT16: -4725274.132 | CU16: 2999643.826 | CV16: 3824772.861 | CW16: 308636.2255 | CX16: 1156392.046 | CY16: -7952.422704 | CZ16: 408000.2303 | DA16: 34.34732807 | DB16: 146.9237838 | DD16: 3.259629011e-08 | DE16: 7.357448339e-08 | DF16: -1.303851604e-08 | DG16: 1.594889909e-05 | DH16: -7.52042979e-05 | DI16: -2.671731636e-05 | DJ16: 0 | DK16: 1.350031198e-13 | DL16: -8.242295735e-13 | DM16: 1.499429345e-07 | DN16: 1.373700798e-07 | DO16: 4.982575774e-08 | DP16: 1.938315108e-08 | DQ16: -2.030283213e-07 | DR16: 4.727371561e-08 | DS16: -1.583248377e-05 | DT16: -2.771116669e-13 | DU16: -1.193711796e-12 | DW16: 35 | DX16: 135 | DY16: 0.6684918612
A17: ⎾-sinφccos(λ+ωet)⏋ | C17: 物体座標系角加速度 | D17: ωB' = │ωP'│ | E17: 0 | F17: [deg/s2] | G17: 180 | H17: 616036.584 | I17: -368018.1856 | J17: -487229.1212 | K17: 0.0198788404 | L17: -0.01936372053 | M17: 0 | N17: -265.5432688 | O17: -272.6073354 | P17: 0 | Q17: -3738385.029 | R17: 3641512.357 | S17: 3654260.638 | T17: -0.5867806856 | U17: 0.5715754532 | V17: 0.5735764364 | W17: -0.6977647888 | X17: -0.7163269501 | Y17: 0 | Z17: 0.4108682593 | AA17: -0.400221441 | AB17: 0.8191520443 | AC17: 0 | AD17: 0 | AE17: 0 | AF17: 0 | AG17: 0 | AH17: 0.06474820144 | AI17: -0.7744605378 | AJ17: -0.6105960696 | AK17: -0.1654790478 | AL17: -0.2543734255 | AM17: 0.5400624075 | AN17: -0.8022635205 | AO17: 0.5792279653 | AP17: -0.5792279653 | AQ17: -0.5735764364 | AR17: 6.16036584 | AS17: -3.680181856 | AT17: -4.872291212 | AU17: -4412.057143 | AV17: -6208.247032 | AW17: -889.3344492 | AX17: -4814739.769 | AY17: 2876225.481 | AZ17: 3807962.106 | BA17: 282324.5198 | BB17: 1299238.051 | BC17: -10050.91082 | BD17: 6779009.327 | BE17: 55.82458697 | BF17: 149.1467827 | BG17: 408000.3273 | BH17: 34.17541303 | BI17: 148.3947293 | BJ17: -7.637607085 | BK17: -1.49833892 | BL17: -0.6000592452 | BM17: -1392.064932 | BN17: 7127.865437 | BO17: -110.9425372 | BP17: 282324.5198 | BQ17: 1299238.051 | BR17: -10050.91082 | BS17: -4814739.769 | BT17: 2876225.481 | BU17: 3807962.106 | BV17: 6779009.327 | BW17: 55.82458697 | BX17: 149.1467827 | BY17: 408000.3273 | BZ17: 34.17541303 | CA17: 148.3947293 | CB17: -0.7102423874 | CC17: 0.4242840424 | CD17: 0.5617284063 | CE17: -0.4822348111 | CF17: 0.2880770547 | CG17: -0.8273217013 | CH17: -0.5128404607 | CI17: -0.8584839322 | CJ17: 0 | CK17: 5.954843381e-05 | CL17: 4.879758288e-05 | CM17: -1.670111833e-05 | CN17: 0.005428184468 | CO17: 0.009085494902 | CP17: 0.07756376407 | CQ17: 6779009.327 | CR17: 55.82458697 | CS17: 149.1467827 | CT17: -4814739.769 | CU17: 2876225.481 | CV17: 3807962.106 | CW17: 282324.5198 | CX17: 1299238.051 | CY17: -10050.91082 | CZ17: 408000.3273 | DA17: 34.17541303 | DB17: 148.3947293 | DD17: 3.166496754e-08 | DE17: 7.590278983e-08 | DF17: -1.396983862e-08 | DG17: 1.664739102e-05 | DH17: -7.683411241e-05 | DI17: -2.867818694e-05 | DJ17: 0 | DK17: 1.492139745e-13 | DL17: -8.526512829e-13 | DM17: 1.68569386e-07 | DN17: 1.583248377e-07 | DO17: 4.749745131e-08 | DP17: 1.885928214e-08 | DQ17: -2.312008291e-07 | DR17: 4.4803528e-08 | DS17: -2.514570951e-05 | DT17: -3.055333764e-13 | DU17: -1.47792889e-12 | DW17: 35 | DX17: 135 | DY17: 0.7520533438
A18: k＝│-sinφcsin(λ+ωet) │ | B18: 局地座標系水平北方向ベクトル | D18: ⎿ωY'⏌ | E18: 0 | F18: [deg/s2] | G18: 200 | H18: 627168.3197 | I18: -352038.3645 | J18: -484828.9931 | K18: 0.01990705974 | L18: -0.01933470819 | M18: 0 | N18: -265.1454097 | O18: -272.9943198 | P18: 0 | Q18: -3743691.916 | R18: 3636056.339 | S18: 3654260.638 | T18: -0.58761366 | U18: 0.5707190712 | V18: 0.5735764364 | W18: -0.6967193394 | X18: -0.7173438242 | Y18: 0 | Z18: 0.4114515143 | AA18: -0.3996217959 | AB18: 0.8191520443 | AC18: 0 | AD18: 0 | AE18: 0 | AF18: 0 | AG18: 0 | AH18: 0.06474820144 | AI18: -0.7800114427 | AJ18: -0.5982350035 | AK18: -0.1835675079 | AL18: -0.2368060673 | AM18: 0.5537236177 | AN18: -0.7983188847 | AO18: 0.5792279653 | AP18: -0.5792279653 | AQ18: -0.5735764364 | AR18: 6.271683197 | AS18: -3.520383645 | AT18: -4.848289931 | AU18: -4287.73135 | AV18: -6280.255759 | AW18: -986.5444067 | AX18: -4901741.364 | AY18: 2751335.127 | AZ18: 3789202.517 | BA18: 252957.8881 | BB18: 1441484.744 | BC18: -12389.403 | BD18: 6779009.448 | BE18: 56.01601932 | BF18: 150.6946118 | BG18: 408000.4482 | BH18: 33.98398068 | BI18: 149.858997 | BJ18: -7.603907114 | BK18: -1.662377059 | BL18: -0.5943560651 | BM18: -1544.485905 | BN18: 7096.257053 | BO18: -122.8876692 | BP18: 252957.8881 | BQ18: 1441484.744 | BR18: -12389.403 | BS18: -4901741.364 | BT18: 2751335.127 | BU18: 3789202.517 | BV18: 6779009.448 | BW18: 56.01601932 | BX18: 150.6946118 | BY18: 408000.4482 | BZ18: 33.98398068 | CA18: 149.858997 | CB18: -0.7230763435 | CC18: 0.405860937 | CD18: 0.558961091 | CE18: -0.4874270653 | CF18: 0.2735915885 | CG18: -0.8291938849 | CH18: -0.4894644599 | CI18: -0.8720232465 | CJ18: 0 | CK18: 6.576920848e-05 | CL18: 4.822907123e-05 | CM18: -1.826958914e-05 | CN18: 0.006681556336 | CO18: 0.01005584534 | CP18: 0.07721392284 | CQ18: 6779009.448 | CR18: 56.01601932 | CS18: 150.6946118 | CT18: -4901741.364 | CU18: 2751335.127 | CV18: 3789202.517 | CW18: 252957.8881 | CX18: 1441484.744 | CY18: -12389.403 | CZ18: 408000.4482 | DA18: 33.98398068 | DB18: 149.858997 | DD18: 3.352761269e-08 | DE18: 7.636845112e-08 | DF18: -1.257285476e-08 | DG18: 1.711305231e-05 | DH18: -7.799826562e-05 | DI18: -2.719207259e-05 | DJ18: 0 | DK18: 1.278976924e-13 | DL18: -8.526512829e-13 | DM18: 1.760199666e-07 | DN18: 1.639127731e-07 | DO18: 4.936009645e-08 | DP18: 1.842272468e-08 | DQ18: -2.402812243e-07 | DR18: 4.735375114e-08 | DS18: -3.352761269e-05 | DT18: -3.623767952e-13 | DU18: -1.5063506e-12 | DW18: 35 | DX18: 135 | DY18: 0.8356148264
A19: ⎿ cosφc ⏌ | D19: ⎾ωR0⏋ | E19: 0 | F19: [deg/s] | G19: 220 | H19: 637979.0806 | I19: -335878.373 | J19: -482180.7345 | K19: 0.01993523674 | L19: -0.01930565473 | M19: 0 | N19: -264.7469867 | O19: -273.3807235 | P19: 0 | Q19: -3748990.841 | R19: 3630592.588 | S19: 3654260.638 | T19: -0.5884453846 | U19: 0.5698614753 | V19: 0.5735764364 | W19: -0.6956724081 | X19: -0.7183591724 | Y19: 0 | Z19: 0.4120338941 | AA19: -0.3990213007 | AB19: 0.8191520443 | AC19: 0 | AD19: 0 | AE19: 0 | AF19: 0 | AG19: 0 | AH19: 0.06474820144 | AI19: -0.785163917 | AJ19: -0.5855683584 | AK19: -0.2015622016 | AL19: -0.2191177483 | AM19: 0.5671019854 | AN19: -0.7939664669 | AO19: 0.5792279653 | AP19: -0.5792279653 | AQ19: -0.5735764364 | AR19: 6.379790806 | AS19: -3.35878373 | AT19: -4.821807345 | AU19: -4161.211214 | AV19: -6349.050367 | AW19: -1083.249504 | AX19: -4986234.394 | AY19: 2625036.679 | AZ19: 3768503.696 | BA19: 220549.8099 | BB19: 1583066.512 | BC19: -14965.61809 | BD19: 6779009.595 | BE19: 56.22674168 | BF19: 152.2351359 | BG19: 408000.5954 | BH19: 33.77325832 | BI19: 151.3159596 | BJ19: -7.566716825 | BK19: -1.825642637 | BL19: -0.5880677184 | BM19: -1696.197948 | BN19: 7061.375505 | BO19: -134.7128786 | BP19: 220549.8099 | BQ19: 1583066.512 | BR19: -14965.61809 | BS19: -4986234.394 | BT19: 2625036.679 | BU19: 3768503.696 | BV19: 6779009.595 | BW19: 56.22674168 | BX19: 152.2351359 | BY19: 408000.5954 | BZ19: 33.77325832 | CA19: 151.3159596 | CB19: -0.7355402472 | CC19: 0.387230117 | CD19: 0.5559077093 | CE19: -0.491904284 | CF19: 0.2589663233 | CG19: -0.8312440188 | CH19: -0.4658440942 | CI19: -0.8848668148 | CJ19: 0 | CK19: 7.186694816e-05 | CL19: 4.761163442e-05 | CM19: -1.975489589e-05 | CN19: 0.008058132471 | CO19: 0.01101433155 | CP19: 0.07683353511 | CQ19: 6779009.595 | CR19: 56.22674168 | CS19: 152.2351359 | CT19: -4986234.394 | CU19: 2625036.679 | CV19: 3768503.696 | CW19: 220549.8099 | CX19: 1583066.512 | CY19: -14965.61809 | CZ19: 408000.5954 | DA19: 33.77325832 | DB19: 151.3159596 | DD19: 3.632158041e-08 | DE19: 7.776543498e-08 | DF19: -1.303851604e-08 | DG19: 1.493026502e-05 | DH19: -8.149072528e-05 | DI19: -2.668821253e-05 | DJ19: 0 | DK19: 1.136868377e-13 | DL19: -8.810729923e-13 | DM19: 1.899898052e-07 | DN19: 1.755543053e-07 | DO19: 4.936009645e-08 | DP19: 1.65309757e-08 | DQ19: -2.582091838e-07 | DR19: 4.86652425e-08 | DS19: -4.470348358e-05 | DT19: -4.121147867e-13 | DU19: -1.648459147e-12 | DW19: 35 | DX19: 135 | DY19: 0.9191763091
A20: ⎾cosφccos(λ+ωet)⏋ | C20: 物体座標系初期角速度 | D20: ωB0 = │ωP0│ | E20: 0 | F20: [deg/s] | G20: 240 | H20: 648463.333 | I20: -319546.4818 | J20: -479285.7002 | K20: 0.01996337134 | L20: -0.0192765602 | M20: 0 | N20: -264.3480005 | O20: -273.7665457 | P20: 0 | Q20: -3754281.792 | R20: 3625121.114 | S20: 3654260.638 | T20: -0.5892758576 | U20: 0.5690026672 | V20: 0.5735764364 | W20: -0.6946239971 | X20: -0.7193729927 | Y20: 0 | Z20: 0.4126153976 | AA20: -0.3984199569 | AB20: 0.8191520443 | AC20: 0 | AD20: 0 | AE20: 0 | AF20: 0 | AG20: 0 | AH20: 0.06474820144 | AI20: -0.7899153289 | AJ20: -0.5726026045 | AK20: -0.2194539372 | AL20: -0.2013175038 | AM20: 0.5801906769 | AN20: -0.7892084903 | AO20: 0.5792279653 | AP20: -0.5792279653 | AQ20: -0.5735764364 | AR20: 6.48463333 | AS20: -3.195464818 | AT20: -4.792857002 | AU20: -4032.561485 | AV20: -6414.595648 | AW20: -1179.400249 | AX20: -5068175.615 | AY20: 2497394.775 | AZ20: 3745876.233 | BA20: 185115.1607 | BB20: 1723918.051 | BC20: -17777.04091 | BD20: 6779009.771 | BE20: 56.45650715 | BF20: 153.767761 | BG20: 408000.7714 | BH20: 33.54349285 | BI20: 152.7650232 | BJ20: -7.526053259 | BK20: -1.988059781 | BL20: -0.5811988112 | BM20: -1847.131422 | BN20: 7023.237004 | BO20: -146.4065074 | BP20: 185115.1607 | BQ20: 1723918.051 | BR20: -17777.04091 | BS20: -5068175.615 | BT20: 2497394.775 | BU20: 3745876.233 | BV20: 6779009.771 | BW20: 56.45650715 | BX20: 153.767761 | BY20: 408000.7714 | BZ20: 33.54349285 | CA20: 152.7650232 | CB20: -0.7476277194 | CC20: 0.3684011174 | CD20: 0.5525698235 | CE20: -0.4956605483 | CF20: 0.2442417464 | CG20: -0.8334666101 | CH20: -0.4420106492 | CI20: -0.8970098026 | CJ20: 0 | CK20: 7.783030632e-05 | CL20: 4.694819716e-05 | CM20: -2.115220539e-05 | CN20: 0.00955533828 | CO20: 0.01196000402 | CP20: 0.07642431383 | CQ20: 6779009.771 | CR20: 56.45650715 | CS20: 153.767761 | CT20: -5068175.615 | CU20: 2497394.775 | CV20: 3745876.233 | CW20: 185115.1607 | CX20: 1723918.051 | CY20: -17777.04091 | CZ20: 408000.7714 | DA20: 33.54349285 | DB20: 152.7650232 | DD20: 3.445893526e-08 | DE20: 8.149072528e-08 | DF20: -1.443549991e-08 | DG20: 1.754960977e-05 | DH20: -8.288770914e-05 | DI20: -2.971864888e-05 | DJ20: 0 | DK20: 1.278976924e-13 | DL20: -8.810729923e-13 | DM20: 2.048909664e-07 | DN20: 1.946464181e-07 | DO20: 5.12227416e-08 | DP20: 1.938315108e-08 | DQ20: -2.824235708e-07 | DR20: 4.894900485e-08 | DS20: -5.308538675e-05 | DT20: -4.831690603e-13 | DU20: -1.847411113e-12 | DW20: 35 | DX20: 135 | DY20: 1.002737792
A21: d＝Re│cosφcsin(λ+ωet) │ | B21: 局地座標系原点位置 | D21: ⎿ωY0⏌ | E21: =360/E9 -> 0.06474820144 | F21: [deg/s] | G21: 260 | H21: 658615.7104 | I21: -303051.0497 | J21: -476145.3715 | K21: 0.01999146348 | L21: -0.01924742467 | M21: 0 | N21: -263.9484521 | O21: -274.1517856 | P21: 0 | Q21: -3759564.758 | R21: 3619641.93 | S21: 3654260.638 | T21: -0.5901050772 | U21: 0.5681426489 | V21: 0.5735764364 | W21: -0.6935741086 | X21: -0.7203852829 | Y21: 0 | Z21: 0.4131960234 | AA21: -0.3978177656 | AB21: 0.8191520443 | AC21: 0 | AD21: 0 | AE21: 0 | AF21: 0 | AG21: 0 | AH21: 0.06474820144 | AI21: -0.7942632514 | AJ21: -0.5593443646 | AK21: -0.2372335754 | AL21: -0.1834144261 | AM21: 0.5929830064 | AN21: -0.7840473853 | AO21: 0.5792279653 | AP21: -0.5792279653 | AQ21: -0.5735764364 | AR21: 6.586157104 | AS21: -3.030510497 | AT21: -4.761453715 | AU21: -3901.848006 | AV21: -6476.858057 | AW21: -1274.947431 | AX21: -5147523.094 | AY21: 2368474.739 | AZ21: 3721331.709 | BA21: 146670.2054 | BB21: 1863974.397 | BC21: -20820.92408 | BD21: 6779009.978 | BE21: 56.70505047 | BF21: 155.2919283 | BG21: 408000.9784 | BH21: 33.29494953 | BI21: 154.205629 | BJ21: -7.481935053 | BK21: -2.149553015 | BL21: -0.5737543761 | BM21: -1997.217047 | BN21: 6981.859273 | BO21: -157.9569941 | BP21: 146670.2054 | BQ21: 1863974.397 | BR21: -20820.92408 | BS21: -5147523.094 | BT21: 2368474.739 | BU21: 3721331.709 | BV21: 6779009.978 | BW21: 56.70505047 | BX21: 155.2919283 | BY21: 408000.9784 | BZ21: 33.29494953 | CA21: 154.205629 | CB21: -0.7593325737 | CC21: 0.3493835747 | CD21: 0.5489491417 | CE21: -0.4986924636 | CF21: 0.2294580288 | CG21: -0.835855753 | CH21: -0.4179950589 | CI21: -0.9084493001 | CJ21: 0 | CK21: 8.364820477e-05 | CL21: 4.624181102e-05 | CM21: -2.245749453e-05 | CN21: 0.01117037489 | CO21: 0.01289197309 | CP21: 0.07598806054 | CQ21: 6779009.978 | CR21: 56.70505047 | CS21: 155.2919283 | CT21: -5147523.094 | CU21: 2368474.739 | CV21: 3721331.709 | CW21: 146670.2054 | CX21: 1863974.397 | CY21: -20820.92408 | CZ21: 408000.9784 | DA21: 33.29494953 | DB21: 154.205629 | DD21: 3.445893526e-08 | DE21: 8.4284693e-08 | DF21: -1.536682248e-08 | DG21: 1.894659363e-05 | DH21: -8.451752365e-05 | DI21: -3.198874765e-05 | DJ21: 0 | DK21: 1.421085472e-13 | DL21: -9.379164112e-13 | DM21: 2.216547728e-07 | DN21: 2.146698534e-07 | DO21: 4.796311259e-08 | DP21: 1.868465915e-08 | DQ21: -3.085006028e-07 | DR21: 4.547473509e-08 | DS21: -6.705522537e-05 | DT21: -5.115907697e-13 | DU21: -2.074784788e-12 | DW21: 35 | DX21: 135 | DY21: 1.086299274
A22: ⎿ sinφc ⏌ | D22: ⎾ | E22: -0.7071067812 | F22: [ND] | G22: 280 | H22: 668431.0159 | I22: -286400.519 | J22: -472761.3551 | K22: 0.0200195131 | L22: -0.0192182482 | M22: 0 | N22: -263.5483423 | O22: -274.5364424 | P22: 0 | Q22: -3764839.727 | R22: 3614155.046 | S22: 3654260.638 | T22: -0.5909330416 | U22: 0.5672814222 | V22: 0.5735764364 | W22: -0.6925227449 | X22: -0.7213960409 | Y22: 0 | Z22: 0.4137757703 | AA22: -0.3972147281 | AB22: 0.8191520443 | AC22: 0 | AD22: 0 | AE22: 0 | AF22: 0 | AG22: 0 | AH22: 0.06474820144 | AI22: -0.7982054634 | AJ22: -0.5458004112 | AK22: -0.2548920346 | AL22: -0.1654176602 | AM22: 0.6054724398 | AN22: -0.7784857882 | AO22: 0.5792279653 | AP22: -0.5792279653 | AQ22: -0.5735764364 | AR22: 6.684310159 | AS22: -2.86400519 | AT22: -4.727613551 | AU22: -3769.137673 | AV22: -6535.805728 | AW22: -1369.842151 | AX22: -5224236.223 | AY22: 2238342.551 | AZ22: 3694882.686 | BA22: 105232.5905 | BB22: 2003170.955 | BC22: -24094.28999 | BD22: 6779010.219 | BE22: 56.97208918 | BF22: 156.8071157 | BG22: 408001.2189 | BH22: 33.02791082 | BI22: 155.6372549 | BJ22: -7.434382429 | BK22: -2.310047295 | BL22: -0.5657398696 | BM22: -2146.385928 | BN22: 6937.261543 | BO22: -169.3528819 | BP22: 105232.5905 | BQ22: 2003170.955 | BR22: -24094.28999 | BS22: -5224236.223 | BT22: 2238342.551 | BU22: 3694882.686 | BV22: 6779010.219 | BW22: 56.97208918 | BX22: 156.8071157 | BY22: 408001.2189 | BZ22: 33.02791082 | CA22: 155.6372549 | CB22: -0.7706488196 | CC22: 0.3301872218 | CD22: 0.5450475167 | CE22: -0.5009990965 | CF22: 0.214654841 | CG22: -0.8384051554 | CH22: -0.393827757 | CI22: -0.9191842567 | CJ22: 0 | CK22: 8.930985576e-05 | CL22: 4.549562235e-05 | CM22: -2.366755216e-05 | CN22: 0.01290022471 | CO22: 0.0138094111 | CP22: 0.07552664911 | CQ22: 6779010.219 | CR22: 56.97208918 | CS22: 156.8071157 | CT22: -5224236.223 | CU22: 2238342.551 | CV22: 3694882.686 | CW22: 105232.5905 | CX22: 2003170.955 | CY22: -24094.28999 | CZ22: 408001.2189 | DA22: 33.02791082 | DB22: 155.6372549 | DD22: 3.352761269e-08 | DE22: 8.381903172e-08 | DF22: -1.350417733e-08 | DG22: 1.973239705e-05 | DH22: -8.381903172e-05 | DI22: -3.035529517e-05 | DJ22: 0 | DK22: 1.136868377e-13 | DL22: -8.810729923e-13 | DM22: 2.318993211e-07 | DN22: 2.286396921e-07 | DO22: 4.889443517e-08 | DP22: 2.070737537e-08 | DQ22: -3.254972398e-07 | DR22: 4.518733476e-08 | DS22: -7.543712854e-05 | DT22: -5.684341886e-13 | DU22: -2.160049917e-12 | DW22: 35 | DX22: 135 | DY22: 1.169860757
A23: ⎾-cosφcsin(λ+ωet)⏋ | C23: 物体座標系Ｂ方向余弦行列 | D23: │ | E23: -0.7071067812 | F23: [ND] | G23: 300 | H23: 677904.2253 | I23: -269603.4118 | J23: -469135.3825 | K23: 0.02004752013 | L23: -0.01918903085 | M23: 0 | N23: -263.1476719 | O23: -274.9205153 | P23: 0 | Q23: -3770106.688 | R23: 3608660.476 | S23: 3654260.638 | T23: -0.5917597491 | U23: 0.5664189889 | V23: 0.5735764364 | W23: -0.6914699082 | X23: -0.7224052644 | Y23: 0 | Z23: 0.4143546372 | AA23: -0.3966108458 | AB23: 0.8191520443 | AC23: 0 | AD23: 0 | AE23: 0 | AF23: 0 | AG23: 0 | AH23: 0.06474820144 | AI23: -0.8017399514 | AJ23: -0.5319776624 | AK23: -0.2724202947 | AL23: -0.1473363988 | AM23: 0.6176525972 | AN23: -0.7725265398 | AO23: 0.5792279653 | AP23: -0.5792279653 | AQ23: -0.5735764364 | AR23: 6.779042253 | AS23: -2.696034118 | AT23: -4.691353825 | AU23: -3634.498406 | AV23: -6591.408492 | AW23: -1464.035842 | AX23: -5298275.742 | AY23: 2107064.81 | AZ23: 3666542.697 | BA23: 60821.33648 | BB23: 2141443.53 | BC23: -27593.93305 | BD23: 6779010.495 | BE23: 57.25732493 | BF23: 158.3128394 | BG23: 408001.4952 | BH23: 32.74267507 | BI23: 157.0594171 | BJ23: -7.383417181 | BK23: -2.469468046 | BL23: -0.5571611679 | BM23: -2294.569593 | BN23: 6889.464538 | BO23: -180.5828275 | BP23: 60821.33648 | BQ23: 2141443.53 | BR23: -27593.93305 | BS23: -5298275.742 | BT23: 2107064.81 | BU23: 3666542.697 | BV23: 6779010.495 | BW23: 57.25732493 | BX23: 158.3128394 | BY23: 408001.4952 | BZ23: 32.74267507 | CA23: 157.0594171 | CB23: -0.7815706651 | CC23: 0.3108218834 | CD23: 0.540866945 | CE23: -0.5025818971 | CF23: 0.1998711809 | CG23: -0.8411081665 | CH23: -0.3695385395 | CI23: -0.9292154044 | CJ23: 0 | CK23: 9.480478344e-05 | CL23: 4.471284082e-05 | CM23: -2.477996892e-05 | CN23: 0.01474165752 | CO23: 0.01471155402 | CP23: 0.07504200957 | CQ23: 6779010.495 | CR23: 57.25732493 | CS23: 158.3128394 | CT23: -5298275.742 | CU23: 2107064.81 | CV23: 3666542.697 | CW23: 60821.33648 | CX23: 2141443.53 | CY23: -27593.93305 | CZ23: 408001.4952 | DA23: 32.74267507 | DB23: 157.0594171 | DD23: 3.166496754e-08 | DE23: 8.707866073e-08 | DF23: -1.303851604e-08 | DG23: 2.323213266e-05 | DH23: -8.475035429e-05 | DI23: -3.228706191e-05 | DJ23: 0 | DK23: 9.947598301e-14 | DL23: -9.379164112e-13 | DM23: 2.440065145e-07 | DN23: 2.454034984e-07 | DO23: 4.842877388e-08 | DP23: 2.238812158e-08 | DQ23: -3.459863365e-07 | DR23: 4.344838089e-08 | DS23: -8.847564459e-05 | DT23: -6.323830348e-13 | DU23: -2.330580173e-12 | DW23: 35 | DX23: 135 | DY23: 1.25342224
A24: d'＝Reωe│cosφccos(λ+ωet) │ | B24: 局地座標系原点速度 | C24: =exe("初期値",E25:E27=vctcrp(E28:E30,E22:E24),E22:E24=vctnrm(E36:E38),E28:E30=vctsmp(vctnrm(E39:E41),-1)) -> 初期値 | D24: │ | E24: 0 | F24: [ND] | G24: 320 | H24: 687030.4896 | I24: -252668.325 | J24: -465269.3091 | K24: 0.02007548453 | L24: -0.01915977269 | M24: 0 | N24: -262.7464417 | O24: -275.3040034 | P24: 0 | Q24: -3775365.63 | R24: 3603158.23 | S24: 3654260.638 | T24: -0.592585198 | U24: 0.5655553508 | V24: 0.5735764364 | W24: -0.6904156008 | X24: -0.7234129514 | Y24: 0 | Z24: 0.4149326227 | AA24: -0.3960061199 | AB24: 0.8191520443 | AC24: 0 | AD24: 0 | AE24: 0 | AF24: 0 | AG24: 0 | AH24: 0.06474820144 | AI24: -0.80486491 | AJ24: -0.517883179 | AK24: -0.2898094022 | AL24: -0.1291798779 | AM24: 0.6295172572 | AN24: -0.7661726842 | AO24: 0.5792279653 | AP24: -0.5792279653 | AQ24: -0.5735764364 | AR24: 6.870304896 | AS24: -2.52668325 | AT24: -4.652693091 | AU24: -3497.999113 | AV24: -6643.637893 | AW24: -1557.480297 | AX24: -5369603.759 | AY24: 1974708.701 | AZ24: 3636326.247 | BA24: 13456.82852 | BB24: 2278728.356 | BC24: -31316.42197 | BD24: 6779010.809 | BE24: 57.5604447 | BF24: 159.8086544 | BG24: 408001.8093 | BH24: 32.4395553 | BI24: 158.4716706 | BJ24: -7.329062672 | BK24: -2.627741196 | BL24: -0.5480245634 | BM24: -2441.70002 | BN24: 6838.490472 | BO24: -191.6356092 | BP24: 13456.82852 | BQ24: 2278728.356 | BR24: -31316.42197 | BS24: -5369603.759 | BT24: 1974708.701 | BU24: 3636326.247 | BV24: 6779010.809 | BW24: 57.5604447 | BX24: 159.8086544 | BY24: 408001.8093 | BZ24: 32.4395553 | CA24: 158.4716706 | CB24: -0.7920925206 | CC24: 0.2912974704 | CD24: 0.5364095661 | CE24: -0.5034446065 | CF24: 0.1851452154 | CG24: -0.8439578055 | CH24: -0.3451564385 | CI24: -0.9385451683 | CJ24: 0 | CK24: 0.0001001228448 | CL24: 4.389670899e-05 | CM24: -2.579311591e-05 | CN24: 0.01669123683 | CO24: 0.01559770239 | CP24: 0.07453611232 | CQ24: 6779010.809 | CR24: 57.5604447 | CS24: 159.8086544 | CT24: -5369603.759 | CU24: 1974708.701 | CV24: 3636326.247 | CW24: 13456.82852 | CX24: 2278728.356 | CY24: -31316.42197 | CZ24: 408001.8093 | DA24: 32.4395553 | DB24: 158.4716706 | DD24: 3.445893526e-08 | DE24: 8.987262845e-08 | DF24: -1.396983862e-08 | DG24: 2.224442142e-05 | DH24: -8.847564459e-05 | DI24: -3.280729288e-05 | DJ24: -8.381903172e-09 | DK24: 9.237055565e-14 | DL24: -9.663381206e-13 | DM24: 2.598389983e-07 | DN24: 2.586748451e-07 | DO24: 5.86733222e-08 | DP24: 2.59715307e-08 | DQ24: -3.664754331e-07 | DR24: 5.344190868e-08 | DS24: -9.965151548e-05 | DT24: -7.74491582e-13 | DU24: -2.444267011e-12 | DW24: 35 | DX24: 135 | DY24: 1.336983722
A25: ⎿ 0 ⏌ | C25: DIB0 = | D25: (xB0, yB0, zB0) │ | E25: -0.4055797877 | F25: [ND] | G25: 340 | H25: 695805.1371 | I25: -235603.9264 | J25: -461165.1132 | K25: 0.02010340622 | L25: -0.01913047378 | M25: 0 | N25: -262.3446528 | O25: -275.6869059 | P25: 0 | Q25: -3780616.542 | R25: 3597648.32 | S25: 3654260.638 | T25: -0.5934093864 | U25: 0.5646905097 | V25: 0.5735764364 | W25: -0.6893598248 | X25: -0.7244190997 | Y25: 0 | Z25: 0.4155097256 | AA25: -0.3954005517 | AB25: 0.8191520443 | AC25: 0 | AD25: 0 | AE25: 0 | AF25: 0 | AG25: 0 | AH25: 0.06474820144 | AI25: -0.8075787428 | AJ25: -0.5035241604 | AK25: -0.3070504749 | AL25: -0.1109573717 | AM25: 0.6410603592 | AN25: -0.7594274669 | AO25: 0.5792279653 | AP25: -0.5792279653 | AQ25: -0.5735764364 | AR25: 6.958051371 | AS25: -2.356039264 | AT25: -4.611651132 | AU25: -3359.709652 | AV25: -6692.467201 | AW25: -1650.127691 | AX25: -5438183.771 | AY25: 1841341.962 | AZ25: 3604248.799 | BA25: -36839.19236 | BB25: 2414962.126 | BC25: -35258.10235 | BD25: 6779011.164 | BE25: 57.88112215 | BF25: 161.2941554 | BG25: 408002.1635 | BH25: 32.11887785 | BI25: 159.8736102 | BJ25: -7.271343818 | BK25: -2.784793209 | BL25: -0.5383367606 | BM25: -2587.70967 | BN25: 6784.363032 | BO25: -202.5001353 | BP25: -36839.19236 | BQ25: 2414962.126 | BR25: -35258.10235 | BS25: -5438183.771 | BT25: 1841341.962 | BU25: 3604248.799 | BV25: 6779011.164 | BW25: 57.88112215 | BX25: 161.2941554 | BY25: 408002.1635 | BZ25: 32.11887785 | CA25: 159.8736102 | CB25: -0.8022090007 | CC25: 0.2716239754 | CD25: 0.5316776609 | CE25: -0.5035931539 | CF25: 0.1705141357 | CG25: -0.8469467899 | CH25: -0.3207096109 | CI25: -0.9471775681 | CJ25: 0 | CK25: 0.0001052542497 | CL25: 4.305047338e-05 | CM25: -2.670611354e-05 | CN25: 0.01874532682 | CO25: 0.01646722169 | CP25: 0.07401095275 | CQ25: 6779011.164 | CR25: 57.88112215 | CS25: 161.2941554 | CT25: -5438183.771 | CU25: 1841341.962 | CV25: 3604248.799 | CW25: -36839.19236 | CX25: 2414962.126 | CY25: -35258.10235 | CZ25: 408002.1635 | DA25: 32.11887785 | DB25: 159.8736102 | DD25: 3.445893526e-08 | DE25: 9.196810424e-08 | DF25: -1.257285476e-08 | DG25: =(BP25-BA25)*1000 -> 2.422893886e-05 | DH25: -9.080395103e-05 | DI25: -3.242894309e-05 | DJ25: -1.024454832e-08 | DK25: =IF(BW25-BE25<-180,BW25-BE25+360,IF(BW25-BE25>180,BW25-BE25-360,BW25-BE25)) -> 7.815970093e-14 | DL25: -9.947598301e-13 | DM25: 2.756714821e-07 | DN25: 2.73110345e-07 | DO25: 6.658956409e-08 | DP25: 2.883462003e-08 | DQ25: -3.878958523e-07 | DR25: 6.110349204e-08 | DS25: -0.000111758709 | DT25: =IF(CR25-BE25<-180,CR25-BE25+360,IF(CR25-BE25>180,CR25-BE25-360,CR25-BE25)) -> -9.023892744e-13 | DU25: -2.557953849e-12 | DW25: 35 | DX25: 135 | DY25: 1.420545205
A26: ⎾-cosφccos(λ+ωet)⏋ | C26: ロール軸 | D26: xB0=R'0/|R'0| │ | E26: 0.4055797877 | F26: [ND] | G26: 360 | H26: 704223.6763 | I26: -218418.95 | J26: -456824.8952 | K26: 0.02013128515 | L26: -0.01910113417 | M26: 0 | N26: -261.9423058 | O26: -276.0692221 | P26: 0 | Q26: -3785859.412 | R26: 3592130.757 | S26: 3654260.638 | T26: -0.5942323127 | U26: 0.5638244676 | V26: 0.5735764364 | W26: -0.6883025826 | X26: -0.7254237071 | Y26: 0 | Z26: 0.4160859448 | AA26: -0.3947941424 | AB26: 0.8191520443 | AC26: 0 | AD26: 0 | AE26: 0 | AF26: 0 | AG26: 0 | AH26: 0.06474820144 | AI26: -0.8098800637 | AJ26: -0.4889079411 | AK26: -0.3241347058 | AL26: -0.09267818842 | AM26: 0.652276007 | AN26: -0.7522943334 | AO26: 0.5792279653 | AP26: -0.5792279653 | AQ26: -0.5735764364 | AR26: 7.042236763 | AS26: -2.1841895 | AT26: -4.568248952 | AU26: -3219.700799 | AV26: -6737.871425 | AW26: -1741.930607 | AX26: -5503980.682 | AY26: 1707032.847 | AZ26: 3570326.769 | BA26: -90043.6395 | BB26: 2550082.022 | BC26: -39415.09929 | BD26: 6779011.56 | BE26: 58.21901889 | BF26: 162.7689774 | BG26: 408002.5598 | BH26: 31.78098111 | BI26: 161.2648707 | BJ26: -7.210287078 | BK26: -2.940551122 | BL26: -0.5281048718 | BM26: -2732.53152 | BN26: 6727.107371 | BO26: -213.1654523 | BP26: -90043.6395 | BQ26: 2550082.022 | BR26: -39415.09929 | BS26: -5503980.682 | BT26: 1707032.847 | BU26: 3570326.769 | BV26: 6779011.56 | BW26: 58.21901889 | BX26: 162.7689774 | BY26: 408002.5598 | BZ26: 31.78098111 | CA26: 161.2648707 | CB26: -0.8119149279 | CC26: 0.2518114672 | CD26: 0.5266736511 | CE26: -0.5030355434 | CF26: 0.1560140279 | CG26: -0.8500675651 | CH26: -0.2962252385 | CI26: -0.9551181121 | CJ26: 0 | CK26: 0.0001101895805 | CL26: 4.217735733e-05 | CM26: -2.751879188e-05 | CN26: 0.02090009954 | CO26: 0.01731954214 | CP26: 0.07346853672 | CQ26: 6779011.56 | CR26: 58.21901889 | CS26: 162.7689774 | CT26: -5503980.682 | CU26: 1707032.847 | CV26: 3570326.769 | CW26: -90043.6395 | CX26: 2550082.022 | CY26: -39415.09929 | CZ26: 408002.5598 | DA26: 31.78098111 | DB26: 161.2648707 | DD26: 2.887099981e-08 | DE26: 9.406358004e-08 | DF26: -1.396983862e-08 | DG26: 2.788146958e-05 | DH26: -8.847564459e-05 | DI26: -3.67872417e-05 | DJ26: -7.450580597e-09 | DK26: 1.065814104e-13 | DL26: -9.663381206e-13 | DM26: 2.747401595e-07 | DN26: 2.756714821e-07 | DO26: 6.891787052e-08 | DP26: 3.169407137e-08 | DQ26: -3.892928362e-07 | DR26: 6.193295121e-08 | DS26: -0.0001173466444 | DT26: -9.521272659e-13 | DU26: -2.529532139e-12 | DW26: 35 | DX26: 135 | DY26: 1.504106688
A27: d''＝Reωe2│-cosφcsin(λ+ωet) │ | B27: 局地座標系原点加速度 | C27: ピッチ軸 | D27: yB0=zB0×xB0 │ | E27: -0.8191520443 | F27: [ND] | G27: 380 | H27: 712281.7978 | I27: -201122.1916 | J27: -452250.8762 | K27: 0.02015912127 | L27: -0.01907175394 | M27: 0 | N27: -261.5394016 | O27: -276.450951 | P27: 0 | Q27: -3791094.23 | R27: 3586605.555 | S27: 3654260.638 | T27: -0.595053975 | U27: 0.5629572262 | V27: 0.5735764364 | W27: -0.6872438763 | X27: -0.7264267716 | Y27: 0 | Z27: 0.4166612789 | AA27: -0.3941868935 | AB27: 0.8191520443 | AC27: 0 | AD27: 0 | AE27: 0 | AF27: 0 | AG27: 0 | AH27: 0.06474820144 | AI27: -0.8117676971 | AJ27: -0.4740419873 | AK27: -0.3410533685 | AL27: -0.07435166503 | AM27: 0.6631584716 | AN27: -0.7447769273 | AO27: 0.5792279653 | AP27: -0.5792279653 | AQ27: -0.5735764364 | AR27: 7.122817978 | AS27: -2.011221916 | AT27: -4.522508762 | AU27: -3078.04421 | AV27: -6779.827329 | AW27: -1832.842062 | AX27: -5566960.818 | AY27: 1571850.094 | AZ27: 3534577.518 | BA27: -146132.0911 | BB27: 2684025.743 | BC27: -43783.32029 | BD27: 6779012 | BE27: 58.57378579 | BF27: 164.2327952 | BG27: 408003.0002 | BH27: 31.42621421 | BI27: 162.645127 | BJ27: -7.145920443 | BK27: -3.094942579 | BL27: -0.5173364122 | BM27: -2876.099087 | BN27: 6666.750096 | BO27: -223.6207529 | BP27: -146132.0911 | BQ27: 2684025.743 | BR27: -43783.32029 | BS27: -5566960.818 | BT27: 1571850.094 | BU27: 3534577.518 | BV27: 6779012 | BW27: 58.57378579 | BX27: 164.2327952 | BY27: 408003.0002 | BZ27: 31.42621421 | CA27: 162.645127 | CB27: -0.8212053347 | CC27: 0.2318700857 | CD27: 0.5214000975 | CE27: -0.5017817331 | CF27: 0.1416797585 | CG27: -0.8533123334 | CH27: -0.2717294438 | CI27: -0.9623736849 | CJ27: 0 | CK27: 0.0001149198108 | CL27: 4.128053605e-05 | CM27: -2.823164397e-05 | CN27: 0.02315154258 | CO27: 0.01815415797 | CP27: 0.07291086672 | CQ27: 6779012 | CR27: 58.57378579 | CS27: 164.2327952 | CT27: -5566960.818 | CU27: 1571850.094 | CV27: 3534577.518 | CW27: -146132.0911 | CX27: 2684025.743 | CY27: -43783.32029 | CZ27: 408003.0002 | DA27: 31.42621421 | DB27: 162.645127 | DD27: 2.607703209e-08 | DE27: 9.522773325e-08 | DF27: -1.164153218e-08 | DG27: 3.166496754e-05 | DH27: -8.707866073e-05 | DI27: -3.608147381e-05 | DJ27: 0 | DK27: 7.105427358e-14 | DL27: -9.947598301e-13 | DM27: 2.728775144e-07 | DN27: 2.745073289e-07 | DO27: 6.798654795e-08 | DP27: 3.117020242e-08 | DQ27: -3.869645298e-07 | DR27: 6.117625162e-08 | DS27: -0.000124797225 | DT27: -9.663381206e-13 | DU27: -2.444267011e-12 | DW27: 35 | DX27: 135 | DY27: 1.58766817
A28: ⎿ 0 ⏌ | C28: ヨー軸 | D28: zB0=-R0/|R0| │ | E28: 0.5792279653 | F28: [ND] | G28: 400 | H28: 719975.3769 | I28: -183722.5042 | J28: -447445.3968 | K28: 0.0201869145 | L28: -0.01904233314 | M28: 0 | N28: -261.1359412 | O28: -276.832092 | P28: 0 | Q28: -3796320.984 | R28: 3581072.723 | S28: 3654260.638 | T28: -0.5958743716 | U28: 0.5620887874 | V28: 0.5735764364 | W28: -0.6861837083 | X28: -0.727428291 | Y28: 0 | Z28: 0.4172357268 | AA28: -0.3935788061 | AB28: 0.8191520443 | AC28: 0 | AD28: 0 | AE28: 0 | AF28: 0 | AG28: 0 | AH28: 0.06474820144 | AI28: -0.8132406789 | AJ28: -0.4589338924 | AK28: -0.3577978209 | AL28: -0.05598716275 | AM28: 0.6737021943 | AN28: -0.7368790885 | AO28: 0.5792279653 | AP28: -0.5792279653 | AQ28: -0.5735764364 | AR28: 7.199753769 | AS28: -1.837225042 | AT28: -4.474453968 | AU28: -2934.812383 | AV28: -6818.31344 | AW28: -1922.815527 | AX28: -5627091.949 | AY28: 1435862.886 | AZ28: 3497019.34 | BA28: -205078.8016 | BB28: 2816731.535 | BC28: -48358.45824 | BD28: 6779012.486 | BE28: 58.94506422 | BF28: 165.6853236 | BG28: 408003.4865 | BH28: 31.05493578 | BI28: 164.014094 | BJ28: -7.078273423 | BK28: -3.247895864 | BL28: -0.5060392949 | BM28: -3018.346468 | BN28: 6603.319256 | BO28: -233.8553843 | BP28: -205078.8016 | BQ28: 2816731.535 | BR28: -48358.45824 | BS28: -5627091.949 | BT28: 1435862.886 | BU28: 3497019.34 | BV28: 6779012.486 | BW28: 58.94506422 | BX28: 165.6853236 | BY28: 408003.4865 | BZ28: 31.05493578 | CA28: 164.014094 | CB28: -0.830075466 | CC28: 0.2118100371 | CD28: 0.5158596989 | CE28: -0.4998435091 | CF28: 0.1275448758 | CG28: -0.856673083 | CH28: -0.2472472187 | CI28: -0.9689524306 | CJ28: 0 | CK28: 0.0001194363232 | CL28: 4.036311403e-05 | CM28: -2.884577357e-05 | CN28: 0.02549546707 | CO28: 0.01897062626 | CP28: 0.07233992923 | CQ28: 6779012.486 | CR28: 58.94506422 | CS28: 165.6853236 | CT28: -5627091.949 | CU28: 1435862.886 | CV28: 3497019.34 | CW28: -205078.8016 | CX28: 2816731.535 | CY28: -48358.45824 | CZ28: 408003.4865 | DA28: 31.05493578 | DB28: 164.014094 | DD28: 2.887099981e-08 | DE28: 9.732320905e-08 | DF28: -1.210719347e-08 | DG28: 3.082095645e-05 | DH28: -9.080395103e-05 | DI28: -3.634340828e-05 | DJ28: -1.024454832e-08 | DK28: 9.237055565e-14 | DL28: -9.947598301e-13 | DM28: 2.80328095e-07 | DN28: 2.83587724e-07 | DO28: 6.658956409e-08 | DP28: 3.055902198e-08 | DQ28: -3.986060619e-07 | DR28: 5.989568308e-08 | DS28: -0.0001387670636 | DT28: -1.001865257e-12 | DU28: -2.47268872e-12 | DW28: 35 | DX28: 135 | DY28: 1.671229653
A29: ⎾sinφc⏋ | D29: │ | E29: -0.5792279653 | F29: [ND] | G29: 420 | H29: 727300.4753 | I29: -166228.7937 | J29: -442410.9166 | K29: 0.0202146648 | L29: -0.01901287184 | M29: 0 | N29: -260.7319254 | O29: -277.2126441 | P29: 0 | Q29: -3801539.664 | R29: 3575532.275 | S29: 3654260.638 | T29: -0.5966935008 | U29: 0.561219153 | V29: 0.5735764364 | W29: -0.6851220808 | X29: -0.7284282631 | Y29: 0 | Z29: 0.4178092873 | AA29: -0.3929698815 | AB29: 0.8191520443 | AC29: 0 | AD29: 0 | AE29: 0 | AF29: 0 | AG29: 0 | AH29: 0.06474820144 | AI29: -0.8142982566 | AJ29: -0.4435913737 | AK29: -0.3743595097 | AL29: -0.03759406218 | AM29: 0.6839017893 | AN29: -0.7286048512 | AO29: 0.5792279653 | AP29: -0.5792279653 | AQ29: -0.5735764364 | AR29: 7.273004753 | AS29: -1.662287937 | AT29: -4.424109166 | AU29: -2790.078625 | AV29: -6853.310062 | AW29: -2011.804954 | AX29: -5684343.301 | AY29: 1299140.82 | AZ29: 3457671.457 | BA29: -266856.7131 | BB29: 2948138.219 | BC29: -53135.99456 | BD29: 6779013.021 | BE29: 59.3324873 | BF29: 167.126317 | BG29: 408004.0206 | BH29: 30.6675127 | BI29: 165.3715259 | BJ29: -7.007377032 | BK29: -3.399339934 | BL29: -0.4942218263 | BM29: -3159.208361 | BN29: 6536.844324 | BO29: -243.8588556 | BP29: -266856.7131 | BQ29: 2948138.219 | BR29: -53135.99456 | BS29: -5684343.301 | BT29: 1299140.82 | BU29: 3457671.457 | BV29: 6779013.021 | BW29: 59.3324873 | BX29: 167.126317 | BY29: 408004.0206 | BZ29: 30.6675127 | CA29: 165.3715259 | CB29: -0.8385207822 | CC29: 0.1916415879 | CD29: 0.5100552907 | CE29: -0.4972343544 | CF29: 0.113641526 | CG29: -0.8601416165 | CH29: -0.2228023668 | CI29: -0.9748636342 | CJ29: 0 | CK29: 0.0001237309263 | CL29: 3.942810489e-05 | CM29: -2.936283883e-05 | CN29: 0.02792751599 | CO29: 0.01976856531 | CP29: 0.07175768299 | CQ29: 6779013.021 | CR29: 59.3324873 | CS29: 167.126317 | CT29: -5684343.301 | CU29: 1299140.82 | CV29: 3457671.457 | CW29: -266856.7131 | CX29: 2948138.219 | CY29: -53135.99456 | CZ29: 408004.0206 | DA29: 30.6675127 | DB29: 165.3715259 | DD29: 2.607703209e-08 | DE29: 1.0128133e-07 | DF29: -1.303851604e-08 | DG29: 3.41096893e-05 | DH29: -9.17352736e-05 | DI29: -3.953755368e-05 | DJ29: -9.313225746e-09 | DK29: 6.394884622e-14 | DL29: -1.023181539e-12 | DM29: 2.86847353e-07 | DN29: 2.922024578e-07 | DO29: 6.891787052e-08 | DP29: 3.253808245e-08 | DQ29: -4.093162715e-07 | DR29: 6.138725439e-08 | DS29: -0.0001490116119 | DT29: -1.080024958e-12 | DU29: -2.50111043e-12 | DW29: 35 | DX29: 135 | DY29: 1.754791136
A30: ωL＝ωe│ 0 │ | B30: 局地座標系回転角速度 | D30: ⎿ | E30: -0.5735764364 | F30: [ND] | G30: 440 | H30: 734253.3435 | I30: -148650.0141 | J30: -437150.012 | K30: 0.0202423721 | L30: -0.0189833701 | M30: 0 | N30: -260.3273549 | O30: -277.5926066 | P30: 0 | Q30: -3806750.258 | R30: 3569984.221 | S30: 3654260.638 | T30: -0.5975113609 | U30: 0.560348325 | V30: 0.5735764364 | W30: -0.684058996 | X30: -0.7294266858 | Y30: 0 | Z30: 0.418381959 | AA30: -0.3923601212 | AB30: 0.8191520443 | AC30: 0 | AD30: 0 | AE30: 0 | AF30: 0 | AG30: 0 | AH30: 0.06474820144 | AI30: -0.81493989 | AJ30: -0.4280222681 | AK30: -0.3907299755 | AL30: -0.01918175852 | AM30: 0.6937520466 | AN30: -0.7199584418 | AO30: 0.5792279653 | AP30: -0.5792279653 | AQ30: -0.5735764364 | AR30: 7.342533435 | AS30: -1.486500141 | AT30: -4.37150012 | AU30: -2643.917009 | AV30: -6884.799286 | AW30: -2099.764798 | AX30: -5738685.575 | AY30: 1161753.867 | AZ30: 3416554.006 | BA30: -331437.4682 | BB30: 3078185.22 | BC30: -58111.20255 | BD30: 6779013.604 | BE30: 59.73568114 | BF30: 168.5555684 | BG30: 408004.6042 | BH30: 30.26431886 | BI30: 166.7172158 | BJ30: -6.933263777 | BK30: -3.549204455 | BL30: -0.4818927002 | BM30: -3298.620103 | BN30: 6467.356189 | BO30: -253.6208462 | BP30: -331437.4682 | BQ30: 3078185.22 | BR30: -58111.20255 | BS30: -5738685.575 | BT30: 1161753.867 | BU30: 3416554.006 | BV30: 6779013.604 | BW30: 59.73568114 | BX30: 168.5555684 | BY30: 408004.6042 | BZ30: 30.26431886 | CA30: 166.7172158 | CB30: -0.8465369609 | CC30: 0.1713750605 | CD30: 0.5039898436 | CE30: -0.4939693164 | CF30: 0.1000003844 | CG30: -0.8637095794 | CH30: -0.1984174595 | CI30: -0.980117601 | CJ30: 0 | CK30: 0.0001277958713 | CL30: 3.847841387e-05 | CM30: -2.978499321e-05 | CN30: 0.03044317294 | CO30: 0.02054765261 | CP30: 0.07116604851 | CQ30: 6779013.604 | CR30: 59.73568114 | CS30: 168.5555684 | CT30: -5738685.575 | CU30: 1161753.867 | CV30: 3416554.006 | CW30: -331437.4682 | CX30: 3078185.22 | CY30: -58111.20255 | CZ30: 408004.6042 | DA30: 30.26431886 | DB30: 166.7172158 | DD30: 2.421438694e-08 | DE30: 1.026783139e-07 | DF30: -1.490116119e-08 | DG30: 3.474997357e-05 | DH30: -9.220093489e-05 | DI30: -4.25206963e-05 | DJ30: -1.11758709e-08 | DK30: 8.526512829e-14 | DL30: -1.051603249e-12 | DM30: 2.942979336e-07 | DN30: 3.050081432e-07 | DO30: 6.798654795e-08 | DP30: 3.428431228e-08 | DQ30: -4.242174327e-07 | DR30: 5.896436051e-08 | DS30: -0.0001629814506 | DT30: -1.122657523e-12 | DU30: -2.557953849e-12 | DW30: 35 | DX30: 135 | DY30: 1.838352618
A31: ⎿cosφc ⏌ | C31: 推力 | D31: T | E31: =10 -> 10 | F31: [N] | G31: 460 | H31: 740830.4225 | I31: -130995.1629 | J31: -431665.3756 | K31: 0.02027003635 | L31: -0.01895382798 | M31: 0 | N31: -259.9222308 | O31: -277.9719786 | P31: 0 | Q31: -3811952.754 | R31: 3564428.575 | S31: 3654260.638 | T31: -0.59832795 | U31: 0.559476305 | V31: 0.5735764364 | W31: -0.6829944562 | X31: -0.7304235571 | Y31: 0 | Z31: 0.4189537409 | AA31: -0.3917495262 | AB31: 0.8191520443 | AC31: 0 | AD31: 0 | AE31: 0 | AF31: 0 | AG31: 0 | AH31: 0.06474820144 | AI31: -0.8151652514 | AJ31: -0.4122345283 | AK31: -0.4069008559 | AL31: -0.0007596568064 | AM31: 0.7032479348 | AN31: -0.7109442771 | AO31: 0.5792279653 | AP31: -0.5792279653 | AQ31: -0.5735764364 | AR31: 7.408304225 | AS31: -1.309951629 | AT31: -4.316653756 | AU31: -2496.40234 | AV31: -6912.764996 | AW31: -2186.650043 | AX31: -5790090.96 | AY31: 1023772.339 | AZ31: 3373688.029 | BA31: -398791.4227 | BB31: 3206812.593 | BC31: -63279.15088 | BD31: 6779014.239 | BE31: 60.15426594 | BF31: 169.9729089 | BG31: 408005.2388 | BH31: 29.84573406 | BI31: 168.0509948 | BJ31: -6.855967638 | BK31: -3.697419833 | BL31: -0.469060992 | BM31: -3436.517693 | BN31: 6394.88714 | BO31: -263.131213 | BP31: -398791.4227 | BQ31: 3206812.593 | BR31: -63279.15088 | BS31: -5790090.96 | BT31: 1023772.339 | BU31: 3373688.029 | BV31: 6779014.239 | BW31: 60.15426594 | BX31: 169.9729089 | BY31: 408005.2388 | BZ31: 29.84573406 | CA31: 168.0509948 | CB31: -0.8541198995 | CC31: 0.1510208273 | CD31: 0.4976664616 | CE31: -0.4900648736 | CF31: 0.08665060104 | CG31: -0.8673684874 | CH31: -0.1741138046 | CI31: -0.9847255369 | CJ31: 0 | CK31: 0.0001316238671 | CL31: 3.751682292e-05 | CM31: -3.011482509e-05 | CN31: 0.03303777106 | CO31: 0.02130762256 | CP31: 0.07056689882 | CQ31: 6779014.239 | CR31: 60.15426594 | CS31: 169.9729089 | CT31: -5790090.96 | CU31: 1023772.339 | CV31: 3373688.029 | CW31: -398791.4227 | CX31: 3206812.593 | CY31: -63279.15088 | CZ31: 408005.2388 | DA31: 29.84573406 | DB31: 168.0509948 | DD31: 2.421438694e-08 | DE31: 1.059379429e-07 | DF31: -1.303851604e-08 | DG31: 3.702007234e-05 | DH31: -9.406358004e-05 | DI31: -4.174944479e-05 | DJ31: -1.11758709e-08 | DK31: 7.815970093e-14 | DL31: -1.051603249e-12 | DM31: 3.06405127e-07 | DN31: 3.137392923e-07 | DO31: 7.031485438e-08 | DP31: 3.230525181e-08 | DQ31: -4.381872714e-07 | DR31: 6.319896784e-08 | DS31: -0.0001788139343 | DT31: -1.193711796e-12 | DU31: -2.586375558e-12 | DW31: 35 | DX31: 135 | DY31: 1.921914101
A32: ω'L＝0 | B32: 局地座標系回転角加速度 | C32: 質量 | D32: m | E32: 100000 | F32: [kg] | G32: 480 | H32: 747028.3456 | I32: -113273.2768 | J32: -425959.8145 | K32: 0.02029765748 | L32: -0.01892424554 | M32: 0 | N32: -259.5165537 | O32: -278.3507594 | P32: 0 | Q32: -3817147.143 | R32: 3558865.346 | S32: 3654260.638 | T32: -0.5991432665 | U32: 0.5586030951 | V32: 0.5735764364 | W32: -0.6819284637 | X32: -0.7314188748 | Y32: 0 | Z32: 0.4195246317 | AA32: -0.3911380981 | AB32: 0.8191520443 | AC32: 0 | AD32: 0 | AE32: 0 | AF32: 0 | AG32: 0 | AH32: 0.06474820144 | AI32: -0.8149742257 | AJ32: -0.3962362188 | AK32: -0.4228638911 | AL32: 0.01766283294 | AM32: 0.7123846033 | AN32: -0.7015669613 | AO32: 0.5792279653 | AP32: -0.5792279653 | AQ32: -0.5735764364 | AR32: 7.470283456 | AS32: -1.132732768 | AT32: -4.259598145 | AU32: -2347.610117 | AV32: -6937.192882 | AW32: -2272.41622 | AX32: -5838533.151 | AY32: 885266.8527 | AZ32: 3329095.465 | BA32: -468887.6594 | BB32: 3333961.057 | BC32: -68634.70715 | BD32: 6779014.926 | BE32: 60.58785717 | BF32: 171.3782064 | BG32: 408005.9262 | BH32: 29.41214283 | BI32: 169.3727308 | BJ32: -6.775524057 | BK32: -3.843917246 | BL32: -0.4557361533 | BM32: -3572.837825 | BN32: 6319.470849 | BO32: -272.3799983 | BP32: -468887.6594 | BQ32: 3333961.057 | BR32: -68634.70716 | BS32: -5838533.151 | BT32: 885266.8527 | BU32: 3329095.465 | BV32: 6779014.926 | BW32: 60.58785717 | BX32: 171.3782064 | BY32: 408005.9262 | BZ32: 29.41214283 | CA32: 169.3727308 | CB32: -0.861265717 | CC32: 0.1305893057 | CD32: 0.491088381 | CE32: -0.4855388027 | CF32: 0.07361975973 | CG32: -0.8711097532 | CH32: -0.1499114265 | CI32: -0.9886994307 | CJ32: 0 | CK32: 0.0001352080943 | CL32: 3.65459784e-05 | CM32: -3.035529716e-05 | CN32: 0.03570650238 | CO32: 0.02204826386 | CP32: 0.06996205131 | CQ32: 6779014.926 | CR32: 60.58785717 | CS32: 171.3782064 | CT32: -5838533.151 | CU32: 885266.8527 | CV32: 3329095.465 | CW32: -468887.6594 | CX32: 3333961.057 | CY32: -68634.70715 | CZ32: 408005.9262 | DA32: 29.41214283 | DB32: 169.3727308 | DD32: 2.514570951e-08 | DE32: 1.07800588e-07 | DF32: -1.024454832e-08 | DG32: 3.940658644e-05 | DH32: -9.592622519e-05 | DI32: -4.009052645e-05 | DJ32: -1.210719347e-08 | DK32: 3.552713679e-14 | DL32: -1.051603249e-12 | DM32: 3.129243851e-07 | DN32: 3.147870302e-07 | DO32: 7.171183825e-08 | DP32: 2.945307642e-08 | DQ32: -4.437752068e-07 | DR32: 6.690970622e-08 | DS32: -0.0001927837729 | DT32: -1.257660642e-12 | DU32: -2.50111043e-12 | DW32: 35 | DX32: 135 | DY32: 2.005475583
A33: θ=tan^-1{√(x^2+y^2)/z} | B33: 極座標系法線方向角 | C33: 高度 | D33: h | E33: 408000 | F33: [m] | G33: 500 | H33: 752843.9404 | I33: -95493.42663 | J33: -420036.2489 | K33: 0.02032523544 | L33: -0.01889462286 | M33: 0 | N33: -259.1103247 | O33: -278.7289482 | P33: 0 | Q33: -3822333.413 | R33: 3553294.548 | S33: 3654260.638 | T33: -0.5999573086 | U33: 0.557728697 | V33: 0.5735764364 | W33: -0.6808610207 | X33: -0.7324126367 | Y33: 0 | Z33: 0.4200946301 | AA33: -0.3905258379 | AB33: 0.8191520443 | AC33: 0 | AD33: 0 | AE33: 0 | AF33: 0 | AG33: 0 | AH33: 0.06474820144 | AI33: -0.8143669104 | AJ33: -0.3800355115 | AK33: -0.438610927 | AL33: 0.0360763005 | AM33: 0.7211573852 | AN33: -0.6918312846 | AO33: 0.5792279653 | AP33: -0.5792279653 | AQ33: -0.5735764364 | AR33: 7.528439404 | AS33: -0.9549342663 | AT33: -4.200362489 | AU33: -2197.616491 | AV33: -6958.070443 | AW33: -2357.019435 | AX33: -5883987.356 | AY33: 746308.2928 | AZ33: 3282799.134 | BA33: -541694.002 | BB33: 3459572.012 | BC33: -74172.54178 | BD33: 6779015.668 | BE33: 61.03606656 | BF33: 172.7713646 | BG33: 408006.6676 | BH33: 28.96393344 | BI33: 170.6823276 | BJ33: -6.691969922 | BK33: -3.988628679 | BL33: -0.4419280052 | BM33: -3707.517918 | BN33: 6241.142357 | BO33: -281.357437 | BP33: -541694.002 | BQ33: 3459572.012 | BR33: -74172.54178 | BS33: -5883987.356 | BT33: 746308.2928 | BU33: 3282799.134 | BV33: 6779015.668 | BW33: 61.03606656 | BX33: 172.7713646 | BY33: 408006.6676 | BZ33: 28.96393344 | CA33: 170.6823276 | CB33: -0.8679707563 | CC33: 0.1100909526 | CD33: 0.4842589684 | CE33: -0.4804100482 | CF33: 0.06093384999 | CG33: -0.8749247119 | CH33: -0.1258290584 | CI33: -0.9920519382 | CJ33: 0 | CK33: 0.0001385422196 | CL33: 3.556838123e-05 | CM33: -3.050968667e-05 | CN33: 0.03844442736 | CO33: 0.02276941671 | CP33: 0.06935326088 | CQ33: 6779015.668 | CR33: 61.03606656 | CS33: 172.7713646 | CT33: -5883987.356 | CU33: 746308.2928 | CV33: 3282799.134 | CW33: -541694.002 | CX33: 3459572.012 | CY33: -74172.54178 | CZ33: 408006.6676 | DA33: 28.96393344 | DB33: 170.6823276 | DD33: 2.235174179e-08 | DE33: 1.097796485e-07 | DF33: -8.847564459e-09 | DG33: 4.307366908e-05 | DH33: -9.592622519e-05 | DI33: -4.094908945e-05 | DJ33: -1.11758709e-08 | DK33: 5.684341886e-14 | DL33: -1.080024958e-12 | DM33: 3.157183528e-07 | DN33: 3.181630746e-07 | DO33: 7.636845112e-08 | DP33: 3.178138286e-08 | DQ33: -4.479661584e-07 | DR33: 7.098424248e-08 | DS33: -0.0002020969987 | DT33: -1.307398634e-12 | DU33: -2.47268872e-12 | DW33: 35 | DX33: 135 | DY33: 2.089037066
A34: φ=tan^-1(y/x) | B34: 極座標系接線方向角 | C34: 初期地心半径 | D34: R0=Re+h | E34: =E12+E33 -> 6779009 | F34: [m] | G34: 520 | H34: 758274.2301 | I34: -77664.71315 | J34: -413897.7106 | K34: 0.02035277016 | L34: -0.01886495998 | M34: 0 | N34: -258.7035446 | O34: -279.1065441 | P34: 0 | Q34: -3827511.553 | R34: 3547716.192 | S34: 3654260.638 | T34: -0.6007700747 | U34: 0.5568531126 | V34: 0.5735764364 | W34: -0.6797921296 | X34: -0.7334048408 | Y34: 0 | Z34: 0.420663735 | AA34: -0.3899127471 | AB34: 0.8191520443 | AC34: 0 | AD34: 0 | AE34: 0 | AF34: 0 | AG34: 0 | AH34: 0.06474820144 | AI34: -0.8133436157 | AJ34: -0.3636406816 | AK34: -0.4541339201 | AL34: 0.05447134025 | AM34: 0.7295617992 | AN34: -0.6817422198 | AO34: 0.5792279653 | AP34: -0.5792279653 | AQ34: -0.5735764364 | AR34: 7.582742301 | AS34: -0.7766471315 | AT34: -4.138977106 | AU34: -2046.498229 | AV34: -6975.386995 | AW34: -2440.416388 | AX34: -5926430.313 | AY34: 606967.7755 | AZ34: 3234822.729 | BA34: -617177.0301 | BB34: 3583587.579 | BC34: -79887.13185 | BD34: 6779016.464 | BE34: 61.49850316 | BF34: 174.1523218 | BG34: 408007.4644 | BH34: 28.50149684 | BI34: 171.9797232 | BJ34: -6.605343545 | BK34: -4.131486952 | BL34: -0.4276467321 | BM34: -3840.49614 | BN34: 6159.938056 | BO34: -290.0539642 | BP34: -617177.0301 | BQ34: 3583587.579 | BR34: -79887.13185 | BS34: -5926430.313 | BT34: 606967.7755 | BU34: 3234822.729 | BV34: 6779016.464 | BW34: 61.49850316 | BX34: 174.1523218 | BY34: 408007.4644 | BZ34: 28.50149684 | CA34: 171.9797232 | CB34: -0.8742315857 | CC34: 0.08953625923 | CD34: 0.477181719 | CE34: -0.4746985947 | CF34: 0.048617251 | CG34: -0.8788046467 | CH34: -0.1018841441 | CI34: -0.9947962712 | CJ34: 0 | CK34: 0.0001416204071 | CL34: 3.458637948e-05 | CM34: -3.058152751e-05 | CN34: 0.04124648478 | CO34: 0.02347096979 | CP34: 0.06874221422 | CQ34: 6779016.464 | CR34: 61.49850316 | CS34: 174.1523218 | CT34: -5926430.313 | CU34: 606967.7755 | CV34: 3234822.729 | CW34: -617177.0301 | CX34: 3583587.579 | CY34: -79887.13185 | CZ34: 408007.4644 | DA34: 28.50149684 | DB34: 171.9797232 | DD34: 2.142041922e-08 | DE34: 1.135049388e-07 | DF34: -9.778887033e-09 | DG34: 4.505272955e-05 | DH34: -9.825453162e-05 | DI34: -4.339381121e-05 | DJ34: -1.303851604e-08 | DK34: 2.842170943e-14 | DL34: -1.136868377e-12 | DM34: 3.268942237e-07 | DN34: 3.249151632e-07 | DO34: 7.497146726e-08 | DP34: 2.759043127e-08 | DQ34: -4.610046744e-07 | DR34: 7.219205145e-08 | DS34: -0.0002207234502 | DT34: -1.37134748e-12 | DU34: -2.47268872e-12 | DW34: 35 | DX34: 135 | DY34: 2.172598549
C35: 初期速度 | D35: R'0=√(μ/R0) | E35: =SQRT(E11/E34) -> 7668.065507 | F35: [m/s] | G35: 540 | H35: 763316.4352 | I35: -59796.26203 | J35: -407547.3417 | K35: 0.0203802616 | L35: -0.01883525698 | M35: 0 | N35: -258.2962142 | O35: -279.4835463 | P35: 0 | Q35: -3832681.551 | R35: 3542130.29 | S35: 3654260.638 | T35: -0.6015815628 | U35: 0.5559763438 | V35: 0.5735764364 | W35: -0.6787217925 | X35: -0.734395485 | Y35: 0 | Z35: 0.4212319451 | AA35: -0.389298827 | AB35: 0.8191520443 | AC35: 0 | AD35: 0 | AE35: 0 | AF35: 0 | AG35: 0 | AH35: 0.06474820144 | AI35: -0.8119048645 | AJ35: -0.3470601038 | AK35: -0.4694249412 | AL35: 0.07283855599 | AM35: 0.7375935524 | AN35: -0.6713049205 | AO35: 0.5792279653 | AP35: -0.5792279653 | AQ35: -0.5735764364 | AR35: 7.633164352 | AS35: -0.5979626203 | AT35: -4.075473417 | AU35: -1894.332672 | AV35: -6989.133679 | AW35: -2522.564397 | AX35: -5965840.303 | AY35: 467316.6125 | AZ35: 3185190.805 | BA35: -695302.0946 | BB35: 3705950.614 | BC35: -85772.76518 | BD35: 6779017.318 | BE35: 61.97477424 | BF35: 175.5210489 | BG35: 408008.3178 | BH35: 28.02522576 | BI35: 173.2648889 | BJ35: -6.515684651 | BK35: -4.272425756 | BL35: -0.412902875 | BM35: -3971.711442 | BN35: 6075.895675 | BO35: -298.4602223 | BP35: -695302.0946 | BQ35: 3705950.614 | BR35: -85772.76518 | BS35: -5965840.303 | BT35: 467316.6125 | BU35: 3185190.805 | BV35: 6779017.318 | BW35: 61.97477424 | BX35: 175.5210489 | BY35: 408008.3178 | BZ35: 28.02522576 | CA35: 173.2648889 | CB35: -0.8800450011 | CC35: 0.06893574549 | CD35: 0.4698602549 | CE35: -0.468425344 | CF35: 0.03669272624 | CG35: -0.8827408119 | CH35: -0.07809284964 | CI35: -0.9969460902 | CJ35: 0 | CK35: 0.0001444373306 | CL35: 3.360216323e-05 | CM35: -3.057455486e-05 | CN35: 0.04410750176 | CO35: 0.02415285716 | CP35: 0.06813052523 | CQ35: 6779017.318 | CR35: 61.97477424 | CS35: 175.5210489 | CT35: -5965840.303 | CU35: 467316.6125 | CV35: 3185190.805 | CW35: -695302.0946 | CX35: 3705950.614 | CY35: -85772.76518 | CZ35: 408008.3178 | DA35: 28.02522576 | DB35: 173.2648889 | DD35: 2.421438694e-08 | DE35: 1.181615517e-07 | DF35: -9.313225746e-09 | DG35: 4.551839083e-05 | DH35: -0.0001029111445 | DI35: -4.310277291e-05 | DJ35: -1.769512892e-08 | DK35: 0 | DL35: -1.193711796e-12 | DM35: 3.315508366e-07 | DN35: 3.284658305e-07 | DO35: 7.031485438e-08 | DP35: 2.363231033e-08 | DQ35: -4.661269486e-07 | DR35: 6.92816684e-08 | DS35: -0.000236555934 | DT35: -1.378452907e-12 | DU35: -2.415845302e-12 | DW35: 35 | DX35: 135 | DY35: 2.256160031
A36: (3) 物体座標系の回転運動 | C36: 慣性系初期速度ベクトル | D36: ⎾-sinλ⏋ | E36: =-E35*SIN(RADIANS(E15)) -> -5422.141119 | F36: [m/s] | G36: 560 | H36: 767967.9748 | I36: -41897.21934 | J36: -400988.3924 | K36: 0.02040770969 | L36: -0.01880551392 | M36: 0 | N36: -257.8883344 | O36: -279.8599541 | P36: 0 | Q36: -3837843.397 | R36: 3536536.854 | S36: 3654260.638 | T36: -0.6023917715 | U36: 0.5550983925 | V36: 0.5735764364 | W36: -0.6776500118 | X36: -0.7353845671 | Y36: 0 | Z36: 0.4217992593 | AA36: -0.3886840789 | AB36: 0.8191520443 | AC36: 0 | AD36: 0 | AE36: 0 | AF36: 0 | AG36: 0 | AH36: 0.06474820144 | AI36: -0.8100513915 | AJ36: -0.3303022474 | AK36: -0.4844761795 | AL36: 0.09116856573 | AM36: 0.7452485421 | AN36: -0.660524718 | AO36: 0.5792279653 | AP36: -0.5792279653 | AQ36: -0.5735764364 | AR36: 7.679679748 | AS36: -0.4189721934 | AT36: -4.009883924 | AU36: -1741.197699 | AV36: -6999.303461 | AW36: -2603.421419 | AX36: -6002197.157 | AY36: 327426.2747 | AZ36: 3133928.76 | BA36: -776033.3332 | BB36: 3826604.745 | BC36: -91823.5446 | BD36: 6779018.229 | BE36: 62.46448618 | BF36: 176.8775488 | BG36: 408009.229 | BH36: 27.53551382 | BI36: 174.5378273 | BJ36: -6.423034355 | BK36: -4.411379681 | BL36: -0.3977073246 | BM36: -4101.103583 | BN36: 5989.054259 | BO36: -306.5670679 | BP36: -776033.3332 | BQ36: 3826604.745 | BR36: -91823.5446 | BS36: -6002197.157 | BT36: 327426.2747 | BU36: 3133928.76 | BV36: 6779018.229 | BW36: 62.46448618 | BX36: 176.8775488 | BY36: 408009.229 | BZ36: 27.53551382 | CA36: 174.5378273 | CB36: -0.8854080273 | CC36: 0.0482999549 | CD36: 0.4622983232 | CE36: -0.4616119965 | CF36: 0.02518142814 | CG36: -0.8867244557 | CH36: -0.05447008322 | CI36: -0.998515403 | CJ36: 0 | CK36: 0.0001469881837 | CL36: 3.26177614e-05 | CM36: -3.049265295e-05 | CN36: 0.04702220407 | CO36: 0.02481505511 | CP36: 0.06751973157 | CQ36: 6779018.229 | CR36: 62.46448618 | CS36: 176.8775488 | CT36: -6002197.157 | CU36: 327426.2747 | CV36: 3133928.76 | CW36: -776033.3332 | CX36: 3826604.745 | CY36: -91823.5446 | CZ36: 408009.229 | DA36: 27.53551382 | DB36: 174.5378273 | DD36: 2.421438694e-08 | DE36: 1.210719347e-07 | DF36: -8.381903172e-09 | DG36: 4.761386663e-05 | DH36: -0.0001047737896 | DI36: -4.364119377e-05 | DJ36: -2.048909664e-08 | DK36: 0 | DL36: -1.165290087e-12 | DM36: 3.390014172e-07 | DN36: 3.396999091e-07 | DO36: 7.124617696e-08 | DP36: 2.526212484e-08 | DQ36: -4.796311259e-07 | DR36: 6.922346074e-08 | DS36: -0.0002505257726 | DT36: -1.406874617e-12 | DU36: -2.415845302e-12 | DW36: 35 | DX36: 135 | DY36: 2.339721514
A37: ωB'=cons. | B37: 角加速度（一定） | C37: R'0=R'0 | D37: │cosλ│ | E37: =E35*COS(RADIANS(E15)) -> -5422.141119 | F37: [m/s] | G37: 580 | H37: 772226.4682 | I37: -23976.74684 | J37: -394224.22 | K37: 0.02043511437 | L37: -0.01877573086 | M37: 0 | N37: -257.4799061 | O37: -280.2357666 | P37: 0 | Q37: -3842997.081 | R37: 3530935.896 | S37: 3654260.638 | T37: -0.6032006988 | U37: 0.5542192604 | V37: 0.5735764364 | W37: -0.6765767897 | X37: -0.736372085 | Y37: 0 | Z37: 0.4223656763 | AA37: -0.388068504 | AB37: 0.8191520443 | AC37: 0 | AD37: 0 | AE37: 0 | AF37: 0 | AG37: 0 | AH37: 0.06474820144 | AI37: -0.8077841435 | AJ37: -0.3133756723 | AK37: -0.4992799471 | AL37: 0.1094520065 | AM37: 0.7525228582 | AN37: -0.6494071189 | AO37: 0.5792279653 | AP37: -0.5792279653 | AQ37: -0.5735764364 | AR37: 7.722264682 | AS37: -0.2397674684 | AT37: -3.9422422 | AU37: -1587.171686 | AV37: -7005.891138 | AW37: -2682.946072 | AX37: -6035482.27 | AY37: 187368.3552 | AZ37: 3081062.83 | BA37: -859333.6873 | BB37: 3945494.393 | BC37: -98033.39228 | BD37: 6779019.199 | BE37: 62.96724528 | BF37: 178.2218539 | BG37: 408010.199 | BH37: 27.03275472 | BI37: 175.7985709 | BJ37: -6.327435145 | BK37: -4.548284247 | BL37: -0.3820713142 | BM37: -4228.613157 | BN37: 5899.454151 | BO37: -314.3655788 | BP37: -859333.6873 | BQ37: 3945494.393 | BR37: -98033.39228 | BS37: -6035482.27 | BT37: 187368.3552 | BU37: 3081062.83 | BV37: 6779019.199 | BW37: 62.96724528 | BX37: 178.2218539 | BY37: 408010.199 | BZ37: 27.03275472 | CA37: 175.7985709 | CB37: -0.8903179196 | CC37: 0.02763944897 | CD37: 0.4544997941 | CE37: -0.4542809382 | CF37: 0.01410291148 | CG37: -0.8907468423 | CH37: -0.03102952225 | CI37: -0.9995184684 | CJ37: 0 | CK37: 0.0001492686889 | CL37: 3.163504056e-05 | CM37: -3.033980651e-05 | CN37: 0.04998522665 | CO37: 0.02545757886 | CP37: 0.06691129209 | CQ37: 6779019.199 | CR37: 62.96724528 | CS37: 178.2218539 | CT37: -6035482.27 | CU37: 187368.3552 | CV37: 3081062.83 | CW37: -859333.6873 | CX37: 3945494.393 | CY37: -98033.39228 | CZ37: 408010.199 | DA37: 27.03275472 | DB37: 175.7985709 | DD37: 1.862645149e-08 | DE37: 1.221778803e-07 | DF37: -1.024454832e-08 | DG37: 5.040783435e-05 | DH37: -0.0001019798219 | DI37: -4.757021088e-05 | DJ37: -1.862645149e-08 | DK37: 2.842170943e-14 | DL37: -1.165290087e-12 | DM37: 3.399327397e-07 | DN37: 3.469467629e-07 | DO37: 7.078051567e-08 | DP37: 2.782326192e-08 | DQ37: -4.852190614e-07 | DR37: 6.693881005e-08 | DS37: -0.0002607703209 | DT37: -1.421085472e-12 | DU37: -2.387423592e-12 | DW37: 35 | DX37: 135 | DY37: 2.423282997
A38: ωB=∫ωB'dt | B38: 角速度 | D38: ⎿ 0 ⏌ | E38: 0 | F38: [m/s] | G38: 600 | H38: 776089.7359 | I38: -6044.01728 | J38: -387258.2868 | K38: 0.02046247559 | L38: -0.01874590786 | M38: 0 | N38: -257.0709302 | O38: -280.610983 | P38: 0 | Q38: -3848142.59 | R38: 3525327.428 | S38: 3654260.638 | T38: -0.6040083431 | U38: 0.5533389496 | V38: 0.5735764364 | W38: -0.6755021286 | X38: -0.7373580367 | Y38: 0 | Z38: 0.422931195 | AA38: -0.3874521037 | AB38: 0.8191520443 | AC38: 0 | AD38: 0 | AE38: 0 | AF38: 0 | AG38: 0 | AH38: 0.06474820144 | AI38: -0.8051042786 | AJ38: -0.2962890247 | AK38: -0.5138286819 | AL38: 0.1276795391 | AM38: 0.759412785 | AN38: -0.6379578021 | AO38: 0.5792279653 | AP38: -0.5792279653 | AQ38: -0.5735764364 | AR38: 7.760897359 | AS38: -0.0604401728 | AT38: -3.872582868 | AU38: -1432.333461 | AV38: -7008.893342 | AW38: -2761.097656 | AX38: -6065678.61 | AY38: 47214.53277 | AZ38: 3026620.071 | BA38: -945164.9186 | BB38: 4062564.797 | BC38: -104396.0542 | BD38: 6779020.229 | BE38: 63.4826585 | BF38: 179.5540254 | BG38: 408011.2287 | BH38: 26.5173415 | BI38: 177.0471809 | BJ38: -6.228930864 | BK38: -4.683075935 | BL38: -0.366006412 | BM38: -4354.181622 | BN38: 5807.136975 | BO38: -321.8470611 | BP38: -945164.9186 | BQ38: 4062564.797 | BR38: -104396.0542 | BS38: -6065678.61 | BT38: 47214.53277 | BU38: 3026620.071 | BV38: 6779020.229 | BW38: 63.4826585 | BX38: 179.5540254 | BY38: 408011.2287 | BZ38: 26.5173415 | CA38: 177.0471809 | CB38: -0.8947721654 | CC38: 0.00696480187 | CD38: 0.4464686591 | CE38: -0.4464551342 | CF38: 0.003475154541 | CG38: -0.8947992716 | CH38: -0.007783647228 | CI38: -0.999969707 | CJ38: 0 | CK38: 0.0001512751064 | CL38: 3.065570542e-05 | CM38: -3.012005622e-05 | CN38: 0.05299112424 | CO38: 0.02608047934 | CP38: 0.06630658534 | CQ38: 6779020.229 | CR38: 63.4826585 | CS38: 179.5540254 | CT38: -6065678.61 | CU38: 47214.53277 | CV38: 3026620.071 | CW38: -945164.9186 | CX38: 4062564.797 | CY38: -104396.0542 | CZ38: 408011.2287 | DA38: 26.5173415 | DB38: 177.0471809 | DD38: 1.490116119e-08 | DE38: 1.241860446e-07 | DF38: -1.071020961e-08 | DG38: 5.355104804e-05 | DH38: -0.0001019798219 | DI38: -5.061156116e-05 | DJ38: -1.769512892e-08 | DK38: 4.97379915e-14 | DL38: -1.193711796e-12 | DM38: 3.408640623e-07 | DN38: 3.526001819e-07 | DO38: 7.404014468e-08 | DP38: 3.189779818e-08 | DQ38: -4.903413355e-07 | DR38: 6.805930752e-08 | DS38: -0.0002700835466 | DT38: -1.449507181e-12 | DU38: -2.387423592e-12 | DW38: 35 | DX38: 135 | DY38: 2.506844479
A39: DIB=(xB, yB, zB) | B39: 物体系方向余弦行列 | C39: 慣性系初期位置ベクトル | D39: ⎾cosφccosλ⏋ | E39: =E34*COS(RADIANS(E14))*COS(RADIANS(E15)) -> -3926591.59 | F39: [m] | G39: 620 | H39: 779555.8006 | I39: 11891.7903 | J39: -380094.1583 | K39: 0.02048979328 | L39: -0.01871604499 | M39: 0 | N39: -256.6614074 | O39: -280.9856026 | P39: 0 | Q39: -3853279.914 | R39: 3519711.461 | S39: 3654260.638 | T39: -0.6048147027 | U39: 0.5524574617 | V39: 0.5735764364 | W39: -0.6744260307 | X39: -0.73834242 | Y39: 0 | Z39: 0.4234958141 | AA39: -0.3868348793 | AB39: 0.8191520443 | AC39: 0 | AD39: 0 | AE39: 0 | AF39: 0 | AG39: 0 | AH39: 0.06474820144 | AI39: -0.8020131658 | AJ39: -0.2790510323 | AK39: -0.5281149527 | AL39: 0.1458418528 | AM39: 0.7659148031 | AN39: -0.6261826159 | AO39: 0.5792279653 | AP39: -0.5792279653 | AQ39: -0.5735764364 | AR39: 7.795558006 | AS39: 0.118917903 | AT39: -3.800941583 | AU39: -1276.762272 | AV39: -7008.30854 | AW39: -2837.836173 | AX39: -6092770.722 | AY39: -92963.4647 | AZ39: 2970628.345 | BA39: -1033487.627 | BB39: 4177762.043 | BC39: -110905.1047 | BD39: 6779021.319 | BE39: 64.01033418 | BF39: 180.8741509 | BG39: 408012.3189 | BH39: 25.98966582 | BI39: 178.2837449 | BJ39: -6.127566685 | BK39: -4.815692218 | BL39: -0.3495245141 | BM39: -4477.751325 | BN39: 5712.145616 | BO39: -329.0030552 | BP39: -1033487.627 | BQ39: 4177762.043 | BR39: -110905.1047 | BS39: -6092770.722 | BT39: -92963.4647 | BU39: 2970628.345 | BV39: 6779021.319 | BW39: 64.01033418 | BX39: 180.8741509 | BY39: 408012.3189 | BZ39: 25.98966582 | CA39: 178.2837449 | CB39: -0.8987684852 | CC39: -0.01371340498 | CD39: 0.4382090283 | CE39: -0.4381580283 | CF39: -0.006685412967 | CG39: -0.8988730987 | CH39: 0.01525621915 | CI39: -0.9998836171 | CJ39: 0 | CK39: 0.0001530042406 | CL39: 2.968130073e-05 | CM39: -2.983745827e-05 | CN39: 0.05603438222 | CO39: 0.02668383998 | CP39: 0.06570690882 | CQ39: 6779021.319 | CR39: 64.01033418 | CS39: 180.8741509 | CT39: -6092770.722 | CU39: -92963.4647 | CV39: 2970628.345 | CW39: -1033487.627 | CX39: 4177762.043 | CY39: -110905.1047 | CZ39: 408012.3189 | DA39: 25.98966582 | DB39: 178.2837449 | DD39: 1.024454832e-08 | DE39: 1.263688318e-07 | DF39: -1.11758709e-08 | DG39: 5.715992302e-05 | DH39: -0.0001005828381 | DI39: -5.340552889e-05 | DJ39: -1.583248377e-08 | DK39: 1.421085472e-14 | DL39: -1.193711796e-12 | DM39: 3.473833203e-07 | DN39: 3.680033842e-07 | DO39: 7.264316082e-08 | DP39: 3.480818123e-08 | DQ39: -5.061738193e-07 | DR39: 6.431946531e-08 | DS39: -0.0002849847078 | DT39: -1.492139745e-12 | DU39: -2.415845302e-12 | DW39: 35 | DX39: 135 | DY39: 2.590405962
A40: x'B=ωYyBーωPzB | B40: ロール軸微係数 | C40: R0＝R0 | D40: │cosφcsinλ │ | E40: =E34*COS(RADIANS(E14))*SIN(RADIANS(E15)) -> 3926591.59 | F40: [m] | G40: 640 | H40: 782622.8887 | I40: 29821.49529 | J40: -372735.5017 | K40: 0.02051706739 | L40: -0.01868614231 | M40: 0 | N40: -256.2513387 | O40: -281.3596246 | P40: 0 | Q40: -3858409.043 | R40: 3514088.008 | S40: 3654260.638 | T40: -0.6056197759 | U40: 0.5515747988 | V40: 0.5735764364 | W40: -0.6733484982 | X40: -0.7393252328 | Y40: 0 | Z40: 0.4240595324 | AA40: -0.386216832 | AB40: 0.8191520443 | AC40: 0 | AD40: 0 | AE40: 0 | AF40: 0 | AG40: 0 | AH40: 0.06474820144 | AI40: -0.798512384 | AJ40: -0.2616705004 | AK40: -0.5421314618 | AL40: 0.1639296704 | AM40: 0.7720255911 | AN40: -0.614087575 | AO40: 0.5792279653 | AP40: -0.5792279653 | AQ40: -0.5735764364 | AR40: 7.826228887 | AS40: 0.2982149529 | AT40: -3.727355017 | AU40: -1120.53774 | AV40: -7004.137033 | AW40: -2913.12235 | AX40: -6116744.745 | AY40: -233093.897 | AZ40: 2913116.307 | BA40: -1124261.268 | BB40: 4291033.088 | BC40: -117553.9516 | BD40: 6779022.47 | BE40: 64.54988258 | BF40: 182.1823434 | BG40: 408013.4703 | BH40: 25.45011742 | BI40: 179.5083759 | BJ40: -6.023389098 | BK40: -4.946071588 | BL40: -0.3326378362 | BM40: -4599.265533 | BN40: 5614.524199 | BO40: -335.825343 | BP40: -1124261.268 | BQ40: 4291033.088 | BR40: -117553.9516 | BS40: -6116744.745 | BT40: -233093.897 | BU40: 2913116.307 | BV40: 6779022.47 | BW40: 64.54988258 | BX40: 182.1823434 | BY40: 408013.4703 | BZ40: 25.45011742 | CA40: 179.5083759 | CB40: -0.902304834 | CC40: -0.03438458835 | CD40: 0.4297251292 | CE40: -0.429413449 | CF40: -0.01636387629 | CG40: -0.9029597518 | CH40: 0.03807986821 | CI40: -0.9992746988 | CJ40: 0 | CK40: 0.000154453447 | CL40: 2.871321457e-05 | CM40: -2.949604826e-05 | CN40: 0.05910942755 | CO40: 0.02726777353 | CP40: 0.06511347908 | CQ40: 6779022.47 | CR40: 64.54988258 | CS40: 182.1823434 | CT40: -6116744.745 | CU40: -233093.897 | CV40: 2913116.307 | CW40: -1124261.268 | CX40: 4291033.088 | CY40: -117553.9516 | CZ40: 408013.4703 | DA40: 25.45011742 | DB40: 179.5083759 | DD40: 0 | DE40: 1.253501978e-07 | DF40: -1.024454832e-08 | DG40: 5.983747542e-05 | DH40: -9.592622519e-05 | DI40: -5.458423402e-05 | DJ40: -1.396983862e-08 | DK40: 4.263256415e-14 | DL40: -1.193711796e-12 | DM40: 3.557652235e-07 | DN40: 3.799505066e-07 | DO40: 7.450580597e-08 | DP40: 3.67872417e-08 | DQ40: -5.206093192e-07 | DR40: 6.514892448e-08 | DS40: -0.0003026798368 | DT40: -1.520561455e-12 | DU40: -2.415845302e-12 | DW40: 35 | DX40: 135 | DY40: 2.673967445
A41: y'B=ωRzBーωYxB | B41: ピッチ軸微係数 | D41: ⎿ sinφc ⏌ | E41: =E34*SIN(RADIANS(E14)) -> 3888279.824 | F41: [m] | G41: 660 | H41: 785289.4305 | I41: 47735.92019 | J41: -365186.0837 | K41: 0.02054429786 | L41: -0.01865619988 | M41: 0 | N41: -255.840725 | O41: -281.7330481 | P41: 0 | Q41: -3863529.964 | R41: 3508457.08 | S41: 3654260.638 | T41: -0.6064235609 | U41: 0.5506909627 | V41: 0.5735764364 | W41: -0.6722695336 | X41: -0.7403064732 | Y41: 0 | Z41: 0.4246223487 | AA41: -0.3855979633 | AB41: 0.8191520443 | AC41: 0 | AD41: 0 | AE41: 0 | AF41: 0 | AG41: 0 | AH41: 0.06474820144 | AI41: -0.7946037213 | AJ41: -0.244156307 | AK41: -0.5558710497 | AL41: 0.1819337526 | AM41: 0.7777420279 | AN41: -0.6016788577 | AO41: 0.5792279653 | AP41: -0.5792279653 | AQ41: -0.5735764364 | AR41: 7.852894305 | AS41: 0.4773592019 | AT41: -3.651860837 | AU41: -963.7398199 | AV41: -6996.38096 | AW41: -2986.917656 | AX41: -6137588.409 | AY41: -373105.0485 | AZ41: 2854113.39 | BA41: -1217444.173 | BB41: 4402325.78 | BC41: -124335.8406 | BD41: 6779023.683 | BE41: 65.10091653 | BF41: 183.4787393 | BG41: 408014.6835 | BH41: 24.89908347 | BI41: 180.7212104 | BJ41: -5.916445882 | BK41: -5.074153585 | BL41: -0.3153589058 | BM41: -4718.668451 | BN41: 5514.318069 | BO41: -342.3059536 | BP41: -1217444.173 | BQ41: 4402325.78 | BR41: -124335.8406 | BS41: -6137588.409 | BT41: -373105.0485 | BU41: 2854113.39 | BV41: 6779023.683 | BW41: 65.10091653 | BX41: 183.4787393 | BY41: 408014.6835 | BZ41: 24.89908347 | CA41: 180.7212104 | CB41: -0.9053794021 | CC41: -0.05503816861 | CD41: 0.4210213039 | CE41: -0.4202455228 | CF41: -0.02554679717 | CG41: -0.9070507492 | CH41: 0.06067815793 | CI41: -0.998157383 | CJ41: 0 | CK41: 0.0001556206362 | CL41: 2.77526826e-05 | CM41: -2.909980933e-05 | CN41: 0.06221063985 | CO41: 0.02783241896 | CP41: 0.0645274324 | CQ41: 6779023.683 | CR41: 65.10091653 | CS41: 183.4787393 | CT41: -6137588.409 | CU41: -373105.0485 | CV41: 2854113.39 | CW41: -1217444.173 | CX41: 4402325.78 | CY41: -124335.8406 | CZ41: 408014.6835 | DA41: 24.89908347 | DB41: 180.7212104 | DD41: 8.381903172e-09 | DE41: 1.255539246e-07 | DF41: -1.024454832e-08 | DG41: 5.797483027e-05 | DH41: -9.778887033e-05 | DI41: -5.340552889e-05 | DJ41: -1.955777407e-08 | DK41: 1.421085472e-14 | DL41: -1.165290087e-12 | DM41: 3.641471267e-07 | DN41: 4.032044671e-07 | DO41: 7.683411241e-08 | DP41: 4.540197551e-08 | DQ41: -5.42961061e-07 | DR41: 6.206391845e-08 | DS41: -0.0003194436431 | DT41: -1.591615728e-12 | DU41: -2.529532139e-12 | DW41: 35 | DX41: 135 | DY41: 2.757528927
A42: xB=∫x'Bdt | B42: ロール軸 | C42: =exe("局地系初期速度ベクトル",E42:E44= vctsub(mx31mp(mx33tp(E67:E75),vctsub(E36:E38,E55:E57) ), vctcrp(E64:E66,E45:E47) ) ) -> 局地系初期速度ベクトル | D42: ⎾i'⏋ | E42: -4.39512918e-14 | F42: [m/s] | G42: 680 | H42: 787554.0616 | I42: 65625.89532 | J42: -357449.7686 | K42: 0.02057148463 | L42: -0.01862621778 | M42: 0 | N42: -255.4295671 | O42: -282.1058723 | P42: 0 | Q42: -3868642.668 | R42: 3502818.69 | S42: 3654260.638 | T42: -0.607226056 | U42: 0.5498059553 | V42: 0.5735764364 | W42: -0.671189139 | X42: -0.7412861389 | Y42: 0 | Z42: 0.4251842618 | AA42: -0.3849782745 | AB42: 0.8191520443 | AC42: 0 | AD42: 0 | AE42: 0 | AF42: 0 | AG42: 0 | AH42: 0.06474820144 | AI42: -0.7902891743 | AJ42: -0.2265173984 | AK42: -0.5693266982 | AL42: 0.1998449029 | AM42: 0.7830611933 | AN42: -0.5889628022 | AO42: 0.5792279653 | AP42: -0.5792279653 | AQ42: -0.5735764364 | AR42: 7.875540616 | AS42: 0.6562589532 | AT42: -3.574497686 | AU42: -806.4487619 | AV42: -6985.044295 | AW42: -3059.184324 | AX42: -6155291.05 | AY42: -512925.2644 | AZ42: 2793649.792 | BA42: -1312993.565 | BB42: 4511588.889 | BC42: -131243.8604 | BD42: 6779024.959 | BE42: 65.66305183 | BF42: 184.763497 | BG42: 408015.9589 | BH42: 24.33694817 | BI42: 181.9224066 | BJ42: -5.806786085 | BK42: -5.199878826 | BL42: -0.297700554 | BM42: -4835.905257 | BN42: 5411.573768 | BO42: -348.4371697 | BP42: -1312993.565 | BQ42: 4511588.889 | BR42: -131243.8604 | BS42: -6155291.05 | BT42: -512925.2644 | BU42: 2793649.792 | BV42: 6779024.959 | BW42: 65.66305183 | BX42: 184.763497 | BY42: 408015.9589 | BZ42: 24.33694817 | CA42: 181.9224066 | CB42: -0.9079906162 | CC42: -0.07566357515 | CD42: 0.4121020071 | CE42: -0.4106785936 | CF42: -0.03422217154 | CG42: -0.911137715 | CH42: 0.08304296255 | CI42: -0.996545968 | CJ42: 0 | CK42: 0.0001565042787 | CL42: 2.680079336e-05 | CM42: -2.865264458e-05 | CN42: 0.06533236255 | CO42: 0.02837793848 | CP42: 0.06394982619 | CQ42: 6779024.959 | CR42: 65.66305183 | CS42: 184.763497 | CT42: -6155291.05 | CU42: -512925.2644 | CV42: 2793649.792 | CW42: -1312993.565 | CX42: 4511588.889 | CY42: -131243.8604 | CZ42: 408015.9589 | DA42: 24.33694817 | DB42: 181.9224066 | DD42: 8.381903172e-09 | DE42: 1.261360012e-07 | DF42: -1.024454832e-08 | DG42: 5.774199963e-05 | DH42: -9.872019291e-05 | DI42: -5.355104804e-05 | DJ42: -2.235174179e-08 | DK42: 1.421085472e-14 | DL42: -1.165290087e-12 | DM42: 3.67872417e-07 | DN42: 4.090834409e-07 | DO42: 8.149072528e-08 | DP42: 4.842877388e-08 | DQ42: -5.504116416e-07 | DR42: 6.557093002e-08 | DS42: -0.0003324821591 | DT42: -1.634248292e-12 | DU42: -2.444267011e-12 | DW42: 35 | DX42: 135 | DY42: 2.84109041
A43: yB=∫y'Bdt | B43: ピッチ軸 | C43: r'0=DIL0T･(R'0-d'0)-ωL✕r0 = | D43: │j'│ | E43: 7263.131511 | F43: [m/s] | G43: 700 | H43: 789415.6235 | I43: 83482.26354 | J43: -349530.5166 | K43: 0.02059862765 | L43: -0.01859619605 | M43: 0 | N43: -255.0178659 | O43: -282.4780965 | P43: 0 | Q43: -3873747.143 | R43: 3497172.849 | S43: 3654260.638 | T43: -0.6080272596 | U43: 0.5489197785 | V43: 0.5735764364 | W43: -0.6701073168 | X43: -0.7422642278 | Y43: 0 | Z43: 0.4257452706 | AA43: -0.3843577668 | AB43: 0.8191520443 | AC43: 0 | AD43: 0 | AE43: 0 | AF43: 0 | AG43: 0 | AH43: 0.06474820144 | AI43: -0.7855709469 | AJ43: -0.2087627844 | AK43: -0.5824915341 | AL43: 0.2176539722 | AM43: 0.7879803703 | AN43: -0.575945904 | AO43: 0.5792279653 | AP43: -0.5792279653 | AQ43: -0.5735764364 | AR43: 7.894156235 | AS43: 0.8348226354 | AT43: -3.495305166 | AU43: -648.745067 | AV43: -6970.132843 | AW43: -3129.885368 | AX43: -6169843.609 | AY43: -652482.988 | AZ43: 2731756.455 | BA43: -1410865.583 | BB43: 4618772.127 | BC43: -138270.9483 | BD43: 6779026.297 | BE43: 66.23590777 | BF43: 186.0367952 | BG43: 408017.2969 | BH43: 23.76409223 | BI43: 183.1121433 | BJ43: -5.694460002 | BK43: -5.323189035 | BL43: -0.2796759068 | BM43: -4950.922119 | BN43: 5306.339016 | BO43: -354.2115337 | BP43: -1410865.583 | BQ43: 4618772.127 | BR43: -138270.9483 | BS43: -6169843.609 | BT43: -652482.988 | BU43: 2731756.455 | BV43: 6779026.297 | BW43: 66.23590777 | BX43: 186.0367952 | BY43: 408017.2969 | BZ43: 23.76409223 | CA43: 183.1121433 | CB43: -0.9101371404 | CC43: -0.09625025179 | CD43: 0.4029718038 | CE43: -0.4007371488 | CF43: -0.04237938412 | CG43: -0.9152123936 | CH43: 0.1051671202 | CI43: -0.9944545625 | CJ43: 0 | CK43: 0.0001571034068 | CL43: 2.585849414e-05 | CM43: -2.815835345e-05 | CN43: 0.0684689141 | CO43: 0.02890451466 | CP43: 0.06338164077 | CQ43: 6779026.297 | CR43: 66.23590777 | CS43: 186.0367952 | CT43: -6169843.609 | CU43: -652482.988 | CV43: 2731756.455 | CW43: -1410865.583 | CX43: 4618772.127 | CY43: -138270.9483 | CZ43: 408017.2969 | DA43: 23.76409223 | DB43: 183.1121433 | DD43: 9.313225746e-09 | DE43: 1.322478056e-07 | DF43: -1.024454832e-08 | DG43: 6.030313671e-05 | DH43: -0.0001043081284 | DI43: -5.526817404e-05 | DJ43: -2.514570951e-08 | DK43: 0 | DL43: -1.222133506e-12 | DM43: 3.669410944e-07 | DN43: 4.293397069e-07 | DO43: 7.916241884e-08 | DP43: 5.797483027e-08 | DQ43: -5.643814802e-07 | DR43: 5.605397746e-08 | DS43: -0.0003427267075 | DT43: -1.605826583e-12 | DU43: -2.557953849e-12 | DW43: 35 | DX43: 135 | DY43: 2.924651893
A44: zB=xB×yB | B44: ヨー軸 | D44: ⎿k'⏌ | E44: -8.392045958e-14 | F44: [m/s] | G44: 720 | H44: 790873.1638 | I44: 101295.8849 | J44: -341432.3812 | K44: 0.02062572685 | L44: -0.01856613477 | M44: 0 | N44: -254.6056223 | O44: -282.8497199 | P44: 0 | Q44: -3878843.379 | R44: 3491519.57 | S44: 3654260.638 | T44: -0.6088271699 | U44: 0.5480324341 | V44: 0.5735764364 | W44: -0.6690240693 | X44: -0.743240738 | Y44: 0 | Z44: 0.4263053739 | AA44: -0.3837364415 | AB44: 0.8191520443 | AC44: 0 | AD44: 0 | AE44: 0 | AF44: 0 | AG44: 0 | AH44: 0.06474820144 | AI44: -0.7804514491 | AJ44: -0.1909015343 | AK44: -0.5953588328 | AL44: 0.2353518636 | AM44: 0.7924970463 | AN44: -0.5626348122 | AO44: 0.5792279653 | AP44: -0.5792279653 | AQ44: -0.5735764364 | AR44: 7.908731638 | AS44: 1.012958849 | AT44: -3.414323812 | AU44: -490.7094477 | AV44: -6951.654239 | AW44: -3198.984605 | AX44: -6181238.64 | AY44: -791706.7967 | AZ44: 2668465.056 | BA44: -1511015.298 | BB44: 4723826.172 | BC44: -145409.8947 | BD44: 6779027.698 | BE44: 66.81910746 | BF44: 187.2988314 | BG44: 408018.6977 | BH44: 23.18089254 | BI44: 184.2906181 | BJ44: -5.579519154 | BK44: -5.444027066 | BL44: -0.2612983766 | BM44: -5063.666225 | BN44: 5198.662688 | BO44: -359.6218534 | BP44: -1511015.298 | BQ44: 4723826.172 | BR44: -145409.8947 | BS44: -6181238.64 | BT44: -791706.7967 | BU44: 2668465.056 | BV44: 6779027.698 | BW44: 66.81910746 | BX44: 187.2988314 | BY44: 408018.6977 | BZ44: 23.18089254 | CA44: 184.2906181 | CB44: -0.9118178764 | CC44: -0.1167876622 | CD44: 0.393635367 | CE44: -0.390445753 | CF44: -0.05000916069 | CG44: -0.9192666631 | CH44: 0.1270443788 | CI44: -0.9918970339 | CJ44: 0 | CK44: 0.0001574176164 | CL44: 2.492659748e-05 | CM44: -2.762061198e-05 | CN44: 0.07161459923 | CO44: 0.02941234763 | CP44: 0.06282378169 | CQ44: 6779027.698 | CR44: 66.81910746 | CS44: 187.2988314 | CT44: -6181238.64 | CU44: -791706.7967 | CV44: 2668465.056 | CW44: -1511015.298 | CX44: 4723826.172 | CY44: -145409.8947 | CZ44: 408018.6977 | DA44: 23.18089254 | DB44: 184.2906181 | DD44: 1.024454832e-08 | DE44: 1.366715878e-07 | DF44: -8.381903172e-09 | DG44: 6.426125765e-05 | DH44: -0.0001080334187 | DI44: -5.512265489e-05 | DJ44: -2.793967724e-08 | DK44: -2.842170943e-14 | DL44: -1.250555215e-12 | DM44: 3.715977073e-07 | DN44: 4.431931302e-07 | DO44: 8.335337043e-08 | DP44: 6.449408829e-08 | DQ44: -5.774199963e-07 | DR44: 5.657784641e-08 | DS44: -0.0003576278687 | DT44: -1.662670002e-12 | DU44: -2.557953849e-12 | DW44: 35 | DX44: 135 | DY44: 3.008213375
A45: DIB0=(xB0, yB0, zB0) | B45: 物体系方向余弦行列初期値 | C45: =exe("局地系初期位置ベクトル",E45:E47=mx31mp(mx33tp(E67:E75),vctsub(E39:E41,E58:E60))) -> 局地系初期位置ベクトル | D45: ⎾i⏋ | E45: 408000 | F45: [m] | G45: 740 | H45: 791925.9372 | I45: 119057.6415 | J45: -333159.508 | K45: 0.02065278218 | L45: -0.018536034 | M45: 0 | N45: -254.1928371 | O45: -283.2207416 | P45: 0 | Q45: -3883931.365 | R45: 3485858.864 | S45: 3654260.638 | T45: -0.6096257853 | U45: 0.547143924 | V45: 0.5735764364 | W45: -0.6679393988 | X45: -0.7442156673 | Y45: 0 | Z45: 0.4268645703 | AA45: -0.3831143001 | AB45: 0.8191520443 | AC45: 0 | AD45: 0 | AE45: 0 | AF45: 0 | AG45: 0 | AH45: 0.06474820144 | AI45: -0.7749332961 | AJ45: -0.1729427714 | AK45: -0.6079220217 | AL45: 0.2529295372 | AM45: 0.7966089141 | AN45: -0.549036326 | AO45: 0.5792279653 | AP45: -0.5792279653 | AQ45: -0.5735764364 | AR45: 7.919259372 | AS45: 1.190576415 | AT45: -3.33159508 | AU45: -332.4227864 | AV45: -6929.617946 | AW45: -3266.446671 | AX45: -6189470.313 | AY45: -930525.4392 | AZ45: 2603807.985 | BA45: -1613396.735 | BB45: 4826702.691 | BC45: -152653.3493 | BD45: 6779029.161 | BE45: 67.41227815 | BF45: 188.5498208 | BG45: 408020.1615 | BH45: 22.58772185 | BI45: 185.458046 | BJ45: -5.462016261 | BK45: -5.562336932 | BL45: -0.2425816538 | BM45: -5174.085805 | BN45: 5088.594788 | BO45: -364.6612075 | BP45: -1613396.735 | BQ45: 4826702.691 | BR45: -152653.3493 | BS45: -6189470.313 | BT45: -930525.4392 | BU45: 2603807.985 | BV45: 6779029.161 | BW45: 67.41227815 | BX45: 188.5498208 | BY45: 408020.1615 | BZ45: 22.58772185 | CA45: 185.458046 | CB45: -0.9130319645 | CC45: -0.1372652952 | CD45: 0.3840974752 | CE45: -0.379828986 | CF45: -0.05710351874 | CG45: -0.9232925482 | CH45: 0.1486693416 | CI45: -0.9888869636 | CJ45: 0 | CK45: 0.0001574470678 | CL45: 2.40057881e-05 | CM45: -2.704295675e-05 | CN45: 0.07476372023 | CO45: 0.0299016525 | CP45: 0.06227708235 | CQ45: 6779029.161 | CR45: 67.41227815 | CS45: 188.5498208 | CT45: -6189470.313 | CU45: -930525.4392 | CV45: 2603807.985 | CW45: -1613396.735 | CX45: 4826702.691 | CY45: -152653.3493 | CZ45: 408020.1615 | DA45: 22.58772185 | DB45: 185.458046 | DD45: 1.210719347e-08 | DE45: 1.386506483e-07 | DF45: -8.847564459e-09 | DG45: 6.286427379e-05 | DH45: -0.0001108273864 | DI45: -5.535548553e-05 | DJ45: -3.352761269e-08 | DK45: -2.842170943e-14 | DL45: -1.250555215e-12 | DM45: 3.818422556e-07 | DN45: 4.394678399e-07 | DO45: 8.4284693e-08 | DP45: 5.611218512e-08 | DQ45: -5.820766091e-07 | DR45: 6.362097338e-08 | DS45: -0.0003762543201 | DT45: -1.691091711e-12 | DU45: -2.415845302e-12 | DW45: 35 | DX45: 135 | DY45: 3.091774858
A46: xB0=R'0/|R'0| | B46: ロール軸 | C46: r0=DIL0T･(R0-d0)= | D46: │j│ | E46: 2.624744866e-11 | F46: [m] | G46: 760 | H46: 792573.4057 | I46: 136758.4417 | J46: -324716.1316 | K46: 0.02067979359 | L46: -0.01850589381 | M46: 0 | N46: -253.7795113 | O46: -283.591161 | P46: 0 | Q46: -3889011.089 | R46: 3480190.744 | S46: 3654260.638 | T46: -0.6104231039 | U46: 0.5462542502 | V46: 0.5735764364 | W46: -0.6668533076 | X46: -0.7451890137 | Y46: 0 | Z46: 0.4274228589 | AA46: -0.3824913438 | AB46: 0.8191520443 | AC46: 0 | AD46: 0 | AE46: 0 | AF46: 0 | AG46: 0 | AH46: 0.06474820144 | AI46: -0.7690193064 | AJ46: -0.1548956693 | AK46: -0.6201746834 | AL46: 0.2703780141 | AM46: 0.8003138733 | AN46: -0.5351573915 | AO46: 0.5792279653 | AP46: -0.5792279653 | AQ46: -0.5735764364 | AR46: 7.925734057 | AS46: 1.367584417 | AT46: -3.247161316 | AU46: -173.9660936 | AV46: -6904.035246 | AW46: -3332.237041 | AX46: -6194534.418 | AY46: -1068867.871 | AZ46: 2537818.334 | BA46: -1717962.895 | BB46: 4927354.36 | BC46: -159993.8256 | BD46: 6779030.688 | BE46: 68.01505155 | BF46: 189.7899943 | BG46: 408021.6882 | BH46: 21.98494845 | BI46: 186.6146579 | BJ46: -5.342005218 | BK46: -5.678063832 | BL46: -0.2235396969 | BM46: -5282.130154 | BN46: 4976.186431 | BO46: -369.3229513 | BP46: -1717962.895 | BQ46: 4927354.36 | BR46: -159993.8256 | BS46: -6194534.418 | BT46: -1068867.871 | BU46: 2537818.334 | BV46: 6779030.688 | BW46: 68.01505155 | BX46: 189.7899943 | BY46: 408021.6882 | BZ46: 21.98494845 | CA46: 186.6146579 | CB46: -0.9137787838 | CC46: -0.1576726704 | CD46: 0.3743630101 | CE46: -0.368911389 | CF46: -0.06365571722 | CG46: -0.9272822314 | CH46: 0.1700374116 | CI46: -0.9854376077 | CJ46: 0 | CK46: 0.0001571924843 | CL46: 2.309663004e-05 | CM46: -2.642877208e-05 | CN46: 0.07791058824 | CO46: 0.03037265685 | CP46: 0.06174230691 | CQ46: 6779030.688 | CR46: 68.01505155 | CS46: 189.7899943 | CT46: -6194534.418 | CU46: -1068867.871 | CV46: 2537818.334 | CW46: -1717962.895 | CX46: 4927354.36 | CY46: -159993.8256 | CZ46: 408021.6882 | DA46: 21.98494845 | DB46: 186.6146579 | DD46: 1.024454832e-08 | DE46: 1.41793862e-07 | DF46: -8.847564459e-09 | DG46: 6.565824151e-05 | DH46: -0.0001126900315 | DI46: -5.654874258e-05 | DJ46: -3.445893526e-08 | DK46: -5.684341886e-14 | DL46: -1.250555215e-12 | DM46: 3.846362233e-07 | DN46: 4.356261343e-07 | DO46: 8.288770914e-08 | DP46: 5.029141903e-08 | DQ46: -5.80213964e-07 | DR46: 6.594927981e-08 | DS46: -0.0003892928362 | DT46: -1.691091711e-12 | DU46: -2.273736754e-12 | DW46: 35 | DX46: 135 | DY46: 3.175336341
A47: yB0=zB0×xB0 | B47: ピッチ軸 | D47: ⎿k⏌ | E47: -3.841620355e-10 | F47: [m] | G47: 780 | H47: 792815.2385 | I47: 154389.2254 | J47: -316106.5741 | K47: 0.02070676101 | L47: -0.01847571425 | M47: 0 | N47: -253.3656457 | O47: -283.9609771 | P47: 0 | Q47: -3894082.541 | R47: 3474515.222 | S47: 3654260.638 | T47: -0.6112191242 | U47: 0.5453634145 | V47: 0.5735764364 | W47: -0.665765798 | X47: -0.746160775 | Y47: 0 | Z47: 0.4279802383 | AA47: -0.3818675739 | AB47: 0.8191520443 | AC47: 0 | AD47: 0 | AE47: 0 | AF47: 0 | AG47: 0 | AH47: 0.06474820144 | AI47: -0.762712501 | AJ47: -0.1367694463 | AK47: -0.6321105594 | AL47: 0.2876883816 | AM47: 0.8036100315 | AN47: -0.5210050982 | AO47: 0.5792279653 | AP47: -0.5792279653 | AQ47: -0.5735764364 | AR47: 7.928152385 | AS47: 1.543892254 | AT47: -3.161065741 | AU47: -15.42046696 | AV47: -6874.919237 | AW47: -3396.322045 | AX47: -6196428.364 | AY47: -1206663.293 | AZ47: 2470529.873 | BA47: -1824665.775 | BB47: 5025734.893 | BC47: -167423.7074 | BD47: 6779032.278 | BE47: 68.62706401 | BF47: 191.0195973 | BG47: 408023.2778 | BH47: 21.37293599 | BI47: 187.7606994 | BJ47: -5.219541074 | BK47: -5.791154176 | BL47: -0.2041867242 | BM47: -5387.749659 | BN47: 4861.489812 | BO47: -373.6007218 | BP47: -1824665.775 | BQ47: 5025734.893 | BR47: -167423.7074 | BS47: -6196428.364 | BT47: -1206663.293 | BU47: 2470529.873 | BV47: 6779032.278 | BW47: 68.62706401 | BX47: 191.0195973 | BY47: 408023.2778 | BZ47: 21.37293599 | CA47: 187.7606994 | CB47: -0.9140579525 | CC47: -0.1779993432 | CD47: 0.3644369538 | CE47: -0.3577174151 | CF47: -0.06966020565 | CG47: -0.9312280637 | CH47: 0.1911447369 | CI47: -0.9815618623 | CJ47: 0 | CK47: 0.0001566551509 | CL47: 2.2199574e-05 | CM47: -2.578128041e-05 | CN47: 0.08104953447 | CO47: 0.0308255984 | CP47: 0.06122015347 | CQ47: 6779032.278 | CR47: 68.62706401 | CS47: 191.0195973 | CT47: -6196428.364 | CU47: -1206663.293 | CV47: 2470529.873 | CW47: -1824665.775 | CX47: 5025734.893 | CY47: -167423.7074 | CZ47: 408023.2778 | DA47: 21.37293599 | DB47: 187.7606994 | DD47: 0 | DE47: 1.455191523e-07 | DF47: -7.916241884e-09 | DG47: 7.124617696e-05 | DH47: -0.000111758709 | DI47: -6.00120984e-05 | DJ47: -3.445893526e-08 | DK47: -5.684341886e-14 | DL47: -1.250555215e-12 | DM47: 3.837049007e-07 | DN47: 4.405155778e-07 | DO47: 7.916241884e-08 | DP47: 5.12227416e-08 | DQ47: -5.839392543e-07 | DR47: 6.085610949e-08 | DS47: -0.0004004687071 | DT47: -1.648459147e-12 | DU47: -2.188471626e-12 | DW47: 35 | DX47: 135 | DY47: 3.258897823
A48: zB0=-R0/|R0| | B48: ヨー軸 | C48: 極座標系初期動径方向速度 | D48: rQ'=R'･er | E48: =sVctInp(E36:E38,E79:E81) -> -7.527312107e-14 | F48: [m/s] | G48: 800 | H48: 792651.3128 | I48: 171940.9682 | J48: -307335.2428 | K48: 0.02073368438 | L48: -0.0184454954 | M48: 0 | N48: -252.9512411 | O48: -284.3301893 | P48: 0 | Q48: -3899145.711 | R48: 3468832.309 | S48: 3654260.638 | T48: -0.6120138445 | U48: 0.5444714188 | V48: 0.5735764364 | W48: -0.6646768723 | X48: -0.7471309493 | Y48: 0 | Z48: 0.4285367074 | AA48: -0.3812429918 | AB48: 0.8191520443 | AC48: 0 | AD48: 0 | AE48: 0 | AF48: 0 | AG48: 0 | AH48: 0.06474820144 | AI48: -0.7560161014 | AJ48: -0.1185733613 | AK48: -0.6437235528 | AL48: 0.3048517977 | AM48: 0.806495705 | AN48: -0.506586675 | AO48: 0.5792279653 | AP48: -0.5792279653 | AQ48: -0.5735764364 | AR48: 7.926513128 | AS48: 1.719409682 | AT48: -3.073352428 | AU48: 143.1329507 | AV48: -6842.284826 | AW48: -3458.668885 | AX48: -6195151.184 | AY48: -1343841.185 | AZ48: 2401977.04 | BA48: -1933456.392 | BB48: 5121799.053 | BC48: -174935.2541 | BD48: 6779033.93 | BE48: 69.24795671 | BF48: 192.2388888 | BG48: 408024.9301 | BH48: 20.75204329 | BI48: 188.8964295 | BJ48: -5.094680002 | BK48: -5.901555609 | BL48: -0.1845372039 | BM48: -5490.895818 | BN48: 4744.55819 | BO48: -377.4884432 | BP48: -1933456.392 | BQ48: 5121799.053 | BR48: -174935.2541 | BS48: -6195151.184 | BT48: -1343841.185 | BU48: 2401977.04 | BV48: 6779033.93 | BW48: 69.24795671 | BX48: 192.2388888 | BY48: 408024.9301 | BZ48: 20.75204329 | CA48: 188.8964295 | CB48: -0.9138693283 | CC48: -0.1982349105 | CD48: 0.3543243867 | CE48: -0.3462713854 | CF48: -0.0751125735 | CG48: -0.9351225743 | CH48: 0.2119881564 | CI48: -0.9772722351 | CJ48: 0 | CK48: 0.0001558369108 | CL48: 2.13149647e-05 | CM48: -2.510353532e-05 | CN48: 0.08417492143 | CO48: 0.03126072281 | CP48: 0.06071125734 | CQ48: 6779033.93 | CR48: 69.24795671 | CS48: 192.2388888 | CT48: -6195151.184 | CU48: -1343841.185 | CV48: 2401977.04 | CW48: -1933456.392 | CX48: 5121799.053 | CY48: -174935.2541 | CZ48: 408024.9301 | DA48: 20.75204329 | DB48: 188.8964295 | DD48: 0 | DE48: 1.480802894e-07 | DF48: -5.12227416e-09 | DG48: 7.613562047e-05 | DH48: -0.000111758709 | DI48: -6.004120223e-05 | DJ48: -3.259629011e-08 | DK48: -5.684341886e-14 | DL48: -1.307398634e-12 | DM48: 3.911554813e-07 | DN48: 4.374887794e-07 | DO48: 7.916241884e-08 | DP48: 4.447065294e-08 | DQ48: -5.86733222e-07 | DR48: 6.557093002e-08 | DS48: -0.0004163011909 | DT48: -1.634248292e-12 | DU48: -2.046363079e-12 | DW48: 35 | DX48: 135 | DY48: 3.342459306
C49: 極座標系初期法線方向角速度 | D49: θ'=R'･eθ/rQ | E49: =DEGREES(sVctInp(E36:E38,E82:E84)/E51) -> 5.742725714e-19 | F49: [deg/s] | G49: 820 | H49: 792081.7136 | I49: 189404.6864 | J49: -298406.6275 | K49: 0.02076056366 | L49: -0.01841523731 | M49: 0 | N49: -252.5362986 | O49: -284.6987967 | P49: 0 | Q49: -3904200.588 | R49: 3463142.018 | S49: 3654260.638 | T49: -0.612807263 | U49: 0.543578265 | V49: 0.5735764364 | W49: -0.6635865329 | X49: -0.7480995344 | Y49: 0 | Z49: 0.429092265 | AA49: -0.3806175987 | AB49: 0.8191520443 | AC49: 0 | AD49: 0 | AE49: 0 | AF49: 0 | AG49: 0 | AH49: 0.06474820144 | AI49: -0.7489335281 | AJ49: -0.100316709 | AK49: -0.6550077315 | AL49: 0.3218594952 | AM49: 0.8089694197 | AN49: -0.4919094869 | AO49: 0.5792279653 | AP49: -0.5792279653 | AQ49: -0.5735764364 | AR49: 7.920817136 | AS49: 1.894046864 | AT49: -2.984066275 | AU49: 301.6130128 | AV49: -6806.148719 | AW49: -3519.245656 | AX49: -6190703.535 | AY49: -1480331.341 | AZ49: 2332194.918 | BA49: -2044284.803 | BB49: 5215502.682 | BC49: -182520.6062 | BD49: 6779035.645 | BE49: 69.87737582 | BF49: 193.4481398 | BG49: 408026.6447 | BH49: 20.12262418 | BI49: 190.022119 | BJ49: -4.967479276 | BK49: -6.009217036 | BL49: -0.1646058445 | BM49: -5591.521261 | BN49: 4625.445855 | BO49: -380.980331 | BP49: -2044284.803 | BQ49: 5215502.682 | BR49: -182520.6062 | BS49: -6190703.535 | BT49: -1480331.341 | BU49: 2332194.918 | BV49: 6779035.645 | BW49: 69.87737582 | BX49: 193.4481398 | BY49: 408026.6447 | BZ49: 20.12262418 | CA49: 190.022119 | CB49: -0.9132130083 | CC49: -0.2183690157 | CD49: 0.3440304846 | CE49: -0.3345974511 | CF49: -0.08000949986 | CG49: -0.9389584792 | CH49: 0.2325651459 | CI49: -0.9725808208 | CJ49: 0 | CK49: 0.0001547401617 | CL49: 2.044304817e-05 | CM49: -2.439841717e-05 | CN49: 0.08728115404 | CO49: 0.03167828163 | CP49: 0.06021619451 | CQ49: 6779035.645 | CR49: 69.87737582 | CS49: 193.4481398 | CT49: -6190703.535 | CU49: -1480331.341 | CV49: 2332194.918 | CW49: -2044284.803 | CX49: 5215502.682 | CY49: -182520.6062 | CZ49: 408026.6447 | DA49: 20.12262418 | DB49: 190.022119 | DD49: 0 | DE49: 1.492444426e-07 | DF49: -5.587935448e-09 | DG49: 7.799826562e-05 | DH49: -0.000111758709 | DI49: -6.17292244e-05 | DJ49: -3.445893526e-08 | DK49: -7.105427358e-14 | DL49: -1.307398634e-12 | DM49: 3.911554813e-07 | DN49: 4.386529326e-07 | DO49: 7.450580597e-08 | DP49: 4.144385457e-08 | DQ49: -5.876645446e-07 | DR49: 6.190384738e-08 | DS49: -0.0004265457392 | DT49: -1.591615728e-12 | DU49: -1.932676241e-12 | DW49: 35 | DX49: 135 | DY49: 3.426020788
A50: (4) 外力 | C50: 極座標系初期接線方向角速度 | D50: φ'=R'･eφ/(rQsinθ) | E50: =DEGREES(sVctInp(E36:E38,E85:E87)/(E51*SIN(RADIANS(E52)))) -> 0.07911844023 | F50: [deg/s] | G50: 840 | H50: 791106.7333 | I50: 206771.4413 | J50: -289325.2988 | K50: 0.02078739877 | L50: -0.01838494005 | M50: 0 | N50: -252.1208189 | O50: -285.0667985 | P50: 0 | Q50: -3909247.16 | R50: 3457444.361 | S50: 3654260.638 | T50: -0.613599378 | U50: 0.542683955 | V50: 0.5735764364 | W50: -0.662494782 | X50: -0.7490665283 | Y50: 0 | Z50: 0.4296469099 | AA50: -0.3799913961 | AB50: 0.8191520443 | AC50: 0 | AD50: 0 | AE50: 0 | AF50: 0 | AG50: 0 | AH50: 0.06474820144 | AI50: -0.7414683989 | AJ50: -0.08200881475 | AK50: -0.6659573318 | AL50: 0.3387027866 | AM50: 0.8110299122 | AN50: -0.4769810309 | AO50: 0.5792279653 | AP50: -0.5792279653 | AQ50: -0.5735764364 | AR50: 7.911067333 | AS50: 2.067714413 | AT50: -2.893252988 | AU50: 459.9386103 | AV50: -6766.529416 | AW50: -3578.021355 | AX50: -6183087.694 | AY50: -1616063.912 | AZ50: 2261219.221 | BA50: -2157100.13 | BB50: 5306802.717 | BC50: -190171.7918 | BD50: 6779037.421 | BE50: 70.51497257 | BF50: 194.6476323 | BG50: 408028.4212 | BH50: 19.48502743 | BI50: 191.13805 | BJ50: -4.837997245 | BK50: -6.114088648 | BL50: -0.1444075855 | BM50: -5689.57978 | BN50: 4504.208107 | BO50: -384.0708976 | BP50: -2157100.13 | BQ50: 5306802.717 | BR50: -190171.7918 | BS50: -6183087.694 | BT50: -1616063.912 | BU50: 2261219.221 | BV50: 6779037.421 | BW50: 70.51497257 | BX50: 194.6476323 | BY50: 408028.4212 | BZ50: 19.48502743 | CA50: 191.13805 | CB50: -0.9120893291 | CC50: -0.2383913543 | CD50: 0.3335605161 | CE50: -0.3227195594 | CF50: -0.08434870399 | CG50: -0.9427286895 | CH50: 0.2528737663 | CI50: -0.9674992808 | CJ50: 0 | CK50: 0.0001533678501 | CL50: 1.958397901e-05 | CM50: -2.366863086e-05 | CN50: 0.09036269068 | CO50: 0.03207853041 | CP50: 0.05973548507 | CQ50: 6779037.421 | CR50: 70.51497257 | CS50: 194.6476323 | CT50: -6183087.694 | CU50: -1616063.912 | CV50: 2261219.221 | CW50: -2157100.13 | CX50: 5306802.717 | CY50: -190171.7918 | CZ50: 408028.4212 | DA50: 19.48502743 | DB50: 191.13805 | DD50: 0 | DE50: 1.499429345e-07 | DF50: -6.519258022e-09 | DG50: 7.636845112e-05 | DH50: -0.0001136213541 | DI50: -6.175832823e-05 | DJ50: -3.911554813e-08 | DK50: -7.105427358e-14 | DL50: -1.307398634e-12 | DM50: 3.958120942e-07 | DN50: 4.507601261e-07 | DO50: 7.590278983e-08 | DP50: =CW50-BA50 -> 4.516914487e-08 | DQ50: -5.997717381e-07 | DR50: 6.094342098e-08 | DS50: -0.0004433095455 | DT50: -1.591615728e-12 | DU50: -1.904254532e-12 | DW50: 35 | DX50: 135 | DY50: 3.509582271
A51: F=-(μm/R3)R+TxB | B51: 物体に作用する万有引力+推力 | C51: =exe("極座標系初期動径方向距離",E51=vctmag(E39:E41)) -> 極座標系初期動径方向距離 | D51: rQ0=|R0| | E51: 6779009 | F51: [m] | G51: 860 | H51: 789726.8722 | I51: 224032.3437 | J51: -280095.9053 | K51: 0.02081418968 | L51: -0.01835460369 | M51: 0 | N51: -251.7048029 | O51: -285.434194 | P51: 0 | Q51: -3914285.417 | R51: 3451739.35 | S51: 3654260.638 | T51: -0.6143901879 | U51: 0.5417884907 | V51: 0.5735764364 | W51: -0.6614016219 | X51: -0.750031929 | Y51: 0 | Z51: 0.430200641 | AA51: -0.3793643853 | AB51: 0.8191520443 | AC51: 0 | AD51: 0 | AE51: 0 | AF51: 0 | AG51: 0 | AH51: 0.06474820144 | AI51: -0.7336245269 | AJ51: -0.06365903037 | AK51: -0.6765667605 | AL51: 0.3553730683 | AM51: 0.8126761298 | AN51: -0.4618089327 | AO51: 0.5792279653 | AP51: -0.5792279653 | AQ51: -0.5735764364 | AR51: 7.897268722 | AS51: 2.240323437 | AT51: -2.800959053 | AU51: 618.0287136 | AV51: -6723.447199 | AW51: -3634.965904 | AX51: -6172307.56 | AY51: -1750969.431 | AZ51: 2189086.272 | BA51: -2271850.581 | BB51: 5395657.212 | BC51: -197880.732 | BD51: 6779039.259 | BE51: 71.16040335 | BF51: 195.837658 | BG51: 408030.259 | BH51: 18.83959665 | BI51: 192.2445143 | BJ51: -4.706293305 | BK51: -6.216121941 | BL51: -0.1239575873 | BM51: -5785.026338 | BN51: 4380.901231 | BO51: -386.7549561 | BP51: -2271850.581 | BQ51: 5395657.212 | BR51: -197880.732 | BS51: -6172307.56 | BT51: -1750969.431 | BU51: 2189086.272 | BV51: 6779039.259 | BW51: 71.16040335 | BX51: 195.837658 | BY51: 408030.259 | BZ51: 18.83959665 | CA51: 192.2445143 | CB51: -0.9104988664 | CC51: -0.2582916789 | CD51: 0.3229198399 | CE51: -0.3106614242 | CF51: -0.08812889701 | CG51: -0.9464263189 | CH51: 0.2729126121 | CI51: -0.9620388278 | CJ51: 0 | CK51: 0.0001517234651 | CL51: 1.873782737e-05 | CM51: -2.291670555e-05 | CN51: 0.09341405409 | CO51: 0.03246172692 | CP51: 0.05926959683 | CQ51: 6779039.259 | CR51: 71.16040335 | CS51: 195.837658 | CT51: -6172307.56 | CU51: -1750969.431 | CV51: 2189086.272 | CW51: -2271850.581 | CX51: 5395657.212 | CY51: -197880.732 | CZ51: 408030.259 | DA51: 18.83959665 | DB51: 192.2445143 | DD51: 0 | DE51: 1.58790499e-07 | DF51: -6.519258022e-09 | DG51: 8.05594027e-05 | DH51: -0.0001201406121 | DI51: -6.487243809e-05 | DJ51: -4.470348358e-08 | DK51: -5.684341886e-14 | DL51: -1.364242053e-12 | DM51: =CT51-AX51 -> 3.995373845e-07 | DN51: 4.668254405e-07 | DO51: 7.543712854e-08 | DP51: 5.075708032e-08 | DQ51: -6.137415767e-07 | DR51: 5.66651579e-08 | DS51: -0.0004591420293 | DT51: -1.577404873e-12 | DU51: -1.932676241e-12 | DW51: 35 | DX51: 135 | DY51: 3.593143754
C52: 極座標系初期法線方向角 | D52: θ0=90°-φc | E52: =90-E14 -> 55 | F52: [deg] | G52: 880 | H52: 787942.8377 | I52: 241178.5589 | J52: -270723.1716 | K52: 0.02084093631 | L52: -0.01832422829 | M52: 0 | N52: -251.2882516 | O52: -285.8009824 | P52: 0 | Q52: -3919315.348 | R52: 3446026.998 | S52: 3654260.638 | T52: -0.615179691 | U52: 0.540891874 | V52: 0.5735764364 | W52: -0.6603070551 | X52: -0.7509957343 | Y52: 0 | Z52: 0.430753457 | AA52: -0.3787365676 | AB52: 0.8191520443 | AC52: 0 | AD52: 0 | AE52: 0 | AF52: 0 | AG52: 0 | AH52: 0.06474820144 | AI52: -0.7254059189 | AJ52: -0.0452767289 | AK52: -0.6868305982 | AL52: 0.3718618251 | AM52: 0.8139072318 | AN52: -0.446400942 | AO52: 0.5792279653 | AP52: -0.5792279653 | AQ52: -0.5735764364 | AR52: 7.879428377 | AS52: 2.411785589 | AT52: -2.707231716 | AU52: 775.8024138 | AV52: -6676.924124 | AW52: -3690.050161 | AX52: -6158368.654 | AY52: -1884978.86 | AZ52: 2115832.987 | BA52: -2388483.478 | BB52: 5482025.354 | BC52: -205639.2473 | BD52: 6779041.158 | BE52: 71.81332969 | BF52: 197.0185177 | BG52: 408032.1575 | BH52: 18.18667031 | BI52: 193.3418125 | BJ52: -4.572427871 | BK52: -6.315269742 | BL52: -0.1032712212 | BM52: -5877.817102 | BN52: 4255.582467 | BO52: -389.0276252 | BP52: -2388483.478 | BQ52: 5482025.354 | BR52: -205639.2473 | BS52: -6158368.654 | BT52: -1884978.86 | BU52: 2115832.987 | BV52: 6779041.158 | BW52: 71.81332969 | BX52: 197.0185177 | BY52: 408032.1575 | BZ52: 18.18667031 | CA52: 193.3418125 | CB52: -0.9084424347 | CC52: -0.2780598047 | CD52: 0.3121139019 | CE52: -0.2984465006 | CF52: -0.09134973497 | CG52: -0.9500446896 | CH52: 0.292680763 | CI52: -0.9562102127 | CJ52: 0 | CK52: 0.0001498110312 | CL52: 1.790458578e-05 | CM52: -2.214499599e-05 | CN52: 0.09642984217 | CO52: 0.03282812958 | CP52: 0.05881894871 | CQ52: 6779041.158 | CR52: 71.81332969 | CS52: 197.0185177 | CT52: -6158368.654 | CU52: -1884978.86 | CV52: 2115832.987 | CW52: -2388483.478 | CX52: 5482025.354 | CY52: -205639.2473 | CZ52: 408032.1575 | DA52: 18.18667031 | DB52: 193.3418125 | DD52: 0 | DE52: 1.599546522e-07 | DF52: -5.587935448e-09 | DG52: 8.288770914e-05 | DH52: -0.0001210719347 | DI52: -6.498885341e-05 | DJ52: -4.749745131e-08 | DK52: -8.526512829e-14 | DL52: -1.364242053e-12 | DM52: 4.097819328e-07 | DN52: 4.700850695e-07 | DO52: 7.450580597e-08 | DP52: 4.516914487e-08 | DQ52: -6.23986125e-07 | DR52: 5.943002179e-08 | DS52: -0.0004796311259 | DT52: -1.563194019e-12 | DU52: -1.818989404e-12 | DW52: 35 | DX52: 135 | DY52: 3.676705236
A53: (5) 慣性座標系で解く | C53: 極座標系初期接線方向角 | D53: φ0=λ | E53: =E15 -> 135 | F53: [deg] | G53: 900 | H53: 785755.5442 | I53: 258201.311 | J53: -261211.8954 | K53: 0.02086763861 | L53: -0.01829381391 | M53: 0 | N53: -250.8711658 | O53: -286.1671629 | P53: 0 | Q53: -3924336.943 | R53: 3440307.315 | S53: 3654260.638 | T53: -0.6159678857 | U53: 0.5399941069 | V53: 0.5735764364 | W53: -0.6592110838 | X53: -0.7519579423 | Y53: 0 | Z53: 0.4313053568 | AA53: -0.3781079443 | AB53: 0.8191520443 | AC53: 0 | AD53: 0 | AE53: 0 | AF53: 0 | AG53: 0 | AH53: 0.06474820144 | AI53: -0.7168167729 | AJ53: -0.02687130004 | AK53: -0.6967436023 | AL53: 0.3881606346 | AM53: 0.8147225892 | AN53: -0.4307649293 | AO53: 0.5792279653 | AP53: -0.5792279653 | AQ53: -0.5735764364 | AR53: 7.857555442 | AS53: 2.58201311 | AT53: -2.612118954 | AU53: 933.1789643 | AV53: -6626.984006 | AW53: -3743.245937 | AX53: -6141278.112 | AY53: -2018023.616 | AZ53: 2041496.856 | BA53: -2506945.275 | BB53: 5565867.485 | BC53: -213439.0638 | BD53: 6779043.116 | BE53: 72.47341829 | BF53: 198.1905201 | BG53: 408034.1159 | BH53: 17.52658171 | BI53: 194.4302533 | BJ53: -4.436462353 | BK53: -6.411486231 | BL53: -0.08236405899 | BM53: -5967.909452 | BN53: 4128.309984 | BO53: -390.884333 | BP53: -2506945.275 | BQ53: 5565867.485 | BR53: -213439.0638 | BS53: -6141278.112 | BT53: -2018023.616 | BU53: 2041496.856 | BV53: 6779043.116 | BW53: 72.47341829 | BX53: 198.1905201 | BY53: 408034.1159 | BZ53: 17.52658171 | CA53: 194.4302533 | CB53: -0.9059210875 | CC53: -0.2976856145 | CD53: 0.301148233 | CE53: -0.2860979634 | CF53: -0.09401177346 | CG53: -0.9535773392 | CH53: 0.3121777356 | CI53: -0.9500237162 | CJ53: 0 | CK53: 0.0001476350991 | CL53: 1.708417558e-05 | CM53: -2.135568536e-05 | CN53: 0.09940473856 | CO53: 0.03317799591 | CP53: 0.05838391429 | CQ53: 6779043.116 | CR53: 72.47341829 | CS53: 198.1905201 | CT53: -6141278.112 | CU53: -2018023.616 | CV53: 2041496.856 | CW53: -2506945.275 | CX53: 5565867.485 | CY53: -213439.0638 | CZ53: 408034.1159 | DA53: 17.52658171 | DB53: 194.4302533 | DD53: 0 | DE53: 1.636799425e-07 | DF53: -4.889443517e-09 | DG53: 8.475035429e-05 | DH53: -0.0001229345798 | DI53: -6.554182619e-05 | DJ53: -5.12227416e-08 | DK53: -9.947598301e-14 | DL53: -1.392663762e-12 | DM53: 4.153698683e-07 | DN53: 4.817266017e-07 | DO53: 7.473863661e-08 | DP53: 4.703179002e-08 | DQ53: -6.360933185e-07 | DR53: 5.82949724e-08 | DS53: -0.0004973262548 | DT53: -1.548983164e-12 | DU53: -1.790567694e-12 | DW53: 35 | DX53: 135 | DY53: 3.760266719
A54: R''=F/m | B54: 微分方程式 | G54: 920 | H54: 783166.1126 | I54: 275091.8872 | J54: -251566.9454 | K54: 0.02089429653 | L54: -0.01826336062 | M54: 0 | N54: -250.4535463 | O54: -286.5327347 | P54: 0 | Q54: -3929350.191 | R54: 3434580.315 | S54: 3654260.638 | T54: -0.6167547701 | U54: 0.5390951912 | V54: 0.5735764364 | W54: -0.6581137104 | X54: -0.7529185509 | Y54: 0 | Z54: 0.4318563393 | AA54: -0.3774785167 | AB54: 0.8191520443 | AC54: 0 | AD54: 0 | AE54: 0 | AF54: 0 | AG54: 0 | AH54: 0.06474820144 | AI54: -0.7078614763 | AJ54: -0.008452145288 | AK54: -0.7063007091 | AL54: 0.4042611713 | AM54: 0.8151217856 | AN54: -0.4149088816 | AO54: 0.5792279653 | AP54: -0.5792279653 | AQ54: -0.5735764364 | AR54: 7.831661126 | AS54: 2.750918872 | AT54: -2.515669454 | AU54: 1090.077822 | AV54: -6573.652411 | AW54: -3794.526008 | AX54: -6121044.68 | AY54: -2150035.61 | AZ54: 1966115.921 | BA54: -2627181.59 | BB54: 5647145.122 | BC54: -221271.8191 | BD54: 6779045.133 | BE54: 73.14034099 | BF54: 199.3539806 | BG54: 408036.1334 | BH54: 16.85965901 | BI54: 195.5101524 | BJ54: -4.298459123 | BK54: -6.504726961 | BL54: -0.0612518632 | BM54: -6055.262011 | BN54: 3999.142856 | BO54: -392.3208207 | BP54: -2627181.59 | BQ54: 5647145.122 | BR54: -221271.8191 | BS54: -6121044.68 | BT54: -2150035.61 | BU54: 1966115.921 | BV54: 6779045.133 | BW54: 73.14034099 | BX54: 199.3539806 | BY54: 408036.1334 | BZ54: 16.85965901 | CA54: 195.5101524 | CB54: -0.9029361156 | CC54: -0.3171590641 | CD54: 0.2900284454 | CE54: -0.2736386891 | CF54: -0.096116424 | CG54: -0.9570180254 | CH54: 0.3314034383 | CI54: -0.943489142 | CJ54: 0 | CK54: 0.0001452007367 | CL54: 1.627645324e-05 | CM54: -2.05507892e-05 | CN54: 0.1023335231 | CO54: 0.03351158121 | CP54: 0.05796482516 | CQ54: 6779045.133 | CR54: 73.14034099 | CS54: 199.3539806 | CT54: -6121044.68 | CU54: -2150035.61 | CV54: 1966115.921 | CW54: -2627181.59 | CX54: 5647145.122 | CY54: -221271.8191 | CZ54: 408036.1334 | DA54: 16.85965901 | DB54: 195.5101524 | DD54: 0 | DE54: 1.639127731e-07 | DF54: -6.519258022e-09 | DG54: 8.521601558e-05 | DH54: -0.0001220032573 | DI54: -6.781192496e-05 | DJ54: -5.308538675e-08 | DK54: -8.526512829e-14 | DL54: -1.392663762e-12 | DM54: 4.135072231e-07 | DN54: 4.940666258e-07 | DO54: 7.054768503e-08 | DP54: 5.12227416e-08 | DQ54: -6.435438991e-07 | DR54: 5.005858839e-08 | DS54: -0.0005094334483 | DT54: -1.492139745e-12 | DU54: -1.790567694e-12 | DW54: 35 | DX54: 135 | DY54: 3.843828202
A55: R'=∫R''dt | B55: 慣性系速度ベクトル | C55: 局地座標系原点初期速度 | D55: ⎾-cosφcsinλ⏋ | E55: =-RADIANS(E13)*E12*COS(RADIANS(E14))*SIN(RADIANS(E15)) -> -269.0984828 | F55: [m/s] | G55: 940 | H55: 780175.8696 | I55: 291841.6424 | J55: -241793.2589 | K55: 0.02092091 | L55: -0.01823286849 | M55: 0 | N55: -250.0353942 | O55: -286.8976971 | P55: 0 | Q55: -3934355.082 | R55: 3428846.01 | S55: 3654260.638 | T55: -0.6175403427 | U55: 0.5381951289 | V55: 0.5735764364 | W55: -0.6570149371 | X55: -0.753877558 | Y55: 0 | Z55: 0.4324064031 | AA55: -0.3768482863 | AB55: 0.8191520443 | AC55: 0 | AD55: 0 | AE55: 0 | AF55: 0 | AG55: 0 | AH55: 0.06474820144 | AI55: -0.6985446033 | AJ55: 0.009971326822 | AK55: -0.7154970369 | AL55: 0.420155211 | AM55: 0.8151046171 | AN55: -0.3988408979 | AO55: 0.5792279653 | AP55: -0.5792279653 | AQ55: -0.5735764364 | AR55: 7.801758696 | AS55: 2.918416424 | AT55: -2.417932589 | AU55: 1246.418688 | AV55: -6516.95664 | AW55: -3843.864132 | AX55: -6097678.719 | AY55: -2280947.284 | AZ55: 1889728.762 | BA55: -2749137.223 | BB55: 5725820.968 | BC55: -229129.0688 | BD55: 6779047.209 | BE55: 73.81377468 | BF55: 200.5092213 | BG55: 408038.2089 | BH55: 16.18622532 | BI55: 196.5818317 | BJ55: -4.158481489 | BK55: -6.594948877 | BL55: -0.03995057616 | BM55: -6139.834654 | BN55: 3868.141031 | BO55: -393.3331468 | BP55: -2749137.223 | BQ55: 5725820.968 | BR55: -229129.0688 | BS55: -6097678.719 | BT55: -2280947.284 | BU55: 1889728.762 | BV55: 6779047.209 | BW55: 73.81377468 | BX55: 200.5092213 | BY55: 408038.2089 | BZ55: 16.18622532 | CA55: 196.5818317 | CB55: -0.8994890478 | CC55: -0.3364701873 | CD55: 0.2787602304 | CE55: -0.26109124 | CF55: -0.09766591228 | CG55: -0.9603607312 | CH55: 0.3503581273 | CI55: -0.9366158138 | CJ55: 0 | CK55: 0.000142513518 | CL55: 1.548121612e-05 | CM55: -1.973216037e-05 | CN55: 0.1052110822 | CO55: 0.03382913729 | CP55: 0.05756197424 | CQ55: 6779047.209 | CR55: 73.81377468 | CS55: 200.5092213 | CT55: -6097678.719 | CU55: -2280947.284 | CV55: 1889728.762 | CW55: -2749137.223 | CX55: 5725820.968 | CY55: -229129.0688 | CZ55: 408038.2089 | DA55: 16.18622532 | DB55: 196.5818317 | DD55: 0 | DE55: 1.643784344e-07 | DF55: -6.519258022e-09 | DG55: 8.80099833e-05 | DH55: -0.0001201406121 | DI55: -6.999471225e-05 | DJ55: -5.215406418e-08 | DK55: -7.105427358e-14 | DL55: -1.392663762e-12 | DM55: 4.088506103e-07 | DN55: 5.108304322e-07 | DO55: 7.078051567e-08 | DP55: 6.286427379e-08 | DQ55: -6.528571248e-07 | DR55: 4.246248864e-08 | DS55: -0.0005196779966 | DT55: -1.463718036e-12 | DU55: -1.818989404e-12 | DW55: 35 | DX55: 135 | DY55: 3.927389684
A56: R=∫R'dt | B56: 慣性系位置ベクトル | C56: d'0＝ωeRe | D56: │cosφccosλ│ | E56: =RADIANS(E13)*E12*COS(RADIANS(E14))*COS(RADIANS(E15)) -> -269.0984828 | F56: [m/s] | G56: 960 | H56: 776786.3472 | I56: 308442.0039 | J56: -231895.8389 | K56: 0.02094747898 | L56: -0.01820233757 | M56: 0 | N56: -249.6167102 | O56: -287.2620492 | P56: 0 | Q56: -3939351.603 | R56: 3423104.411 | S56: 3654260.638 | T56: -0.6183246019 | U56: 0.5372939218 | V56: 0.5735764364 | W56: -0.6559147664 | X56: -0.7548349616 | Y56: 0 | Z56: 0.4329555473 | AA56: -0.3762172543 | AB56: 0.8191520443 | AC56: 0 | AD56: 0 | AE56: 0 | AF56: 0 | AG56: 0 | AH56: 0.06474820144 | AI56: -0.6888709132 | AJ56: 0.02838970557 | AK56: -0.7243278881 | AL56: 0.435834635 | AM56: 0.8146710924 | AN56: -0.382569186 | AO56: 0.5792279653 | AP56: -0.5792279653 | AQ56: -0.5735764364 | AR56: 7.767863472 | AS56: 3.084420039 | AT56: -2.318958389 | AU56: 1402.121551 | AV56: -6456.925714 | AW56: -3891.235062 | AX56: -6071192.186 | AY56: -2410691.641 | AZ56: 1812374.471 | BA56: -2872756.184 | BB56: 5801858.937 | BC56: -237002.293 | BD56: 6779049.341 | BE56: 74.49340127 | BF56: 201.6565696 | BG56: 408040.3415 | BH56: 15.50659873 | BI56: 197.6456184 | BJ56: -4.016593667 | BK56: -6.682110342 | BL56: -0.01847630969 | BM56: -6221.588536 | BN56: 3735.365304 | BO56: -393.9176905 | BP56: -2872756.184 | BQ56: 5801858.937 | BR56: -237002.293 | BS56: -6071192.186 | BT56: -2410691.641 | BU56: 1812374.471 | BV56: 6779049.341 | BW56: 74.49340127 | BX56: 201.6565696 | BY56: 408040.3415 | BZ56: 15.50659873 | CA56: 197.6456184 | CB56: -0.8955816488 | CC56: -0.3556091009 | CD56: 0.2673493553 | CE56: -0.2484778524 | CF56: -0.09866323836 | CG56: -0.9635996691 | CH56: 0.3690423651 | CI56: -0.929412574 | CJ56: 0 | CK56: 0.0001395795115 | CL56: 1.469820813e-05 | CM56: -1.89014948e-05 | CN56: 0.1080324185 | CO56: 0.03413091139 | CP56: 0.05717561896 | CQ56: 6779049.341 | CR56: 74.49340127 | CS56: 201.6565696 | CT56: -6071192.186 | CU56: -2410691.641 | CV56: 1812374.471 | CW56: -2872756.184 | CX56: 5801858.937 | CY56: -237002.293 | CZ56: 408040.3415 | DA56: 15.50659873 | DB56: 197.6456184 | DD56: 0 | DE56: 1.648440957e-07 | DF56: -6.053596735e-09 | DG56: 8.894130588e-05 | DH56: -0.0001201406121 | DI56: -6.979098544e-05 | DJ56: -5.49480319e-08 | DK56: -7.105427358e-14 | DL56: -1.364242053e-12 | DM56: 4.097819328e-07 | DN56: 5.243346095e-07 | DO56: 7.310882211e-08 | DP56: 7.031485438e-08 | DQ56: -6.649643183e-07 | DR56: 4.004687071e-08 | DS56: -0.0005345791578 | DT56: -1.449507181e-12 | DU56: -1.818989404e-12 | DW56: 35 | DX56: 135 | DY56: 4.010951167
A57: r=(i,j,k)T=DILT･(R－d) | B57: 局地系位置ベクトル | D57: ⎿ 0 ⏌ | E57: 0 | F57: [m/s] | G57: 980 | H57: 772999.2818 | I57: 324884.4754 | J57: -221879.7516 | K57: 0.0209740034 | L57: -0.01817176794 | M57: 0 | N57: -249.1974953 | O57: -287.6257903 | P57: 0 | Q57: -3944339.746 | R57: 3417355.532 | S57: 3654260.638 | T57: -0.6191075458 | U57: 0.5363915719 | V57: 0.5735764364 | W57: -0.6548132006 | X57: -0.7557907596 | Y57: 0 | Z57: 0.4335037705 | AA57: -0.3755854221 | AB57: 0.8191520443 | AC57: 0 | AD57: 0 | AE57: 0 | AF57: 0 | AG57: 0 | AH57: 0.06474820144 | AI57: -0.6788453472 | AJ57: 0.04679358283 | AK57: -0.7327887521 | AL57: 0.4512914344 | AM57: 0.813821433 | AN57: -0.3661020575 | AO57: 0.5792279653 | AP57: -0.5792279653 | AQ57: -0.5735764364 | AR57: 7.729992818 | AS57: 3.248844754 | AT57: -2.218797516 | AU57: 1557.106724 | AV57: -6393.590364 | AW57: -3936.614556 | AX57: -6041598.641 | AY57: -2539202.283 | AZ57: 1734092.636 | BA57: -2997981.722 | BB57: 5875224.165 | BC57: -244882.9025 | BD57: 6779051.53 | BE57: 75.17890753 | BF57: 202.7963576 | BG57: 408042.5298 | BH57: 14.82109247 | BI57: 198.7018449 | BJ57: -3.872860749 | BK57: -6.766171149 | BL57: 0.003154665696 | BM57: -6300.4861 | BN57: 3600.877289 | BO57: -394.0711545 | BP57: -2997981.722 | BQ57: 5875224.165 | BR57: -244882.9025 | BS57: -6041598.641 | BT57: -2539202.283 | BU57: 1734092.636 | BV57: 6779051.53 | BW57: 75.17890753 | BX57: 202.7963576 | BY57: 408042.5298 | BZ57: 14.82109247 | CA57: 198.7018449 | CB57: -0.8912159193 | CC57: -0.3745660099 | CD57: 0.2558016602 | CE57: -0.2358204259 | CF57: -0.0991121389 | CG57: -0.9667292851 | CH57: 0.3874569807 | CI57: -0.921887785 | CJ57: 0 | CK57: 0.0001364052675 | CL57: 1.392712482e-05 | CM57: -1.806033784e-05 | CN57: 0.110792661 | CO57: 0.03441714512 | CP57: 0.05680598436 | CQ57: 6779051.53 | CR57: 75.17890753 | CS57: 202.7963576 | CT57: -6041598.641 | CU57: -2539202.283 | CV57: 1734092.636 | CW57: -2997981.722 | CX57: 5875224.165 | CY57: -244882.9025 | CZ57: 408042.5298 | DA57: 14.82109247 | DB57: 198.7018449 | DD57: -9.313225746e-09 | DE57: 1.62050128e-07 | DF57: -6.519258022e-09 | DG57: 8.894130588e-05 | DH57: -0.0001164153218 | DI57: -7.019843906e-05 | DJ57: -5.308538675e-08 | DK57: -7.105427358e-14 | DL57: -1.335820343e-12 | DM57: 4.144385457e-07 | DN57: 5.322508514e-07 | DO57: 7.450580597e-08 | DP57: 7.171183825e-08 | DQ57: -6.733462214e-07 | DR57: 4.062894732e-08 | DS57: -0.000549480319 | DT57: -1.435296326e-12 | DU57: -1.733724275e-12 | DW57: 35 | DX57: 135 | DY57: 4.09451265
A58: rQ=|R| | B58: 極座標系動径方向距離 | C58: 局地座標系原点初期位置 | D58: ⎾cosφccosλ⏋ | E58: =E12*COS(RADIANS(E14))*COS(RADIANS(E15)) -> -3690266.58 | F58: [m] | G58: 1000 | H58: 768816.6133 | I58: 341160.6415 | J58: -211750.1242 | K58: 0.02100048321 | L58: -0.01814115965 | M58: 0 | N58: -248.7777504 | O58: -287.9889196 | P58: 0 | Q58: -3949319.5 | R58: 3411599.384 | S58: 3654260.638 | T58: -0.6198891729 | U58: 0.5354880811 | V58: 0.5735764364 | W58: -0.6537102419 | X58: -0.7567449502 | Y58: 0 | Z58: 0.4340510717 | AA58: -0.374952791 | AB58: 0.8191520443 | AC58: 0 | AD58: 0 | AE58: 0 | AF58: 0 | AG58: 0 | AH58: 0.06474820144 | AI58: -0.6684730264 | AJ58: 0.06517355789 | AK58: -0.7408753069 | AL58: 0.4665177136 | AM58: 0.8125560728 | AN58: -0.3494479236 | AO58: 0.5792279653 | AP58: -0.5792279653 | AQ58: -0.5735764364 | AR58: 7.688166133 | AS58: 3.411606415 | AT58: -2.117501242 | AU58: 1711.294889 | AV58: -6326.983011 | AW58: -3979.979393 | AX58: -6008913.231 | AY58: -2666413.442 | AZ58: 1654923.32 | BA58: -3124756.344 | BB58: 5945883.029 | BC58: -252762.2455 | BD58: 6779053.773 | BE58: 75.86998504 | BF58: 203.9289217 | BG58: 408044.7727 | BH58: 14.13001496 | BI58: 199.7508476 | BJ58: -3.727348675 | BK58: -6.847092545 | BL58: 0.02492593153 | BM58: -6376.491104 | BN58: 3464.739388 | BO58: -393.7905686 | BP58: -3124756.344 | BQ58: 5945883.029 | BR58: -252762.2455 | BS58: -6008913.231 | BT58: -2666413.442 | BU58: 1654923.32 | BV58: 6779053.773 | BW58: 75.86998504 | BX58: 203.9289217 | BY58: 408044.7727 | BZ58: 14.13001496 | CA58: 199.7508476 | CB58: -0.8863940946 | CC58: -0.3933312128 | CD58: 0.2441230554 | CE58: -0.2231405156 | CF58: -0.0990170514 | CG58: -0.9697442621 | CH58: 0.4056030318 | CI58: -0.9140493316 | CJ58: 0 | CK58: 0.0001329978047 | CL58: 1.316761828e-05 | CM58: -1.721009114e-05 | CN58: 0.1134870743 | CO58: 0.03468807357 | CP58: 0.05645326601 | CQ58: 6779053.773 | CR58: 75.86998504 | CS58: 203.9289217 | CT58: -6008913.231 | CU58: -2666413.442 | CV58: 1654923.32 | CW58: -3124756.344 | CX58: 5945883.029 | CY58: -252762.2455 | CZ58: 408044.7727 | DA58: 14.13001496 | DB58: 199.7508476 | DD58: -1.490116119e-08 | DE58: 1.634471118e-07 | DF58: -6.286427379e-09 | DG58: 9.313225746e-05 | DH58: -0.0001136213541 | DI58: -7.307971828e-05 | DJ58: -5.308538675e-08 | DK58: -4.263256415e-14 | DL58: -1.364242053e-12 | DM58: 4.190951586e-07 | DN58: 5.313195288e-07 | DO58: 7.846392691e-08 | DP58: 6.98491931e-08 | DQ58: -6.761401892e-07 | DR58: 4.679895937e-08 | DS58: -0.0005606561899 | DT58: -1.406874617e-12 | DU58: -1.591615728e-12 | DW58: 35 | DX58: 135 | DY58: 4.178074132
A59: φc=90°-tan^-1{√(dx^2+dy^2)/dz} | B59: 局地系原点緯度 | C59: d0= | D59: Re│cosφcsinλ│ | E59: =E12*COS(RADIANS(E14))*SIN(RADIANS(E15)) -> 3690266.58 | F59: [m] | G59: 1020 | H59: 764240.4841 | I59: 357262.172 | J59: -201512.1418 | K59: 0.02102691835 | L59: -0.01811051278 | M59: 0 | N59: -248.3574763 | O59: -288.3514364 | P59: 0 | Q59: -3954290.853 | R59: 3405835.979 | S59: 3654260.638 | T59: -0.6206694815 | U59: 0.5345834513 | V59: 0.5735764364 | W59: -0.6526058929 | X59: -0.7576975311 | Y59: 0 | Z59: 0.4345974497 | AA59: -0.3743193624 | AB59: 0.8191520443 | AC59: 0 | AD59: 0 | AE59: 0 | AF59: 0 | AG59: 0 | AH59: 0.06474820144 | AI59: -0.657759249 | AJ59: 0.08352024223 | AK59: -0.7485834219 | AL59: 0.4815056953 | AM59: 0.8108756584 | AN59: -0.3326152915 | AO59: 0.5792279653 | AP59: -0.5792279653 | AQ59: -0.5735764364 | AR59: 7.642404841 | AS59: 3.57262172 | AT59: -2.015121418 | AU59: 1864.607138 | AV59: -6257.13775 | AW59: -4021.307382 | AX59: -5973152.685 | AY59: -2792260.017 | AZ59: 1574907.039 | BA59: -3253021.849 | BB59: 6013803.162 | BC59: -260631.6139 | BD59: 6779056.069 | BE59: 76.56632996 | BF59: 205.0546021 | BG59: 408047.0688 | BH59: 13.43367004 | BI59: 200.7929665 | BJ59: -3.580124201 | BK59: -6.924837247 | BL59: 0.04682093231 | BM59: -6449.568631 | BN59: 3327.014766 | BO59: -393.0732923 | BP59: -3253021.849 | BQ59: 6013803.162 | BR59: -260631.6139 | BS59: -5973152.685 | BT59: -2792260.017 | BU59: 1574907.039 | BV59: 6779056.069 | BW59: 76.56632996 | BX59: 205.0546021 | BY59: 408047.0688 | BZ59: 13.43367004 | CA59: 200.7929665 | CB59: -0.8811186432 | CC59: -0.4118951058 | CD59: 0.2323195181 | CE59: -0.2104593262 | CF59: -0.09838308052 | CG59: -0.9726395229 | CH59: 0.423481769 | CI59: -0.9059046259 | CJ59: 0 | CK59: 0.000129364595 | CL59: 1.241930162e-05 | CM59: -1.63520198e-05 | CN59: 0.116111068 | CO59: 0.03494392446 | CP59: 0.05611763285 | CQ59: 6779056.069 | CR59: 76.56632996 | CS59: 205.0546021 | CT59: -5973152.685 | CU59: -2792260.017 | CV59: 1574907.039 | CW59: -3253021.849 | CX59: 6013803.162 | CY59: -260631.6139 | CZ59: 408047.0688 | DA59: 13.43367004 | DB59: 200.7929665 | DD59: -1.676380634e-08 | DE59: 1.657754183e-07 | DF59: -6.519258022e-09 | DG59: 9.452924132e-05 | DH59: -0.0001145526767 | DI59: -7.444759831e-05 | DJ59: -5.49480319e-08 | DK59: -5.684341886e-14 | DL59: -1.364242053e-12 | DM59: 4.228204489e-07 | DN59: 5.378387868e-07 | DO59: 7.846392691e-08 | DP59: 6.98491931e-08 | DQ59: -6.835907698e-07 | DR59: 4.685716704e-08 | DS59: -0.0005764886737 | DT59: -1.392663762e-12 | DU59: -1.534772309e-12 | DW59: 35 | DX59: 135 | DY59: 4.261635615
A60: λc=tan^-1(dy/dx)-ωet | B60: 局地系原点経度 | D60: ⎿ sinφc ⏌ | E60: =E12*SIN(RADIANS(E14)) -> 3654260.638 | F60: [m] | G60: 1040 | H60: 759273.2381 | I60: 373180.8263 | J60: -191171.0451 | K60: 0.02105330877 | L60: -0.01807982739 | M60: 0 | N60: -247.936674 | O60: -288.7133399 | P60: 0 | Q60: -3959253.795 | R60: 3400065.33 | S60: 3654260.638 | T60: -0.62144847 | U60: 0.5336776844 | V60: 0.5735764364 | W60: -0.6515001557 | X60: -0.7586485004 | Y60: 0 | Z60: 0.4351429033 | AA60: -0.3736851376 | AB60: 0.8191520443 | AC60: 0 | AD60: 0 | AE60: 0 | AF60: 0 | AG60: 0 | AH60: 0.06474820144 | AI60: -0.6467094875 | AJ60: 0.1018242644 | AK60: -0.7559091598 | AL60: 0.4962477233 | AM60: 0.8087810478 | AN60: -0.3156127592 | AO60: 0.5792279653 | AP60: -0.5792279653 | AQ60: -0.5735764364 | AR60: 7.592732381 | AS60: 3.731808263 | AT60: -1.911710451 | AU60: 2016.965008 | AV60: -6184.090334 | AW60: -4060.577376 | AX60: -5934335.308 | AY60: -2916677.604 | AZ60: 1494084.745 | BA60: -3382719.349 | BB60: 6078953.467 | BC60: -268482.2504 | BD60: 6779058.417 | BE60: 77.26764297 | BF60: 206.1737419 | BG60: 408049.4167 | BH60: 12.73235703 | BI60: 201.8285448 | BJ60: -3.43125487 | BK60: -6.99936946 | BL60: 0.06882298652 | BM60: -6519.685106 | BN60: 3187.767315 | BO60: -391.9170176 | BP60: -3382719.349 | BQ60: 6078953.467 | BR60: -268482.2504 | BS60: -5934335.308 | BT60: -2916677.604 | BU60: 1494084.745 | BV60: 6779058.417 | BW60: 77.26764297 | BX60: 206.1737419 | BY60: 408049.4167 | BZ60: 12.73235703 | CA60: 201.8285448 | CB60: -0.8753922659 | CC60: -0.4302481885 | CD60: 0.2203970895 | CE60: -0.1977977071 | CF60: -0.09721596647 | CG60: -0.9754102332 | CH60: 0.441094602 | CI60: -0.8974606131 | CJ60: 0 | CK60: 0.0001255135484 | CL60: 1.168175308e-05 | CM60: -1.548725986e-05 | CN60: 0.1186602057 | CO60: 0.03518491743 | CP60: 0.05579922978 | CQ60: 6779058.417 | CR60: 77.26764297 | CS60: 206.1737419 | CT60: -5934335.308 | CU60: -2916677.604 | CV60: 1494084.745 | CW60: -3382719.349 | CX60: 6078953.467 | CY60: -268482.2504 | CZ60: 408049.4167 | DA60: 12.73235703 | DB60: 201.8285448 | DD60: -1.676380634e-08 | DE60: 1.662410796e-07 | DF60: -6.053596735e-09 | DG60: 9.592622519e-05 | DH60: -0.0001154839993 | DI60: -7.468042895e-05 | DJ60: -5.86733222e-08 | DK60: -5.684341886e-14 | DL60: -1.364242053e-12 | DM60: 4.228204489e-07 | DN60: 5.578622222e-07 | DO60: 8.102506399e-08 | DP60: 8.195638657e-08 | DQ60: -6.994232535e-07 | DR60: 4.156026989e-08 | DS60: -0.0005923211575 | DT60: -1.364242053e-12 | DU60: -1.563194019e-12 | DW60: 35 | DX60: 135 | DY60: 4.345197098
A61: hL=|R|-Re | B61: 局地系高度 | D61: ⎾ω'i⏋ | E61: 0 | F61: [rad/s^2] | G61: 1060 | H61: 753917.4194 | I61: 388908.4574 | J61: -180732.1272 | K61: 0.0210796544 | L61: -0.01804910355 | M61: 0 | N61: -247.5153443 | O61: -289.0746293 | P61: 0 | Q61: -3964208.316 | R61: 3394287.45 | S61: 3654260.638 | T61: -0.6222261366 | U61: 0.5327707824 | V61: 0.5735764364 | W61: -0.6503930328 | X61: -0.759597856 | Y61: 0 | Z61: 0.4356874313 | AA61: -0.373050118 | AB61: 0.8191520443 | AC61: 0 | AD61: 0 | AE61: 0 | AF61: 0 | AG61: 0 | AH61: 0.06474820144 | AI61: -0.6353293863 | AJ61: 0.1200762746 | AK61: -0.7628487787 | AL61: 0.5107362676 | AM61: 0.8062733113 | AN61: -0.2984490116 | AO61: 0.5792279653 | AP61: -0.5792279653 | AQ61: -0.5735764364 | AR61: 7.539174194 | AS61: 3.889084574 | AT61: -1.807321272 | AU61: 2168.290528 | AV61: -6107.878155 | AW61: -4097.769279 | AX61: -5892480.967 | AY61: -3039602.531 | AZ61: 1412497.798 | BA61: -3513789.298 | BB61: 6141304.133 | BC61: -276305.3547 | BD61: 6779060.815 | BE61: 77.97362901 | BF61: 207.286687 | BG61: 408051.8147 | BH61: 12.02637099 | BI61: 202.8579284 | BJ61: -3.280808982 | BK61: -7.070654891 | BL61: 0.09091529773 | BM61: -6586.808315 | BN61: 3047.061633 | BO61: -390.3197711 | BP61: -3513789.298 | BQ61: 6141304.133 | BR61: -276305.3547 | BS61: -5892480.967 | BT61: -3039602.531 | BU61: 1412497.798 | BV61: 6779060.815 | BW61: 77.97362901 | BX61: 207.286687 | BY61: 408051.8147 | BZ61: 12.02637099 | CA61: 202.8579284 | CB61: -0.8692178944 | CC61: -0.4483810685 | CD61: 0.2083618715 | CE61: -0.1851761497 | CF61: -0.09552205541 | CG61: -0.9780518036 | CH61: 0.4584430669 | CI61: -0.8887237784 | CJ61: 0 | CK61: 0.0001214529965 | CL61: 1.095451994e-05 | CM61: -1.461682579e-05 | CN61: 0.1211302132 | CO61: 0.03541126336 | CP61: 0.05549818025 | CQ61: 6779060.815 | CR61: 77.97362901 | CS61: 207.286687 | CT61: -5892480.967 | CU61: -3039602.531 | CV61: 1412497.798 | CW61: -3513789.298 | CX61: 6141304.133 | CY61: -276305.3547 | CZ61: 408051.8147 | DA61: 12.02637099 | DB61: 202.8579284 | DD61: -1.583248377e-08 | DE61: 1.708976924e-07 | DF61: -5.355104804e-09 | DG61: 9.732320905e-05 | DH61: -0.0001192092896 | DI61: -7.54953362e-05 | DJ61: -6.332993507e-08 | DK61: -7.105427358e-14 | DL61: -1.364242053e-12 | DM61: 4.302710295e-07 | DN61: 5.587935448e-07 | DO61: 7.706694305e-08 | DP61: 7.404014468e-08 | DQ61: -7.040798664e-07 | DR61: 4.190951586e-08 | DS61: -0.0006072223186 | DT61: -1.307398634e-12 | DU61: -1.421085472e-12 | DW61: 35 | DX61: 135 | DY61: 4.42875858
A62: φL=90°-θ | B62: 局地系緯度 | C62: 局地座標系回転角加速度 | D62: ω'L＝│ω'j│ | E62: 0 | F62: [rad/s^2] | G62: 1080 | H62: 748175.7709 | I62: 404437.0162 | J62: -170200.7317 | K62: 0.0211059552 | L62: -0.01801834131 | M62: 0 | N62: -247.0934881 | O62: -289.4353038 | P62: 0 | Q62: -3969154.406 | R62: 3388502.349 | S62: 3654260.638 | T62: -0.6230024798 | U62: 0.5318627472 | V62: 0.5735764364 | W62: -0.6492845265 | X62: -0.760545596 | Y62: 0 | Z62: 0.4362310326 | AA62: -0.3724143049 | AB62: 0.8191520443 | AC62: 0 | AD62: 0 | AE62: 0 | AF62: 0 | AG62: 0 | AH62: 0.06474820144 | AI62: -0.6236247583 | AJ62: 0.1382669497 | AK62: -0.7693987337 | AL62: 0.5249639274 | AM62: 0.8033537296 | AN62: -0.2811328159 | AO62: 0.5792279653 | AP62: -0.5792279653 | AQ62: -0.5735764364 | AR62: 7.481757709 | AS62: 4.044370162 | AT62: -1.702007317 | AU62: 2318.506253 | AV62: -6028.540223 | AW62: -4132.864061 | AX62: -5847611.086 | AY62: -3160971.891 | AZ62: 1330187.955 | BA62: -3646171.52 | BB62: 6200826.646 | BC62: -284092.0905 | BD62: 6779063.261 | BE62: 78.6839972 | BF62: 208.3937855 | BG62: 408054.2613 | BH62: 11.3160028 | BI62: 203.8814655 | BJ62: -3.128855558 | BK62: -7.138660769 | BL62: 0.1130809658 | BM62: -6650.907415 | BN62: 2904.962984 | BO62: -388.2799166 | BP62: -3646171.52 | BQ62: 6200826.646 | BR62: -284092.0905 | BS62: -5847611.086 | BT62: -3160971.891 | BU62: 1330187.955 | BV62: 6779063.261 | BW62: 78.6839972 | BX62: 208.3937855 | BY62: 408054.2613 | BZ62: 11.3160028 | CA62: 203.8814655 | CB62: -0.8625986896 | CC62: -0.4662844658 | CD62: 0.1962200238 | CE62: -0.1726147854 | CF62: -0.09330827183 | CG62: -0.9805598922 | CH62: 0.4755287968 | CI62: -0.8797001554 | CJ62: 0 | CK62: 0.0001171916751 | CL62: 1.023712191e-05 | CM62: -1.374161821e-05 | CN62: 0.123516987 | CO62: 0.0356231638 | CP62: 0.05521458855 | CQ62: 6779063.261 | CR62: 78.6839972 | CS62: 208.3937855 | CT62: -5847611.086 | CU62: -3160971.891 | CV62: 1330187.955 | CW62: -3646171.52 | CX62: 6200826.646 | CY62: -284092.0905 | CZ62: 408054.2613 | DA62: 11.3160028 | DB62: 203.8814655 | DD62: -1.396983862e-08 | DE62: 1.764856279e-07 | DF62: -3.958120942e-09 | DG62: 0.0001001171768 | DH62: -0.000124797225 | DI62: -7.49132596e-05 | DJ62: -7.078051567e-08 | DK62: -8.526512829e-14 | DL62: -1.392663762e-12 | DM62: 4.377216101e-07 | DN62: 5.718320608e-07 | DO62: 7.450580597e-08 | DP62: 7.404014468e-08 | DQ62: -7.189810276e-07 | DR62: 3.899913281e-08 | DS62: -0.0006295740604 | DT62: -1.23634436e-12 | DU62: -1.364242053e-12 | DW62: 35 | DX62: 135 | DY62: 4.512320063
A63: λL=φ-ωet | B63: 局地系経度 | D63: ⎿ω'k⏌ | E63: 0 | F63: [rad/s^2] | G63: 1100 | H63: 742051.2333 | I63: 419758.5557 | J63: -159582.249 | K63: 0.02113221111 | L63: -0.01798754075 | M63: 0 | N63: -246.6711064 | O63: -289.7953627 | P63: 0 | Q63: -3974092.052 | R63: 3382710.042 | S63: 3654260.638 | T63: -0.6237774978 | U63: 0.5309535808 | V63: 0.5735764364 | W63: -0.6481746392 | X63: -0.7614917183 | Y63: 0 | Z63: 0.4367737061 | AA63: -0.3717776997 | AB63: 0.8191520443 | AC63: 0 | AD63: 0 | AE63: 0 | AF63: 0 | AG63: 0 | AH63: 0.06474820144 | AI63: -0.6116015822 | AJ63: 0.156386998 | AK63: -0.7755556792 | AL63: 0.5389234351 | AM63: 0.800023794 | AN63: -0.2636730174 | AO63: 0.5792279653 | AP63: -0.5792279653 | AQ63: -0.5735764364 | AR63: 7.420512333 | AS63: 4.197585557 | AT63: -1.59582249 | AU63: 2467.53531 | AV63: -5946.11715 | AW63: -4165.843766 | AX63: -5799748.629 | AY63: -3280723.572 | AZ63: 1247197.337 | BA63: -3779805.237 | BB63: 6257493.805 | BC63: -291833.592 | BD63: 6779065.755 | BE63: 79.39846054 | BF63: 209.4953875 | BG63: 408056.7548 | BH63: 10.60153946 | BI63: 204.899506 | BJ63: -2.975464314 | BK63: -7.203355858 | BL63: 0.135302998 | BM63: -6711.952952 | BN63: 2761.537274 | BO63: -385.7961567 | BP63: -3779805.237 | BQ63: 6257493.805 | BR63: -291833.592 | BS63: -5799748.629 | BT63: -3280723.572 | BU63: 1247197.337 | BV63: 6779065.755 | BW63: 79.39846054 | BX63: 209.4953875 | BY63: 408056.7548 | BZ63: 10.60153946 | CA63: 204.899506 | CB63: -0.8555380399 | CC63: -0.4839492182 | CD63: 0.1839777606 | CE63: -0.1601333845 | CF63: -0.09058209295 | CG63: -0.9829304063 | CH63: 0.4923534923 | CI63: -0.8703953347 | CJ63: 0 | CK63: 0.0001127387062 | CL63: 9.529054395e-06 | CM63: -1.286243143e-05 | CN63: 0.1258166024 | CO63: 0.03582081044 | CP63: 0.05494854203 | CQ63: 6779065.755 | CR63: 79.39846054 | CS63: 209.4953875 | CT63: -5799748.629 | CU63: -3280723.572 | CV63: 1247197.337 | CW63: -3779805.237 | CX63: 6257493.805 | CY63: -291833.592 | CZ63: 408056.7548 | DA63: 10.60153946 | DB63: 204.899506 | DD63: -1.862645149e-08 | DE63: 1.755543053e-07 | DF63: -3.958120942e-09 | DG63: 0.0001019798219 | DH63: -0.0001229345798 | DI63: -7.677590474e-05 | DJ63: -6.98491931e-08 | DK63: -8.526512829e-14 | DL63: -1.392663762e-12 | DM63: 4.395842552e-07 | DN63: 5.830079317e-07 | DO63: 7.776543498e-08 | DP63: 7.962808013e-08 | DQ63: -7.292255759e-07 | DR63: 3.853347152e-08 | DS63: -0.0006444752216 | DT63: -1.222133506e-12 | DU63: -1.307398634e-12 | DW63: 35 | DX63: 135 | DY63: 4.595881545
D64: ⎾ωi⏋ | E64: =RADIANS(E13)*SIN(RADIANS(E14)) -> 4.182585335e-05 | F64: [rad/s] | G64: 1120 | H64: 735546.9428 | I64: 434865.2348 | J64: -148882.1146 | K64: 0.02115842207 | L64: -0.01795670193 | M64: 0 | N64: -246.2481999 | O64: -290.1548052 | P64: 0 | Q64: -3979021.246 | R64: 3376910.539 | S64: 3654260.638 | T64: -0.624551189 | U64: 0.530043285 | V64: 0.5735764364 | W64: -0.6470633732 | X64: -0.7624362209 | Y64: 0 | Z64: 0.4373154506 | AA64: -0.3711403037 | AB64: 0.8191520443 | AC64: 0 | AD64: 0 | AE64: 0 | AF64: 0 | AG64: 0 | AH64: 0.06474820144 | AI64: -0.5992659994 | AJ64: 0.1744271636 | AK64: -0.7813164702 | AL64: 0.5526076602 | AM64: 0.7962852057 | AN64: -0.2460785345 | AO64: 0.5792279653 | AP64: -0.5792279653 | AQ64: -0.5735764364 | AR64: 7.355469428 | AS64: 4.348652348 | AT64: -1.488821146 | AU64: 2615.301429 | AV64: -5860.651125 | AW64: -4196.691517 | AX64: -5748918.093 | AY64: -3398796.291 | AZ64: 1163568.417 | BA64: -3914629.094 | BB64: 6311279.733 | BC64: -299520.9709 | BD64: 6779068.293 | BE64: 80.1167358 | BF64: 210.5918447 | BG64: 408059.2934 | BH64: 9.883264197 | BI64: 205.9124016 | BJ64: -2.820705626 | BK64: -7.26471047 | BL64: 0.1575643205 | BM64: -6769.916872 | BN64: 2616.85102 | BO64: -382.8675347 | BP64: -3914629.094 | BQ64: 6311279.733 | BR64: -299520.9709 | BS64: -5748918.093 | BT64: -3398796.291 | BU64: 1163568.417 | BV64: 6779068.293 | BW64: 80.1167358 | BX64: 210.5918447 | BY64: 408059.2934 | BZ64: 9.883264197 | CA64: 205.9124016 | CB64: -0.84803956 | CC64: -0.5013662857 | CD64: 0.1716413476 | CE64: -0.1477513563 | CF64: -0.08735152488 | CG64: -0.9851595037 | CH64: 0.5089188946 | CI64: -0.860814474 | CJ64: 0 | CK64: 0.0001081035792 | CL64: 8.829791384e-06 | CM64: -1.19799611e-05 | CN64: 0.1280253208 | CO64: 0.03600438468 | CP64: 0.05470011316 | CQ64: 6779068.293 | CR64: 80.1167358 | CS64: 210.5918447 | CT64: -5748918.093 | CU64: -3398796.291 | CV64: 1163568.417 | CW64: -3914629.094 | CX64: 6311279.733 | CY64: -299520.9709 | CZ64: 408059.2934 | DA64: 9.883264197 | DB64: 205.9124016 | DD64: -2.048909664e-08 | DE64: 1.736916602e-07 | DF64: -3.725290298e-09 | DG64: 0.0001019798219 | DH64: -0.0001192092896 | DI64: -7.683411241e-05 | DJ64: -7.078051567e-08 | DK64: -9.947598301e-14 | DL64: -1.364242053e-12 | DM64: 4.423782229e-07 | DN64: 5.86733222e-07 | DO64: 8.614733815e-08 | DP64: 8.4284693e-08 | DQ64: -7.338821888e-07 | DR64: 4.627509043e-08 | DS64: -0.00065471977 | DT64: -1.23634436e-12 | DU64: -1.222133506e-12 | DW64: 35 | DX64: 135 | DY64: 4.679443028
A65: (6) 局地座標系で解く | C65: 局地座標系回転角速度 | D65: ωL＝│ωj│ | E65: 0 | F65: [rad/s] | G65: 1140 | H65: 728666.2305 | I65: 449749.3226 | J65: -138105.8051 | K65: 0.02118458803 | L65: -0.01792582491 | M65: 0 | N65: -245.8247698 | O65: -290.5136305 | P65: 0 | Q65: -3983941.977 | R65: 3371103.854 | S65: 3654260.638 | T65: -0.6253235519 | U65: 0.5291318618 | V65: 0.5735764364 | W65: -0.645950731 | X65: -0.7633791019 | Y65: 0 | Z65: 0.4378562648 | AA65: -0.3705021183 | AB65: 0.8191520443 | AC65: 0 | AD65: 0 | AE65: 0 | AF65: 0 | AG65: 0 | AH65: 0.06474820144 | AI65: -0.5866243111 | AJ65: 0.1923782317 | AK65: -0.786678164 | AL65: 0.5660096129 | AM65: 0.7921398741 | AN65: -0.2283583544 | AO65: 0.5792279653 | AP65: -0.5792279653 | AQ65: -0.5735764364 | AR65: 7.286662305 | AS65: 4.497493226 | AT65: -1.381058051 | AU65: 2761.728992 | AV65: -5772.185896 | AW65: -4225.391533 | AX65: -5695145.495 | AY65: -3515129.622 | AZ65: 1079343.995 | BA65: -4050581.19 | BB65: 6362159.89 | BC65: -307145.3234 | BD65: 6779070.875 | BE65: 80.83854325 | BF65: 211.6835099 | BG65: 408061.8752 | BH65: 9.161456745 | BI65: 206.9205054 | BJ65: -2.664650497 | BK65: -7.322696483 | BL65: 0.17984779 | BM65: -6824.772534 | BN65: 2470.971313 | BO65: -379.4934362 | BP65: -4050581.19 | BQ65: 6362159.89 | BR65: -307145.3234 | BS65: -5695145.495 | BT65: -3515129.622 | BU65: 1079343.995 | BV65: 6779070.875 | BW65: 80.83854325 | BX65: 211.6835099 | BY65: 408061.8752 | BZ65: 9.161456745 | CA65: 206.9205054 | CB65: -0.8401070884 | CC65: -0.5185267549 | CD65: 0.1592170984 | CE65: -0.1354877496 | CF65: -0.08362508076 | CG65: -0.9872435949 | CH65: 0.5252267603 | CI65: -0.8509623084 | CJ65: 0 | CK65: 0.0001032961311 | CL65: 8.138788069e-06 | CM65: -1.109481162e-05 | CN65: 0.1301395967 | CO65: 0.03617405717 | CP65: 0.05446936143 | CQ65: 6779070.875 | CR65: 80.83854325 | CS65: 211.6835099 | CT65: -5695145.495 | CU65: -3515129.622 | CV65: 1079343.995 | CW65: -4050581.19 | CX65: 6362159.89 | CY65: -307145.3234 | CZ65: 408061.8752 | DA65: 9.161456745 | DB65: 206.9205054 | DD65: -2.048909664e-08 | DE65: 1.746229827e-07 | DF65: -3.492459655e-09 | DG65: 0.0001024454832 | DH65: -0.0001210719347 | DI65: -7.712515071e-05 | DJ65: -7.357448339e-08 | DK65: -5.684341886e-14 | DL65: -1.364242053e-12 | DM65: 4.516914487e-07 | DN65: 5.881302059e-07 | DO65: 8.707866073e-08 | DP65: 7.823109627e-08 | DQ65: -7.404014468e-07 | DR65: 5.064066499e-08 | DS65: -0.0006714835763 | DT65: -1.179500941e-12 | DU65: -1.080024958e-12 | DW65: 35 | DX65: 135 | DY65: 4.763004511
A66: r''=(DILT･F)/m-DILT･d''-2(ωL×r')-ωL×(ωL×r)-ω'L×r | D66: ⎿ωk⏌ | E66: =RADIANS(E13)*COS(RADIANS(E14)) -> 5.973350909e-05 | F66: [rad/s] | G66: 1160 | H66: 721412.6198 | I66: 464403.2021 | J66: -127258.8367 | K66: 0.02121070892 | L66: -0.01789490977 | M66: 0 | N66: -245.4008167 | O66: -290.8718379 | P66: 0 | Q66: -3988854.234 | R66: 3365289.998 | S66: 3654260.638 | T66: -0.6260945846 | U66: 0.5282193131 | V66: 0.5735764364 | W66: -0.6448367147 | X66: -0.7643203591 | Y66: 0 | Z66: 0.4383961478 | AA66: -0.3698631449 | AB66: 0.8191520443 | AC66: 0 | AD66: 0 | AE66: 0 | AF66: 0 | AG66: 0 | AH66: 0.06474820144 | AI66: -0.5736829745 | AJ66: 0.2102310328 | AK66: -0.7916380218 | AL66: 0.5791224473 | AM66: 0.7875899168 | AN66: -0.2105215287 | AO66: 0.5792279653 | AP66: -0.5792279653 | AQ66: -0.5735764364 | AR66: 7.214126198 | AS66: 4.644032021 | AT66: -1.272588367 | AU66: 2906.743061 | AV66: -5680.766744 | AW66: -4251.929129 | AX66: -5638458.357 | AY66: -3629664.033 | AZ66: 994567.1722 | BA66: -4187599.105 | BB66: 6410111.08 | BC66: -314697.7367 | BD66: 6779073.498 | BE66: 81.56360648 | BF66: 212.7707373 | BG66: 408064.4983 | BH66: 8.436393522 | BI66: 207.9241713 | BJ66: -2.507370528 | BK66: -7.377287347 | BL66: 0.2021362045 | BM66: -6876.494726 | BN66: 2323.965795 | BO66: -375.6735901 | BP66: -4187599.105 | BQ66: 6410111.08 | BR66: -314697.7367 | BS66: -5638458.357 | BT66: -3629664.033 | BU66: 994567.1722 | BV66: 6779073.498 | BW66: 81.56360648 | BX66: 212.7707373 | BY66: 408064.4983 | BZ66: 8.436393522 | CA66: 207.9241713 | CB66: -0.8317446858 | CC66: -0.535421844 | CD66: 0.1467113718 | CE66: -0.1233612536 | CF66: -0.0794117606 | CG66: -0.9891793434 | CH66: 0.5412788364 | CI66: -0.8408431609 | CJ66: 0 | CK66: 9.83265264e-05 | CL66: 7.455483237e-06 | CM66: -1.020750351e-05 | CN66: 0.1321560849 | CO66: 0.03632998752 | CP66: 0.05425633507 | CQ66: 6779073.498 | CR66: 81.56360648 | CS66: 212.7707373 | CT66: -5638458.357 | CU66: -3629664.033 | CV66: 994567.1722 | CW66: -4187599.105 | CX66: 6410111.08 | CY66: -314697.7367 | CZ66: 408064.4983 | DA66: 8.436393522 | DB66: 207.9241713 | DD66: -1.862645149e-08 | DE66: 1.78348273e-07 | DF66: -3.026798368e-09 | DG66: 0.0001038424671 | DH66: -0.0001238659024 | DI66: -7.619382814e-05 | DJ66: -8.009374142e-08 | DK66: -8.526512829e-14 | DL66: -1.392663762e-12 | DM66: 4.544854164e-07 | DN66: 6.048940122e-07 | DO66: 8.998904377e-08 | DP66: 8.661299944e-08 | DQ66: -7.55302608e-07 | DR66: 4.970934242e-08 | DS66: -0.0006882473826 | DT66: -1.151079232e-12 | DU66: -1.051603249e-12 | DW66: 35 | DX66: 135 | DY66: 4.846565993
A67: r'=∫r''dt | B67: 局地系速度ベクトル | D67: ⎾ | E67: =COS(RADIANS(E14))*COS(RADIANS(E15)) -> -0.5792279653 | F67: [ND] | G67: 1180 | H67: 713789.8251 | I67: 478819.3744 | J67: -116346.7611 | K67: 0.0212367847 | L67: -0.01786395656 | M67: 0 | N67: -244.9763417 | O67: -291.2294266 | P67: 0 | Q67: -3993758.006 | R67: 3359468.984 | S67: 3654260.638 | T67: -0.6268642857 | U67: 0.5273056409 | V67: 0.5735764364 | W67: -0.643721327 | X67: -0.7652599906 | Y67: 0 | Z67: 0.4389350983 | AA67: -0.3692233847 | AB67: 0.8191520443 | AC67: 0 | AD67: 0 | AE67: 0 | AF67: 0 | AG67: 0 | AH67: 0.06474820144 | AI67: -0.5604486001 | AJ67: 0.2279764477 | AK67: -0.7961935103 | AL67: 0.5919394655 | AM67: 0.7826376578 | AN67: -0.1925771684 | AO67: 0.5792279653 | AP67: -0.5792279653 | AQ67: -0.5735764364 | AR67: 7.137898251 | AS67: 4.788193744 | AT67: -1.163467611 | AU67: 3050.269427 | AV67: -5586.440462 | AW67: -4276.290727 | AX67: -5578885.691 | AY67: -3742340.911 | AZ67: 909281.3363 | BA67: -4325619.93 | BB67: 6455111.47 | BC67: -322169.2958 | BD67: 6779076.161 | BE67: 82.29165213 | BF67: 213.8538817 | BG67: 408067.1608 | BH67: 7.708347868 | BI67: 208.9237543 | BJ67: -2.348937879 | BK67: -7.428458105 | BL67: 0.2244123155 | BM67: -6925.05967 | BN67: 2175.90262 | BO67: -371.40807 | BP67: -4325619.93 | BQ67: 6455111.47 | BR67: -322169.2958 | BS67: -5578885.691 | BT67: -3742340.911 | BU67: 909281.3363 | BV67: 6779076.161 | BW67: 82.29165213 | BX67: 213.8538817 | BY67: 408067.1608 | BZ67: 7.708347868 | CA67: 208.9237543 | CB67: -0.8229566328 | CC67: -0.552042907 | CD67: 0.134130568 | CE67: -0.1113901995 | CF67: -0.07472103279 | CG67: -0.9909636677 | CH67: 0.5570768385 | CI67: -0.830460954 | CJ67: 0 | CK67: 9.320523598e-05 | CL67: 6.779301403e-06 | CM67: -9.318480558e-06 | CN67: 0.1340716464 | CO67: 0.03647232399 | CP67: 0.05406107271 | CQ67: 6779076.161 | CR67: 82.29165213 | CS67: 213.8538817 | CT67: -5578885.691 | CU67: -3742340.911 | CV67: 909281.3363 | CW67: -4325619.93 | CX67: 6455111.47 | CY67: -322169.2958 | CZ67: 408067.1608 | DA67: 7.708347868 | DB67: 208.9237543 | DD67: -1.676380634e-08 | DE67: 1.816079021e-07 | DF67: -2.910383046e-09 | DG67: 0.0001043081284 | DH67: -0.0001285225153 | DI67: -7.724156603e-05 | DJ67: -8.661299944e-08 | DK67: -7.105427358e-14 | DL67: -1.364242053e-12 | DM67: 4.647299647e-07 | DN67: 6.076879799e-07 | DO67: 8.463393897e-08 | DP67: 7.729977369e-08 | DQ67: -7.636845112e-07 | DR67: 4.918547347e-08 | DS67: -0.0007059425116 | DT67: -1.051603249e-12 | DU67: -8.810729923e-13 | DW67: 35 | DX67: 135 | DY67: 4.930127476
A68: r=∫r'dt | B68: 局地系位置ベクトル | D68: │ | E68: =COS(RADIANS(E14))*SIN(RADIANS(E15)) -> 0.5792279653 | F68: [ND] | G68: 1200 | H68: 705801.7497 | I68: 492990.4624 | J68: -105375.1637 | K68: 0.02126281531 | L68: -0.01783296536 | M68: 0 | N68: -244.5513456 | O68: -291.5863959 | P68: 0 | Q68: -3998653.284 | R68: 3353640.825 | S68: 3654260.638 | T68: -0.6276326534 | U68: 0.5263908472 | V68: 0.5735764364 | W68: -0.64260457 | X68: -0.7661979944 | Y68: 0 | Z68: 0.4394731152 | AA68: -0.3685828392 | AB68: 0.8191520443 | AC68: 0 | AD68: 0 | AE68: 0 | AF68: 0 | AG68: 0 | AH68: 0.06474820144 | AI68: -0.5469279481 | AJ68: 0.2456054121 | AK68: -0.8003423025 | AL68: 0.6044541204 | AM68: 0.7772856269 | AN68: -0.1745344395 | AO68: 0.5792279653 | AP68: -0.5792279653 | AQ68: -0.5735764364 | AR68: 7.058017497 | AS68: 4.929904624 | AT68: -1.053751637 | AU68: 3192.234639 | AV68: -5489.255333 | AW68: -4298.463865 | AX68: -5516457.988 | AY68: -3853102.592 | AZ68: 823530.1331 | BA68: -4464580.295 | BB68: 6497140.592 | BC68: -329551.091 | BD68: 6779078.86 | BE68: 83.02240972 | BF68: 214.9332988 | BG68: 408069.8605 | BH68: 6.977590275 | BI68: 209.9196099 | BJ68: -2.189425245 | BK68: -7.476185397 | BL68: 0.2466588394 | BM68: -6970.445041 | BN68: 2026.850428 | BO68: -366.6972948 | BP68: -4464580.295 | BQ68: 6497140.592 | BR68: -329551.091 | BS68: -5516457.988 | BT68: -3853102.592 | BU68: 823530.1331 | BV68: 6779078.86 | BW68: 83.02240972 | BX68: 214.9332988 | BY68: 408069.8605 | BZ68: 6.977590275 | CA68: 209.9196099 | CB68: -0.8137474281 | CC68: -0.5683814382 | CD68: 0.121481126 | CE68: -0.09959256207 | CF68: -0.0695628173 | CG68: -0.9925937417 | CH68: 0.5726224278 | CI68: -0.819819221 | CJ68: 0 | CK68: 8.794301567e-05 | CL68: 6.109654739e-06 | CM68: -8.42811689e-06 | CN68: 0.1358833547 | CO68: 0.03660120315 | CP68: 0.05388360478 | CQ68: 6779078.86 | CR68: 83.02240972 | CS68: 214.9332988 | CT68: -5516457.988 | CU68: -3853102.592 | CV68: 823530.1331 | CW68: -4464580.295 | CX68: 6497140.592 | CY68: -329551.091 | CZ68: 408069.8605 | DA68: 6.977590275 | DB68: 209.9196099 | DD68: -1.862645149e-08 | DE68: 1.848675311e-07 | DF68: 0 | DG68: 0.0001089647412 | DH68: -0.0001294538379 | DI68: -7.689232007e-05 | DJ68: -9.033828974e-08 | DK68: -9.947598301e-14 | DL68: -1.364242053e-12 | DM68: 4.656612873e-07 | DN68: 6.188638508e-07 | DO68: 8.894130588e-08 | DP68: 8.475035429e-08 | DQ68: -7.739290595e-07 | DR68: 4.918547347e-08 | DS68: -0.0007199123502 | DT68: -1.008970685e-12 | DU68: -8.526512829e-13 | DW68: 35 | DX68: 135 | DY68: 5.013688959
A69: R=(x,y,z)T=d+DIL･r | B69: 慣性系位置ベクトル | D69: │ | E69: =SIN(RADIANS(E14)) -> 0.5735764364 | F69: [ND] | G69: 1220 | H69: 697452.4839 | I69: 506909.2143 | J69: -94349.66013 | K69: 0.0212888007 | L69: -0.01780193622 | M69: 0 | N69: -244.1258294 | O69: -291.942745 | P69: 0 | Q69: -4003540.056 | R69: 3347805.532 | S69: 3654260.638 | T69: -0.6283996862 | U69: 0.5254749338 | V69: 0.5735764364 | W69: -0.6414864462 | X69: -0.7671343685 | Y69: 0 | Z69: 0.4400101973 | AA69: -0.3679415098 | AB69: 0.8191520443 | AC69: 0 | AD69: 0 | AE69: 0 | AF69: 0 | AG69: 0 | AH69: 0.06474820144 | AI69: -0.5331279249 | AJ69: 0.263108921 | AK69: -0.804082279 | AL69: 0.6166600197 | AM69: 0.7715365577 | AN69: -0.1564025582 | AO69: 0.5792279653 | AP69: -0.5792279653 | AQ69: -0.5735764364 | AR69: 6.974524839 | AS69: 5.069092143 | AT69: -0.9434966013 | AU69: 3332.566047 | AV69: -5389.2611 | AW69: -4318.437199 | AX69: -5451207.198 | AY69: -3961892.396 | AZ69: 737357.4473 | BA69: -4604416.395 | BB69: 6536179.354 | BC69: -336834.2242 | BD69: 6779081.595 | BE69: 83.75561138 | BF69: 216.0093447 | BG69: 408072.5954 | BH69: 6.244388623 | BI69: 210.9120943 | BJ69: -2.028905812 | BK69: -7.520447473 | BL69: 0.2688584686 | BM69: -7012.629968 | BN69: 1876.878306 | BO69: -361.5420291 | BP69: -4604416.395 | BQ69: 6536179.354 | BR69: -336834.2242 | BS69: -5451207.198 | BT69: -3961892.396 | BU69: 737357.4473 | BV69: 6779081.595 | BW69: 83.75561138 | BX69: 216.0093447 | BY69: 408072.5954 | BZ69: 6.244388623 | CA69: 210.9120943 | CB69: -0.8041217857 | CC69: -0.5844290765 | CD69: 0.1087695194 | CE69: -0.08798596129 | CF69: -0.06394747042 | CG69: -0.9940669956 | CH69: 0.5879171918 | CI69: -0.8089211183 | CJ69: 0 | CK69: 8.2550884e-05 | CL69: 5.445944798e-06 | CM69: -7.53672376e-06 | CN69: 0.1375885009 | CO69: 0.03671674976 | CP69: 0.05372395488 | CQ69: 6779081.595 | CR69: 83.75561138 | CS69: 216.0093447 | CT69: -5451207.198 | CU69: -3961892.396 | CV69: 737357.4473 | CW69: -4604416.395 | CX69: 6536179.354 | CY69: -336834.2242 | CZ69: 408072.5954 | DA69: 6.244388623 | DB69: 210.9120943 | DD69: -1.769512892e-08 | DE69: 1.918524504e-07 | DF69: 0 | DG69: 0.000111758709 | DH69: -0.0001350417733 | DI69: -7.799826562e-05 | DJ69: -9.778887033e-08 | DK69: -8.526512829e-14 | DL69: -1.421085472e-12 | DM69: 4.665926099e-07 | DN69: 6.277114153e-07 | DO69: 8.952338248e-08 | DP69: 8.847564459e-08 | DQ69: -7.804483175e-07 | DR69: 4.796311259e-08 | DS69: -0.0007320195436 | DT69: -9.379164112e-13 | DU69: -7.673861546e-13 | DW69: 35 | DX69: 135 | DY69: 5.097250441
A70: rQ=|R| | B70: 極座標系動径方向距離 | C70: 局地座標系L方向余弦行列 | D70: │ | E70: =-SIN(RADIANS(E15)) -> -0.7071067812 | F70: [ND] | G70: 1240 | H70: 688746.3028 | I70: 520568.5078 | J70: -83275.89354 | K70: 0.0213147408 | L70: -0.01777086923 | M70: 0 | N70: -243.6997939 | O70: -292.2984731 | P70: 0 | Q70: -4008418.313 | R70: 3341963.119 | S70: 3654260.638 | T70: -0.6291653824 | U70: 0.5245579027 | V70: 0.5735764364 | W70: -0.640366958 | X70: -0.7680691109 | Y70: 0 | Z70: 0.4405463435 | AA70: -0.3672993977 | AB70: 0.8191520443 | AC70: 0 | AD70: 0 | AE70: 0 | AF70: 0 | AG70: 0 | AH70: 0.06474820144 | AI70: -0.5190555794 | AJ70: 0.2804780336 | AK70: -0.8074115296 | AL70: 0.6285509285 | AM70: 0.765393387 | AN70: -0.1381907864 | AO70: 0.5792279653 | AP70: -0.5792279653 | AQ70: -0.5735764364 | AR70: 6.887463028 | AS70: 5.205685078 | AT70: -0.8327589354 | AU70: 3471.191838 | AV70: -5286.508945 | AW70: -4336.200511 | AX70: -5383166.717 | AY70: -4068654.65 | AZ70: 650807.3789 | BA70: -4745064.027 | BB70: 6572210.054 | BC70: -344009.8162 | BD70: 6779084.363 | BE70: 84.49099159 | BF70: 217.0823759 | BG70: 408075.3633 | BH70: 5.509008415 | BI70: 211.901564 | BJ70: -1.867453233 | BK70: -7.561224206 | BL70: 0.290993884 | BM70: -7051.595052 | BN70: 1726.055765 | BO70: -355.9433841 | BP70: -4745064.027 | BQ70: 6572210.054 | BR70: -344009.8162 | BS70: -5383166.717 | BT70: -4068654.65 | BU70: 650807.3789 | BV70: 6779084.363 | BW70: 84.49099159 | BX70: 217.0823759 | BY70: 408075.3633 | BZ70: 5.509008415 | CA70: 211.901564 | CB70: -0.7940846327 | CC70: -0.6001776098 | CD70: 0.09600225399 | CE70: -0.07658766409 | CF70: -0.05788577097 | CG70: -0.9953811166 | CH70: 0.6029626239 | CI70: -0.7977694367 | CJ70: 0 | CK70: 7.704009958e-05 | CL70: 4.787564061e-06 | CM70: -6.644556234e-06 | CN70: 0.139184599 | CO70: 0.03681907647 | CP70: 0.05358214098 | CQ70: 6779084.363 | CR70: 84.49099159 | CS70: 217.0823759 | CT70: -5383166.717 | CU70: -4068654.65 | CV70: 650807.3789 | CW70: -4745064.027 | CX70: 6572210.054 | CY70: -344009.8162 | CZ70: 408075.3633 | DA70: 5.509008415 | DB70: 211.901564 | DD70: -2.142041922e-08 | DE70: 1.941807568e-07 | DF70: 0 | DG70: 0.0001145526767 | DH70: -0.0001350417733 | DI70: -8.05594027e-05 | DJ70: -9.965151548e-08 | DK70: -7.105427358e-14 | DL70: -1.421085472e-12 | DM70: 4.647299647e-07 | DN70: 6.393529475e-07 | DO70: 8.754432201e-08 | DP70: 9.313225746e-08 | DQ70: -7.888302207e-07 | DR70: 4.179310054e-08 | DS70: -0.0007441267371 | DT70: -8.526512829e-13 | DU70: -7.389644452e-13 | DW70: 35 | DX70: 135 | DY70: 5.180811924
A71: θ=tan^-1{√(x^2+y^2)/z} | B71: 極座標系法線方向角 | C71: 初期値 | D71: DIL0= │ | E71: =COS(RADIANS(E15)) -> -0.7071067812 | F71: [ND] | G71: 1260 | H71: 679687.6642 | I71: 533961.3534 | J71: -72159.53177 | K71: 0.02134063557 | L71: -0.01773976443 | M71: 0 | N71: -243.2732401 | O71: -292.6535795 | P71: 0 | Q71: -4013288.045 | R71: 3336113.598 | S71: 3654260.638 | T71: -0.6299297403 | U71: 0.5236397559 | V71: 0.5735764364 | W71: -0.6392461077 | X71: -0.7690022196 | Y71: 0 | Z71: 0.4410815527 | AA71: -0.3666565044 | AB71: 0.8191520443 | AC71: 0 | AD71: 0 | AE71: 0 | AF71: 0 | AG71: 0 | AH71: 0.06474820144 | AI71: -0.5047180998 | AJ71: 0.2977038778 | AK71: -0.8103283537 | AL71: 0.6401207729 | AM71: 0.7588592527 | AN71: -0.1199084266 | AO71: 0.5792279653 | AP71: -0.5792279653 | AQ71: -0.5735764364 | AR71: 6.796876642 | AS71: 5.339613534 | AT71: -0.7215953177 | AU71: 3608.041071 | AV71: -5181.051461 | AW71: -4351.744716 | AX71: -5312371.368 | AY71: -4173334.718 | AZ71: 563924.2211 | BA71: -4886458.612 | BB71: 6605216.381 | BC71: -351069.0134 | BD71: 6779087.162 | BE71: 85.22828698 | BF71: 218.1527493 | BG71: 408078.162 | BH71: 4.771713024 | BI71: 212.8883759 | BJ71: -1.705141587 | BK71: -7.598497095 | BL71: 0.3130477656 | BM71: -7087.32237 | BN71: 1574.452697 | BO71: -349.9028173 | BP71: -4886458.612 | BQ71: 6605216.381 | BR71: -351069.0134 | BS71: -5312371.368 | BT71: -4173334.718 | BU71: 563924.2211 | BV71: 6779087.162 | BW71: 85.22828698 | BX71: 218.1527493 | BY71: 408078.162 | BZ71: 4.771713024 | CA71: 212.8883759 | CB71: -0.783641107 | CC71: -0.6156189792 | CD71: 0.08318586377 | CE71: -0.06541458608 | CF71: -0.05138890794 | CG71: -0.9965340496 | CH71: 0.617760105 | CI71: -0.7863666146 | CJ71: 0 | CK71: 7.142213797e-05 | CL71: 4.133897318e-06 | CM71: -5.751819672e-06 | CN71: 0.1406693903 | CO71: 0.03690828375 | CP71: 0.05345817642 | CQ71: 6779087.162 | CR71: 85.22828698 | CS71: 218.1527493 | CT71: -5312371.368 | CU71: -4173334.718 | CV71: 563924.2211 | CW71: -4886458.612 | CX71: 6605216.381 | CY71: -351069.0134 | CZ71: 408078.162 | DA71: 4.771713024 | DB71: 212.8883759 | DD71: -2.514570951e-08 | DE71: 1.997686923e-07 | DF71: 3.376044333e-09 | DG71: 0.0001220032573 | DH71: -0.000137835741 | DI71: -8.178176358e-05 | DJ71: -1.033768058e-07 | DK71: -8.526512829e-14 | DL71: -1.47792889e-12 | DM71: 4.675239325e-07 | DN71: 6.482005119e-07 | DO71: 8.614733815e-08 | DP71: 9.499490261e-08 | DQ71: -7.972121239e-07 | DR71: 3.911554813e-08 | DS71: -0.0007580965757 | DT71: -7.389644452e-13 | DU71: -6.252776075e-13 | DW71: 35 | DX71: 135 | DY71: 5.264373407
A72: φ=tan^-1(y/x) | B72: 極座標系接線方向角 | D72: │ | E72: 0 | F72: [ND] | G72: 1280 | H72: 670281.2061 | I72: 547080.8981 | J72: -61006.26437 | K72: 0.02136648494 | L72: -0.0177086219 | M72: 0 | N72: -242.8461688 | O72: -293.0080634 | P72: 0 | Q72: -4018149.24 | R72: 3330256.98 | S72: 3654260.638 | T72: -0.6306927583 | U72: 0.5227204953 | V72: 0.5735764364 | W72: -0.6381238977 | X72: -0.7699336927 | Y72: 0 | Z72: 0.4416158237 | AA72: -0.3660128312 | AB72: 0.8191520443 | AC72: 0 | AD72: 0 | AE72: 0 | AF72: 0 | AG72: 0 | AH72: 0.06474820144 | AI72: -0.4901228098 | AJ72: 0.3147776545 | AK72: -0.8128312614 | AL72: 0.651363643 | AM72: 0.7519374923 | AN72: -0.1015648175 | AO72: 0.5792279653 | AP72: -0.5792279653 | AQ72: -0.5735764364 | AR72: 6.702812061 | AS72: 5.470808981 | AT72: -0.6100626437 | AU72: 3743.043715 | AV72: -5072.942624 | AW72: -4365.061864 | AX72: -5238857.385 | AY72: -4275879.032 | AZ72: 476752.4375 | BA72: -5028535.227 | BB72: 6635183.427 | BC72: -358002.9947 | BD72: 6779089.989 | BE72: 85.96723606 | BF72: 219.220822 | BG72: 408080.9893 | BH72: 4.032763938 | BI72: 213.8728872 | BJ72: -1.54204535 | BK72: -7.632249281 | BL72: 0.3350028053 | BM72: -7119.795485 | BN72: 1422.139353 | BO72: -343.4221324 | BP72: -5028535.227 | BQ72: 6635183.427 | BR72: -358002.9947 | BS72: -5238857.385 | BT72: -4275879.032 | BU72: 476752.4375 | BV72: 6779089.989 | BW72: 85.96723606 | BX72: 219.220822 | BY72: 408080.9893 | BZ72: 4.032763938 | CA72: 213.8728872 | CB72: -0.7727965542 | CC72: -0.6307452828 | CD72: 0.07032690793 | CE72: -0.05448329288 | CF72: -0.04446846946 | CG72: -0.9975239977 | CH72: 0.632310886 | CI72: -0.7747147497 | CJ72: 0 | CK72: 6.570866804e-05 | CL72: 3.484322909e-06 | CM72: -4.858676052e-06 | CN72: 0.1420408477 | CO72: 0.03698445965 | CP72: 0.0533520709 | CQ72: 6779089.989 | CR72: 85.96723606 | CS72: 219.220822 | CT72: -5238857.385 | CU72: -4275879.032 | CV72: 476752.4375 | CW72: -5028535.227 | CX72: 6635183.427 | CY72: -358002.9947 | CZ72: 408080.9893 | DA72: 4.032763938 | DB72: 213.8728872 | DD72: -3.073364496e-08 | DE72: 2.067536116e-07 | DF72: 3.84170562e-09 | DG72: 0.0001294538379 | DH72: -0.0001396983862 | DI72: -8.661299944e-05 | DJ72: =BV72-BD72 -> -1.061707735e-07 | DK72: -9.947598301e-14 | DL72: -1.534772309e-12 | DM72: 4.703179002e-07 | DN72: 6.537884474e-07 | DO72: 8.259667084e-08 | DP72: 9.313225746e-08 | DQ72: -8.037313819e-07 | DR72: 3.591412678e-08 | DS72: -0.0007702037692 | DT72: -6.536993169e-13 | DU72: -5.400124792e-13 | DW72: =IF(SQRT(Q72^2+R72^2)=0,0,DEGREES(ATAN2(SQRT(Q72^2+R72^2),S72))) -> 35 | DX72: 135 | DY72: =$E$13*G72 -> 5.347934889
A73: hL=|R|-Re | B73: 局地系高度 | D73: │ | E73: =-SIN(RADIANS(E14))*COS(RADIANS(E15)) -> 0.4055797877 | F73: [ND] | G73: 1300 | H73: 660531.7447 | I73: 559920.4288 | J73: -49821.7997 | K73: 0.02139228887 | L73: -0.01767744171 | M73: 0 | N73: -242.418581 | O73: -293.3619241 | P73: 0 | Q73: -4023001.888 | R73: 3324393.279 | S73: 3654260.638 | T73: -0.6314544349 | U73: 0.5218001229 | V73: 0.5735764364 | W73: -0.6370003305 | X73: -0.7708635281 | Y73: 0 | Z73: 0.4421491554 | AA73: -0.3653683795 | AB73: 0.8191520443 | AC73: 0 | AD73: 0 | AE73: 0 | AF73: 0 | AG73: 0 | AH73: 0.06474820144 | AI73: -0.4752771646 | AJ73: 0.3316906426 | AK73: -0.8149189741 | AL73: 0.662273796 | AM73: 0.7446316417 | AN73: -0.08316932902 | AO73: 0.5792279653 | AP73: -0.5792279653 | AQ73: -0.5735764364 | AR73: 6.605317447 | AS73: 5.599204288 | AT73: -0.498217997 | AU73: 3876.130686 | AV73: -4962.237769 | AW73: -4376.145142 | AX73: -5162662.391 | AY73: -4376235.116 | AZ73: 389336.6393 | BA73: -5171228.637 | BB73: 6662097.691 | BC73: -364802.9788 | BD73: 6779092.843 | BE73: 86.70757899 | BF73: 220.2869513 | BG73: 408083.8429 | BH73: 3.292421007 | BI73: 214.8554549 | BJ73: -1.378239358 | BK73: -7.662465546 | BL73: 0.3568417176 | BM73: -7148.999452 | BN73: 1269.186299 | BO73: -336.5034793 | BP73: -5171228.637 | BQ73: 6662097.691 | BR73: -364802.9788 | BS73: -5162662.391 | BT73: -4376235.116 | BU73: 389336.6393 | BV73: 6779092.843 | BW73: 86.70757899 | BX73: 220.2869513 | BY73: 408083.8429 | BZ73: 3.292421007 | CA73: 214.8554549 | CB73: -0.7615565254 | CC73: -0.6455487803 | CD73: 0.05743196742 | CE73: -0.04381000136 | CF73: -0.03713643308 | CG73: -0.9983494224 | CH73: 0.6466160703 | CI73: -0.7628156118 | CJ73: 0 | CK73: 5.991152812e-05 | CL73: 2.83821384e-06 | CM73: -3.965250135e-06 | CN73: 0.1432971792 | CO73: 0.03704767977 | CP73: 0.05326383125 | CQ73: 6779092.843 | CR73: 86.70757899 | CS73: 220.2869513 | CT73: -5162662.391 | CU73: -4376235.116 | CV73: 389336.6393 | CW73: -5171228.637 | CX73: 6662097.691 | CY73: -364802.9788 | CZ73: 408083.8429 | DA73: 3.292421007 | DB73: 214.8554549 | DD73: =BS73-AX73 -> -2.607703209e-08 | DE73: 2.104789019e-07 | DF73: 3.026798368e-09 | DG73: 0.0001285225153 | DH73: -0.0001462176442 | DI73: -8.620554581e-05 | DJ73: -1.154839993e-07 | DK73: -8.526512829e-14 | DL73: -1.5063506e-12 | DM73: 4.768371582e-07 | DN73: 6.668269634e-07 | DO73: 8.63801688e-08 | DP73: 9.685754776e-08 | DQ73: -8.177012205e-07 | DR73: 3.818422556e-08 | DS73: =(CQ73-BD73)*1000 -> -0.0007888302207 | DT73: -6.110667528e-13 | DU73: -4.547473509e-13 | DW73: 35 | DX73: =IF(Q73=0,0,IF(DEGREES(IF(ATAN2(Q73,R73)<0,ATAN2(Q73,R73)+2*PI(),ATAN2(Q73,R73)))-$E$13*G73<0,DEGREES(IF(ATAN2(Q73,R73)<0,ATAN2(Q73,R73)+2*PI(),ATAN2(Q73,R73)))-$E$13*G73+360,DEGREES(IF(ATAN2(Q73,R73)<0,ATAN2(Q73,R73)+2*PI(),ATAN2(Q73,R73)))-$E$13*G73)) -> 135 | DY73: 5.431496372
A74: φL=90°-θ | B74: 局地系緯度 | D74: │ | E74: =-SIN(RADIANS(E14))*SIN(RADIANS(E15)) -> -0.4055797877 | F74: [ND] | G74: 1320 | H74: 650444.2715 | I74: 572473.3761 | J74: -38611.86204 | K74: 0.0214180473 | L74: -0.01764622391 | M74: 0 | N74: -241.9904775 | O74: -293.7151608 | P74: 0 | Q74: -4027845.979 | R74: 3318522.507 | S74: 3654260.638 | T74: -0.6322147684 | U74: 0.5208786406 | V74: 0.5735764364 | W74: -0.6358754083 | X74: -0.7717917239 | Y74: 0 | Z74: 0.4426815466 | AA74: -0.3647231507 | AB74: 0.8191520443 | AC74: 0 | AD74: 0 | AE74: 0 | AF74: 0 | AG74: 0 | AH74: 0.06474820144 | AI74: -0.4601887475 | AJ74: 0.3484342028 | AK74: -0.8165904255 | AL74: 0.672845659 | AM74: 0.7369454325 | AN74: -0.06473135753 | AO74: 0.5792279653 | AP74: -0.5792279653 | AQ74: -0.5735764364 | AR74: 6.504442715 | AS74: 5.724733761 | AT74: -0.3861186204 | AU74: 4007.233878 | AV74: -4848.993558 | AW74: -4384.988885 | AX74: -5083825.383 | AY74: -4474351.614 | AZ74: 301721.5623 | BA74: -5314473.321 | BB74: 6685947.086 | BC74: -371460.2307 | BD74: 6779095.72 | BE74: 87.4490573 | BF74: 221.3514944 | BG74: 408086.7204 | BH74: 2.550942696 | BI74: 215.8364366 | BJ74: -1.213798774 | BK74: -7.689132329 | BL74: 0.3785472517 | BM74: -7174.920829 | BN74: 1115.664394 | BO74: -329.1493529 | BP74: -5314473.321 | BQ74: 6685947.086 | BR74: -371460.2307 | BS74: -5083825.383 | BT74: -4474351.614 | BU74: 301721.5623 | BV74: 6779095.72 | BW74: 87.4490573 | BX74: 221.3514944 | BY74: 408086.7204 | BZ74: 2.550942696 | CA74: 215.8364366 | CB74: -0.7499267738 | CC74: -0.6600218965 | CD74: 0.04450764155 | CE74: -0.03341058045 | CF74: -0.0294051572 | CG74: -0.9990090439 | CH74: 0.660676598 | CI74: -0.7506706554 | CJ74: 0 | CK74: 5.404270156e-05 | CL74: 2.194938789e-06 | CM74: -3.071635495e-06 | CN74: 0.1444368309 | CO74: 0.0370980071 | CP74: 0.05319346214 | CQ74: 6779095.72 | CR74: 87.4490573 | CS74: 221.3514944 | CT74: -5083825.383 | CU74: -4474351.614 | CV74: 301721.5623 | CW74: -5314473.321 | CX74: 6685947.086 | CY74: -371460.2307 | CZ74: 408086.7204 | DA74: 2.550942696 | DB74: 215.8364366 | DD74: -2.421438694e-08 | DE74: 2.095475793e-07 | DF74: 7.566995919e-10 | DG74: 0.000124797225 | DH74: -0.0001452863216 | DI74: -8.643837646e-05 | DJ74: -1.201406121e-07 | DK74: -7.105427358e-14 | DL74: -1.47792889e-12 | DM74: 4.796311259e-07 | DN74: 6.714835763e-07 | DO74: 8.952338248e-08 | DP74: 9.872019291e-08 | DQ74: -8.23289156e-07 | DR74: 4.068715498e-08 | DS74: -0.000799074769 | DT74: -5.542233339e-13 | DU74: -3.126388037e-13 | DW74: 35 | DX74: 135 | DY74: 5.515057855
A75: λL=φ-ωet | B75: 局地系経度 | D75: ⎿ | E75: =COS(RADIANS(E14)) -> 0.8191520443 | F75: [ND] | G75: 1340 | H75: 640023.9511 | I75: 584733.3169 | J75: -27382.18862 | K75: 0.02144376017 | L75: -0.01761496858 | M75: 0 | N75: -241.5618594 | O75: -294.0677728 | P75: 0 | Q75: -4032681.504 | R75: 3312644.677 | S75: 3654260.638 | T75: -0.6329737572 | U75: 0.5199560505 | V75: 0.5735764364 | W75: -0.6347491337 | X75: -0.7727182781 | Y75: 0 | Z75: 0.4432129963 | AA75: -0.3640771461 | AB75: 0.8191520443 | AC75: 0 | AD75: 0 | AE75: 0 | AF75: 0 | AG75: 0 | AH75: 0.06474820144 | AI75: -0.4448652655 | AJ75: 0.3649997825 | AK75: -0.8178447618 | AL75: 0.6830738318 | AM75: 0.728882791 | AN75: -0.04626032122 | AO75: 0.5792279653 | AP75: -0.5792279653 | AQ75: -0.5735764364 | AR75: 6.400239511 | AS75: 5.847333169 | AT75: -0.2738218862 | AU75: 4136.286204 | AV75: -4733.267953 | AW75: -4391.588571 | AX75: -5002386.708 | AY75: -4570178.316 | AZ75: 213952.0445 | BA75: -5458203.506 | BB75: 6706720.948 | BC75: -377966.0686 | BD75: 6779098.62 | BE75: 88.19141366 | BF75: 222.4148089 | BG75: 408089.6196 | BH75: 1.808586337 | BI75: 216.8161896 | BJ75: -1.048799054 | BK75: -7.712237724 | BL75: 0.4001022031 | BM75: -7197.547676 | BN75: 961.6447491 | BO75: -321.3625931 | BP75: -5458203.506 | BQ75: 6706720.948 | BR75: -377966.0686 | BS75: -5002386.708 | BT75: -4570178.316 | BU75: 213952.0445 | BV75: 6779098.62 | BW75: 88.19141366 | BX75: 222.4148089 | BY75: 408089.6196 | BZ75: 1.808586337 | CA75: 216.8161896 | CB75: -0.7379132521 | CC75: -0.6741572253 | CD75: 0.03156054463 | CE75: -0.02330055148 | CF75: -0.02128737367 | CG75: -0.9995018419 | CH75: 0.6744932296 | CI75: -0.7382810327 | CJ75: 0 | CK75: 4.811429233e-05 | CL75: 1.553863019e-06 | CM75: -2.177900428e-06 | CN75: 0.14545849 | CO75: 0.03713549198 | CP75: 0.05314096663 | CQ75: 6779098.62 | CR75: 88.19141366 | CS75: 222.4148089 | CT75: -5002386.708 | CU75: -4570178.316 | CV75: 213952.0445 | CW75: -5458203.506 | CX75: 6706720.948 | CY75: -377966.0686 | CZ75: 408089.6196 | DA75: 1.808586337 | DB75: 216.8161896 | DD75: -2.235174179e-08 | DE75: 2.104789019e-07 | DF75: 0 | DG75: 0.0001229345798 | DH75: -0.0001480802894 | DI75: -8.649658412e-05 | DJ75: -1.257285476e-07 | DK75: -4.263256415e-14 | DL75: -1.449507181e-12 | DM75: 4.842877388e-07 | DN75: 6.724148989e-07 | DO75: 8.961069398e-08 | DP75: 9.406358004e-08 | DQ75: -8.270144463e-07 | DR75: 4.342291504e-08 | DS75: -0.0008074566722 | DT75: -4.689582056e-13 | DU75: -1.705302566e-13 | DW75: 35 | DX75: 135 | DY75: 5.598619337
C76: 極座標系初期角速度 | D76: ⎾ φ'0cosθ0⏋ | E76: =RADIANS(E50)*COS(RADIANS(E52)) -> 0.0007920386699 | F76: [rad/s] | G76: 1360 | H76: 629276.1182 | I76: 596693.9786 | J76: -16138.52671 | K76: 0.02146942743 | L76: -0.01758367579 | M76: 0 | N76: -241.1327274 | O76: -294.4197593 | P76: 0 | Q76: -4037508.45 | R76: 3306759.801 | S76: 3654260.638 | T76: -0.6337313996 | U76: 0.5190323543 | V76: 0.5735764364 | W76: -0.6336215089 | X76: -0.7736431887 | Y76: 0 | Z76: 0.4437435032 | AA76: -0.3634303671 | AB76: 0.8191520443 | AC76: 0 | AD76: 0 | AE76: 0 | AF76: 0 | AG76: 0 | AH76: 0.06474820144 | AI76: -0.4293145459 | AJ76: 0.38137892 | AK76: -0.8186813422 | AL76: 0.6929530899 | AM76: 0.7204478354 | AN76: -0.02776565509 | AO76: 0.5792279653 | AP76: -0.5792279653 | AQ76: -0.5735764364 | AR76: 6.292761182 | AS76: 5.966939786 | AT76: -0.1613852671 | AU76: 4263.221624 | AV76: -4615.120184 | AW76: -4395.940828 | AX76: -4918388.047 | AY76: -4663666.184 | AZ76: 126073.0026 | BA76: -5602353.195 | BB76: 6724410.034 | BC76: -384311.8713 | BD76: 6779101.538 | BE76: 88.93439162 | BF76: 223.4772523 | BG76: 408092.538 | BH76: 1.06560838 | BI76: 217.7950714 | BJ76: -0.8833159096 | BK76: -7.731771489 | BL76: 0.4214894255 | BM76: -7216.869568 | BN76: 807.1986966 | BO76: -313.146383 | BP76: -5602353.195 | BQ76: 6724410.034 | BR76: -384311.8713 | BS76: -4918388.047 | BT76: -4663666.184 | BU76: 126073.0026 | BV76: 6779101.538 | BW76: 88.93439162 | BX76: 223.4772523 | BY76: 408092.538 | BZ76: 1.06560838 | CA76: 217.7950714 | CB76: -0.7255221094 | CC76: -0.6879475337 | CD76: 0.01859730259 | CE76: -0.01349508811 | CF76: -0.01279618148 | CG76: -0.9998270552 | CH76: 0.6880665312 | CI76: -0.7256476063 | CJ76: 0 | CK76: 4.213850008e-05 | CL76: 9.143492264e-07 | CM76: -1.284093754e-06 | CN76: 0.1463610867 | CO76: 0.03716017203 | CP76: 0.0531063466 | CQ76: 6779101.538 | CR76: 88.93439162 | CS76: 223.4772523 | CT76: -4918388.047 | CU76: -4663666.184 | CV76: 126073.0026 | CW76: -5602353.195 | CX76: 6724410.034 | CY76: -384311.8713 | CZ76: 408092.538 | DA76: 1.06560838 | DB76: 217.7950714 | DD76: -2.793967724e-08 | DE76: 2.104789019e-07 | DF76: 0 | DG76: 0.0001266598701 | DH76: -0.0001443549991 | DI76: -8.923234418e-05 | DJ76: -1.257285476e-07 | DK76: -1.421085472e-14 | DL76: -1.47792889e-12 | DM76: 4.814937711e-07 | DN76: 6.789341569e-07 | DO76: 8.326605894e-08 | DP76: 9.499490261e-08 | DQ76: -8.29808414e-07 | DR76: 3.521563485e-08 | DS76: -0.0008167698979 | DT76: -2.98427949e-13 | DU76: -8.526512829e-14 | DW76: 35 | DX76: 135 | DY76: 5.68218082
A77: (7) 極座標系で解く | C77: ωQ0＝ | D77: │-φ'0sinθ0│ | E77: =-RADIANS(E50)*SIN(RADIANS(E52)) -> -0.001131148448 | F77: [rad/s] | G77: 1380 | H77: 618206.2753 | I77: 608349.2416 | J77: -4886.630637 | K77: 0.02149504903 | L77: -0.01755234559 | M77: 0 | N77: -240.7030826 | O77: -294.7711196 | P77: 0 | Q77: -4042326.809 | R77: 3300867.891 | S77: 3654260.638 | T77: -0.6344876941 | U77: 0.5181075542 | V77: 0.5735764364 | W77: -0.6324925364 | X77: -0.7745664538 | Y77: 0 | Z77: 0.4442730663 | AA77: -0.3627828151 | AB77: 0.8191520443 | AC77: 0 | AD77: 0 | AE77: 0 | AF77: 0 | AG77: 0 | AH77: 0.06474820144 | AI77: -0.4135445321 | AJ77: 0.3975632488 | AK77: -0.8190997395 | AL77: 0.702478387 | AM77: 0.7116448745 | AN77: -0.009256806237 | AO77: 0.5792279653 | AP77: -0.5792279653 | AQ77: -0.5735764364 | AR77: 6.182062753 | AS77: 6.083492416 | AT77: -0.04886630637 | AU77: 4387.975184 | AV77: -4494.610722 | AW77: -4398.043433 | AX77: -4831872.389 | AY77: -4754767.378 | AZ77: 38129.40932 | BA77: -5746856.196 | BB77: 6739006.53 | BC77: -390489.0844 | BD77: 6779104.473 | BE77: 89.67773535 | BF77: 224.539182 | BG77: 408095.4732 | BH77: 0.3222646526 | BI77: 218.7734397 | BJ77: -0.7174252766 | BK77: -7.747725052 | BL77: 0.4426918417 | BM77: -7232.877596 | BN77: 652.3977579 | BO77: -304.5042481 | BP77: -5746856.196 | BQ77: 6739006.53 | BR77: -390489.0844 | BS77: -4831872.389 | BT77: -4754767.378 | BU77: 38129.40932 | BV77: 6779104.473 | BW77: 89.67773535 | BX77: 224.539182 | BY77: 408095.4732 | BZ77: 0.3222646526 | CA77: 218.7734397 | CB77: -0.712759688 | CC77: -0.7013857652 | CD77: 0.005624549595 | CE77: -0.004009015629 | CF77: -0.003945041424 | CG77: -0.9999841821 | CH77: 0.7013968598 | CI77: -0.7127709626 | CJ77: 0 | CK77: 3.612759522e-05 | CL77: 2.757583195e-07 | CM77: -3.902505451e-07 | CN77: 0.1471437959 | CO77: 0.0371720721 | CP77: 0.05308960312 | CQ77: 6779104.473 | CR77: 89.67773535 | CS77: 224.539182 | CT77: -4831872.389 | CU77: -4754767.378 | CV77: 38129.40932 | CW77: -5746856.196 | CX77: 6739006.53 | CY77: -390489.0844 | CZ77: 408095.4732 | DA77: 0.3222646526 | DB77: 218.7734397 | DD77: -2.700835466e-08 | DE77: 2.160668373e-07 | DF77: 1.069565769e-09 | DG77: 0.0001294538379 | DH77: -0.0001508742571 | DI77: -9.004725143e-05 | DJ77: -1.322478056e-07 | DK77: -1.421085472e-14 | DL77: -1.449507181e-12 | DM77: 4.759058356e-07 | DN77: 7.040798664e-07 | DO77: 8.254573913e-08 | DP77: 1.108273864e-07 | DQ77: -8.465722203e-07 | DR77: 2.351589501e-08 | DS77: -0.0008326023817 | DT77: -1.98951966e-13 | DU77: -1.421085472e-13 | DW77: 35 | DX77: 135 | DY77: 5.765742302
A78: rQ''=(F･er)/m+rQ(θ'2+φ'2sin2θ) | D78: ⎿ θ'0 ⏌ | E78: =RADIANS(E50) -> 0.001380877281 | F78: [rad/s] | G78: 1400 | H78: 606820.0896 | I78: 619693.1429 | J78: 6367.741102 | K78: 0.0215206249 | L78: -0.01752097806 | M78: 0 | N78: -240.2729258 | O78: -295.1218529 | P78: 0 | Q78: -4047136.57 | R78: 3294968.96 | S78: 3654260.638 | T78: -0.635242639 | U78: 0.5171816521 | V78: 0.5735764364 | W78: -0.6313622186 | X78: -0.7754880714 | Y78: 0 | Z78: 0.4448016844 | AA78: -0.3621344914 | AB78: 0.8191520443 | AC78: 0 | AD78: 0 | AE78: 0 | AF78: 0 | AG78: 0 | AH78: 0.06474820144 | AI78: -0.3975632794 | AJ78: 0.4135445019 | AK78: -0.8190997399 | AL78: 0.7116448574 | AM78: 0.7024784047 | AN78: 0.009256770998 | AO78: 0.5792279653 | AP78: -0.5792279653 | AQ78: -0.5735764364 | AR78: 6.068200896 | AS78: 6.196931429 | AT78: 0.06367741102 | AU78: 4510.483044 | AV78: -4371.801245 | AW78: -4397.895315 | AX78: -4742884.012 | AY78: -4843435.279 | AZ78: -49833.72966 | BA78: -5891646.156 | BB78: 6750504.056 | BC78: -396489.2274 | BD78: 6779107.423 | BE78: 90.42118939 | BF78: 225.6009556 | BG78: 408098.4229 | BH78: -0.4211893874 | BI78: 219.7516518 | BJ78: -0.5512032788 | BK78: -7.760091512 | BL78: 0.4636924562 | BM78: -7245.56437 | BN78: 497.3136089 | BO78: -295.4400547 | BP78: -5891646.156 | BQ78: 6750504.056 | BR78: -396489.2274 | BS78: -4742884.012 | BT78: -4843435.279 | BU78: -49833.72966 | BV78: 6779107.423 | BW78: 90.42118939 | BX78: 225.6009556 | BY78: 408098.4229 | BZ78: -0.4211893874 | CA78: 219.7516518 | CB78: -0.6996325203 | CC78: -0.7144650434 | CD78: -0.007351075377 | CE78: 0.00514319036 | CF78: 0.005252228301 | CG78: -0.9999729805 | CH78: 0.7144843484 | CI78: -0.6996514245 | CJ78: 0 | CK78: 3.009389375e-05 | CL78: -3.625498302e-07 | CM78: 5.036022105e-07 | CN78: 0.1478060385 | CO78: 0.03717120425 | CP78: 0.05309073664 | CQ78: 6779107.423 | CR78: 90.42118939 | CS78: 225.6009556 | CT78: -4742884.012 | CU78: -4843435.279 | CV78: -49833.72966 | CW78: -5891646.156 | CX78: 6750504.056 | CY78: -396489.2274 | CZ78: 408098.4229 | DA78: -0.4211893874 | DB78: 219.7516518 | DD78: -2.887099981e-08 | DE78: 2.12341547e-07 | DF78: -8.949427865e-10 | DG78: 0.0001266598701 | DH78: -0.0001462176442 | DI78: -9.004725143e-05 | DJ78: -1.31316483e-07 | DK78: 4.263256415e-14 | DL78: -1.449507181e-12 | DM78: 4.759058356e-07 | DN78: 7.152557373e-07 | DO78: 8.440838428e-08 | DP78: 1.164153218e-07 | DQ78: -8.558854461e-07 | DR78: 2.171145752e-08 | DS78: -0.0008447095752 | DT78: -1.705302566e-13 | DU78: -8.526512829e-14 | DW78: 35 | DX78: 135 | DY78: 5.849303785
A79: θ''={(F･eθ)/m-2rQ'θ'+rQφ'2sinθcosθ)}/rQ | D79: ⎾ | E79: =COS(RADIANS(E53))*SIN(RADIANS(E52)) -> -0.5792279653 | F79: [ND] | G79: 1420 | H79: 595123.3898 | I79: 630719.8786 | J79: 17618.82883 | K79: 0.02154615501 | L79: -0.01748957327 | M79: 0 | N79: -239.8422579 | O79: -295.4719585 | P79: 0 | Q79: -4051937.723 | R79: 3289063.021 | S79: 3654260.638 | T79: -0.6359962328 | U79: 0.5162546499 | V79: 0.5735764364 | W79: -0.6302305579 | X79: -0.7764080395 | Y79: 0 | Z79: 0.4453293565 | AA79: -0.3614853975 | AB79: 0.8191520443 | AC79: 0 | AD79: 0 | AE79: 0 | AF79: 0 | AG79: 0 | AH79: 0.06474820144 | AI79: -0.381378951 | AJ79: 0.4293145161 | AK79: -0.8186813434 | AL79: 0.720447819 | AM79: 0.6929531084 | AN79: 0.02776561987 | AO79: 0.5792279653 | AP79: -0.5792279653 | AQ79: -0.5735764364 | AR79: 5.951233898 | AS79: 6.307198786 | AT79: 0.1761882883 | AU79: 4630.682518 | AV79: -4246.754609 | AW79: -4395.496556 | AX79: -4651468.457 | AY79: -4929624.513 | AZ79: -137771.3988 | BA79: -6036656.59 | BB79: 6758897.665 | BC79: -402303.9008 | BD79: 6779110.385 | BE79: 91.1644984 | BF79: 226.6629306 | BG79: 408101.3847 | BH79: -1.164498396 | BI79: 220.7300653 | BJ79: -0.384726193 | BK79: -7.76886564 | BL79: 0.4844743657 | BM79: -7254.924026 | BN79: 342.0180467 | BO79: -285.9580079 | BP79: -6036656.59 | BQ79: 6758897.665 | BR79: -402303.9008 | BS79: -4651468.457 | BT79: -4929624.513 | BU79: -137771.3988 | BV79: 6779110.385 | BW79: 91.1644984 | BX79: 226.6629306 | BY79: 408101.3847 | BZ79: -1.164498396 | CA79: 220.7300653 | CB79: -0.6861473251 | CC79: -0.7271786759 | CD79: -0.02032293191 | CE79: 0.01394740596 | CF79: 0.01478145556 | CG79: -0.9997934679 | CH79: 0.7273288927 | CI79: -0.6862890658 | CJ79: 0 | CK79: 2.404973216e-05 | CL79: -1.001215668e-06 | CM79: 1.397439972e-06 | CN79: 0.1483474819 | CO79: 0.03715756772 | CP79: 0.05310974711 | CQ79: 6779110.385 | CR79: 91.1644984 | CS79: 226.6629306 | CT79: -4651468.457 | CU79: -4929624.513 | CV79: -137771.3988 | CW79: -6036656.59 | CX79: 6758897.665 | CY79: -402303.9008 | CZ79: 408101.3847 | DA79: -1.164498396 | DB79: 220.7300653 | DD79: -3.073364496e-08 | DE79: 2.048909664e-07 | DF79: -2.124579623e-09 | DG79: 0.0001238659024 | DH79: -0.0001396983862 | DI79: -9.004725143e-05 | DJ79: -1.275911927e-07 | DK79: 2.842170943e-14 | DL79: -1.392663762e-12 | DM79: 4.898756742e-07 | DN79: 7.199123502e-07 | DO79: 8.739880286e-08 | DP79: 1.108273864e-07 | DQ79: -8.679926395e-07 | DR79: 2.892920747e-08 | DS79: -0.0008605420589 | DT79: -1.136868377e-13 | DU79: 1.136868377e-13 | DW79: 35 | DX79: 135 | DY79: 5.932865268
A80: φ''={(F･eφ)/m-2rQ'φ'sinθ-2rQφ'θ'cosθ)}/(rQsinθ) | D80: │ | E80: =SIN(RADIANS(E53))*SIN(RADIANS(E52)) -> 0.5792279653 | F80: [ND] | G80: 1440 | H80: 583122.1638 | I80: 641423.8076 | J80: 28860.87464 | K80: 0.02157163928 | L80: -0.01745813127 | M80: 0 | N80: -239.4110799 | O80: -295.8214356 | P80: 0 | Q80: -4056730.257 | R80: 3283150.086 | S80: 3654260.638 | T80: -0.6367484738 | U80: 0.5153265497 | V80: 0.5735764364 | W80: -0.6290975568 | X80: -0.7773263562 | Y80: 0 | Z80: 0.4458560813 | AA80: -0.3608355347 | AB80: 0.8191520443 | AC80: 0 | AD80: 0 | AE80: 0 | AF80: 0 | AG80: 0 | AH80: 0.06474820144 | AI80: -0.3649998138 | AJ80: 0.4448652361 | AK80: -0.8178447638 | AL80: 0.7288827753 | AM80: 0.683073851 | AN80: 0.04626028603 | AO80: 0.5792279653 | AP80: -0.5792279653 | AQ80: -0.5735764364 | AR80: 5.831221638 | AS80: 6.414238076 | AT80: 0.2886087464 | AU80: 4748.512098 | AV80: -4119.534814 | AW80: -4390.848387 | AX80: -4557672.51 | AY80: -5013290.976 | AZ80: -225638.5956 | BA80: -6181820.907 | BB80: 6764183.848 | BC80: -407924.7923 | BD80: 6779113.356 | BE80: 91.90740688 | BF80: 227.7254646 | BG80: 408104.356 | BH80: -1.907406884 | BI80: 221.7090379 | BJ80: -0.2180704143 | BK80: -7.774043889 | BL80: 0.5050207716 | BM80: -7260.952226 | BN80: 186.5829561 | BO80: -276.0626501 | BP80: -6181820.907 | BQ80: 6764183.848 | BR80: -407924.7923 | BS80: -4557672.51 | BT80: -5013290.976 | BU80: -225638.5956 | BV80: 6779113.356 | BW80: 91.90740688 | BX80: 227.7254646 | BY80: 408104.356 | BZ80: -1.907406884 | CA80: 221.7090379 | CB80: -0.6723110046 | CC80: -0.7395201573 | CD80: -0.03328438156 | CE80: 0.02238986174 | CF80: 0.024628117 | CG80: -0.9994459215 | CH80: 0.7399301367 | CI80: -0.6726837242 | CJ80: 0 | CK80: 1.800744211e-05 | CL80: -1.640879243e-06 | CM80: 2.291235025e-06 | CN80: 0.1487680402 | CO80: 0.03713114897 | CP80: 0.05314663396 | CQ80: 6779113.356 | CR80: 91.90740688 | CS80: 227.7254646 | CT80: -4557672.51 | CU80: -5013290.976 | CV80: -225638.5956 | CW80: -6181820.907 | CX80: 6764183.848 | CY80: -407924.7923 | CZ80: 408104.356 | DA80: -1.907406884 | DB80: 221.7090379 | DD80: -3.632158041e-08 | DE80: 2.142041922e-07 | DF80: -2.619344741e-10 | DG80: 0.0001331791282 | DH80: -0.0001443549991 | DI80: -9.417999536e-05 | DJ80: -1.341104507e-07 | DK80: 2.842170943e-14 | DL80: -1.421085472e-12 | DM80: 4.908069968e-07 | DN80: 7.301568985e-07 | DO80: 9.356881492e-08 | DP80: 1.173466444e-07 | DQ80: -8.763745427e-07 | DR80: 3.166496754e-08 | DS80: -0.0008726492524 | DT80: -5.684341886e-14 | DU80: 1.98951966e-13 | DW80: 35 | DX80: 135 | DY80: 6.01642675
A81: rQ'=∫rQ''dt | B81: 極座標系動径方向速度 | D81: │ | E81: =COS(RADIANS(E52)) -> 0.5735764364 | F81: [ND] | G81: 1460 | H81: 570822.5551 | I81: 651799.4537 | J81: 40088.1253 | K81: 0.02159707767 | L81: -0.01742665214 | M81: 0 | N81: -238.9793926 | O81: -296.1702835 | P81: 0 | Q81: -4061514.163 | R81: 3277230.168 | S81: 3654260.638 | T81: -0.6374993604 | U81: 0.5143973533 | V81: 0.5735764364 | W81: -0.6279632175 | X81: -0.7782430196 | Y81: 0 | Z81: 0.4463818578 | AA81: -0.3601849044 | AB81: 0.8191520443 | AC81: 0 | AD81: 0 | AE81: 0 | AF81: 0 | AG81: 0 | AH81: 0.06474820144 | AI81: -0.3484342345 | AJ81: 0.4601887185 | AK81: -0.8165904283 | AL81: 0.7369454175 | AM81: 0.6728456788 | AN81: 0.0647313224 | AO81: 0.5792279653 | AP81: -0.5792279653 | AQ81: -0.5735764364 | AR81: 5.708225551 | AS81: 6.517994537 | AT81: 0.400881253 | AU81: 4863.911491 | AV81: -3990.206972 | AW81: -4383.953192 | AX81: -4461544.175 | AY81: -5094391.852 | AZ81: -313390.3538 | BA81: -6327072.45 | BB81: 6766360.533 | BC81: -413343.6838 | BD81: 6779116.335 | BE81: 92.64965897 | BF81: 228.7889151 | BG81: 408107.3346 | BH81: -2.649658967 | BI81: 222.6889269 | BJ81: -0.05131242098 | BK81: -7.775624385 | BL81: 0.5253149908 | BM81: -7263.646161 | BN81: 31.08027648 | BO81: -265.7588584 | BP81: -6327072.45 | BQ81: 6766360.533 | BR81: -413343.6838 | BS81: -4461544.175 | BT81: -5094391.852 | BU81: -313390.3538 | BV81: 6779116.335 | BW81: 92.64965897 | BX81: 228.7889151 | BY81: 408107.3346 | BZ81: -2.649658967 | CA81: 222.6889269 | CB81: -0.6581306404 | CC81: -0.7514831728 | CD81: -0.04622879124 | CE81: 0.03045714639 | CF81: 0.03477733994 | CG81: -0.9989308779 | CH81: 0.7522874599 | CI81: -0.6588350155 | CJ81: 0 | CK81: 1.197932524e-05 | CL81: -2.282179478e-06 | CM81: 3.184950848e-06 | CN81: 0.1490678741 | CO81: 0.03709192164 | CP81: 0.05320139598 | CQ81: 6779116.335 | CR81: 92.64965897 | CS81: 228.7889151 | CT81: -4461544.175 | CU81: -5094391.852 | CV81: -313390.3538 | CW81: -6327072.45 | CX81: 6766360.533 | CY81: -413343.6838 | CZ81: 408107.3346 | DA81: -2.649658967 | DB81: 222.6889269 | DD81: -3.539025784e-08 | DE81: 2.151355147e-07 | DF81: -4.365574569e-09 | DG81: 0.0001294538379 | DH81: -0.0001462176442 | DI81: -9.650830179e-05 | DJ81: -1.37835741e-07 | DK81: 9.947598301e-14 | DL81: -1.449507181e-12 | DM81: 5.029141903e-07 | DN81: 7.413327694e-07 | DO81: 9.383074939e-08 | DP81: 1.145526767e-07 | DQ81: -8.931383491e-07 | DR81: 3.451714292e-08 | DS81: -0.0008922070265 | DT81: 2.842170943e-14 | DU81: 3.410605132e-13 | DW81: 35 | DX81: 135 | DY81: 6.099988233
A82: θ'=∫θ''dt | B82: 極座標系法線方向角速度 | C82: 極座標系Ｑ方向余弦行列 | D82: │ | E82: =COS(RADIANS(E53))*COS(RADIANS(E52)) -> -0.4055797877 | F82: [ND] | G82: 1480 | H82: 558230.8599 | I82: 661841.5092 | J82: 51294.83526 | K82: 0.02162247012 | L82: -0.01739513594 | M82: 0 | N82: -238.5471971 | O82: -296.5185014 | P82: 0 | Q82: -4066289.43 | R82: 3271303.279 | S82: 3654260.638 | T82: -0.6382488911 | U82: 0.5134670629 | V82: 0.5735764364 | W82: -0.6268275425 | X82: -0.7791580276 | Y82: 0 | Z82: 0.4469066848 | AA82: -0.359533508 | AB82: 0.8191520443 | AC82: 0 | AD82: 0 | AE82: 0 | AF82: 0 | AG82: 0 | AH82: 0.06474820144 | AI82: -0.3316906746 | AJ82: 0.4752771362 | AK82: -0.8149189777 | AL82: 0.7446316274 | AM82: 0.6622738165 | AN82: 0.08316929396 | AO82: 0.5792279653 | AP82: -0.5792279653 | AQ82: -0.5735764364 | AR82: 5.582308599 | AS82: 6.618415092 | AT82: 0.5129483526 | AU82: 4976.821648 | AV82: -3858.837273 | AW82: -4374.814506 | AX82: -4363132.646 | AY82: -5172885.642 | AZ82: -400981.7664 | BA82: -6472344.517 | BB82: 6765427.088 | BC82: -418552.4584 | BD82: 6779119.318 | BE82: 93.3909981 | BF82: 229.8536396 | BG82: 408110.3179 | BH82: -3.390998102 | BI82: 223.6700899 | BJ82: 0.1154712604 | BK82: -7.773606936 | BL82: 0.5453404672 | BM82: -7263.004552 | BN82: -124.4180326 | BO82: -255.0518421 | BP82: -6472344.517 | BQ82: 6765427.088 | BR82: -418552.4584 | BS82: -4363132.646 | BT82: -5172885.642 | BU82: -400981.7664 | BV82: 6779119.318 | BW82: 93.3909981 | BX82: 229.8536396 | BY82: 408110.3179 | BZ82: -3.390998102 | CA82: 223.6700899 | CB82: -0.6436134904 | CC82: -0.7630616012 | CD82: -0.05914953663 | CE82: 0.03813621114 | CF82: 0.04521390364 | CG82: -0.9982491334 | CH82: 0.7643999636 | CI82: -0.6447423482 | CJ82: 0 | CK82: 5.977628075e-06 | CL82: -2.925753427e-06 | CM82: 4.078536435e-06 | CN82: 0.1492473894 | CO82: 0.03703984663 | CP82: 0.05327403113 | CQ82: 6779119.318 | CR82: 93.3909981 | CS82: 229.8536396 | CT82: -4363132.646 | CU82: -5172885.642 | CV82: -400981.7664 | CW82: -6472344.517 | CX82: 6765427.088 | CY82: -418552.4584 | CZ82: 408110.3179 | DA82: -3.390998102 | DB82: 223.6700899 | DD82: -3.725290298e-08 | DE82: 2.169981599e-07 | DF82: -5.878973752e-09 | DG82: 0.0001322478056 | DH82: -0.0001462176442 | DI82: -9.994255379e-05 | DJ82: -1.415610313e-07 | DK82: 1.278976924e-13 | DL82: -1.421085472e-12 | DM82: 5.05708158e-07 | DN82: 7.469207048e-07 | DO82: 9.941868484e-08 | DP82: 1.192092896e-07 | DQ82: -8.996576071e-07 | DR82: 3.806781024e-08 | DS82: -0.0009015202522 | DT82: 1.136868377e-13 | DU82: 5.115907697e-13 | DW82: 35 | DX82: 135 | DY82: 6.183549716
A83: φ'=∫φ''dt | B83: 極座標系接線方向角速度 | C83: 初期値 | D83: DIQ0= │ | E83: =SIN(RADIANS(E53))*COS(RADIANS(E52)) -> 0.4055797877 | F83: [ND] | G83: 1500 | H83: 545353.5238 | I83: 671544.8367 | J83: 62475.26953 | K83: 0.02164781658 | L83: -0.01736358274 | M83: 0 | N83: -238.1144941 | O83: -296.8660887 | P83: 0 | Q83: -4071056.047 | R83: 3265369.432 | S83: 3654260.638 | T83: -0.6389970642 | U83: 0.5125356803 | V83: 0.5735764364 | W83: -0.6256905343 | X83: -0.7800713783 | Y83: 0 | Z83: 0.4474305613 | AA83: -0.3588813469 | AB83: 0.8191520443 | AC83: 0 | AD83: 0 | AE83: 0 | AF83: 0 | AG83: 0 | AH83: 0.06474820144 | AI83: -0.3147776869 | AJ83: 0.4901227818 | AK83: -0.8128312658 | AL83: 0.7519374788 | AM83: 0.6513636641 | AN83: 0.1015647826 | AO83: 0.5792279653 | AP83: -0.5792279653 | AQ83: -0.5735764364 | AR83: 5.453535238 | AS83: 6.715448367 | AT83: 0.6247526953 | AU83: 5087.184792 | AV83: -3725.492951 | AW83: -4363.43701 | AX83: -4262488.289 | AY83: -5248732.178 | AZ83: -488368.0084 | BA83: -6617570.396 | BB83: 6761384.32 | BC83: -423543.1062 | BD83: 6779122.304 | BE83: 94.13116684 | BF83: 230.9199955 | BG83: 408113.3037 | BH83: -4.131166838 | BI83: 224.6528843 | BJ83: 0.2822040902 | BK83: -7.767993026 | BL83: 0.5650807833 | BM83: -7259.02765 | BN83: -279.8400242 | BO83: -243.9471408 | BP83: -6617570.396 | BQ83: 6761384.32 | BR83: -423543.1062 | BS83: -4262488.289 | BT83: -5248732.178 | BU83: -488368.0084 | BV83: 6779122.304 | BW83: 94.13116684 | BX83: 230.9199955 | BY83: 408113.3037 | BZ83: -4.131166838 | CA83: 224.6528843 | CB83: -0.6287669846 | CC83: -0.7742495184 | CD83: -0.07204000555 | CE83: 0.04541437526 | CF83: 0.05592223993 | CG83: -0.9974017433 | CH83: 0.7762664579 | CI83: -0.6304049384 | CJ83: 0 | CK83: 1.451702609e-08 | CL83: -3.572235478e-06 | CM83: 4.971920565e-06 | CN83: 0.1493072364 | CO83: 0.03697487212 | CP83: 0.0533645361 | CQ83: 6779122.304 | CR83: 94.13116684 | CS83: 230.9199955 | CT83: -4262488.289 | CU83: -5248732.178 | CV83: -488368.0084 | CW83: -6617570.396 | CX83: 6761384.32 | CY83: -423543.1062 | CZ83: 408113.3037 | DA83: -4.131166838 | DB83: 224.6528843 | DD83: -4.097819328e-08 | DE83: 2.12341547e-07 | DF83: -8.207280189e-09 | DG83: 0.0001303851604 | DH83: -0.0001396983862 | DI83: -0.0001013977453 | DJ83: -1.37835741e-07 | DK83: 1.421085472e-13 | DL83: -1.421085472e-12 | DM83: 5.261972547e-07 | DN83: 7.320195436e-07 | DO83: 1.029111445e-07 | DP83: 9.778887033e-08 | DQ83: -9.005889297e-07 | DR83: 5.70435077e-08 | DS83: -0.0009052455425 | DT83: 1.705302566e-13 | DU83: 8.810729923e-13 | DW83: 35 | DX83: 135 | DY83: 6.267111198
A84: rQ=∫rQ'dt | B84: 極座標系動径方向距離 | D84: │ | E84: =-SIN(RADIANS(E52)) -> -0.8191520443 | F84: [ND] | G84: 1520 | H84: 532197.1383 | I84: 680904.4727 | J84: 73623.70664 | K84: 0.021673117 | L84: -0.01733199262 | M84: 0 | N84: -237.6812847 | O84: -297.2130445 | P84: 0 | Q84: -4075814.006 | R84: 3259428.639 | S84: 3654260.638 | T84: -0.6397438782 | U84: 0.5116032075 | V84: 0.5735764364 | W84: -0.6245521953 | X84: -0.7809830699 | Y84: 0 | Z84: 0.4479534861 | AA84: -0.3582284225 | AB84: 0.8191520443 | AC84: 0 | AD84: 0 | AE84: 0 | AF84: 0 | AG84: 0 | AH84: 0.06474820144 | AI84: -0.2977039104 | AJ84: 0.5047180723 | AK84: -0.8103283589 | AL84: 0.7588592398 | AM84: 0.6401207946 | AN84: 0.1199083918 | AO84: 0.5792279653 | AP84: -0.5792279653 | AQ84: -0.5735764364 | AR84: 5.321971383 | AS84: 6.809044727 | AT84: 0.7362370664 | AU84: 5194.944453 | AV84: -3590.242251 | AW84: -4349.826531 | AX84: -4159662.611 | AY84: -5321892.65 | AZ84: -575504.36 | BA84: -6762683.399 | BB84: 6754234.475 | BC84: -428307.7318 | BD84: 6779125.289 | BE84: 94.86990656 | BF84: 231.9883402 | BG84: 408116.2894 | BH84: -4.869906563 | BI84: 225.6376675 | BJ84: 0.4488095508 | BK84: -7.758785818 | BL84: 0.5845196714 | BM84: -7251.717237 | BN84: -435.1137979 | BO84: -232.4506204 | BP84: -6762683.399 | BQ84: 6754234.475 | BR84: -428307.7318 | BS84: -4159662.611 | BT84: -5321892.65 | BU84: -575504.36 | BV84: 6779125.289 | BW84: 94.86990656 | BX84: 231.9883402 | BY84: 408116.2894 | BZ84: -4.869906563 | CA84: 225.6376675 | CB84: -0.6135987216 | CC84: -0.7850411997 | CD84: -0.08489360137 | CE84: 0.0522793325 | CF84: 0.06688643321 | CG84: -0.9963900223 | CH84: 0.7878854487 | CI84: -0.6158218247 | CJ84: 0 | CK84: -5.897946473e-06 | CL84: -4.222256504e-06 | CM84: 5.865005984e-06 | CN84: 0.1492483077 | CO84: 0.03689693362 | CP84: 0.05347290597 | CQ84: 6779125.289 | CR84: 94.86990656 | CS84: 231.9883402 | CT84: -4159662.611 | CU84: -5321892.65 | CV84: -575504.36 | CW84: -6762683.399 | CX84: 6754234.475 | CY84: -428307.7318 | CZ84: 408116.2894 | DA84: -4.869906563 | DB84: 225.6376675 | DD84: -4.284083843e-08 | DE84: 2.197921276e-07 | DF84: -8.498318493e-09 | DG84: 0.0001341104507 | DH84: -0.0001443549991 | DI84: -0.0001044827513 | DJ84: -1.452863216e-07 | DK84: 1.705302566e-13 | DL84: -1.421085472e-12 | DM84: 5.196779966e-07 | DN84: 7.525086403e-07 | DO84: 1.001171768e-07 | DP84: 1.098960638e-07 | DQ84: -9.117648005e-07 | DR84: 4.563480616e-08 | DS84: -0.0009182840586 | DT84: 3.126388037e-13 | DU84: 8.810729923e-13 | DW84: 35 | DX84: 135 | DY84: 6.350672681
A85: θ=∫θ'dt | B85: 極座標系法線方向角 | D85: │ | E85: =-SIN(RADIANS(E53)) -> -0.7071067812 | F85: [ND] | G85: 1540 | H85: 518768.4378 | I85: 689915.6293 | J85: 84734.44161 | K85: 0.02169837132 | L85: -0.01730036562 | M85: 0 | N85: -237.2475698 | O85: -297.5593681 | P85: 0 | Q85: -4080563.295 | R85: 3253480.914 | S85: 3654260.638 | T85: -0.6404893315 | U85: 0.5106696466 | V85: 0.5735764364 | W85: -0.6234125278 | X85: -0.7818931002 | Y85: 0 | Z85: 0.448475458 | AA85: -0.3575747361 | AB85: 0.8191520443 | AC85: 0 | AD85: 0 | AE85: 0 | AF85: 0 | AG85: 0 | AH85: 0.06474820144 | AI85: -0.2804780665 | AJ85: 0.5190555523 | AK85: -0.8074115356 | AL85: 0.7653933749 | AM85: 0.6285509508 | AN85: 0.1381907517 | AO85: 0.5792279653 | AP85: -0.5792279653 | AQ85: -0.5735764364 | AR85: 5.187684378 | AS85: 6.899156293 | AT85: 0.8473444161 | AU85: 5300.045493 | AV85: -3453.154394 | AW85: -4333.990041 | AX85: -4054708.235 | AY85: -5392329.621 | AZ85: -662346.2293 | BA85: -6907616.884 | BB85: 6743981.235 | BC85: -432838.5601 | BD85: 6779128.273 | BE85: 95.60695725 | BF85: 233.0590308 | BG85: 408119.2728 | BH85: -5.606957246 | BI85: 226.6247966 | BJ85: 0.6152111812 | BK85: -7.74599015 | BL85: 0.6036410244 | BM85: -7241.076627 | BN85: -590.1675334 | BO85: -220.5684708 | BP85: -6907616.884 | BQ85: 6743981.235 | BR85: -432838.5601 | BS85: -4054708.235 | BT85: -5392329.621 | BU85: -662346.2293 | BV85: 6779128.273 | BW85: 95.60695725 | BX85: 233.0590308 | BY85: 408119.2728 | BZ85: -5.606957246 | CA85: 226.6247966 | CB85: -0.5981164646 | CC85: -0.7954311238 | CD85: -0.09770374636 | CE85: 0.05871915861 | CF85: 0.07809022003 | CG85: -0.9952155435 | CH85: 0.7992551252 | CI85: -0.6009918841 | CJ85: 0 | CK85: -1.174783057e-05 | CL85: -4.876442934e-06 | CM85: 6.757663481e-06 | CN85: 0.1490717358 | CO85: 0.03680595409 | CP85: 0.0535991335 | CQ85: 6779128.273 | CR85: 95.60695725 | CS85: 233.0590308 | CT85: -4054708.235 | CU85: -5392329.621 | CV85: -662346.2293 | CW85: -6907616.884 | CX85: 6743981.235 | CY85: -432838.5601 | CZ85: 408119.2728 | DA85: -5.606957246 | DB85: 226.6247966 | DD85: -4.237517715e-08 | DE85: 2.197921276e-07 | DF85: -8.614733815e-09 | DG85: 0.0001341104507 | DH85: -0.0001462176442 | DI85: -0.000104366336 | DJ85: -1.490116119e-07 | DK85: 1.847411113e-13 | DL85: -1.364242053e-12 | DM85: 5.39701432e-07 | DN85: 7.4878335e-07 | DO85: 9.697396308e-08 | DP85: 9.220093489e-08 | DQ85: -9.220093489e-07 | DR85: 5.366746336e-08 | DS85: -0.0009285286069 | DT85: 4.547473509e-13 | DU85: 1.193711796e-12 | DW85: 35 | DX85: 135 | DY85: 6.434234164
A86: φ=∫φ'dt | B86: 極座標系接線方向角 | D86: │ | E86: =COS(RADIANS(E53)) -> -0.7071067812 | F86: [ND] | G86: 1560 | H86: 505074.2959 | I86: 698573.6971 | J86: 95801.78878 | K86: 0.02172357948 | L86: -0.01726870183 | M86: 0 | N86: -236.8133502 | O86: -297.9050589 | P86: 0 | Q86: -4085303.905 | R86: 3247526.269 | S86: 3654260.638 | T86: -0.6412334224 | U86: 0.5097349994 | V86: 0.5735764364 | W86: -0.6222715343 | X86: -0.7828014676 | Y86: 0 | Z86: 0.4489964761 | AA86: -0.3569202891 | AB86: 0.8191520443 | AC86: 0 | AD86: 0 | AE86: 0 | AF86: 0 | AG86: 0 | AH86: 0.06474820144 | AI86: -0.2631089542 | AJ86: 0.5331278983 | AK86: -0.8040822858 | AL86: 0.7715365464 | AM86: 0.6166600426 | AN86: 0.1564025236 | AO86: 0.5792279653 | AP86: -0.5792279653 | AQ86: -0.5735764364 | AR86: 5.050742959 | AS86: 6.985736971 | AT86: 0.9580178878 | AU86: 5402.434132 | AV86: -3314.299539 | AW86: -4315.935647 | AX86: -3947678.874 | AY86: -5460007.046 | AZ86: -748849.1753 | BA86: -7052304.294 | BB86: 6730629.719 | BC86: -437127.9431 | BD86: 6779131.252 | BE86: 96.34205719 | BF86: 234.1324245 | BG86: 408122.2515 | BH86: -6.342057192 | BI86: 227.6146288 | BJ86: 0.7813326128 | BK86: -7.729612532 | BL86: 0.6224289076 | BM86: -7227.110658 | BN86: -744.9295239 | BO86: -208.3072026 | BP86: -7052304.294 | BQ86: 6730629.719 | BR86: -437127.9431 | BS86: -3947678.874 | BT86: -5460007.046 | BU86: -748849.1753 | BV86: 6779131.252 | BW86: 96.34205719 | BX86: 234.1324245 | BY86: 408122.2515 | BZ86: -6.342057192 | CA86: 227.6146288 | CB86: -0.5823281373 | CC86: -0.8054139747 | CD86: -0.1104638851 | CE86: 0.06472232005 | CF86: 0.08951698827 | CG86: -0.9938801387 | CH86: 0.8103733471 | CI86: -0.5859138488 | CJ86: 0 | CK86: -1.752335719e-05 | CL86: -5.535415739e-06 | CM86: 7.649725847e-06 | CN86: 0.1487788902 | CO86: 0.03670184399 | CP86: 0.05374320855 | CQ86: 6779131.252 | CR86: 96.34205719 | CS86: 234.1324245 | CT86: -3947678.874 | CU86: -5460007.046 | CV86: -748849.1753 | CW86: -7052304.294 | CX86: 6730629.719 | CY86: -437127.9431 | CZ86: 408122.2515 | DA86: -6.342057192 | DB86: 227.6146288 | DD86: -4.563480616e-08 | DE86: 2.244487405e-07 | DF86: -6.752088666e-09 | DG86: 0.0001387670636 | DH86: -0.0001471489668 | DI86: -0.0001064618118 | DJ86: -1.536682248e-07 | DK86: 2.131628207e-13 | DL86: -1.449507181e-12 | DM86: 5.327165127e-07 | DN86: 7.646158338e-07 | DO86: 1.029111445e-07 | DP86: 1.071020961e-07 | DQ86: -9.294599295e-07 | DR86: 5.128094926e-08 | DS86: -0.0009369105101 | DT86: 5.115907697e-13 | DU86: 1.222133506e-12 | DW86: 35 | DX86: 135 | DY86: 6.517795646
A87: DIQ=(er, eθ, eφ) | B87: 極座標系方向余弦行列 | D87: ⎿ | E87: 0 | F87: [ND] | G87: 1580 | H87: 491121.722 | I87: 706874.2475 | J87: 106820.0848 | K87: 0.02174874144 | L87: -0.01723700131 | M87: 0 | N87: -236.3786269 | O87: -298.250116 | P87: 0 | Q87: -4090035.826 | R87: 3241564.716 | S87: 3654260.638 | T87: -0.6419761495 | U87: 0.5087992681 | V87: 0.5735764364 | W87: -0.6211292173 | X87: -0.7837081698 | Y87: 0 | Z87: 0.4495165392 | AA87: -0.3562650829 | AB87: 0.8191520443 | AC87: 0 | AD87: 0 | AE87: 0 | AF87: 0 | AG87: 0 | AH87: 0.06474820144 | AI87: -0.2456054455 | AJ87: 0.5469279221 | AK87: -0.80034231 | AL87: 0.7772856163 | AM87: 0.604454144 | AN87: 0.174534405 | AO87: 0.5792279653 | AP87: -0.5792279653 | AQ87: -0.5735764364 | AR87: 4.91121722 | AS87: 7.068742475 | AT87: 1.068200848 | AU87: 5502.057982 | AV87: -3173.74875 | AW87: -4295.672595 | AX87: -3838629.302 | AY87: -5524890.296 | AZ87: -834968.9306 | BA87: -7196679.184 | BB87: 6714186.476 | BC87: -441168.3662 | BD87: 6779134.223 | BE87: 97.07494279 | BF87: 235.208878 | BG87: 408125.2232 | BH87: -7.074942792 | BI87: 228.6075209 | BJ87: 0.9470976039 | BK87: -7.709661145 | BL87: 0.640867569 | BM87: -7209.825699 | BN87: -899.3282092 | BO87: -195.6736427 | BP87: -7196679.184 | BQ87: 6714186.476 | BR87: -441168.3662 | BS87: -3838629.302 | BT87: -5524890.296 | BU87: -834968.9306 | BV87: 6779134.223 | BW87: 97.07494279 | BX87: 235.208878 | BY87: 408125.2232 | BZ87: -7.074942792 | CA87: 228.6075209 | CB87: -0.5662418203 | CC87: -0.8149846446 | CD87: -0.1231674876 | CE87: 0.07027768386 | CF87: 0.1011497759 | CG87: -0.9923858977 | CH87: 0.8212376319 | CI87: -0.5705863229 | CJ87: 0 | CK87: -2.321292619e-05 | CL87: -6.199789294e-06 | CM87: 8.540981685e-06 | CN87: 0.1483713746 | CO87: 0.03658450145 | CP87: 0.05390511717 | CQ87: 6779134.223 | CR87: 97.07494279 | CS87: 235.208878 | CT87: -3838629.302 | CU87: -5524890.296 | CV87: -834968.9306 | CW87: -7196679.184 | CX87: 6714186.476 | CY87: -441168.3662 | CZ87: 408125.2232 | DA87: -7.074942792 | DB87: 228.6075209 | DD87: -4.516914487e-08 | DE87: 2.253800631e-07 | DF87: -8.032657206e-09 | DG87: 0.0001369044185 | DH87: -0.0001480802894 | DI87: -0.0001073349267 | DJ87: -1.573935151e-07 | DK87: 2.273736754e-13 | DL87: -1.449507181e-12 | DM87: 5.415640771e-07 | DN87: 7.636845112e-07 | DO87: 1.043081284e-07 | DP87: 1.005828381e-07 | DQ87: -9.350478649e-07 | DR87: 5.681067705e-08 | DS87: -0.0009424984455 | DT87: 6.110667528e-13 | DU87: 1.421085472e-12 | DW87: 35 | DX87: 135 | DY87: 6.601357129
A88: ⎾cosφsinθ⏋ | C88: =exe("極座標系初期速度",E88:E90=vctsub(mx31mp(mx33tp(E79:E87),E36:E38),vctcrp(E76:E78,E91:E93))) -> 極座標系初期速度 | D88: ⎾ | E88: -7.527312107e-14 | F88: [m/s] | G88: 1600 | H88: 476917.8574 | I88: 714813.0349 | J88: 117783.6914 | K88: 0.02177385714 | L88: -0.01720526412 | M88: 0 | N88: -235.9434008 | O88: -298.5945387 | P88: 0 | Q88: -4094759.047 | R88: 3235596.269 | S88: 3654260.638 | T88: -0.642717511 | U88: 0.5078624545 | V88: 0.5735764364 | W88: -0.6199855791 | X88: -0.7846132052 | Y88: 0 | Z88: 0.4500356461 | AA88: -0.355609119 | AB88: 0.8191520443 | AC88: 0 | AD88: 0 | AE88: 0 | AF88: 0 | AG88: 0 | AH88: 0.06474820144 | AI88: -0.2279764814 | AJ88: 0.5604485747 | AK88: -0.7961935186 | AL88: 0.782637648 | AM88: 0.5919394896 | AN88: 0.1925771341 | AO88: 0.5792279653 | AP88: -0.5792279653 | AQ88: -0.5735764364 | AR88: 4.769178574 | AS88: 7.148130349 | AT88: 1.177836914 | AU88: 5598.866068 | AV88: -3031.573958 | AW88: -4273.211259 | AX88: -3727615.327 | AY88: -5586946.169 | AZ88: -920661.4237 | BA88: -7340675.248 | BB88: 6694659.488 | BC88: -444952.4544 | BD88: 6779137.186 | BE88: 97.80534828 | BF88: 236.2887479 | BG88: 408128.1856 | BH88: -7.805348276 | BI88: 229.6038293 | BJ88: 1.112430074 | BK88: -7.686145833 | BL88: 0.6589414507 | BM88: -7189.229638 | BN88: -1053.29221 | BO88: -182.6749317 | BP88: -7340675.248 | BQ88: 6694659.488 | BR88: -444952.4544 | BS88: -3727615.327 | BT88: -5586946.169 | BU88: -920661.4237 | BV88: 6779137.186 | BW88: 97.80534828 | BX88: 236.2887479 | BY88: 408128.1856 | BZ88: -7.805348276 | CA88: 229.6038293 | CB88: -0.5498657462 | CC88: -0.8241382371 | CD88: -0.1358080532 | CE88: 0.07537452889 | CF88: 0.1129712694 | CG88: -0.9907351678 | CH88: 0.8318451428 | CI88: -0.5550078004 | CJ88: 0 | CK88: -2.880513886e-05 | CL88: -6.87017013e-06 | CM88: 9.431169069e-06 | CN88: 0.1478510223 | CO88: 0.03645381237 | CP88: 0.0540848407 | CQ88: 6779137.186 | CR88: 97.80534828 | CS88: 236.2887479 | CT88: -3727615.327 | CU88: -5586946.169 | CV88: -920661.4237 | CW88: -7340675.248 | CX88: 6694659.488 | CY88: -444952.4544 | CZ88: 408128.1856 | DA88: -7.805348276 | DB88: 229.6038293 | DD88: -4.563480616e-08 | DE88: 2.281740308e-07 | DF88: -7.916241884e-09 | DG88: 0.0001387670636 | DH88: -0.0001518055797 | DI88: -0.0001093139872 | DJ88: -1.62050128e-07 | DK88: 2.557953849e-13 | DL88: -1.421085472e-12 | DM88: 5.12227416e-07 | DN88: 7.888302207e-07 | DO88: 1.098960638e-07 | DP88: 1.341104507e-07 | DQ88: -9.378418326e-07 | DR88: 3.969762474e-08 | DS88: -0.0009471550584 | DT88: 6.821210263e-13 | DU88: 1.222133506e-12 | DW88: 35 | DX88: 135 | DY88: 6.684918612
A89: er=│ sinφsinθ│ | B89: 極座標系動径方向単位ベクトル | C89: r'Q0 = DIQ0T･R'Q0-ωQ0×rQ0= | D89: rQ'0 = │ | E89: -9360.979516 | F89: [m/s] | G89: 1620 | H89: 462469.9723 | I89: 722385.9986 | J89: 128686.9986 | K89: 0.02179892653 | L89: -0.01717349034 | M89: 0 | N89: -235.5076729 | O89: -298.9383263 | P89: 0 | Q89: -4099473.559 | R89: 3229620.939 | S89: 3654260.638 | T89: -0.6434575055 | U89: 0.5069245607 | V89: 0.5735764364 | W89: -0.6188406222 | X89: -0.7855165717 | Y89: 0 | Z89: 0.4505537959 | AA89: -0.3549523987 | AB89: 0.8191520443 | AC89: 0 | AD89: 0 | AE89: 0 | AF89: 0 | AG89: 0 | AH89: 0.06474820144 | AI89: -0.2102310667 | AJ89: 0.5736829496 | AK89: -0.7916380309 | AL89: 0.7875899077 | AM89: 0.579122472 | AN89: 0.2105214946 | AO89: 0.5792279653 | AP89: -0.5792279653 | AQ89: -0.5735764364 | AR89: 4.624699723 | AS89: 7.223859986 | AT89: 1.286869986 | AU89: 5692.808857 | AV89: -2887.847925 | AW89: -4248.563139 | AX89: -3614693.762 | AY89: -5646142.912 | AZ89: -1005882.802 | BA89: -7484226.357 | BB89: 6672058.16 | BC89: -448472.9787 | BD89: 6779140.137 | BE89: 98.53300547 | BF89: 237.3723903 | BG89: 408131.1365 | BH89: -8.533005471 | BI89: 230.6039102 | BJ89: 1.277254141 | BK89: -7.659078103 | BL89: 0.6766351996 | BM89: -7165.331885 | BN89: -1206.750359 | BO89: -169.318519 | BP89: -7484226.357 | BQ89: 6672058.16 | BR89: -448472.9787 | BS89: -3614693.762 | BT89: -5646142.912 | BU89: -1005882.802 | BV89: 6779140.137 | BW89: 98.53300547 | BX89: 237.3723903 | BY89: 408131.1365 | BZ89: -8.533005471 | CA89: 230.6039102 | CB89: -0.5332082962 | CC89: -0.8328700689 | CD89: -0.1483791133 | CE89: 0.08000255825 | CF89: 0.1249638025 | CG89: -0.988930553 | CH89: 0.842192676 | CI89: -0.5391766839 | CJ89: 0 | CK89: -3.428882114e-05 | CL89: -7.54715552e-06 | CM89: 1.031996904e-05 | CN89: 0.1472198926 | CO89: 0.03630965061 | CP89: 0.0542823547 | CQ89: 6779140.137 | CR89: 98.53300547 | CS89: 237.3723903 | CT89: -3614693.762 | CU89: -5646142.912 | CV89: -1005882.802 | CW89: -7484226.357 | CX89: 6672058.16 | CY89: -448472.9787 | CZ89: 408131.1365 | DA89: -8.533005471 | DB89: 230.6039102 | DD89: -4.470348358e-08 | DE89: 2.346932888e-07 | DF89: -8.731149137e-09 | DG89: =(BP89-BA89)*1000 -> 0.0001415610313 | DH89: -0.0001564621925 | DI89: -0.0001101288944 | DJ89: -1.704320312e-07 | DK89: =IF(BW89-BE89<-180,BW89-BE89+360,IF(BW89-BE89>180,BW89-BE89-360,BW89-BE89)) -> 2.842170943e-13 | DL89: -1.421085472e-12 | DM89: 5.289912224e-07 | DN89: 7.86036253e-07 | DO89: 1.128064469e-07 | DP89: 1.229345798e-07 | DQ89: -9.452924132e-07 | DR89: 5.163019523e-08 | DS89: -0.0009527429938 | DT89: =IF(CR89-BE89<-180,CR89-BE89+360,IF(CR89-BE89>180,CR89-BE89-360,CR89-BE89)) -> 7.673861546e-13 | DU89: 1.534772309e-12 | DW89: 35 | DX89: 135 | DY89: 6.768480094
A90: ⎿ cosθ ⏌ | D90: ⎿ | E90: 0 | F90: [m/s] | G90: 1640 | H90: 447785.4613 | I90: 729589.2656 | J90: 139524.427 | K90: 0.02182394955 | L90: -0.01714168003 | M90: 0 | N90: -235.0714441 | O90: -299.2814781 | P90: 0 | Q90: -4104179.351 | R90: 3223638.74 | S90: 3654260.638 | T90: -0.6441961314 | U90: 0.5059855887 | V90: 0.5735764364 | W90: -0.617694349 | X90: -0.7864182673 | Y90: 0 | Z90: 0.4510709873 | AA90: -0.3542949235 | AB90: 0.8191520443 | AC90: 0 | AD90: 0 | AE90: 0 | AF90: 0 | AG90: 0 | AH90: 0.06474820144 | AI90: -0.1923782658 | AJ90: 0.5866242867 | AK90: -0.7866781738 | AL90: 0.7921398658 | AM90: 0.5660096381 | AN90: 0.2283583205 | AO90: 0.5792279653 | AP90: -0.5792279653 | AQ90: -0.5735764364 | AR90: 4.477854613 | AS90: 7.295892656 | AT90: 1.39524427 | AU90: 5783.838282 | AV90: -2742.644205 | AW90: -4221.740852 | AX90: -3499922.396 | AY90: -5702450.235 | AZ90: -1090589.455 | BA90: -7627266.585 | BB90: 6646393.319 | BC90: -451722.8621 | BD90: 6779143.074 | BE90: 99.25764356 | BF90: 238.4601605 | BG90: 408134.0737 | BH90: -9.257643565 | BI90: 231.608119 | BJ90: 1.441494153 | BK90: -7.628471113 | BL90: 0.6939336778 | BM90: -7138.143366 | BN90: -1359.631738 | BO90: -155.6121589 | BP90: -7627266.585 | BQ90: 6646393.319 | BR90: -451722.8621 | BS90: -3499922.396 | BT90: -5702450.235 | BU90: -1090589.455 | BV90: 6779143.074 | BW90: 99.25764356 | BX90: 238.4601605 | BY90: 408134.0737 | BZ90: -9.257643565 | CA90: 231.608119 | CB90: -0.5162779953 | CC90: -0.8411756726 | CD90: -0.1608742348 | CE90: 0.08415191335 | CF90: 0.1371093538 | CG90: -0.9869749139 | CH90: 0.8522766494 | CI90: -0.5230913046 | CJ90: 0 | CK90: -3.965304634e-05 | CL90: -8.23133192e-06 | CM90: 1.120699891e-05 | CN90: 0.1464802658 | CO90: 0.03615187821 | CP90: 0.05449762768 | CQ90: 6779143.074 | CR90: 99.25764356 | CS90: 238.4601605 | CT90: -3499922.396 | CU90: -5702450.235 | CV90: -1090589.455 | CW90: -7627266.585 | CX90: 6646393.319 | CY90: -451722.8621 | CZ90: 408134.0737 | DA90: -9.257643565 | DB90: 231.608119 | DD90: -4.749745131e-08 | DE90: 2.421438694e-07 | DF90: -7.217749953e-09 | DG90: 0.0001471489668 | DH90: -0.0001611188054 | DI90: -0.0001135631464 | DJ90: -1.778826118e-07 | DK90: 3.126388037e-13 | DL90: -1.421085472e-12 | DM90: 5.33182174e-07 | DN90: 7.972121239e-07 | DO90: 1.098960638e-07 | DP90: 1.229345798e-07 | DQ90: -9.564682841e-07 | DR90: 4.807952791e-08 | DS90: -0.0009639188647 | DT90: 9.237055565e-13 | DU90: 1.676880856e-12 | DW90: 35 | DX90: 135 | DY90: 6.852041577
A91: ⎾cosφcosθ⏋ | C91: 極座標系初期位置 | D91: ⎾ rQ0⏋ | E91: =E51 -> 6779009 | F91: [m] | G91: 1660 | H91: 432871.8401 | I91: 736419.1517 | J91: 150290.4313 | K91: 0.02184892616 | L91: -0.01710983327 | M91: 0 | N91: -234.6347152 | O91: -299.6239932 | P91: 0 | Q91: -4108876.413 | R91: 3217649.684 | S91: 3654260.638 | T91: -0.644933387 | U91: 0.5050455405 | V91: 0.5735764364 | W91: -0.616546762 | X91: -0.7873182903 | Y91: 0 | Z91: 0.4515872192 | AA91: -0.3536366946 | AB91: 0.8191520443 | AC91: 0 | AD91: 0 | AE91: 0 | AF91: 0 | AG91: 0 | AH91: 0.06474820144 | AI91: -0.1744271979 | AJ91: 0.5992659756 | AK91: -0.7813164807 | AL91: 0.7962851982 | AM91: 0.552607686 | AN91: 0.2460785008 | AO91: 0.5792279653 | AP91: -0.5792279653 | AQ91: -0.5735764364 | AR91: 4.328718401 | AS91: 7.364191517 | AT91: 1.502904313 | AU91: 5871.907767 | AV91: -2596.037111 | AW91: -4192.75813 | AX91: -3383359.964 | AY91: -5755839.325 | AZ91: -1174738.033 | BA91: -7769730.236 | BB91: 6617677.207 | BC91: -454695.1857 | BD91: 6779145.995 | BE91: 99.97898887 | BF91: 239.5524135 | BG91: 408136.995 | BH91: -9.978988867 | BI91: 232.6168105 | BJ91: 1.605074724 | BK91: -7.594339671 | BL91: 0.7108219735 | BM91: -7107.676515 | BN91: -1511.865707 | BO91: -141.5639065 | BP91: -7769730.236 | BQ91: 6617677.207 | BR91: -454695.1857 | BS91: -3383359.964 | BT91: -5755839.325 | BU91: -1174738.033 | BV91: 6779145.995 | BW91: 99.97898887 | BX91: 239.5524135 | BY91: 408136.995 | BZ91: -9.978988867 | CA91: 232.6168105 | CB91: -0.4990835079 | CC91: -0.8490507991 | CD91: -0.1732870238 | CE91: 0.0878131893 | CF91: 0.1493895458 | CG91: -0.9848713659 | CH91: 0.86209309 | CI91: -0.5067499424 | CJ91: 0 | CK91: -4.488715735e-05 | CL91: -8.923273215e-06 | CM91: 1.209180541e-05 | CN91: 0.1456346382 | CO91: 0.03598034557 | CP91: 0.05473061985 | CQ91: 6779145.995 | CR91: 99.97898887 | CS91: 239.5524135 | CT91: -3383359.964 | CU91: -5755839.325 | CV91: -1174738.033 | CW91: -7769730.236 | CX91: 6617677.207 | CY91: -454695.1857 | CZ91: 408136.995 | DA91: -9.978988867 | DB91: 232.6168105 | DD91: -5.029141903e-08 | DE91: 2.43075192e-07 | DF91: -5.12227416e-09 | DG91: 0.0001518055797 | DH91: -0.0001611188054 | DI91: -0.0001123989932 | DJ91: -1.806765795e-07 | DK91: 2.98427949e-13 | DL91: -1.364242053e-12 | DM91: 5.550682545e-07 | DN91: 7.934868336e-07 | DO91: 1.166481525e-07 | DP91: 1.098960638e-07 | DQ91: -9.67644155e-07 | DR91: 6.618211046e-08 | DS91: -0.0009713694453 | DT91: 9.663381206e-13 | DU91: 2.046363079e-12 | DW91: 35 | DX91: 135 | DY91: 6.93560306
A92: eθ=│ sinφcosθ│ | B92: 極座標系法線方向単位ベクトル | D92: rQ0 = │ 0 │ | E92: 0 | F92: [m] | G92: 1680 | H92: 417736.7415 | I92: 742872.164 | J92: 160979.5026 | K92: 0.02187385628 | L92: -0.0170779501 | M92: 0 | N92: -234.1974873 | O92: -299.9658711 | P92: 0 | Q92: -4113564.736 | R92: 3211653.784 | S92: 3654260.638 | T92: -0.6456692709 | U92: 0.504104418 | V92: 0.5735764364 | W92: -0.6153978636 | X92: -0.7882166387 | Y92: 0 | Z92: 0.4521024907 | AA92: -0.3529777136 | AB92: 0.8191520443 | AC92: 0 | AD92: 0 | AE92: 0 | AF92: 0 | AG92: 0 | AH92: 0.06474820144 | AI92: -0.1563870324 | AJ92: 0.611601559 | AK92: -0.7755556906 | AL92: 0.8000237873 | AM92: 0.5389234614 | AN92: 0.263672984 | AO92: 0.5792279653 | AP92: -0.5792279653 | AQ92: -0.5735764364 | AR92: 4.177367415 | AS92: 7.42872164 | AT92: 1.609795026 | AU92: 5956.972252 | AV92: -2448.10167 | AW92: -4161.629808 | AX92: -3265066.119 | AY92: -5806282.863 | AZ92: -1258285.475 | BA92: -7911551.882 | BB92: 6585923.476 | BC92: -457383.1947 | BD92: 6779148.898 | BE92: 100.6967646 | BF92: 240.6495031 | BG92: 408139.8984 | BH92: -10.69676458 | BI92: 233.6303386 | BJ92: 1.767920769 | BK92: -7.556700226 | BL92: 0.7272854115 | BM92: -7073.945274 | BN92: -1663.381938 | BO92: -127.1821124 | BP92: -7911551.882 | BQ92: 6585923.476 | BR92: -457383.1947 | BS92: -3265066.119 | BT92: -5806282.863 | BU92: -1258285.475 | BV92: 6779148.898 | BW92: 100.6967646 | BX92: 240.6495031 | BY92: 408139.8984 | BZ92: -10.69676458 | CA92: 233.6303386 | CB92: -0.4816336339 | CC92: -0.8564914196 | CD92: -0.1856111282 | CE92: 0.09097745195 | CF92: 0.1617856426 | CG92: -0.9826232793 | CH92: 0.8716376231 | CI92: -0.4901508483 | CJ92: 0 | CK92: -4.998078821e-05 | CL92: -9.623538767e-06 | CM92: 1.297385767e-05 | CN92: 0.1446857161 | CO92: 0.03579489178 | CP92: 0.05498128155 | CQ92: 6779148.898 | CR92: 100.6967646 | CS92: 240.6495031 | CT92: -3265066.119 | CU92: -5806282.863 | CV92: -1258285.475 | CW92: -7911551.882 | CX92: 6585923.476 | CY92: -457383.1947 | CZ92: 408139.8984 | DA92: -10.69676458 | DB92: 233.6303386 | DD92: -5.075708032e-08 | DE92: 2.43075192e-07 | DF92: -7.450580597e-09 | DG92: 0.0001499429345 | DH92: -0.0001601874828 | DI92: -0.0001145526767 | DJ92: -1.825392246e-07 | DK92: 3.552713679e-13 | DL92: -1.364242053e-12 | DM92: 5.55999577e-07 | DN92: 8.000060916e-07 | DO92: 1.161824912e-07 | DP92: 1.108273864e-07 | DQ92: -9.723007679e-07 | DR92: 6.466871127e-08 | DS92: -0.000974163413 | DT92: 1.094235813e-12 | DU92: 2.188471626e-12 | DW92: 35 | DX92: 135 | DY92: 7.019164542
A93: ⎿ -sinθ ⏌ | D93: ⎿ 0 ⏌ | E93: 0 | F93: [m] | G93: 1700 | H93: 402387.9118 | I93: 748945.0025 | J93: 171586.1716 | K93: 0.02189873989 | L93: -0.01704603062 | M93: 0 | N93: -233.7597613 | O93: -300.307111 | P93: 0 | Q93: -4118244.309 | R93: 3205651.053 | S93: 3654260.638 | T93: -0.6464037814 | U93: 0.5031622233 | V93: 0.5735764364 | W93: -0.6142476563 | X93: -0.7891133105 | Y93: 0 | Z93: 0.4526168005 | AA93: -0.3523179817 | AB93: 0.8191520443 | AC93: 0 | AD93: 0 | AE93: 0 | AF93: 0 | AG93: 0 | AH93: 0.06474820144 | AI93: -0.1382669843 | AJ93: 0.6236247357 | AK93: -0.7693987458 | AL93: 0.8033537236 | AM93: 0.5249639542 | AN93: 0.2811327828 | AO93: 0.5792279653 | AP93: -0.5792279653 | AQ93: -0.5735764364 | AR93: 4.023879118 | AS93: 7.489450025 | AT93: 1.715861716 | AU93: 6038.988215 | AV93: -2298.913591 | AW93: -4128.371822 | AX93: -3145101.398 | AY93: -5853755.04 | AZ93: -1341189.027 | BA93: -8052666.387 | BB93: 6551147.181 | BC93: -459780.3042 | BD93: 6779151.782 | BE93: 101.4106906 | BF93: 241.7517822 | BG93: 408142.7818 | BH93: -11.41069059 | BI93: 234.6490561 | BJ93: 1.929957539 | BK93: -7.515570859 | BL93: 0.743309563 | BM93: -7036.96508 | BN93: -1814.11045 | BO93: -112.4754186 | BP93: -8052666.387 | BQ93: 6551147.181 | BR93: -459780.3042 | BS93: -3145101.398 | BT93: -5853755.04 | BU93: -1341189.027 | BV93: 6779151.782 | BW93: 101.4106906 | BX93: 241.7517822 | BY93: 408142.7818 | BZ93: -11.41069059 | CA93: 234.6490561 | CB93: -0.4639373035 | CC93: -0.8634937273 | CD93: -0.1978402418 | CE93: 0.09363625655 | CF93: 0.1742785492 | CG93: -0.9802342775 | CH93: 0.8809054602 | CI93: -0.4732922671 | CJ93: 0 | CK93: -5.492388518e-05 | CL93: -1.033267125e-05 | CM93: 1.385253998e-05 | CN93: 0.1436364103 | CO93: 0.0355953449 | CP93: 0.05524955171 | CQ93: 6779151.782 | CR93: 101.4106906 | CS93: 241.7517822 | CT93: -3145101.398 | CU93: -5853755.04 | CV93: -1341189.027 | CW93: -8052666.387 | CX93: 6551147.181 | CY93: -459780.3042 | CZ93: 408142.7818 | DA93: -11.41069059 | DB93: 234.6490561 | DD93: -5.261972547e-08 | DE93: 2.449378371e-07 | DF93: -7.683411241e-09 | DG93: 0.0001508742571 | DH93: -0.0001592561603 | DI93: -0.0001156586222 | DJ93: -1.853331923e-07 | DK93: 3.97903932e-13 | DL93: -1.421085472e-12 | DM93: 5.569308996e-07 | DN93: 8.093193173e-07 | DO93: 1.154839993e-07 | DP93: 1.136213541e-07 | DQ93: -9.797513485e-07 | DR93: 6.187474355e-08 | DS93: -0.0009797513485 | DT93: 1.207922651e-12 | DU93: 2.302158464e-12 | DW93: 35 | DX93: 135 | DY93: 7.102726025
A94: ⎾ -sinφ⏋ | G94: 1720 | H94: 386833.2061 | I94: 754634.5615 | J94: 182105.011 | K94: 0.02192357691 | L94: -0.01701407488 | M94: 0 | N94: -233.3215381 | O94: -300.6477121 | P94: 0 | Q94: -4122915.123 | R94: 3199641.504 | S94: 3654260.638 | T94: -0.6471369171 | U94: 0.5022189584 | V94: 0.5735764364 | W94: -0.6130961424 | X94: -0.7900083038 | Y94: 0 | Z94: 0.4531301476 | AA94: -0.3516575005 | AB94: 0.8191520443 | AC94: 0 | AD94: 0 | AE94: 0 | AF94: 0 | AG94: 0 | AH94: 0.06474820144 | AI94: -0.1200763093 | AJ94: 0.6353293643 | AK94: -0.7628487915 | AL94: 0.8062733061 | AM94: 0.5107362949 | AN94: 0.2984489787 | AO94: 0.5792279653 | AP94: -0.5792279653 | AQ94: -0.5735764364 | AR94: 3.868332061 | AS94: 7.546345615 | AT94: 1.82105011 | AU94: 6117.913692 | AV94: -2148.549222 | AW94: -4093.001195 | AX94: -3023527.194 | AY94: -5898231.565 | AZ94: -1423406.264 | BA94: -8193008.938 | BB94: 6513364.773 | BC94: -461880.1049 | BD94: 6779154.643 | BE94: 102.1204832 | BF94: 242.8596021 | BG94: 408145.6432 | BH94: -12.12048321 | BI94: 235.6733146 | BJ94: 2.091110653 | BK94: -7.470971272 | BL94: 0.7588802564 | BM94: -6996.752863 | BN94: -1963.981637 | BO94: -97.45275301 | BP94: -8193008.938 | BQ94: 6513364.773 | BR94: -461880.1049 | BS94: -3023527.194 | BT94: -5898231.565 | BU94: -1423406.264 | BV94: 6779154.643 | BW94: 102.1204832 | BX94: 242.8596021 | BY94: 408145.6432 | BZ94: -12.12048321 | CA94: 235.6733146 | CB94: -0.4460035731 | CC94: -0.8700541403 | CD94: -0.2099681065 | CE94: 0.09578166809 | CF94: 0.18684881 | CG94: -0.9777082358 | CH94: 0.8898913893 | CI94: -0.4561724621 | CJ94: 0 | CK94: -5.970672711e-05 | CL94: -1.105119422e-05 | CM94: 1.472714444e-05 | CN94: 0.1424898292 | CO94: 0.03538152232 | CP94: 0.05553535599 | CQ94: 6779154.643 | CR94: 102.1204832 | CS94: 242.8596021 | CT94: -3023527.194 | CU94: -5898231.565 | CV94: -1423406.264 | CW94: -8193008.938 | CX94: 6513364.773 | CY94: -461880.1049 | CZ94: 408145.6432 | DA94: -12.12048321 | DB94: 235.6733146 | DD94: -5.12227416e-08 | DE94: 2.440065145e-07 | DF94: -8.381903172e-09 | DG94: 0.0001490116119 | DH94: -0.000162050128 | DI94: -0.0001161824912 | DJ94: -1.881271601e-07 | DK94: 4.121147867e-13 | DL94: -1.364242053e-12 | DM94: 5.387701094e-07 | DN94: 8.270144463e-07 | DO94: 1.164153218e-07 | DP94: 1.331791282e-07 | DQ94: -9.834766388e-07 | DR94: 4.866160452e-08 | DS94: -0.0009834766388 | DT94: 1.321609489e-12 | DU94: 2.245315045e-12 | DW94: 35 | DX94: 135 | DY94: 7.186287507
A95: eφ=│ cosφ│ | B95: 極座標系接線方向単位ベクトル | G95: 1740 | H95: 371080.585 | I95: 759937.9318 | J95: 192530.6387 | K95: 0.02194836731 | L95: -0.01698208294 | M95: 0 | N95: -232.8828185 | O95: -300.9876738 | P95: 0 | Q95: -4127577.167 | R95: 3193625.149 | S95: 3654260.638 | T95: -0.6478686763 | U95: 0.5012746253 | V95: 0.5735764364 | W95: -0.6119433245 | X95: -0.7909016169 | Y95: 0 | Z95: 0.4536425309 | AA95: -0.3509962713 | AB95: 0.8191520443 | AC95: 0 | AD95: 0 | AE95: 0 | AF95: 0 | AG95: 0 | AH95: 0.06474820144 | AI95: -0.1018242992 | AJ95: 0.6467094662 | AK95: -0.7559091734 | AL95: 0.8087810435 | AM95: 0.4962477511 | AN95: 0.3156127266 | AO95: 0.5792279653 | AP95: -0.5792279653 | AQ95: -0.5735764364 | AR95: 3.71080585 | AS95: 7.599379318 | AT95: 1.925306387 | AU95: 6193.708302 | AV95: -1997.085513 | AW95: -4055.536032 | AX95: -2900405.723 | AY95: -5939689.68 | AZ95: -1504895.111 | BA95: -8332515.077 | BB95: 6472594.092 | BC95: -463676.3691 | BD95: 6779157.481 | BE95: 102.825855 | BF95: 243.9733127 | BG95: 408148.4808 | BH95: -12.82585502 | BI95: 236.7034637 | BJ95: 2.251306133 | BK95: -7.422922786 | BL95: 0.7739835869 | BM95: -6953.327038 | BN95: -2112.926308 | BO95: -82.12332419 | BP95: -8332515.077 | BQ95: 6472594.092 | BR95: -463676.3691 | BS95: -2900405.723 | BT95: -5939689.68 | BU95: -1504895.111 | BV95: 6779157.481 | BW95: 102.825855 | BX95: 243.9733127 | BY95: 408148.4808 | BZ95: -12.82585502 | CA95: 236.7034637 | CB95: -0.4278416206 | CC95: -0.8761693023 | CD95: -0.2219885164 | CE95: 0.09740628349 | CF95: 0.1994766085 | CG95: -0.9750492801 | CH95: 0.8985897638 | CI95: -0.4387897405 | CJ95: 0 | CK95: -6.431994512e-05 | CL95: -1.177960948e-05 | CM95: 1.559686353e-05 | CN95: 0.1412492721 | CO95: 0.03515323118 | CP95: 0.05583860494 | CQ95: 6779157.481 | CR95: 102.825855 | CS95: 243.9733127 | CT95: -2900405.723 | CU95: -5939689.68 | CV95: -1504895.111 | CW95: -8332515.077 | CX95: 6472594.092 | CY95: -463676.3691 | CZ95: 408148.4808 | DA95: -12.82585502 | DB95: 236.7034637 | DD95: -4.889443517e-08 | DE95: 2.533197403e-07 | DF95: -8.381903172e-09 | DG95: 0.0001527369022 | DH95: -0.0001713633537 | DI95: -0.0001183943823 | DJ95: -1.99303031e-07 | DK95: 4.405364962e-13 | DL95: -1.364242053e-12 | DM95: 5.294568837e-07 | DN95: 8.4284693e-07 | DO95: 1.201406121e-07 | DP95: 1.490116119e-07 | DQ95: -9.91858542e-07 | DR95: 4.243338481e-08 | DS95: -0.000991858542 | DT95: 1.406874617e-12 | DU95: 2.273736754e-12 | DW95: 35 | DX95: 135 | DY95: 7.26984899
A96: ⎿ 0 ⏌ | G96: 1760 | H96: 355138.1103 | I96: 764852.4015 | J96: 202857.7202 | K96: 0.02197311102 | L96: -0.01695005489 | M96: 0 | N96: -232.4436037 | O96: -301.3269952 | P96: 0 | Q96: -4132230.432 | R96: 3187602.001 | S96: 3654260.638 | T96: -0.6485990575 | U96: 0.5003292259 | V96: 0.5735764364 | W96: -0.610789205 | X96: -0.7917932476 | Y96: 0 | Z96: 0.4541539493 | AA96: -0.3503342956 | AB96: 0.8191520443 | AC96: 0 | AD96: 0 | AE96: 0 | AF96: 0 | AG96: 0 | AH96: 0.06474820144 | AI96: -0.08352027712 | AJ96: 0.6577592283 | AK96: -0.7485834362 | AL96: 0.8108756548 | AM96: 0.4815057235 | AN96: 0.3326152593 | AO96: 0.5792279653 | AP96: -0.5792279653 | AQ96: -0.5735764364 | AR96: 3.551381103 | AS96: 7.648524015 | AT96: 2.028577202 | AU96: 6266.333268 | AV96: -1844.599976 | AW96: -4015.99551 | AX96: -2775799.993 | AY96: -5978108.173 | AZ96: -1585613.869 | BA96: -8471120.728 | BB96: 6428854.356 | BC96: -465163.056 | BD96: 6779160.293 | BE96: 103.5265147 | BF96: 245.0932619 | BG96: 408151.2926 | BH96: -13.52651465 | BI96: 237.7398514 | BJ96: 2.41047044 | BK96: -7.371448321 | BL96: 0.7886059264 | BM96: -6906.707492 | BN96: -2260.875709 | BO96: -66.4966162 | BP96: -8471120.728 | BQ96: 6428854.356 | BR96: -465163.056 | BS96: -2775799.993 | BT96: -5978108.173 | BU96: -1585613.869 | BV96: 6779160.293 | BW96: 103.5265147 | BX96: 245.0932619 | BY96: 408151.2926 | BZ96: -13.52651465 | CA96: 237.7398514 | CB96: -0.4094607404 | CC96: -0.8818360852 | CD96: -0.2338953205 | CE96: 0.09850325556 | CF96: 0.2121417677 | CG96: -0.9722617853 | CH96: 0.9069944932 | CI96: -0.421142481 | CJ96: 0 | CK96: -6.875454151e-05 | CL96: -1.251839411e-05 | CM96: 1.646078246e-05 | CN96: 0.1399182222 | CO96: 0.03491026881 | CP96: 0.05615919189 | CQ96: 6779160.293 | CR96: 103.5265147 | CS96: 245.0932619 | CT96: -2775799.993 | CU96: -5978108.173 | CV96: -1585613.869 | CW96: -8471120.728 | CX96: 6428854.356 | CY96: -465163.056 | CZ96: 408151.2926 | DA96: -13.52651465 | DB96: 237.7398514 | DD96: -5.634501576e-08 | DE96: 2.4959445e-07 | DF96: -6.98491931e-09 | DG96: 0.0001564621925 | DH96: -0.0001629814506 | DI96: -0.0001186272129 | DJ96: -1.946464181e-07 | DK96: 4.547473509e-13 | DL96: -1.364242053e-12 | DM96: 5.108304322e-07 | DN96: 8.521601558e-07 | DO96: 1.250300556e-07 | DP96: 1.676380634e-07 | DQ96: -9.862706065e-07 | DR96: 3.67872417e-08 | DS96: -0.0009890645742 | DT96: 1.47792889e-12 | DU96: 2.302158464e-12 | DW96: 35 | DX96: 135 | DY96: 7.353410473
A97: R=(x,y,z)T=rer | B97: 慣性系位置ベクトル | G97: 1780 | H97: 339013.9407 | I97: 769375.4579 | J97: 213080.9716 | K97: 0.02199780799 | L97: -0.01691799079 | M97: 0 | N97: -232.0038944 | O97: -301.6656757 | P97: 0 | Q97: -4136874.908 | R97: 3181572.074 | S97: 3654260.638 | T97: -0.6493280591 | U97: 0.4993827624 | V97: 0.5735764364 | W97: -0.6096337864 | X97: -0.7926831943 | Y97: 0 | Z97: 0.4546644017 | AA97: -0.3496715747 | AB97: 0.8191520443 | AC97: 0 | AD97: 0 | AE97: 0 | AF97: 0 | AG97: 0 | AH97: 0.06474820144 | AI97: -0.06517359284 | AJ97: 0.6684730063 | AK97: -0.7408753219 | AL97: 0.81255607 | AM97: 0.4665177424 | AN97: 0.3494478918 | AO97: 0.5792279653 | AP97: -0.5792279653 | AQ97: -0.5735764364 | AR97: 3.390139407 | AS97: 7.693754579 | AT97: 2.130809716 | AU97: 6335.751433 | AV97: -1691.170647 | AW97: -3974.399866 | AX97: -2649773.771 | AY97: -6013467.387 | AZ97: -1665521.231 | BA97: -8608762.228 | BB97: 6382166.154 | BC97: -466334.3169 | BD97: 6779163.077 | BE97: 104.2221666 | BF97: 246.2197951 | BG97: 408154.0769 | BH97: -14.22216656 | BI97: 238.7828232 | BJ97: 2.568530505 | BK97: -7.316572392 | BL97: 0.8027339335 | BM97: -6856.915582 | BN97: -2407.761564 | BO97: -50.58238275 | BP97: -8608762.228 | BQ97: 6382166.154 | BR97: -466334.3169 | BS97: -2649773.771 | BT97: -6013467.387 | BU97: -1665521.231 | BV97: 6779163.077 | BW97: 104.2221666 | BX97: 246.2197951 | BY97: 408154.0769 | BZ97: -14.22216656 | CA97: 238.7828232 | CB97: -0.3908703392 | CC97: -0.8870515901 | CD97: -0.245682426 | CE97: 0.09906631889 | CF97: 0.2248237507 | CG97: -0.969350373 | CH97: 0.9150990342 | CI97: -0.4032291626 | CJ97: 0 | CK97: -7.300190794e-05 | CL97: -1.326799727e-05 | CM97: 1.731787159e-05 | CN97: 0.1385003387 | CO97: 0.03465242328 | CP97: 0.05649699073 | CQ97: 6779163.077 | CR97: 104.2221666 | CS97: 246.2197951 | CT97: -2649773.771 | CU97: -6013467.387 | CV97: -1665521.231 | CW97: -8608762.228 | CX97: 6382166.154 | CY97: -466334.3169 | CZ97: 408154.0769 | DA97: -14.22216656 | DB97: 238.7828232 | DD97: -5.913898349e-08 | DE97: 2.468004823e-07 | DF97: -9.778887033e-09 | DG97: 0.0001545995474 | DH97: -0.0001583248377 | DI97: -0.0001196749508 | DJ97: -1.927837729e-07 | DK97: 4.97379915e-13 | DL97: -1.364242053e-12 | DM97: 5.420297384e-07 | DN97: 8.419156075e-07 | DO97: 1.285225153e-07 | DP97: 1.434236765e-07 | DQ97: -9.974464774e-07 | DR97: 5.7334546e-08 | DS97: -0.0009909272194 | DT97: 1.548983164e-12 | DU97: 2.756905815e-12 | DW97: 35 | DX97: 135 | DY97: 7.436971955
A98: r=(i,j,k)T=DILT･(R－d) | B98: 局地系位置ベクトル | G98: 1800 | H98: 322716.328 | I98: 773504.7885 | J98: 223195.1622 | K98: 0.02202245817 | L98: -0.0168858907 | M98: 0 | N98: -231.5636917 | O98: -302.0037146 | P98: 0 | Q98: -4141510.585 | R98: 3175535.379 | S98: 3654260.638 | T98: -0.6500556796 | U98: 0.4984352367 | V98: 0.5735764364 | W98: -0.608477071 | X98: -0.7935714549 | Y98: 0 | Z98: 0.4551738871 | AA98: -0.34900811 | AB98: 0.8191520443 | AC98: 0 | AD98: 0 | AE98: 0 | AF98: 0 | AG98: 0 | AH98: 0.06474820144 | AI98: -0.04679361784 | AJ98: 0.6788453278 | AK98: -0.7327887678 | AL98: 0.813821431 | AM98: 0.4512914636 | AN98: 0.3661020259 | AO98: 0.5792279653 | AP98: -0.5792279653 | AQ98: -0.5735764364 | AR98: 3.22716328 | AS98: 7.735047885 | AT98: 2.231951622 | AU98: 6401.927282 | AV98: -1536.876042 | AW98: -3930.770392 | AX98: -2522391.551 | AY98: -6045749.23 | AZ98: -1744576.305 | BA98: -8745376.354 | BB98: 6332551.436 | BC98: -467184.5012 | BD98: 6779165.832 | BE98: 104.9125109 | BF98: 247.3532553 | BG98: 408156.832 | BH98: -14.91251089 | BI98: 239.8327218 | BJ98: 2.725413762 | BK98: -7.258321095 | BL98: 0.8163545626 | BM98: -6803.974118 | BN98: -2553.516102 | BO98: -34.39064145 | BP98: -8745376.354 | BQ98: 6332551.436 | BR98: -467184.5012 | BS98: -2522391.551 | BT98: -6045749.23 | BU98: -1744576.305 | BV98: 6779165.832 | BW98: 104.9125109 | BX98: 247.3532553 | BY98: 408156.832 | BZ98: -14.91251089 | CA98: 239.8327218 | CB98: -0.3720799305 | CC98: -0.8918131493 | CD98: -0.2573438013 | CE98: 0.09908981769 | CF98: 0.2375016633 | CG98: -0.9663199097 | CH98: 0.9228963828 | CI98: -0.3850483952 | CJ98: 0 | CK98: -7.705384285e-05 | CL98: -1.402883661e-05 | CM98: 1.816697877e-05 | CN98: 0.1369994489 | CO98: 0.034379474 | CP98: 0.05685185357 | CQ98: 6779165.832 | CR98: 104.9125109 | CS98: 247.3532553 | CT98: -2522391.551 | CU98: -6045749.23 | CV98: -1744576.305 | CW98: -8745376.354 | CX98: 6332551.436 | CY98: -467184.5012 | CZ98: 408156.832 | DA98: -14.91251089 | DB98: 239.8327218 | DD98: -5.820766091e-08 | DE98: 2.477318048e-07 | DF98: -7.217749953e-09 | DG98: 0.0001545995474 | DH98: -0.0001601874828 | DI98: -0.0001191510819 | DJ98: -1.974403858e-07 | DK98: 4.97379915e-13 | DL98: -1.278976924e-12 | DM98: 5.606561899e-07 | DN98: 8.447095752e-07 | DO98: 1.282896847e-07 | DP98: 1.303851604e-07 | DQ98: -1.012347639e-06 | DR98: 6.530899554e-08 | DS98: -0.0009946525097 | DT98: 1.662670002e-12 | DU98: 3.097966328e-12 | DW98: 35 | DX98: 135 | DY98: 7.520533438
A99: hL=|R|-Re | B99: 局地系高度 | G99: 1820 | H99: 306253.6122 | I99: 777238.2822 | J99: 233195.117 | K99: 0.02204706151 | L99: -0.01685375469 | M99: 0 | N99: -231.1229964 | O99: -302.3411111 | P99: 0 | Q99: -4146137.453 | R99: 3169491.929 | S99: 3654260.638 | T99: -0.6507819174 | U99: 0.4974866507 | V99: 0.5735764364 | W99: -0.6073190615 | X99: -0.7944580276 | Y99: 0 | Z99: 0.4556824043 | AA99: -0.348343903 | AB99: 0.8191520443 | AC99: 0 | AD99: 0 | AE99: 0 | AF99: 0 | AG99: 0 | AH99: 0.06474820144 | AI99: -0.02838974062 | AJ99: 0.6888708945 | AK99: -0.7243279046 | AL99: 0.8146710912 | AM99: 0.4358346647 | AN99: 0.3825691549 | AO99: 0.5792279653 | AP99: -0.5792279653 | AQ99: -0.5735764364 | AR99: 3.062536122 | AS99: 7.772382822 | AT99: 2.33195117 | AU99: 6464.826957 | AV99: -1381.795121 | AW99: -3885.129417 | AX99: -2393718.521 | AY99: -6074937.186 | AZ99: -1822738.636 | BA99: -8880900.357 | BB99: 6280033.501 | BC99: -467708.1609 | BD99: 6779168.556 | BE99: 105.5972433 | BF99: 248.4939819 | BG99: 408159.5564 | BH99: -15.5972433 | BI99: 240.889887 | BJ99: 2.881048184 | BK99: -7.196722092 | BL99: 0.8294550737 | BM99: -6747.907357 | BN99: -2698.072089 | BO99: -17.93166777 | BP99: -8880900.357 | BQ99: 6280033.501 | BR99: -467708.1609 | BS99: -2393718.521 | BT99: -6074937.186 | BU99: -1822738.636 | BV99: 6779168.556 | BW99: 105.5972433 | BX99: 248.4939819 | BY99: 408159.5564 | BZ99: -15.5972433 | CA99: 240.889887 | CB99: -0.3530991303 | CC99: -0.8961183272 | CD99: -0.2688734792 | CE99: 0.09856873566 | CF99: 0.2501542568 | CG99: -0.9631755043 | CH99: 0.9303790671 | CI99: -0.3665989518 | CJ99: 0 | CK99: -8.090256787e-05 | CL99: -1.480129446e-05 | CM99: 1.900682183e-05 | CN99: 0.1354195398 | CO99: 0.03409119235 | CP99: 0.05722360815 | CQ99: 6779168.556 | CR99: 105.5972433 | CS99: 248.4939819 | CT99: -2393718.521 | CU99: -6074937.186 | CV99: -1822738.636 | CW99: -8880900.357 | CX99: 6280033.501 | CY99: -467708.1609 | CZ99: 408159.5564 | DA99: -15.5972433 | DB99: 240.889887 | DD99: -5.541369319e-08 | DE99: 2.440065145e-07 | DF99: -1.187436283e-08 | DG99: 0.0001508742571 | DH99: -0.0001611188054 | DI99: -0.0001206644811 | DJ99: -1.965090632e-07 | DK99: 5.826450433e-13 | DL99: -1.278976924e-12 | DM99: 5.741603673e-07 | DN99: 8.4284693e-07 | DO99: 1.254957169e-07 | DP99: 1.192092896e-07 | DQ99: -1.018866897e-06 | DR99: 7.072230801e-08 | DS99: -0.000991858542 | DT99: 1.804778549e-12 | DU99: 3.353761713e-12 | DW99: 35 | DX99: 135 | DY99: 7.604094921
A100: φL=90°-θ | B100: 局地系緯度 | G100: 1840 | H100: 289634.2182 | I100: 780574.0306 | J100: 243075.7195 | K100: 0.02207161796 | L100: -0.01682158283 | M100: 0 | N100: -230.6818095 | O100: -302.6778645 | P100: 0 | Q100: -4150755.502 | R100: 3163441.738 | S100: 3654260.638 | T100: -0.651506771 | U100: 0.4965370067 | V100: 0.5735764364 | W100: -0.6061597601 | X100: -0.7953429104 | Y100: 0 | Z100: 0.4561899522 | AA100: -0.3476789551 | AB100: 0.8191520443 | AC100: 0 | AD100: 0 | AE100: 0 | AF100: 0 | AG100: 0 | AH100: 0.06474820144 | AI100: -0.009971361889 | AJ100: 0.6985445853 | AK100: -0.715497054 | AL100: 0.8151046167 | AM100: 0.420155241 | AN100: 0.3988408672 | AO100: 0.5792279653 | AP100: -0.5792279653 | AQ100: -0.5735764364 | AR100: 2.896342182 | AS100: 7.805740306 | AT100: 2.430757195 | AU100: 6524.418281 | AV100: -1226.007246 | AW100: -3837.500302 | AX100: -2263820.529 | AY100: -6101016.322 | AZ100: -1899968.227 | BA100: -9015271.984 | BB100: 6224636.987 | BC100: -467900.0564 | BD100: 6779171.248 | BE100: 106.2760548 | BF100: 249.6423109 | BG100: 408162.2483 | BH100: -16.2760548 | BI100: 241.9546545 | BJ100: 3.035362314 | BK100: -7.131804602 | BL100: 0.8420230413 | BM100: -6688.740992 | BN100: -2841.362862 | BO100: -1.215988865 | BP100: -9015271.984 | BQ100: 6224636.987 | BR100: -467900.0564 | BS100: -2263820.529 | BT100: -6101016.322 | BU100: -1899968.227 | BV100: 6779171.248 | BW100: 106.2760548 | BX100: 249.6423109 | BY100: 408162.2483 | BZ100: -16.2760548 | CA100: 241.9546545 | CB100: -0.333937652 | CC100: -0.8999649218 | CD100: -0.2802655601 | CE100: 0.09749872784 | CF100: 0.2627599327 | CG100: -0.9599225051 | CH100: 0.9375391419 | CI100: -0.347879803 | CJ100: 0 | CK100: -8.454074359e-05 | CL100: -1.55857136e-05 | CM100: 1.983598111e-05 | CN100: 0.1337647499 | CO100: 0.03378734247 | CP100: 0.05761205525 | CQ100: 6779171.248 | CR100: 106.2760548 | CS100: 249.6423109 | CT100: -2263820.529 | CU100: -6101016.322 | CV100: -1899968.227 | CW100: -9015271.984 | CX100: 6224636.987 | CY100: -467900.0564 | CZ100: 408162.2483 | DA100: -16.2760548 | DB100: 241.9546545 | DD100: -5.541369319e-08 | DE100: 2.477318048e-07 | DF100: -1.187436283e-08 | DG100: 0.0001508742571 | DH100: -0.0001629814506 | DI100: -0.000121712219 | DJ100: -2.011656761e-07 | DK100: 5.96855898e-13 | DL100: -1.222133506e-12 | DM100: 5.713663995e-07 | DN100: 8.530914783e-07 | DO100: 1.250300556e-07 | DP100: 1.229345798e-07 | DQ100: -1.024454832e-06 | DR100: 6.629852578e-08 | DS100: -0.0009937211871 | DT100: 1.904254532e-12 | DU100: 3.524291969e-12 | DW100: 35 | DX100: 135 | DY100: 7.687656403
A101: λL=φ-ωet | B101: 局地系経度 | G101: 1860 | H101: 272866.6507 | I101: 783510.3285 | J101: 252831.9145 | K101: 0.02209612746 | L101: -0.0167893752 | M101: 0 | N101: -230.240132 | O101: -303.0139742 | P101: 0 | Q101: -4155364.722 | R101: 3157384.819 | S101: 3654260.638 | T101: -0.6522302389 | U101: 0.4955863065 | V101: 0.5735764364 | W101: -0.6049991695 | X101: -0.7962261016 | Y101: 0 | Z101: 0.4566965299 | AA101: -0.3470132676 | AB101: 0.8191520443 | AC101: 0 | AD101: 0 | AE101: 0 | AF101: 0 | AG101: 0 | AH101: 0.06474820144 | AI101: 0.00845211022 | AJ101: 0.7078614589 | AK101: -0.7063007269 | AL101: 0.815121786 | AM101: 0.4042612017 | AN101: 0.4149088512 | AO101: 0.5792279653 | AP101: -0.5792279653 | AQ101: -0.5735764364 | AR101: 2.728666507 | AS101: 7.835103285 | AT101: 2.528319145 | AU101: 6580.670766 | AV101: -1069.592139 | AW101: -3787.907423 | AX101: -2132764.05 | AY101: -6123973.295 | AZ101: -1976225.556 | BA101: -9148429.513 | BB101: 6166387.862 | BC101: -467755.1609 | BD101: 6779173.906 | BE101: 106.9486316 | BF101: 250.7985739 | BG101: 408164.9065 | BH101: -16.9486316 | BI101: 243.027356 | BJ101: 3.188285299 | BK101: -7.063599384 | BL101: 0.8540463634 | BM101: -6626.502139 | BN101: -2983.322355 | BO101: 15.74562284 | BP101: -9148429.513 | BQ101: 6166387.862 | BR101: -467755.1609 | BS101: -2132764.05 | BT101: -6123973.295 | BU101: -1976225.556 | BV101: 6779173.906 | BW101: 106.9486316 | BX101: 250.7985739 | BY101: 408164.9065 | BZ101: -16.9486316 | CA101: 243.027356 | CB101: -0.3146053013 | CC101: -0.9033509656 | CD101: -0.2915142145 | CE101: 0.09587615456 | CF101: 0.2752967494 | CG101: -0.9565664968 | CH101: 0.9443681842 | CI101: -0.3288901528 | CJ101: 0 | CK101: -8.796148419e-05 | CL101: -1.638239274e-05 | CM101: 2.065289237e-05 | CN101: 0.1320393597 | CO101: 0.03346768206 | CP101: 0.05801696578 | CQ101: 6779173.906 | CR101: 106.9486316 | CS101: 250.7985739 | CT101: -2132764.049 | CU101: -6123973.295 | CV101: -1976225.556 | CW101: -9148429.513 | CX101: 6166387.862 | CY101: -467755.1609 | CZ101: 408164.9065 | DA101: -16.9486316 | DB101: 243.027356 | DD101: -5.820766091e-08 | DE101: 2.468004823e-07 | DF101: -1.11758709e-08 | DG101: 0.0001527369022 | DH101: -0.0001629814506 | DI101: -0.0001220614649 | DJ101: -2.011656761e-07 | DK101: 6.252776075e-13 | DL101: -1.222133506e-12 | DM101: 5.657784641e-07 | DN101: 8.661299944e-07 | DO101: 1.299194992e-07 | DP101: 1.341104507e-07 | DQ101: -1.031905413e-06 | DR101: 6.461050361e-08 | DS101: -0.0009983778 | DT101: 2.01794137e-12 | DU101: 3.609557098e-12 | DW101: 35 | DX101: 135 | DY101: 7.771217886
G102: 1880 | H102: 255959.49 | I102: 786045.6754 | J102: 262458.7102 | K102: 0.02212058997 | L102: -0.01675713186 | M102: 0 | N102: -229.7979647 | O102: -303.3494393 | P102: 0 | Q102: -4159965.104 | R102: 3151321.184 | S102: 3654260.638 | T102: -0.6529523194 | U102: 0.4946345522 | V102: 0.5735764364 | W102: -0.6038372921 | X102: -0.7971075992 | Y102: 0 | Z102: 0.4572021361 | AA102: -0.3463468421 | AB102: 0.8191520443 | AC102: 0 | AD102: 0 | AE102: 0 | AF102: 0 | AG102: 0 | AH102: 0.06474820144 | AI102: 0.02687126498 | AJ102: 0.7168167562 | AK102: -0.6967436208 | AL102: 0.8147225904 | AM102: 0.3881606654 | AN102: 0.4307648994 | AO102: 0.5792279653 | AP102: -0.5792279653 | AQ102: -0.5735764364 | AR102: 2.5595949 | AS102: 7.860456754 | AT102: 2.624587102 | AU102: 6633.555635 | AV102: -912.6298447 | AW102: -3736.376163 | AX102: -2000616.15 | AY102: -6143796.36 | AZ102: -2051471.601 | BA102: -9280311.776 | BB102: 6105313.405 | BC102: -467268.6653 | BD102: 6779176.529 | BE102: 107.614655 | BF102: 251.9630975 | BG102: 408167.5295 | BH102: -17.61465503 | BI102: 244.1083182 | BJ102: 3.339746921 | BK102: -6.992138721 | BL102: 0.8655132706 | BM102: -6561.219323 | BN102: -3123.885134 | BO102: 32.94215616 | BP102: -9280311.776 | BQ102: 6105313.405 | BR102: -467268.6653 | BS102: -2000616.15 | BT102: -6143796.36 | BU102: -2051471.601 | BV102: 6779176.529 | BW102: 107.614655 | BX102: 251.9630975 | BY102: 408167.5295 | BZ102: -17.61465503 | CA102: 244.1083182 | CB102: -0.2951119713 | CC102: -0.9062747272 | CD102: -0.3026136865 | CE102: 0.09369811739 | CF102: 0.2877424301 | CG102: -0.9531132969 | CH102: 0.9508572906 | CI102: -0.3096294767 | CJ102: 0 | CK102: -9.115837131e-05 | CL102: -1.719158164e-05 | CM102: 2.145583997e-05 | CN102: 0.130247783 | CO102: 0.03313196335 | CP102: 0.05843807789 | CQ102: 6779176.529 | CR102: 107.614655 | CS102: 251.9630975 | CT102: -2000616.15 | CU102: -6143796.36 | CV102: -2051471.601 | CW102: -9280311.776 | CX102: 6105313.405 | CY102: -467268.6653 | CZ102: 408167.5295 | DA102: -17.61465503 | DB102: 244.1083182 | DD102: -5.285255611e-08 | DE102: 2.458691597e-07 | DF102: -1.536682248e-08 | DG102: 0.0001452863216 | DH102: -0.0001639127731 | DI102: -0.0001222360879 | DJ102: -2.030283213e-07 | DK102: 6.679101716e-13 | DL102: -1.165290087e-12 | DM102: 5.52739948e-07 | DN102: 8.773058653e-07 | DO102: 1.334119588e-07 | DP102: 1.490116119e-07 | DQ102: -1.032836735e-06 | DR102: 5.814945325e-08 | DS102: -0.0009983778 | DT102: 2.074784788e-12 | DU102: 3.666400517e-12 | DW102: 35 | DX102: 135 | DY102: 7.854779369
G103: 1900 | H103: 238921.388 | I103: 788178.7758 | J103: 271951.1814 | K103: 0.02214500542 | L103: -0.01672485287 | M103: 0 | N103: -229.3553087 | O103: -303.6842592 | P103: 0 | Q103: -4164556.637 | R103: 3145250.846 | S103: 3654260.638 | T103: -0.6536730112 | U103: 0.4936817458 | V103: 0.5735764364 | W103: -0.6026741302 | X103: -0.7979874014 | Y103: 0 | Z103: 0.4577067699 | AA103: -0.3456796799 | AB103: 0.8191520443 | AC103: 0 | AD103: 0 | AE103: 0 | AF103: 0 | AG103: 0 | AH103: 0.06474820144 | AI103: 0.04527669388 | AJ103: 0.7254059029 | AK103: -0.6868306174 | AL103: 0.8139072338 | AM103: 0.3718618563 | AN103: 0.4464009125 | AO103: 0.5792279653 | AP103: -0.5792279653 | AQ103: -0.5735764364 | AR103: 2.38921388 | AS103: 7.881787758 | AT103: 2.719511814 | AU103: 6683.045833 | AV103: -755.2006857 | AW103: -3682.932894 | AX103: -1867444.456 | AY103: -6160475.376 | AZ103: -2125667.856 | BA103: -9410858.192 | BB103: 6041442.2 | BC103: -466435.9834 | BD103: 6779179.116 | BE103: 108.2738014 | BF103: 253.136203 | BG103: 408170.116 | BH103: -18.2738014 | BI103: 245.1978622 | BJ103: 3.489677629 | BK103: -6.91745641 | BL103: 0.8764123344 | BM103: -6492.922468 | BN103: -3262.986426 | BO103: 50.36236796 | BP103: -9410858.192 | BQ103: 6041442.2 | BR103: -466435.9834 | BS103: -1867444.456 | BT103: -6160475.376 | BU103: -2125667.856 | BV103: 6779179.116 | BW103: 108.2738014 | BX103: 253.136203 | BY103: 408170.116 | BZ103: -18.2738014 | CA103: 245.1978622 | CB103: -0.2754676376 | CC103: -0.9087347112 | CD103: -0.3135582966 | CE103: 0.09096249726 | CF103: 0.3000743732 | CG103: -0.949568952 | CH103: 0.9569970767 | CI103: -0.2900975616 | CJ103: 0 | CK103: -9.412546682e-05 | CL103: -1.801347587e-05 | CM103: 2.224295057e-05 | CN103: 0.1283945569 | CO103: 0.03277993408 | CP103: 0.05887509383 | CQ103: 6779179.116 | CR103: 108.2738014 | CS103: 253.136203 | CT103: -1867444.456 | CU103: -6160475.376 | CV103: -2125667.856 | CW103: -9410858.192 | CX103: 6041442.2 | CY103: -466435.9834 | CZ103: 408170.116 | DA103: -18.2738014 | DB103: 245.1978622 | DD103: -5.86733222e-08 | DE103: 2.477318048e-07 | DF103: -1.396983862e-08 | DG103: 0.0001527369022 | DH103: -0.0001629814506 | DI103: -0.0001239823177 | DJ103: -2.048909664e-07 | DK103: 6.96331881e-13 | DL103: -1.108446668e-12 | DM103: 5.618203431e-07 | DN103: 8.791685104e-07 | DO103: 1.387670636e-07 | DP103: 1.471489668e-07 | DQ103: -1.039355993e-06 | DR103: 6.682239473e-08 | DS103: -0.0009974464774 | DT103: 2.117417353e-12 | DU103: 3.97903932e-12 | DW103: 35 | DX103: 135 | DY103: 7.938340851
G104: 1920 | H104: 221761.0634 | I104: 789908.5398 | J104: 281304.4714 | K104: 0.02216937377 | L104: -0.01669253831 | M104: 0 | N104: -228.9121648 | O104: -304.0184332 | P104: 0 | Q104: -4169139.313 | R104: 3139173.818 | S104: 3654260.638 | T104: -0.6543923125 | U104: 0.4927278894 | V104: 0.5735764364 | W104: -0.6015096865 | X104: -0.7988655062 | Y104: 0 | Z104: 0.4582104302 | AA104: -0.3450117824 | AB104: 0.8191520443 | AC104: 0 | AD104: 0 | AE104: 0 | AF104: 0 | AG104: 0 | AH104: 0.06474820144 | AI104: 0.0636589954 | AJ104: 0.7336245116 | AK104: -0.6765667803 | AL104: 0.8126761326 | AM104: 0.3553730999 | AN104: 0.4618089036 | AO104: 0.5792279653 | AP104: -0.5792279653 | AQ104: -0.5735764364 | AR104: 2.217610634 | AS104: 7.899085398 | AT104: 2.813044714 | AU104: 6729.116042 | AV104: -597.3852239 | AW104: -3627.604969 | AX104: -1733317.117 | AY104: -6174001.812 | AZ104: -2198776.352 | BA104: -9540008.79 | BB104: 5974804.118 | BC104: -465252.7558 | BD104: 6779181.665 | BE104: 108.9257419 | BF104: 254.3182051 | BG104: 408172.6649 | BH104: -18.92574195 | BI104: 246.2963027 | BJ104: 3.638008574 | BK104: -6.839587739 | BL104: 0.8867324756 | BM104: -6421.642883 | BN104: -3400.562147 | BO104: 67.99478997 | BP104: -9540008.79 | BQ104: 5974804.118 | BR104: -465252.7558 | BS104: -1733317.117 | BT104: -6174001.812 | BU104: -2198776.352 | BV104: 6779181.665 | BW104: 108.9257419 | BX104: 254.3182051 | BY104: 408172.6649 | BZ104: -18.92574195 | CA104: 246.2963027 | CB104: -0.2556823526 | CC104: -0.9107296599 | CD104: -0.3243424444 | CE104: 0.0876679944 | CF104: 0.3122696655 | CG104: -0.9459397332 | CH104: 0.962777678 | CI104: -0.270294548 | CJ104: 0 | CK104: -9.68573247e-05 | CL104: -1.884821121e-05 | CM104: 2.301218749e-05 | CN104: 0.1264843327 | CO104: 0.03241133869 | CP104: 0.05932767679 | CQ104: 6779181.665 | CR104: 108.9257419 | CS104: 254.3182051 | CT104: -1733317.117 | CU104: -6174001.812 | CV104: -2198776.352 | CW104: -9540008.79 | CX104: 5974804.118 | CY104: -465252.7558 | CZ104: 408172.6649 | DA104: -18.92574195 | DB104: 246.2963027 | DD104: -5.49480319e-08 | DE104: 2.486631274e-07 | DF104: -1.722946763e-08 | DG104: 0.0001490116119 | DH104: -0.0001657754183 | DI104: -0.0001261942089 | DJ104: -2.067536116e-07 | DK104: 7.673861546e-13 | DL104: -1.136868377e-12 | DM104: 5.732290447e-07 | DN104: 8.828938007e-07 | DO104: 1.373700798e-07 | DP104: 1.396983862e-07 | DQ104: -1.050531864e-06 | DR104: 7.019843906e-08 | DS104: -0.0009946525097 | DT104: 2.23110419e-12 | DU104: 4.206412996e-12 | DW104: 35 | DX104: 135 | DY104: 8.021902334
G105: 1940 | H105: 204487.2972 | I105: 791234.0842 | J105: 290513.7947 | K105: 0.02219369497 | L105: -0.01666018824 | M105: 0 | N105: -228.4685341 | O105: -304.3519605 | P105: 0 | Q105: -4173713.12 | R105: 3133090.113 | S105: 3654260.638 | T105: -0.655110222 | U105: 0.4917729849 | V105: 0.5735764364 | W105: -0.6003439634 | X105: -0.7997419119 | Y105: 0 | Z105: 0.4587131158 | AA105: -0.3443431511 | AB105: 0.8191520443 | AC105: 0 | AD105: 0 | AE105: 0 | AF105: 0 | AG105: 0 | AH105: 0.06474820144 | AI105: 0.08200877986 | AJ105: 0.7414683843 | AK105: -0.6659573523 | AL105: 0.8110299157 | AM105: 0.3387028185 | AN105: 0.4769810023 | AO105: 0.5792279653 | AP105: -0.5792279653 | AQ105: -0.5735764364 | AR105: 2.044872972 | AS105: 7.912340842 | AT105: 2.905137947 | AU105: 6771.742695 | AV105: -439.2642182 | AW105: -3570.420704 | AX105: -1598302.771 | AY105: -6184368.748 | AZ105: -2270759.679 | BA105: -9667704.24 | BB105: 5905430.307 | BC105: -463714.8549 | BD105: 6779184.175 | BE105: 109.5701428 | BF105: 255.5094114 | BG105: 408175.175 | BH105: -19.57014279 | BI105: 247.4039475 | BJ105: 3.784671636 | BK105: -6.758569476 | BL105: 0.896462973 | BM105: -6347.413245 | BN105: -3536.548937 | BO105: 85.82773594 | BP105: -9667704.24 | BQ105: 5905430.307 | BR105: -463714.8549 | BS105: -1598302.771 | BT105: -6184368.748 | BU105: -2270759.679 | BV105: 6779184.175 | BW105: 109.5701428 | BX105: 255.5094114 | BY105: 408175.175 | BZ105: -19.57014279 | CA105: 247.4039475 | CB105: -0.2357662412 | CC105: -0.9122585533 | CD105: -0.3349606118 | CE105: 0.08381417042 | CF105: 0.3243050975 | CG105: -0.9422321309 | CH105: 0.9681887545 | CI105: -0.2502209737 | CJ105: 0 | CK105: -9.934900176e-05 | CL105: -1.969585775e-05 | CM105: 2.376134586e-05 | CN105: 0.1245218652 | CO105: 0.03202591954 | CP105: 0.05979544751 | CQ105: 6779184.175 | CR105: 109.5701428 | CS105: 255.5094114 | CT105: -1598302.771 | CU105: -6184368.748 | CV105: -2270759.679 | CW105: -9667704.24 | CX105: 5905430.307 | CY105: -463714.8549 | CZ105: 408175.175 | DA105: -19.57014279 | DB105: 247.4039475 | DD105: -5.518086255e-08 | DE105: 2.486631274e-07 | DF105: -1.583248377e-08 | DG105: 0.0001471489668 | DH105: -0.0001648440957 | DI105: -0.0001239241101 | DJ105: -2.086162567e-07 | DK105: 7.673861546e-13 | DL105: -1.023181539e-12 | DM105: 5.720648915e-07 | DN105: 8.875504136e-07 | DO105: 1.490116119e-07 | DP105: 1.471489668e-07 | DQ105: -1.052394509e-06 | DR105: 7.910421118e-08 | DS105: -0.0009946525097 | DT105: 2.245315045e-12 | DU105: 4.433786671e-12 | DW105: 35 | DX105: 135 | DY105: 8.105463817
G106: 1960 | H106: 187108.9287 | I106: 792154.7323 | J106: 299574.4396 | K106: 0.02221796896 | L106: -0.01662780274 | M106: 0 | N106: -228.0244174 | O106: -304.6848405 | P106: 0 | Q106: -4178278.051 | R106: 3126999.744 | S106: 3654260.638 | T106: -0.6558267381 | U106: 0.4908170344 | V106: 0.5735764364 | W106: -0.5991769633 | X106: -0.8006166165 | Y106: 0 | Z106: 0.4592148258 | AA106: -0.3436737874 | AB106: 0.8191520443 | AC106: 0 | AD106: 0 | AE106: 0 | AF106: 0 | AG106: 0 | AH106: 0.06474820144 | AI106: 0.1003166741 | AJ106: 0.7489335143 | AK106: -0.6550077527 | AL106: 0.8089694241 | AM106: 0.3218595274 | AN106: 0.4919094587 | AO106: 0.5792279653 | AP106: -0.5792279653 | AQ106: -0.5735764364 | AR106: 1.871089287 | AS106: 7.921547323 | AT106: 2.995744396 | AU106: 6810.903987 | AV106: -280.9185838 | AW106: -3511.409363 | AX106: -1462470.512 | AY106: -6191570.883 | AZ106: -2341581 | BA106: -9793885.879 | BB106: 5833353.171 | BC106: -461818.3888 | BD106: 6779186.645 | BE106: 110.2066649 | BF106: 256.7101214 | BG106: 408177.6454 | BH106: -20.20666485 | BI106: 248.5210961 | BJ106: 3.929599458 | BK106: -6.674439847 | BL106: 0.9055934709 | BM106: -6270.267586 | BN106: -3670.884184 | BO106: 103.8493088 | BP106: -9793885.879 | BQ106: 5833353.171 | BR106: -461818.3888 | BS106: -1462470.512 | BT106: -6191570.883 | BU106: -2341581 | BV106: 6779186.645 | BW106: 110.2066649 | BX106: 256.7101214 | BY106: 408177.6454 | BZ106: -20.20666485 | CA106: 248.5210961 | CB106: -0.215729495 | CC106: -0.9133206101 | CD106: -0.3454073655 | CE106: 0.07940149208 | CF106: 0.3361571823 | CG106: -0.9384528501 | CH106: 0.9732194963 | CI106: -0.2298778197 | CJ106: 0 | CK106: -0.0001015960676 | CL106: -2.055641363e-05 | CM106: 2.448804883e-05 | CN106: 0.1225120034 | CO106: 0.0316234183 | CP106: 0.06027798096 | CQ106: 6779186.645 | CR106: 110.2066649 | CS106: 256.7101214 | CT106: -1462470.512 | CU106: -6191570.883 | CV106: -2341581 | CW106: -9793885.879 | CX106: 5833353.171 | CY106: -461818.3888 | CZ106: 408177.6454 | DA106: -20.20666485 | DB106: 248.5210961 | DD106: -5.611218512e-08 | DE106: 2.551823854e-07 | DF106: -1.257285476e-08 | DG106: 0.0001527369022 | DH106: -0.0001713633537 | DI106: -0.0001236330718 | DJ106: -2.160668373e-07 | DK106: 7.958078641e-13 | DL106: -1.023181539e-12 | DM106: 5.611218512e-07 | DN106: 8.950009942e-07 | DO106: 1.508742571e-07 | DP106: 1.564621925e-07 | DQ106: -1.054257154e-06 | DR106: 7.357448339e-08 | DS106: -0.0009909272194 | DT106: 2.316369319e-12 | DU106: 4.49063009e-12 | DW106: 35 | DX106: 135 | DY106: 8.189025299
G107: 1980 | H107: 169634.8503 | I107: 792670.0146 | J107: 308481.7706 | K107: 0.02224219569 | L107: -0.01659538187 | M107: 0 | N107: -227.5798156 | O107: -305.0170724 | P107: 0 | Q107: -4182834.094 | R107: 3120902.723 | S107: 3654260.638 | T107: -0.6565418592 | U107: 0.48986004 | V107: 0.5735764364 | W107: -0.5980086888 | X107: -0.8014896182 | Y107: 0 | Z107: 0.459715559 | AA107: -0.3430036927 | AB107: 0.8191520443 | AC107: 0 | AD107: 0 | AE107: 0 | AF107: 0 | AG107: 0 | AH107: 0.06474820144 | AI107: 0.1185733266 | AJ107: 0.7560160883 | AK107: -0.6437235746 | AL107: 0.8064957101 | AM107: 0.3048518302 | AN107: 0.5065866473 | AO107: 0.5792279653 | AP107: -0.5792279653 | AQ107: -0.5735764364 | AR107: 1.696348503 | AS107: 7.926700146 | AT107: 3.084817706 | AU107: 6846.579886 | AV107: -122.4293502 | AW107: -3450.601149 | AX107: -1325889.848 | AY107: -6195604.534 | AZ107: -2411204.074 | BA107: -9918495.739 | BB107: 5758606.362 | BC107: -459559.7057 | BD107: 6779189.075 | BE107: 110.8349639 | BF107: 257.9206259 | BG107: 408180.0752 | BH107: -20.83496392 | BI107: 249.6480391 | BJ107: 4.072725477 | BK107: -6.587238521 | BL107: 0.9141139868 | BM107: -6190.241279 | BN107: -3803.506053 | BO107: 122.0474081 | BP107: -9918495.739 | BQ107: 5758606.362 | BR107: -459559.7057 | BS107: -1325889.848 | BT107: -6195604.534 | BU107: -2411204.074 | BV107: 6779189.075 | BW107: 110.8349639 | BX107: 257.9206259 | BY107: 408180.0752 | BZ107: -20.83496392 | CA107: 249.6480391 | CB107: -0.1955823674 | CC107: -0.9139152877 | CD107: -0.3556773601 | CE107: 0.07443137691 | CF107: 0.3478021774 | CG107: -0.9346088035 | CH107: 0.9778586338 | CI107: -0.209266558 | CJ107: 0 | CK107: -0.000103594613 | CL107: -2.142979848e-05 | CM107: 2.518974492e-05 | CN107: 0.1204596794 | CO107: 0.03120357745 | CP107: 0.06077480279 | CQ107: 6779189.075 | CR107: 110.8349639 | CS107: 257.9206259 | CT107: -1325889.848 | CU107: -6195604.534 | CV107: -2411204.074 | CW107: -9918495.739 | CX107: 5758606.362 | CY107: -459559.7057 | CZ107: 408180.0752 | DA107: -20.83496392 | DB107: 249.6480391 | DD107: -5.611218512e-08 | DE107: 2.589076757e-07 | DF107: -1.676380634e-08 | DG107: 0.0001527369022 | DH107: -0.0001732259989 | DI107: -0.0001285225153 | DJ107: -2.197921276e-07 | DK107: 8.668621376e-13 | DL107: -9.663381206e-13 | DM107: 5.532056093e-07 | DN107: 9.061768651e-07 | DO107: 1.536682248e-07 | DP107: 1.676380634e-07 | DQ107: -1.0561198e-06 | DR107: 6.973277777e-08 | DS107: -0.0009909272194 | DT107: 2.387423592e-12 | DU107: 4.661160347e-12 | DW107: 35 | DX107: 135 | DY107: 8.272586782
G108: 2000 | H108: 152074.0035 | I108: 792779.669 | J108: 317231.2305 | K108: 0.02226637511 | L108: -0.01656292571 | M108: 0 | N108: -227.1347298 | O108: -305.3486555 | P108: 0 | Q108: -4187381.24 | R108: 3114799.065 | S108: 3654260.638 | T108: -0.6572555839 | U108: 0.4889020036 | V108: 0.5735764364 | W108: -0.5968391424 | X108: -0.8023609151 | Y108: 0 | Z108: 0.4602153144 | AA108: -0.3423328684 | AB108: 0.8191520443 | AC108: 0 | AD108: 0 | AE108: 0 | AF108: 0 | AG108: 0 | AH108: 0.06474820144 | AI108: 0.1367694117 | AJ108: 0.7627124887 | AK108: -0.6321105818 | AL108: 0.8036100374 | AM108: 0.2876884144 | AN108: 0.521005071 | AO108: 0.5792279653 | AP108: -0.5792279653 | AQ108: -0.5735764364 | AR108: 1.520740035 | AS108: 7.92779669 | AT108: 3.172312305 | AU108: 6878.752143 | AV108: 36.12237974 | AW108: -3388.02718 | AX108: -1188630.674 | AY108: -6196467.64 | AZ108: -2479593.274 | BA108: -10041476.57 | BB108: 5681224.759 | BC108: -456935.3976 | BD108: 6779191.464 | BE108: 111.4546906 | BF108: 259.1412053 | BG108: 408182.4636 | BH108: -21.45469065 | BI108: 250.785057 | BJ108: 4.213983953 | BK108: -6.497006588 | BL108: 0.9220149196 | BM108: -6107.371018 | BN108: -3934.35352 | BO108: 140.4097376 | BP108: -10041476.57 | BQ108: 5681224.759 | BR108: -456935.3976 | BS108: -1188630.674 | BT108: -6196467.64 | BU108: -2479593.274 | BV108: 6779191.464 | BW108: 111.4546906 | BX108: 259.1412053 | BY108: 408182.4636 | BZ108: -21.45469065 | CA108: 250.785057 | CB108: -0.175335168 | CC108: -0.9140422827 | CD108: -0.3657653405 | CE108: 0.06890624028 | CF108: 0.3592161109 | CG108: -0.9307071052 | CH108: 0.9820944501 | CI108: -0.1883892011 | CJ108: 0 | CK108: -0.000105341258 | CL108: -2.231584664e-05 | CM108: 2.586370686e-05 | CN108: 0.1183698984 | CO108: 0.03076614192 | CP108: 0.0612853859 | CQ108: 6779191.464 | CR108: 111.4546906 | CS108: 259.1412053 | CT108: -1188630.674 | CU108: -6196467.64 | CV108: -2479593.274 | CW108: -10041476.57 | CX108: 5681224.759 | CY108: -456935.3976 | CZ108: 408182.4636 | DA108: -21.45469065 | DB108: 250.785057 | DD108: -5.844049156e-08 | DE108: 2.570450306e-07 | DF108: -1.909211278e-08 | DG108: 0.0001527369022 | DH108: -0.0001722946763 | DI108: -0.0001303269528 | DJ108: -2.179294825e-07 | DK108: 9.094947018e-13 | DL108: -9.094947018e-13 | DM108: 5.587935448e-07 | DN108: 9.10833478e-07 | DO108: 1.490116119e-07 | DP108: 1.639127731e-07 | DQ108: -1.064501703e-06 | DR108: 6.740447134e-08 | DS108: -0.0009853392839 | DT108: 2.529532139e-12 | DU108: 4.945377441e-12 | DW108: 35 | DX108: 135 | DY108: 8.356148264
G109: 2020 | H109: 134435.374 | I109: 792483.641 | J109: 325818.3428 | K109: 0.02229050717 | L109: -0.01653043431 | M109: 0 | N109: -226.6891609 | O109: -305.6795892 | P109: 0 | Q109: -4191919.48 | R109: 3108688.782 | S109: 3654260.638 | T109: -0.6579679106 | U109: 0.4879429273 | V109: 0.5735764364 | W109: -0.5956683265 | X109: -0.8032305054 | Y109: 0 | Z109: 0.4607140909 | AA109: -0.3416613159 | AB109: 0.8191520443 | AC109: 0 | AD109: 0 | AE109: 0 | AF109: 0 | AG109: 0 | AH109: 0.06474820144 | AI109: 0.1548956348 | AJ109: 0.7690192948 | AK109: -0.6201747064 | AL109: 0.80031388 | AM109: 0.2703780471 | AN109: 0.5351573648 | AO109: 0.5792279653 | AP109: -0.5792279653 | AQ109: -0.5735764364 | AR109: 1.34435374 | AS109: 7.92483641 | AT109: 3.258183428 | AU109: 6907.404302 | AV109: 194.6554715 | AW109: -3323.71948 | AX109: -1050763.23 | AY109: -6194159.763 | AZ109: -2546713.603 | BA109: -10162771.87 | BB109: 5601244.452 | BC109: -453942.3045 | BD109: 6779193.81 | BE109: 112.0654906 | BF109: 260.3721292 | BG109: 408184.8098 | BH109: -22.06549063 | BI109: 251.9324194 | BJ109: 4.35331 | BK109: -6.403786542 | BL109: 0.9292870563 | BM109: -6021.694804 | BN109: -4063.366396 | BO109: 158.9238129 | BP109: -10162771.87 | BQ109: 5601244.452 | BR109: -453942.3045 | BS109: -1050763.23 | BT109: -6194159.763 | BU109: -2546713.603 | BV109: 6779193.81 | BW109: 112.0654906 | BX109: 260.3721292 | BY109: 408184.8098 | BZ109: -22.06549063 | CA109: 251.9324194 | CB109: -0.1549982579 | CC109: -0.913701531 | CD109: -0.3756661447 | CE109: 0.06282954392 | CF109: 0.3703748111 | CG109: -0.9267550635 | CH109: 0.9859147978 | CI109: -0.1672483528 | CJ109: 0 | CK109: -0.0001068331582 | CL109: -2.321430007e-05 | CM109: 2.650703213e-05 | CN109: 0.1162477275 | CO109: 0.03031086086 | CP109: 0.06180914686 | CQ109: 6779193.81 | CR109: 112.0654906 | CS109: 260.3721292 | CT109: -1050763.23 | CU109: -6194159.763 | CV109: -2546713.603 | CW109: -10162771.87 | CX109: 5601244.452 | CY109: -453942.3045 | CZ109: 408184.8098 | DA109: -22.06549063 | DB109: 251.9324194 | DD109: -6.100162864e-08 | DE109: 2.570450306e-07 | DF109: -1.862645149e-08 | DG109: 0.0001545995474 | DH109: -0.0001695007086 | DI109: -0.0001315493137 | DJ109: -2.18860805e-07 | DK109: 9.094947018e-13 | DL109: -9.663381206e-13 | DM109: 5.695037544e-07 | DN109: 9.145587683e-07 | DO109: 1.443549991e-07 | DP109: 1.545995474e-07 | DQ109: -1.073814929e-06 | DR109: 6.816117093e-08 | DS109: -0.0009778887033 | DT109: 2.629008122e-12 | DU109: 5.172751116e-12 | DW109: 35 | DX109: 135 | DY109: 8.439709747
G110: 2040 | H110: 116727.9873 | I110: 791782.0833 | J110: 334238.7143 | K110: 0.02231459183 | L110: -0.01649790775 | M110: 0 | N110: -226.2431099 | O110: -306.0098727 | P110: 0 | Q110: -4196448.803 | R110: 3102571.886 | S110: 3654260.638 | T110: -0.6586788377 | U110: 0.4869828132 | V110: 0.5735764364 | W110: -0.5944962435 | X110: -0.8040983873 | Y110: 0 | Z110: 0.4612118875 | AA110: -0.3409890368 | AB110: 0.8191520443 | AC110: 0 | AD110: 0 | AE110: 0 | AF110: 0 | AG110: 0 | AH110: 0.06474820144 | AI110: 0.1729427372 | AJ110: 0.7749332852 | AK110: -0.6079220453 | AL110: 0.7966089215 | AM110: 0.2529295705 | AN110: 0.5490362998 | AO110: 0.5792279653 | AP110: -0.5792279653 | AQ110: -0.5735764364 | AR110: 1.167279873 | AS110: 7.917820833 | AT110: 3.342387143 | AU110: 6932.521708 | AV110: 353.0888004 | AW110: -3257.710959 | AX110: -912358.0676 | AY110: -6188682.086 | AZ110: -2612530.714 | BA110: -10282325.92 | BB110: 5518702.729 | BC110: -450577.5178 | BD110: 6779196.113 | BE110: 112.6670045 | BF110: 261.6136547 | BG110: 408187.1133 | BH110: -22.66700448 | BI110: 253.0903835 | BJ110: 4.490639616 | BK110: -6.307622261 | BL110: 0.9359215793 | BM110: -5933.251927 | BN110: -4190.485353 | BO110: 177.5769691 | BP110: -10282325.92 | BQ110: 5518702.729 | BR110: -450577.5178 | BS110: -912358.0676 | BT110: -6188682.086 | BU110: -2612530.714 | BV110: 6779196.113 | BW110: 112.6670045 | BX110: 261.6136547 | BY110: 408187.1133 | BZ110: -22.66700448 | CA110: 253.0903835 | CB110: -0.1345820437 | CC110: -0.9128932078 | CD110: -0.3853747067 | CE110: 0.05620584545 | CF110: 0.381253941 | CG110: -0.9227601722 | CH110: 0.9893071194 | CI110: -0.145847261 | CJ110: 0 | CK110: -0.00010806801 | CL110: -2.412480113e-05 | CM110: 2.711664545e-05 | CN110: 0.1140982858 | CO110: 0.02983748958 | CP110: 0.06234544248 | CQ110: 6779196.113 | CR110: 112.6670045 | CS110: 261.6136547 | CT110: -912358.0676 | CU110: -6188682.086 | CV110: -2612530.714 | CW110: -10282325.92 | CX110: 5518702.729 | CY110: -450577.5178 | CZ110: 408187.1133 | DA110: -22.66700448 | DB110: 253.0903835 | DD110: -6.798654795e-08 | DE110: 2.598389983e-07 | DF110: -1.257285476e-08 | DG110: 0.0001639127731 | DH110: -0.0001704320312 | DI110: -0.0001312582754 | DJ110: -2.235174179e-07 | DK110: 8.810729923e-13 | DL110: -9.663381206e-13 | DM110: 5.557667464e-07 | DN110: 9.229406714e-07 | DO110: 1.559965312e-07 | DP110: 1.732259989e-07 | DQ110: -1.072883606e-06 | DR110: 6.932532415e-08 | DS110: -0.0009778887033 | DT110: 2.614797268e-12 | DU110: 5.229594535e-12 | DW110: 35 | DX110: 135 | DY110: 8.52327123
G111: 2060 | H111: 98960.9041 | I111: 790675.3565 | J111: 342488.037 | K111: 0.02233862901 | L111: -0.0164653461 | M111: 0 | N111: -225.7965776 | O111: -306.3395053 | P111: 0 | Q111: -4200969.201 | R111: 3096448.391 | S111: 3654260.638 | T111: -0.6593883639 | U111: 0.4860216633 | V111: 0.5735764364 | W111: -0.5933228961 | X111: -0.8049645588 | Y111: 0 | Z111: 0.461708703 | AA111: -0.3403160324 | AB111: 0.8191520443 | AC111: 0 | AD111: 0 | AE111: 0 | AF111: 0 | AG111: 0 | AH111: 0.06474820144 | AI111: 0.1909015002 | AJ111: 0.780451439 | AK111: -0.595358857 | AL111: 0.7924970545 | AM111: 0.2353518972 | AN111: 0.5626347866 | AO111: 0.5792279653 | AP111: -0.5792279653 | AQ111: -0.5735764364 | AR111: 0.989609041 | AS111: 7.906753565 | AT111: 3.42488037 | AU111: 6954.091517 | AV111: 511.3412931 | AW111: -3190.035398 | AX111: -773486.013 | AY111: -6180037.417 | AZ111: -2677010.927 | BA111: -10400083.78 | BB111: 5433638.054 | BC111: -446838.3841 | BD111: 6779198.374 | BE111: 113.258868 | BF111: 262.8660257 | BG111: 408189.3736 | BH111: -23.25886803 | BI111: 254.259193 | BJ111: 4.625909712 | BK111: -6.208558984 | BL111: 0.9419100734 | BM111: -5842.082949 | BN111: -4315.651959 | BO111: 196.3563691 | BP111: -10400083.78 | BQ111: 5433638.054 | BR111: -446838.3841 | BS111: -773486.013 | BT111: -6180037.417 | BU111: -2677010.927 | BV111: 6779198.374 | BW111: 113.258868 | BX111: 262.8660257 | BY111: 408189.3736 | BZ111: -23.25886803 | CA111: 254.259193 | CB111: -0.1140969729 | CC111: -0.9116177277 | CD111: -0.3948860588 | CE111: 0.0490408487 | CF111: 0.3918290374 | CG111: -0.9187301021 | CH111: 0.9922584723 | CI111: -0.124189871 | CJ111: 0 | CK111: -0.0001090440553 | CL111: -2.504688529e-05 | CM111: 2.768930348e-05 | CN111: 0.1119267326 | CO111: 0.02934579157 | CP111: 0.06289356635 | CQ111: 6779198.374 | CR111: 113.258868 | CS111: 262.8660257 | CT111: -773486.013 | CU111: -6180037.417 | CV111: -2677010.927 | CW111: -10400083.78 | CX111: 5433638.054 | CY111: -446838.3841 | CZ111: 408189.3736 | DA111: -23.25886803 | DB111: 254.259193 | DD111: -7.334165275e-08 | DE111: 2.598389983e-07 | DF111: -1.164153218e-08 | DG111: 0.0001657754183 | DH111: -0.0001648440957 | DI111: -0.0001312582754 | DJ111: -2.244487405e-07 | DK111: 9.237055565e-13 | DL111: -9.663381206e-13 | DM111: 5.767215043e-07 | DN111: 9.210780263e-07 | DO111: 1.606531441e-07 | DP111: 1.601874828e-07 | DQ111: -1.083128154e-06 | DR111: 8.422648534e-08 | DS111: -0.0009695068002 | DT111: 2.657429832e-12 | DU111: 5.741185305e-12 | DW111: 35 | DX111: 135 | DY111: 8.606832712
G112: 2080 | H112: 81143.21539 | I112: 789164.028 | J112: 350562.0903 | K112: 0.02236261869 | L112: -0.01643274943 | M112: 0 | N112: -225.349565 | O112: -306.6684863 | P112: 0 | Q112: -4205480.663 | R112: 3090318.31 | S112: 3654260.638 | T112: -0.6600964876 | U112: 0.4850594796 | V112: 0.5735764364 | W112: -0.5921482867 | X112: -0.8058290182 | Y112: 0 | Z112: 0.4622045366 | AA112: -0.3396423041 | AB112: 0.8191520443 | AC112: 0 | AD112: 0 | AE112: 0 | AF112: 0 | AG112: 0 | AH112: 0.06474820144 | AI112: 0.2087627505 | AJ112: 0.7855709375 | AK112: -0.5824915589 | AL112: 0.7879803793 | AM112: 0.217654006 | AN112: 0.575945879 | AO112: 0.5792279653 | AP112: -0.5792279653 | AQ112: -0.5735764364 | AR112: 0.8114321539 | AS112: 7.89164028 | AT112: 3.505620903 | AU112: 6972.102696 | AV112: 669.3319691 | AW112: -3120.727429 | AX112: -634218.1316 | AY112: -6168230.18 | AZ112: -2740121.247 | BA112: -10515991.34 | BB112: 5346090.05 | BC112: -442722.5081 | BD112: 6779200.59 | BE112: 113.8407125 | BF112: 264.1294711 | BG112: 408191.5902 | BH112: -23.84071246 | BI112: 255.4390769 | BJ112: 4.75905814 | BK112: -6.106643289 | BL112: 0.9472445323 | BM112: -5748.229683 | BN112: -4438.808696 | BO112: 215.2490117 | BP112: -10515991.34 | BQ112: 5346090.05 | BR112: -442722.5081 | BS112: -634218.1316 | BT112: -6168230.18 | BU112: -2740121.247 | BV112: 6779200.59 | BW112: 113.8407125 | BX112: 264.1294711 | BY112: 408191.5902 | BZ112: -23.84071246 | CA112: 255.4390769 | CB112: -0.0935535279 | CC112: -0.9098757439 | CD112: -0.404195334 | CE112: 0.04134145452 | CF112: 0.4020755553 | CG112: -0.9146726912 | CH112: 0.9947555587 | CI112: -0.1022808801 | CJ112: 0 | CK112: -0.0001097600846 | CL112: -2.597997372e-05 | CM112: 2.822160208e-05 | CN112: 0.1097382571 | CO112: 0.02883554078 | CP112: 0.06345274559 | CQ112: 6779200.59 | CR112: 113.8407125 | CS112: 264.1294711 | CT112: -634218.1316 | CU112: -6168230.18 | CV112: -2740121.247 | CW112: -10515991.34 | CX112: 5346090.05 | CY112: -442722.5081 | CZ112: 408191.5902 | DA112: -23.84071246 | DB112: 255.4390769 | DD112: -8.358620107e-08 | DE112: 2.672895789e-07 | DF112: -6.98491931e-09 | DG112: 0.0001788139343 | DH112: -0.0001667067409 | DI112: -0.000134925358 | DJ112: -2.328306437e-07 | DK112: 9.379164112e-13 | DL112: -1.023181539e-12 | DM112: 5.491310731e-07 | DN112: 9.313225746e-07 | DO112: 1.62050128e-07 | DP112: 1.825392246e-07 | DQ112: -1.075677574e-06 | DR112: 7.037306204e-08 | DS112: -0.0009639188647 | DT112: 2.728484105e-12 | DU112: 5.627498467e-12 | DW112: 35 | DX112: 135 | DY112: 8.690394195
G113: 2100 | H113: 63284.03813 | I113: 787248.8725 | J113: 358456.7436 | K113: 0.0223865608 | L113: -0.01640011781 | M113: 0 | N113: -224.9020732 | O113: -306.996815 | P113: 0 | Q113: -4209983.18 | R113: 3084181.656 | S113: 3654260.638 | T113: -0.6608032072 | U113: 0.4840962642 | V113: 0.5735764364 | W113: -0.5909724178 | X113: -0.8066917636 | Y113: 0 | Z113: 0.462699387 | AA113: -0.3389678534 | AB113: 0.8191520443 | AC113: 0 | AD113: 0 | AE113: 0 | AF113: 0 | AG113: 0 | AH113: 0.06474820144 | AI113: 0.2265173647 | AJ113: 0.7902891657 | AK113: -0.5693267235 | AL113: 0.783061203 | AM113: 0.1998449369 | AN113: 0.5889627777 | AO113: 0.5792279653 | AP113: -0.5792279653 | AQ113: -0.5735764364 | AR113: 0.6328403813 | AS113: 7.872488725 | AT113: 3.584567436 | AU113: 6986.546037 | AV113: 826.979982 | AW113: -3049.822522 | AX113: -494625.6911 | AY113: -6153266.422 | AZ113: -2801829.378 | BA113: -10629995.35 | BB113: 5256099.482 | BC113: -438227.7563 | BD113: 6779202.763 | BE113: 114.4121645 | BF113: 265.4042037 | BG113: 408193.763 | BH113: -24.41216455 | BI113: 256.630248 | BJ113: 4.890023723 | BK113: -6.001923075 | BL113: 0.9519173649 | BM113: -5651.735176 | BN113: -4559.898993 | BO113: 234.2417394 | BP113: -10629995.35 | BQ113: 5256099.482 | BR113: -438227.7563 | BS113: -494625.6911 | BT113: -6153266.422 | BU113: -2801829.378 | BV113: 6779202.763 | BW113: 114.4121645 | BX113: 265.4042037 | BY113: 408193.763 | BZ113: -24.41216455 | CA113: 256.630248 | CB113: -0.07296222113 | CC113: -0.9076681488 | CD113: -0.4132977691 | CE113: 0.03311581143 | CF113: 0.4119689175 | CG113: -0.9105959335 | CH113: 0.9967847598 | CI113: -0.08012579285 | CJ113: 0 | CK113: -0.000110215439 | CL113: -2.692336599e-05 | CM113: 2.870998635e-05 | CN113: 0.1075380672 | CO113: 0.0283065239 | CP113: 0.0640221377 | CQ113: 6779202.763 | CR113: 114.4121645 | CS113: 265.4042037 | CT113: -494625.6911 | CU113: -6153266.422 | CV113: -2801829.378 | CW113: -10629995.35 | CX113: 5256099.482 | CY113: -438227.7563 | CZ113: 408193.763 | DA113: -24.41216455 | DB113: 256.630248 | DD113: -8.405186236e-08 | DE113: 2.682209015e-07 | DF113: -5.12227416e-09 | DG113: 0.0001788139343 | DH113: -0.0001667067409 | DI113: -0.0001338776201 | DJ113: -2.346932888e-07 | DK113: 9.663381206e-13 | DL113: -9.663381206e-13 | DM113: 5.438341759e-07 | DN113: 9.341165423e-07 | DO113: 1.695007086e-07 | DP113: 1.899898052e-07 | DQ113: -1.073814929e-06 | DR113: 7.421476766e-08 | DS113: -0.0009573996067 | DT113: 2.728484105e-12 | DU113: 5.911715562e-12 | DW113: 35 | DX113: 135 | DY113: 8.773955678
G114: 2120 | H114: 45392.51044 | I114: 784930.8712 | J114: 366167.9578 | K114: 0.02241045529 | L114: -0.01636745131 | M114: 0 | N114: -224.4541029 | O114: -307.3244908 | P114: 0 | Q114: -4214476.743 | R114: 3078038.442 | S114: 3654260.638 | T114: -0.6615085213 | U114: 0.4831320191 | V114: 0.5735764364 | W114: -0.5897952919 | X114: -0.8075527931 | Y114: 0 | Z114: 0.4631932532 | AA114: -0.3382926817 | AB114: 0.8191520443 | AC114: 0 | AD114: 0 | AE114: 0 | AF114: 0 | AG114: 0 | AH114: 0.06474820144 | AI114: 0.2441562736 | AJ114: 0.7946037134 | AK114: -0.5558710756 | AL114: 0.7777420384 | AM114: 0.1819337868 | AN114: 0.6016788337 | AO114: 0.5792279653 | AP114: -0.5792279653 | AQ114: -0.5735764364 | AR114: 0.4539251044 | AS114: 7.849308712 | AT114: 3.661679578 | AU114: 6997.414155 | AV114: 984.2046612 | AW114: -2977.356961 | AX114: -354780.1253 | AY114: -6135153.803 | AZ114: -2862103.743 | BA114: -10742043.43 | BB114: 5163708.237 | BC114: -433352.2599 | BD114: 6779204.892 | BE114: 114.972847 | BF114: 266.6904186 | BG114: 408195.8917 | BH114: -24.97284698 | BI114: 257.8329015 | BJ114: 5.018746282 | BK114: -5.894447536 | BL114: 0.9559214016 | BM114: -5552.643688 | BN114: -4678.86725 | BO114: 253.3212475 | BP114: -10742043.43 | BQ114: 5163708.237 | BR114: -433352.2599 | BS114: -354780.1253 | BT114: -6135153.803 | BU114: -2862103.743 | BV114: 6779204.892 | BW114: 114.972847 | BX114: 266.6904186 | BY114: 408195.8917 | BZ114: -24.97284698 | CA114: 257.8329015 | CB114: -0.0523335894 | CC114: -0.9049960727 | CD114: -0.4221887063 | CE114: 0.02437336591 | CF114: 0.4214845701 | CG114: -0.9065079681 | CH114: 0.9983321764 | CI114: -0.05773097562 | CJ114: 0 | CK114: -0.0001104100109 | CL114: -2.787623296e-05 | CM114: 2.915076385e-05 | CN114: 0.1053313782 | CO114: 0.02775854294 | CP114: 0.06460082769 | CQ114: 6779204.892 | CR114: 114.972847 | CS114: 266.6904186 | CT114: -354780.1253 | CU114: -6135153.803 | CV114: -2862103.743 | CW114: -10742043.43 | CX114: 5163708.237 | CY114: -433352.2599 | CZ114: 408195.8917 | DA114: -24.97284698 | DB114: 257.8329015 | DD114: -8.224742487e-08 | DE114: 2.654269338e-07 | DF114: -6.519258022e-09 | DG114: 0.0001788139343 | DH114: -0.0001657754183 | DI114: -0.0001341104507 | DJ114: -2.328306437e-07 | DK114: 9.947598301e-13 | DL114: -9.094947018e-13 | DM114: 5.49829565e-07 | DN114: 9.322538972e-07 | DO114: 1.778826118e-07 | DP114: 1.899898052e-07 | DQ114: -1.077540219e-06 | DR114: 8.451752365e-08 | DS114: -0.0009471550584 | DT114: 2.700062396e-12 | DU114: 6.139089237e-12 | DW114: 35 | DX114: 135 | DY114: 8.85751716
G115: 2140 | H115: 27477.78695 | I115: 782211.2111 | J115: 373691.7877 | K115: 0.02243430211 | L115: -0.01633474999 | M115: 0 | N115: -224.0056553 | O115: -307.6515128 | P115: 0 | Q115: -4218961.341 | R115: 3071888.681 | S115: 3654260.638 | T115: -0.6622124284 | U115: 0.4821667464 | V115: 0.5735764364 | W115: -0.5886169115 | X115: -0.808412105 | Y115: 0 | Z115: 0.4636861343 | AA115: -0.3376167905 | AB115: 0.8191520443 | AC115: 0 | AD115: 0 | AE115: 0 | AF115: 0 | AG115: 0 | AH115: 0.06474820144 | AI115: 0.2616704672 | AJ115: 0.7985123769 | AK115: -0.5421314882 | AL115: 0.7720256024 | AM115: 0.1639297048 | AN115: 0.6140875517 | AO115: 0.5792279653 | AP115: -0.5792279653 | AQ115: -0.5735764364 | AR115: 0.2747778695 | AS115: 7.822112111 | AT115: 3.736917877 | AU115: 7004.701495 | AV115: 1140.925553 | AW115: -2903.367831 | AX115: -214752.9972 | AY115: -6113901.595 | AZ115: -2920913.499 | BA115: -10852084.09 | BB115: 5068959.304 | BC115: -428094.4175 | BD115: 6779206.976 | BE115: 115.5223786 | BF115: 267.9882922 | BG115: 408197.9763 | BH115: -25.52237863 | BI115: 259.0472135 | BJ115: 5.145166664 | BK115: -5.784267137 | BL115: 0.9592499002 | BM115: -5451.000673 | BN115: -4795.658862 | BO115: 272.4740918 | BP115: -10852084.09 | BQ115: 5068959.304 | BR115: -428094.4175 | BS115: -214752.9972 | BT115: -6113901.595 | BU115: -2920913.499 | BV115: 6779206.976 | BW115: 115.5223786 | BX115: 267.9882922 | BY115: 408197.9763 | BZ115: -25.52237863 | CA115: 259.0472135 | CB115: -0.0316781886 | CC115: -0.9018608837 | CD115: -0.4308635965 | CE115: 0.01512491151 | CF115: 0.4305980444 | CG115: -0.9024170661 | CH115: 0.9993836748 | CI115: -0.03510371179 | CJ115: 0 | CK115: -0.0001103442443 | CL115: -2.88376099e-05 | CM115: 2.95401211e-05 | CN115: 0.1031234025 | CO115: 0.02719141782 | CP115: 0.06518782548 | CQ115: 6779206.976 | CR115: 115.5223786 | CS115: 267.9882922 | CT115: -214752.9972 | CU115: -6113901.595 | CV115: -2920913.499 | CW115: -10852084.09 | CX115: 5068959.304 | CY115: -428094.4175 | CZ115: 408197.9763 | DA115: -25.52237863 | DB115: 259.0472135 | DD115: -8.239294402e-08 | DE115: 2.607703209e-07 | DF115: -1.257285476e-08 | DG115: 0.0001713633537 | DH115: -0.0001629814506 | DI115: -0.0001363223419 | DJ115: -2.272427082e-07 | DK115: 1.008970685e-12 | DL115: -7.958078641e-13 | DM115: =CT115-AX115 -> 5.41593181e-07 | DN115: 9.406358004e-07 | DO115: 1.853331923e-07 | DP115: 2.011656761e-07 | DQ115: -1.079402864e-06 | DR115: 8.614733815e-08 | DS115: -0.0009452924132 | DT115: 2.700062396e-12 | DU115: 6.309619494e-12 | DW115: 35 | DX115: 135 | DY115: 8.941078643
G116: 2160 | H116: 9549.034105 | I116: 779091.285 | J116: 381024.384 | K116: 0.02245810122 | L116: -0.01630201393 | M116: 0 | N116: -223.5567311 | O116: -307.9778805 | P116: 0 | Q116: -4223436.966 | R116: 3065732.386 | S116: 3654260.638 | T116: -0.662914927 | U116: 0.4812004481 | V116: 0.5735764364 | W116: -0.5874372791 | X116: -0.8092696974 | Y116: 0 | Z116: 0.4641780291 | AA116: -0.3369401811 | AB116: 0.8191520443 | AC116: 0 | AD116: 0 | AE116: 0 | AF116: 0 | AG116: 0 | AH116: 0.06474820144 | AI116: 0.2790509994 | AJ116: 0.8020131595 | AK116: -0.5281149796 | AL116: 0.7659148151 | AM116: 0.1458418873 | AN116: 0.6261825932 | AO116: 0.5792279653 | AP116: -0.5792279653 | AQ116: -0.5735764364 | AR116: 0.09549034105 | AS116: 7.79091285 | AT116: 3.81024384 | AU116: 7008.404334 | AV116: 1297.062461 | AW116: -2827.892995 | AX116: -74615.96258 | AY116: -6089520.674 | AZ116: -2978228.552 | BA116: -10960066.76 | BB116: 4971896.751 | BC116: -422452.8978 | BD116: 6779209.017 | BE116: 116.060375 | BF116: 269.2979799 | BG116: 408200.0167 | BH116: -26.060375 | BI116: 260.2733398 | BJ116: 5.269226771 | BK116: -5.671433593 | BL116: 0.9618965511 | BM116: -5346.852757 | BN116: -4910.220248 | BO116: 291.6866978 | BP116: -10960066.76 | BQ116: 4971896.751 | BR116: -422452.8978 | BS116: -74615.96258 | BT116: -6089520.674 | BU116: -2978228.552 | BV116: 6779209.017 | BW116: 116.060375 | BX116: 269.2979799 | BY116: 408200.0167 | BZ116: -26.060375 | CA116: 260.2733398 | CB116: -0.01100658829 | CC116: -0.8982641868 | CD116: -0.4393180007 | CE116: 0.00538263629 | CF116: 0.4392850248 | CG116: -0.8983316171 | CH116: 0.9999249383 | CI116: -0.01225225527 | CJ116: 0 | CK116: -0.0001100191333 | CL116: -2.980639007e-05 | CM116: 2.987414379e-05 | CN116: 0.1009193375 | CO116: 0.02660498916 | CP116: 0.06578206365 | CQ116: 6779209.017 | CR116: 116.060375 | CS116: 269.2979799 | CT116: -74615.96258 | CU116: -6089520.674 | CV116: -2978228.552 | CW116: -10960066.76 | CX116: 4971896.751 | CY116: -422452.8978 | CZ116: 408200.0167 | DA116: -26.060375 | DB116: 260.2733398 | DD116: -8.440110832e-08 | DE116: 2.62632966e-07 | DF116: -1.303851604e-08 | DG116: 0.0001732259989 | DH116: -0.000162050128 | DI116: -0.000137835741 | DJ116: -2.291053534e-07 | DK116: 1.065814104e-12 | DL116: -8.526512829e-13 | DM116: 5.302281352e-07 | DN116: 9.518116713e-07 | DO116: 1.927837729e-07 | DP116: 2.160668373e-07 | DQ116: -1.081265509e-06 | DR116: 8.341157809e-08 | DS116: -0.0009452924132 | DT116: 2.728484105e-12 | DU116: 6.423306331e-12 | DW116: 35 | DX116: 135 | DY116: 9.024640126
G117: 2180 | H117: -8384.57449 | I117: 775572.6902 | J117: 388161.9953 | K117: 0.02248185256 | L117: -0.01626924319 | M117: 0 | N117: -223.1073315 | O117: -308.3035931 | P117: 0 | Q117: -4227903.608 | R117: 3059569.57 | S117: 3654260.638 | T117: -0.6636160155 | U117: 0.4802331263 | V117: 0.5735764364 | W117: -0.5862563973 | X117: -0.8101255685 | Y117: 0 | Z117: 0.4646689366 | AA117: -0.3362628551 | AB117: 0.8191520443 | AC117: 0 | AD117: 0 | AE117: 0 | AF117: 0 | AG117: 0 | AH117: 0.06474820144 | AI117: 0.296288992 | AJ117: 0.8051042731 | AK117: -0.5138287094 | AL117: 0.7594127977 | AM117: 0.1276795737 | AN117: 0.63795778 | AO117: 0.5792279653 | AP117: -0.5792279653 | AQ117: -0.5735764364 | AR117: -0.0838457449 | AS117: 7.755726902 | AT117: 3.881619953 | AU117: 7008.520785 | AV117: 1452.535488 | AW117: -2750.971077 | AX117: 65559.26653 | AY117: -6062023.522 | AZ117: -3034019.572 | BA117: -11065941.82 | BB117: 4872565.712 | BC117: -416426.6425 | BD117: 6779211.013 | BE117: 116.5864486 | BF117: 270.6196154 | BG117: 408202.0131 | BH117: -26.5864486 | BI117: 261.5114137 | BJ117: 5.390869582 | BK117: -5.555999841 | BL117: 0.9638554833 | BM117: -5240.247718 | BN117: -5022.498871 | BO117: 310.945369 | BP117: -11065941.82 | BQ117: 4872565.712 | BR117: -416426.6425 | BS117: 65559.26653 | BT117: -6062023.522 | BU117: -3034019.572 | BV117: 6779211.013 | BW117: 116.5864486 | BX117: 270.6196154 | BY117: 408202.0131 | BZ117: -26.5864486 | CA117: 261.5114137 | CB117: 0.009670633707 | CC117: -0.8942078231 | CD117: -0.447547593 | CE117: -0.004839832136 | CF117: 0.447521423 | CG117: -0.8942601143 | CH117: 0.9999415257 | CI117: 0.01081411723 | CJ117: 0 | CK117: -0.0001094362191 | CL117: -3.078131885e-05 | CM117: 3.014884092e-05 | CN117: 0.09872435592 | CO117: 0.02599912119 | CP117: 0.06638239573 | CQ117: 6779211.013 | CR117: 116.5864486 | CS117: 270.6196154 | CT117: 65559.26653 | CU117: -6062023.522 | CV117: -3034019.572 | CW117: -11065941.82 | CX117: 4872565.712 | CY117: -416426.6425 | CZ117: 408202.0131 | DA117: -26.5864486 | DB117: 261.5114137 | DD117: -8.259667084e-08 | DE117: 2.663582563e-07 | DF117: -1.536682248e-08 | DG117: 0.0001713633537 | DH117: -0.0001667067409 | DI117: -0.0001397565939 | DJ117: -2.318993211e-07 | DK117: 1.136868377e-12 | DL117: -7.389644452e-13 | DM117: 5.236070137e-07 | DN117: 9.620562196e-07 | DO117: 1.881271601e-07 | DP117: 2.216547728e-07 | DQ117: -1.086853445e-06 | DR117: 7.351627573e-08 | DS117: -0.0009387731552 | DT117: 2.813749234e-12 | DU117: 6.536993169e-12 | DW117: 35 | DX117: 135 | DY117: 9.108201608
G118: 2200 | H118: -26313.86278 | I118: 771657.2281 | J118: 395100.9699 | K118: 0.02250555608 | L118: -0.01623643785 | M118: 0 | N118: -222.6574574 | O118: -308.62865 | P118: 0 | Q118: -4232361.256 | R118: 3053400.246 | S118: 3654260.638 | T118: -0.6643156926 | U118: 0.4792647831 | V118: 0.5735764364 | W118: -0.5850742684 | X118: -0.8109797164 | Y118: 0 | Z118: 0.4651588557 | AA118: -0.3355848139 | AB118: 0.8191520443 | AC118: 0 | AD118: 0 | AE118: 0 | AF118: 0 | AG118: 0 | AH118: 0.06474820144 | AI118: 0.31337564 | AJ118: 0.8077841388 | AK118: -0.499279975 | AL118: 0.7525228717 | AM118: 0.1094520412 | AN118: 0.6494070975 | AO118: 0.5792279653 | AP118: -0.5792279653 | AQ118: -0.5735764364 | AR118: -0.2631386278 | AS118: 7.716572281 | AT118: 3.951009699 | AU118: 7005.050793 | AV118: 1607.265079 | AW118: -2672.64144 | AX118: 205700.9588 | AY118: -6031424.211 | AZ118: -3088258.01 | BA118: -11169660.61 | BB118: 4771012.358 | BC118: -410014.868 | BD118: 6779212.966 | BE118: 117.1002095 | BF118: 271.9533082 | BG118: 408203.9657 | BH118: -27.10020952 | BI118: 262.7615451 | BJ118: 5.510039182 | BK118: -5.438020019 | BL118: 0.9651212689 | BM118: -5131.234462 | BN118: -5132.443267 | BO118: 330.236296 | BP118: -11169660.61 | BQ118: 4771012.358 | BR118: -410014.868 | BS118: 205700.9588 | BT118: -6031424.211 | BU118: -3088258.01 | BV118: 6779212.966 | BW118: 117.1002095 | BX118: 271.9533082 | BY118: 408203.9657 | BZ118: -27.10020952 | CA118: 262.7615451 | CB118: 0.03034289671 | CC118: -0.8896938688 | CD118: -0.4555481625 | CE118: -0.01552738473 | CF118: 0.4552834597 | CG118: -0.8902111388 | CH118: 0.9994189357 | CI118: 0.03408505621 | CJ118: 0 | CK118: -0.0001085975873 | CL118: -3.176098865e-05 | CM118: 3.036017292e-05 | CN118: 0.09654359368 | CO118: 0.02537370476 | CP118: 0.06698759486 | CQ118: 6779212.966 | CR118: 117.1002095 | CS118: 271.9533082 | CT118: 205700.9588 | CU118: -6031424.211 | CV118: -3088258.01 | CW118: -11169660.61 | CX118: 4771012.358 | CY118: -410014.868 | CZ118: 408203.9657 | DA118: -27.10020952 | DB118: 262.7615451 | DD118: -8.736969903e-08 | DE118: 2.663582563e-07 | DF118: -1.490116119e-08 | DG118: 0.0001769512892 | DH118: -0.0001657754183 | DI118: -0.0001428415999 | DJ118: -2.337619662e-07 | DK118: 1.165290087e-12 | DL118: -7.389644452e-13 | DM118: 5.25615178e-07 | DN118: 9.639188647e-07 | DO118: 1.839362085e-07 | DP118: 2.197921276e-07 | DQ118: -1.089647412e-06 | DR118: 7.159542292e-08 | DS118: -0.0009257346392 | DT118: 2.899014362e-12 | DU118: 6.764366844e-12 | DW118: 35 | DX118: 135 | DY118: 9.191763091
G119: 2220 | H119: -44229.65693 | I119: 767346.9031 | J119: 401837.7576 | K119: 0.02252921173 | L119: -0.01620359797 | M119: 0 | N119: -222.2071096 | O119: -308.9530504 | P119: 0 | Q119: -4236809.903 | R119: 3047224.428 | S119: 3654260.638 | T119: -0.6650139566 | U119: 0.4782954204 | V119: 0.5735764364 | W119: -0.5838908952 | X119: -0.8118321394 | Y119: 0 | Z119: 0.4656477854 | AA119: -0.3349060589 | AB119: 0.8191520443 | AC119: 0 | AD119: 0 | AE119: 0 | AF119: 0 | AG119: 0 | AH119: 0.06474820144 | AI119: 0.3303022154 | AJ119: 0.8100513875 | AK119: -0.484476208 | AL119: 0.7452485563 | AM119: 0.09116860058 | AN119: 0.6605246972 | AO119: 0.5792279653 | AP119: -0.5792279653 | AQ119: -0.5735764364 | AR119: -0.4422965693 | AS119: 7.673469031 | AT119: 4.018377576 | AU119: 6997.996139 | AV119: 1761.172055 | AW119: -2592.944168 | AX119: 345737.4001 | AY119: -5997738.403 | AZ119: -3140916.112 | BA119: -11271175.48 | BB119: 4667283.879 | BC119: -403217.0683 | BD119: 6779214.875 | BE119: 117.6012659 | BF119: 273.2991429 | BG119: 408205.875 | BH119: -27.60126593 | BI119: 264.0238183 | BJ119: 5.62668079 | BK119: -5.317549438 | BL119: 0.9656889282 | BM119: -5019.863004 | BN119: -5240.003066 | BO119: 349.5455655 | BP119: -11271175.48 | BQ119: 4667283.879 | BR119: -403217.0683 | BS119: 345737.4001 | BT119: -5997738.403 | BU119: -3140916.112 | BV119: 6779214.875 | BW119: 117.6012659 | BX119: 273.2991429 | BY119: 408205.875 | BZ119: -27.60126593 | CA119: 264.0238183 | CB119: 0.05099962259 | CC119: -0.8847246346 | CD119: -0.4633156154 | CE119: -0.02666339318 | CF119: 0.462547752 | CG119: -0.8861933426 | CH119: 0.9983426776 | CI119: 0.05754909243 | CJ119: 0 | CK119: -0.0001075058625 | CL119: -3.274383473e-05 | CM119: 3.050408405e-05 | CN119: 0.09438213982 | CO119: 0.02472866043 | CP119: 0.06759635317 | CQ119: 6779214.875 | CR119: 117.6012659 | CS119: 273.2991429 | CT119: 345737.4001 | CU119: -5997738.403 | CV119: -3140916.112 | CW119: -11271175.48 | CX119: 4667283.879 | CY119: -403217.0683 | CZ119: 408205.875 | DA119: -27.60126593 | DB119: 264.0238183 | DD119: -8.795177564e-08 | DE119: 2.672895789e-07 | DF119: -1.443549991e-08 | DG119: 0.000175088644 | DH119: -0.0001657754183 | DI119: -0.0001420266926 | DJ119: -2.337619662e-07 | DK119: 1.193711796e-12 | DL119: -6.821210263e-13 | DM119: 5.121110007e-07 | DN119: 9.695068002e-07 | DO119: 1.690350473e-07 | DP119: 2.197921276e-07 | DQ119: -1.086853445e-06 | DR119: 5.163019523e-08 | DS119: -0.0009099021554 | DT119: 3.055333764e-12 | DU119: 6.934897101e-12 | DW119: 35 | DX119: 135 | DY119: 9.275324574
G120: 2240 | H120: -62122.79005 | I120: 762643.9214 | J120: 408368.9118 | K120: 0.02255281947 | L120: -0.01617072363 | M120: 0 | N120: -221.7562892 | O120: -309.2767937 | P120: 0 | Q120: -4241249.537 | R120: 3041042.129 | S120: 3654260.638 | T120: -0.6657108062 | U120: 0.4773250404 | V120: 0.5735764364 | W120: -0.5827062799 | X120: -0.8126828356 | Y120: 0 | Z120: 0.4661357247 | AA120: -0.3342265915 | AB120: 0.8191520443 | AC120: 0 | AD120: 0 | AE120: 0 | AF120: 0 | AG120: 0 | AH120: 0.06474820144 | AI120: 0.3470600721 | AJ120: 0.8119048613 | AK120: -0.4694249701 | AL120: 0.7375935673 | AM120: 0.07283859092 | AN120: 0.6713049003 | AO120: 0.5792279653 | AP120: -0.5792279653 | AQ120: -0.5735764364 | AR120: -0.6212279005 | AS120: 7.626439214 | AT120: 4.083689118 | AU120: 6987.360441 | AV120: 1914.177662 | AW120: -2511.920046 | AX120: 485596.9303 | AY120: -5960983.338 | AZ120: -3191966.931 | BA120: -11370439.75 | BB120: 4561428.462 | BC120: -396033.0165 | BD120: 6779216.741 | BE120: 118.0892248 | BF120: 274.6571768 | BG120: 408207.7412 | BH120: -28.08922476 | BI120: 265.2982908 | BJ120: 5.74074078 | BK120: -5.194644554 | BL120: 0.9655539343 | BM120: -4906.184442 | BN120: -5345.129016 | BO120: 368.8591687 | BP120: -11370439.75 | BQ120: 4561428.462 | BR120: -396033.0165 | BS120: 485596.9303 | BT120: -5960983.338 | BU120: -3191966.931 | BV120: 6779216.741 | BW120: 118.0892248 | BX120: 274.6571768 | BY120: 408207.7412 | BZ120: -28.08922476 | CA120: 265.2982908 | CB120: 0.0716302412 | CC120: -0.8793026637 | CD120: -0.4708459771 | CE120: -0.03822967695 | CF120: 0.4692914084 | CG120: -0.8822154305 | CH120: 0.9966983497 | CI120: 0.08119359368 | CJ120: 0 | CK120: -0.0001061642025 | CL120: -3.372813208e-05 | CM120: 3.057653906e-05 | CN120: 0.09224502551 | CO120: 0.02406394166 | CP120: 0.06820728184 | CQ120: 6779216.741 | CR120: 118.0892248 | CS120: 274.6571768 | CT120: 485596.9303 | CU120: -5960983.338 | CV120: -3191966.931 | CW120: -11370439.75 | CX120: 4561428.462 | CY120: -396033.0165 | CZ120: 408207.7412 | DA120: -28.08922476 | DB120: 265.2982908 | DD120: -8.847564459e-08 | DE120: 2.691522241e-07 | DF120: -1.396983862e-08 | DG120: 0.0001788139343 | DH120: -0.0001676380634 | DI120: -0.0001428415999 | DJ120: -2.356246114e-07 | DK120: 1.207922651e-12 | DL120: -5.684341886e-13 | DM120: 5.26139047e-07 | DN120: 9.723007679e-07 | DO120: 1.699663699e-07 | DP120: 2.104789019e-07 | DQ120: -1.097097993e-06 | DR120: 5.913898349e-08 | DS120: -0.0008968636394 | DT120: 3.055333764e-12 | DU120: 7.332801033e-12 | DW120: 35 | DX120: 135 | DY120: 9.358886056
G121: 2260 | H121: -79984.10682 | I121: 757550.6903 | J121: 414691.091 | K121: 0.02257637923 | L121: -0.01613781489 | M121: 0 | N121: -221.3049971 | O121: -309.5998791 | P121: 0 | Q121: -4245680.151 | R121: 3034853.361 | S121: 3654260.638 | T121: -0.6664062397 | U121: 0.4763536452 | V121: 0.5735764364 | W121: -0.5815204253 | X121: -0.8135318033 | Y121: 0 | Z121: 0.4666226726 | AA121: -0.3335464132 | AB121: 0.8191520443 | AC121: 0 | AD121: 0 | AE121: 0 | AF121: 0 | AG121: 0 | AH121: 0.06474820144 | AI121: 0.3636406503 | AJ121: 0.8133436134 | AK121: -0.4541339494 | AL121: 0.7295618148 | AM121: 0.05447137524 | AN121: 0.6817422003 | AO121: 0.5792279653 | AP121: -0.5792279653 | AQ121: -0.5735764364 | AR121: -0.7998410682 | AS121: 7.575506903 | AT121: 4.14691091 | AU121: 6973.149144 | AV121: 2066.203607 | AW121: -2429.610536 | AX121: 625207.98 | AY121: -5921177.828 | AZ121: -3241384.344 | BA121: -11467407.82 | BB121: 4453495.265 | BC121: -388462.7666 | BD121: 6779218.565 | BE121: 118.5636924 | BF121: 276.0274389 | BG121: 408209.565 | BH121: -28.56369236 | BI121: 266.5849913 | BJ121: 5.852166708 | BK121: -5.069362944 | BL121: 0.9647122171 | BM121: -4790.250934 | BN121: -5447.773004 | BO121: 388.1630112 | BP121: -11467407.82 | BQ121: 4453495.265 | BR121: -388462.7666 | BS121: 625207.98 | BT121: -5921177.828 | BU121: -3241384.344 | BV121: 6779218.565 | BW121: 118.5636924 | BX121: 276.0274389 | BY121: 408209.565 | BZ121: -28.56369236 | CA121: 266.5849913 | CB121: 0.09222419575 | CC121: -0.8734307311 | CD121: -0.4781353946 | CE121: -0.05020647623 | CF121: 0.4754921296 | CG121: -0.8782861404 | CH121: 0.9944717228 | CI121: 0.1050047263 | CJ121: 0 | CK121: -0.0001045762919 | CL121: -3.471199371e-05 | CM121: 3.057356414e-05 | CN121: 0.09013721349 | CO121: 0.02337953802 | CP121: 0.06881891185 | CQ121: 6779218.565 | CR121: 118.5636924 | CS121: 276.0274389 | CT121: 625207.98 | CU121: -5921177.828 | CV121: -3241384.344 | CW121: -11467407.82 | CX121: 4453495.265 | CY121: -388462.7666 | CZ121: 408209.565 | DA121: -28.56369236 | DB121: 266.5849913 | DD121: -9.348150343e-08 | DE121: 2.756714821e-07 | DF121: -1.303851604e-08 | DG121: 0.0001844018698 | DH121: -0.0001704320312 | DI121: -0.0001456355676 | DJ121: -2.43075192e-07 | DK121: 1.222133506e-12 | DL121: -6.252776075e-13 | DM121: 5.244510248e-07 | DN121: 9.797513485e-07 | DO121: 1.65309757e-07 | DP121: 2.104789019e-07 | DQ121: -1.102685928e-06 | DR121: 5.33182174e-08 | DS121: -0.000886619091 | DT121: 3.126388037e-12 | DU121: 7.50333129e-12 | DW121: 35 | DX121: 135 | DY121: 9.442447539
G122: 2280 | H122: -97804.46825 | I122: 752069.8164 | J122: 420801.0607 | K122: 0.02259989097 | L122: -0.01610487183 | M122: 0 | N122: -220.8532344 | O122: -309.9223061 | P122: 0 | Q122: -4250101.734 | R122: 3028658.138 | S122: 3654260.638 | T122: -0.6671002559 | U122: 0.4753812368 | V122: 0.5735764364 | W122: -0.5803333338 | X122: -0.8143790405 | Y122: 0 | Z122: 0.4671086279 | AA122: -0.3328655255 | AB122: 0.8191520443 | AC122: 0 | AD122: 0 | AE122: 0 | AF122: 0 | AG122: 0 | AH122: 0.06474820144 | AI122: 0.3800354804 | AJ122: 0.8143669088 | AK122: -0.4386109568 | AL122: 0.7211574015 | AM122: 0.03607633553 | AN122: 0.6918312657 | AO122: 0.5792279653 | AP122: -0.5792279653 | AQ122: -0.5735764364 | AR122: -0.9780446825 | AS122: 7.520698164 | AT122: 4.208010607 | AU122: 6955.369528 | AV122: 2217.172095 | AW122: -2346.057757 | AX122: 764499.1069 | AY122: -5878342.244 | AZ122: -3289143.064 | BA122: -11562035.11 | BB122: 4343534.401 | BC122: -380506.6556 | BD122: 6779220.347 | BE122: 119.0242752 | BF122: 277.4099277 | BG122: 408211.3469 | BH122: -29.02427523 | BI122: 267.8839187 | BJ122: 5.960907335 | BK122: -4.941763281 | BL122: 0.9631601676 | BM122: -4672.115676 | BN122: -5547.88808 | BO122: 407.4429217 | BP122: -11562035.11 | BQ122: 4343534.401 | BR122: -380506.6556 | BS122: 764499.1069 | BT122: -5878342.244 | BU122: -3289143.064 | BV122: 6779220.347 | BW122: 119.0242752 | BX122: 277.4099277 | BY122: 408211.3469 | BZ122: -29.02427523 | CA122: 267.8839187 | CB122: 0.1127709482 | CC122: -0.8671118422 | CD122: -0.485180138 | CE122: -0.06257243167 | CF122: 0.4811283167 | CG122: -0.8744142232 | CH122: 0.991648831 | CI122: 0.1289674221 | CJ122: 0 | CK122: -0.0001027463335 | CL122: -3.569337031e-05 | CM122: 3.049129202e-05 | CN122: 0.08806358759 | CO122: 0.02267547844 | CP122: 0.06942969572 | CQ122: 6779220.347 | CR122: 119.0242752 | CS122: 277.4099277 | CT122: 764499.1069 | CU122: -5878342.244 | CV122: -3289143.064 | CW122: -11562035.11 | CX122: 4343534.401 | CY122: -380506.6556 | CZ122: 408211.3469 | DA122: -29.02427523 | DB122: 267.8839187 | DD122: -9.511131793e-08 | DE122: 2.756714821e-07 | DF122: -1.257285476e-08 | DG122: 0.0001844018698 | DH122: -0.0001695007086 | DI122: -0.0001467415132 | DJ122: -2.43075192e-07 | DK122: 1.250555215e-12 | DL122: -5.684341886e-13 | DM122: 5.25615178e-07 | DN122: 9.825453162e-07 | DO122: 1.662410796e-07 | DP122: 2.104789019e-07 | DQ122: -1.104548573e-06 | DR122: 5.442416295e-08 | DS122: -0.0008726492524 | DT122: 3.126388037e-12 | DU122: 7.787548384e-12 | DW122: 35 | DX122: 135 | DY122: 9.526009022
